Workbook

Sheet Data (hidden)
C3: MONTHLY SALES REPORTING BY OUTLET
B6: SUBJECT | C6: DATABASE FOR MONTHLY OUTLET SALES REPORT
B8: OUTLET | C8: =MID(CELL("FILENAME",$A$1),FIND("[",CELL("FILENAME",$A$1))+1,3) -> TSU
B10: MONTH / YEAR | C10: =INDEX($D$14:$D$25,MONTH(DATE(MID(CELL("FILENAME",$A$1),FIND("[",CELL("FILENAME",$A$1))+4,4),MID(CELL("FILENAME",$A$1),FIND("[",CELL("FILENAME",$A$1))+8,2),1)),1)&" "&MID(CELL("FILENAME",$A$1),FIND("[",CELL("FILENAME",$A$1))+4,4) -> July 2014
B12: FILE NAME | C12: =MID(CELL("FILENAME",$A$1),1,FIND("[",CELL("FILENAME",$A$1))-1) -> C:\Users\Lion\Desktop\Sales Report\ROOM OCCUPANCY\7 JULY 2014\01TSU\
V13: ROOM
B14: LISTS | C14: 2 | D14: January | F14: ALL | H14: BEER EXCHANGE | J14: RECEPTION
C15: =INDEX($C$16:$C$25,$C$14,1) -> REPORT B | D15: February | F15: NORMAL | H15: BEER PACKAGE | J15: MV / AUDIO
C16: REPORT A | D16: March | F16: CHILDREN | H16: BEER SIDE ORDER | J16: F&B
C17: REPORT B | D17: April | F17: LADIES | H17: LIQUOR PACKAGE | J17: OVERALL EXPERIENCE
C18: REPORT C | D18: May | F18: SENIOR CITIZEN | H18: LIQUOR SIDE ORDER
C19: REPORT D | D19: June | F19: STUDENT | H19: MEAL
C20: REPORT E | D20: July | H20: MEMBERSHIP
C21: REPORT F | D21: August | H21: WINE
C22: REPORT G | D22: September
C23: DATA | D23: October
D24: November
D25: December
B27: MENU
B29: DATE | C29: DATE | D29: PUBLIC | E29: PUBLIC | F29: SALES | J29: ROOMS USED | AI29: PAX | AT29: PROMOTION | CR29: KITCHEN | CV29: MEMBERSHIP | CZ29: BEER PACKAGE | DD29: BEER EXCHANGE | DH29: BEER BOTTLE | DL29: BEER BUCKET | DP29: BEER ROUND | DT29: LIQUOR PACKAGE | DX29: LIQUOR SIDE ORDER | EB29: WINE PACKAGE | EF29: =$J$14 -> RECEPTION | EJ29: =$J$15 -> MV / AUDIO | EN29: =$J$16 -> F&B | ER29: =$J$17 -> OVERALL EXPERIENCE | EV29: QUESTION 01 | EX29: QUESTION 02 | EZ29: COMPLIMENT / COMPLAINT
D30: HOLIDAY | E30: HOLIDAY | F30: CASH A.M. | G30: CARD A.M. | H30: CASH P.M. | I30: CARD P.M. | J30: ROOMS | K30: NOON K | L30: HAPPY | M30: NORMAL | N30: MIDNIGHT | O30: PARTY ROOMS | P30: TIME | Q30: PAX | R30: AMOUNT | S30: PARTY ROOMS | T30: TIME | U30: PAX | V30: AMOUNT | W30: PARTY ROOMS | X30: TIME | Y30: PAX | Z30: AMOUNT | AA30: PARTY ROOMS | AB30: TIME | AC30: PAX | AD30: AMOUNT | AE30: PARTY ROOMS | AF30: TIME | AG30: PAX | AH30: AMOUNT | AI30: NOON K | AJ30: NOON K | AK30: HAPPY | AL30: HAPPY | AM30: HAPPY | AN30: HAPPY | AO30: NORMAL | AP30: NORMAL | AQ30: MIDNIGHT | AR30: MIDNIGHT | AS30: MIDNIGHT | AT30: TYPE | AU30: NOON K | AV30: HAPPY | AW30: NORMAL | AX30: MIDNIGHT | AY30: TYPE | AZ30: NOON K | BA30: HAPPY | BB30: NORMAL | BC30: MIDNIGHT | BD30: TYPE | BE30: NOON K | BF30: HAPPY | BG30: NORMAL | BH30: MIDNIGHT | BI30: TYPE | BJ30: NOON K | BK30: HAPPY | BL30: NORMAL | BM30: MIDNIGHT | BN30: TYPE | BO30: NOON K | BP30: HAPPY | BQ30: NORMAL | BR30: MIDNIGHT | BS30: TYPE | BT30: NOON K | BU30: HAPPY | BV30: NORMAL | BW30: MIDNIGHT | BX30: TYPE | BY30: NOON K | BZ30: HAPPY | CA30: NORMAL | CB30: MIDNIGHT | CC30: TYPE | CD30: NOON K | CE30: HAPPY | CF30: NORMAL | CG30: MIDNIGHT | CH30: TYPE | CI30: NOON K | CJ30: HAPPY | CK30: NORMAL | CL30: MIDNIGHT | CM30: TYPE | CN30: NOON K | CO30: HAPPY | CP30: NORMAL | CQ30: MIDNIGHT | CR30: NOON K | CS30: HAPPY | CT30: NORMAL | CU30: MIDNIGHT | CV30: NOON K | CW30: HAPPY | CX30: NORMAL | CY30: MIDNIGHT | CZ30: NOON K | DA30: HAPPY | DB30: NORMAL | DC30: MIDNIGHT | DD30: NOON K | DE30: HAPPY | DF30: NORMAL | DG30: MIDNIGHT | DH30: NOON K | DI30: HAPPY | DJ30: NORMAL | DK30: MIDNIGHT | DL30: NOON K | DM30: HAPPY | DN30: NORMAL | DO30: MIDNIGHT | DP30: NOON K | DQ30: HAPPY | DR30: NORMAL | DS30: MIDNIGHT | DT30: NOON K | DU30: HAPPY | DV30: NORMAL | DW30: MIDNIGHT | DX30: NOON K | DY30: HAPPY | DZ30: NORMAL | EA30: MIDNIGHT | EB30: NOON K | EC30: HAPPY | ED30: NORMAL | EE30: MIDNIGHT | EF30: EXCELLENT | EG30: GOOD | EH30: NORMAL | EI30: POOR | EJ30: EXCELLENT | EK30: GOOD | EL30: NORMAL | EM30: POOR | EN30: EXCELLENT | EO30: GOOD | EP30: NORMAL | EQ30: POOR | ER30: EXCELLENT | ES30: GOOD | ET30: NORMAL | EU30: POOR | EV30: YES | EW30: NO | EX30: YES | EY30: NO | EZ30: J | FA30: L | FB30: LL | FC30: LLL
B31: =ROW()+1 -> 32 | D31: EVE | AI31: NORMAL | AJ31: CHILDREN | AK31: NORMAL | AL31: CHILDREN | AM31: SENIOR | AN31: STUDENT | AO31: NORMAL | AP31: CHILDREN | AQ31: NORMAL | AR31: CHILDREN | AS31: LADIES
B32: CELL | C32: C8 | D32: K6 | E32: K8 | F32: C102 | G32: D102 | H32: C103 | I32: D103 | J32: D106 | K32: C109 | L32: C110 | M32: C111 | N32: C112 | O32: E109 | P32: F109 | Q32: G109 | R32: H109 | S32: E110 | T32: F110 | U32: G110 | V32: H110 | W32: E111 | X32: F111 | Y32: G111 | Z32: H111 | AA32: E112 | AB32: F112 | AC32: G112 | AD32: H112 | AE32: E113 | AF32: F113 | AG32: G113 | AH32: H113 | AI32: C116 | AJ32: D116 | AK32: C117 | AL32: D117 | AM32: F117 | AN32: G117 | AO32: C118 | AP32: D118 | AQ32: C119 | AR32: D119 | AS32: E119 | AT32: B192 | AU32: D192 | AV32: E192 | AW32: F192 | AX32: G192 | AY32: B193 | AZ32: D193 | BA32: E193 | BB32: F193 | BC32: G193 | BD32: B194 | BE32: D194 | BF32: E194 | BG32: F194 | BH32: G194 | BI32: B195 | BJ32: D195 | BK32: E195 | BL32: F195 | BM32: G195 | BN32: B196 | BO32: D196 | BP32: E196 | BQ32: F196 | BR32: G196 | BS32: B197 | BT32: D197 | BU32: E197 | BV32: F197 | BW32: G197 | BX32: B198 | BY32: D198 | BZ32: E198 | CA32: F198 | CB32: G198 | CC32: B199 | CD32: D199 | CE32: E199 | CF32: F199 | CG32: G199 | CH32: B200 | CI32: D200 | CJ32: E200 | CK32: F200 | CL32: G200 | CM32: B201 | CN32: D201 | CO32: E201 | CP32: F201 | CQ32: G201 | CR32: D208 | CS32: E208 | CT32: F208 | CU32: G208 | CV32: D212 | CW32: E212 | CX32: F212 | CY32: G212 | CZ32: D226 | DA32: E226 | DB32: F226 | DC32: G226 | DD32: D227 | DE32: E227 | DF32: F227 | DG32: G227 | DH32: D228 | DI32: E228 | DJ32: F228 | DK32: G228 | DL32: D229 | DM32: E229 | DN32: F229 | DO32: G229 | DP32: D230 | DQ32: E230 | DR32: F230 | DS32: G230 | DT32: D234 | DU32: E234 | DV32: F234 | DW32: G234 | DX32: D235 | DY32: E235 | DZ32: F235 | EA32: G235 | EB32: D239 | EC32: E239 | ED32: F239 | EE32: G239 | EF32: C418 | EG32: D418 | EH32: E418 | EI32: F418 | EJ32: C419 | EK32: D419 | EL32: E419 | EM32: F419 | EN32: C420 | EO32: D420 | EP32: E420 | EQ32: F420 | ER32: C421 | ES32: D421 | ET32: E421 | EU32: F421 | EV32: F427 | EW32: G427 | EX32: F428 | EY32: G428 | EZ32: D446 | FA32: E446 | FB32: F446 | FC32: G446
B33: =IFERROR(DATE(MID(CELL("FILENAME",$A$1),FIND("[",CELL("FILENAME",$A$1))+4,4),MID(CELL("FILENAME",$A$1),FIND("[",CELL("FILENAME",$A$1))+8,2),MID($C33,1,2)),"") -> 2014-07-01 | C33: 01 July 2014 Tuesday | D33: FALSE | E33: FALSE | F33: 1885.6 | G33: 0 | H33: 2090.3 | I33: 0 | J33: 46 | K33: 14 | L33: 19 | M33: 36 | N33: 8 | O33: 217 | P33: 0 | Q33: 14 | R33: 126 | S33: 0 | T33: 0 | U33: 0 | V33: 0 | W33: 0 | X33: 0 | Y33: 0 | Z33: 0 | AA33: 0 | AB33: 0 | AC33: 0 | AD33: 0 | AE33: 0 | AF33: 0 | AG33: 0 | AH33: 0 | AI33: 41 | AJ33: 0 | AK33: 57 | AL33: 0 | AM33: 0 | AN33: 18 | AO33: 104 | AP33: 1 | AQ33: 25 | AR33: 0 | AS33: 18 | AT33: K-Lunch | AU33: 34 | AV33: 0 | AW33: 0 | AX33: 0 | AY33: LOK-LOK | AZ33: 0 | BA33: 0 | BB33: 0 | BC33: 0 | BD33: Member 30% | BE33: 0 | BF33: 23 | BG33: 38 | BH33: 5 | BI33: Member Package | BJ33: 0 | BK33: 0 | BL33: 0 | BM33: 0 | BN33: Tiger (2+1) Round | BO33: 0 | BP33: 0 | BQ33: 0 | BR33: 0 | BS33: Student Member Card | BT33: 0 | BU33: 0 | BV33: 0 | BW33: 0 | BX33: Student Member Price | BY33: 0 | BZ33: 0 | CA33: 0 | CB33: 0 | CC33: 0 | CD33: 0 | CE33: 0 | CF33: 0 | CG33: 0 | CH33: 0 | CI33: 0 | CJ33: 0 | CK33: 0 | CL33: 0 | CM33: 0 | CN33: 0 | CO33: 0 | CP33: 0 | CQ33: 0 | CR33: 0 | CS33: 0 | CT33: 58 | CU33: 0 | CV33: 0 | CW33: 0 | CX33: 1 | CY33: 0 | CZ33: 0 | DA33: 0 | DB33: 12 | DC33: 0 | DD33: 0 | DE33: 0 | DF33: 0 | DG33: 0 | DH33: 0 | DI33: 0 | DJ33: 2 | DK33: 0 | DL33: 0 | DM33: 0 | DN33: 12 | DO33: 0 | DP33: 0 | DQ33: 0 | DR33: 0 | DS33: 0 | DT33: 0 | DU33: 0 | DV33: 0 | DW33: 0 | DX33: 0 | DY33: 0 | DZ33: 0 | EA33: 0 | EB33: 0 | EC33: 0 | ED33: 0 | EE33: 0 | EF33: 0 | EG33: 0 | EH33: 0 | EI33: 0 | EJ33: 0 | EK33: 0 | EL33: 0 | EM33: 0 | EN33: 0 | EO33: 0 | EP33: 0 | EQ33: 0 | ER33: 0 | ES33: 0 | ET33: 0 | EU33: 0 | EV33: 0 | EW33: 0 | EX33: 0 | EY33: 0 | EZ33: 0 | FA33: 0 | FB33: 0 | FC33: 0
B34: =IFERROR(DATE(MID(CELL("FILENAME",$A$1),FIND("[",CELL("FILENAME",$A$1))+4,4),MID(CELL("FILENAME",$A$1),FIND("[",CELL("FILENAME",$A$1))+8,2),MID($C34,1,2)),"") -> 2014-07-02 | C34: 02 July 2014 Wednesday | D34: FALSE | E34: FALSE | F34: 1949.5 | G34: 0 | H34: 1954.9 | I34: 57.2 | J34: 46 | K34: 15 | L34: 17 | M34: 35 | N34: 4 | O34: 217 | P34: 0 | Q34: 8 | R34: 104 | S34: 0 | T34: 0 | U34: 0 | V34: 0 | W34: 0 | X34: 0 | Y34: 0 | Z34: 0 | AA34: 0 | AB34: 0 | AC34: 0 | AD34: 0 | AE34: 0 | AF34: 0 | AG34: 0 | AH34: 0 | AI34: 37 | AJ34: 1 | AK34: 62 | AL34: 0 | AM34: 0 | AN34: 23 | AO34: 88 | AP34: 1 | AQ34: 11 | AR34: 0 | AS34: 6 | AT34: K-Lunch | AU34: 34 | AV34: 0 | AW34: 0 | AX34: 0 | AY34: LOK-LOK | AZ34: 0 | BA34: 0 | BB34: 48 | BC34: 0 | BD34: Member 30% | BE34: 0 | BF34: 0 | BG34: 0 | BH34: 0 | BI34: Member Package | BJ34: 0 | BK34: 0 | BL34: 0 | BM34: 0 | BN34: Tiger (2+1) Round | BO34: 0 | BP34: 0 | BQ34: 1 | BR34: 0 | BS34: Student Member Card | BT34: 0 | BU34: 0 | BV34: 0 | BW34: 0 | BX34: Student Member Price | BY34: 0 | BZ34: 0 | CA34: 0 | CB34: 0 | CC34: 0 | CD34: 0 | CE34: 0 | CF34: 0 | CG34: 0 | CH34: 0 | CI34: 0 | CJ34: 0 | CK34: 0 | CL34: 0 | CM34: 0 | CN34: 0 | CO34: 0 | CP34: 0 | CQ34: 0 | CR34: 0 | CS34: 0 | CT34: 41 | CU34: 0 | CV34: 0 | CW34: 0 | CX34: 1 | CY34: 0 | CZ34: 0 | DA34: 0 | DB34: 0 | DC34: 0 | DD34: 0 | DE34: 0 | DF34: 0 | DG34: 0 | DH34: 0 | DI34: 0 | DJ34: 3 | DK34: 0 | DL34: 0 | DM34: 0 | DN34: 52 | DO34: 0 | DP34: 0 | DQ34: 0 | DR34: 0 | DS34: 0 | DT34: 0 | DU34: 0 | DV34: 0 | DW34: 0 | DX34: 0 | DY34: 0 | DZ34: 0 | EA34: 0 | EB34: 0 | EC34: 0 | ED34: 0 | EE34: 0 | EF34: 0 | EG34: 0 | EH34: 0 | EI34: 0 | EJ34: 0 | EK34: 0 | EL34: 0 | EM34: 0 | EN34: 0 | EO34: 0 | EP34: 0 | EQ34: 0 | ER34: 0 | ES34: 0 | ET34: 0 | EU34: 0 | EV34: 0 | EW34: 0 | EX34: 0 | EY34: 0 | EZ34: 0 | FA34: 0 | FB34: 0 | FC34: 0
B35: =IFERROR(DATE(MID(CELL("FILENAME",$A$1),FIND("[",CELL("FILENAME",$A$1))+4,4),MID(CELL("FILENAME",$A$1),FIND("[",CELL("FILENAME",$A$1))+8,2),MID($C35,1,2)),"") -> 2014-07-03 | C35: 03 July 2014 Thursday | D35: FALSE | E35: FALSE | F35: 2276.6 | G35: 0 | H35: 2804.1 | I35: 50.4 | J35: 46 | K35: 13 | L35: 19 | M35: 55 | N35: 4 | O35: 201 | P35: 0 | Q35: 13 | R35: 104 | S35: 217 | T35: 0 | U35: 8 | V35: 64 | W35: 308 | X35: 0 | Y35: 5 | Z35: 40 | AA35: 0 | AB35: 0 | AC35: 0 | AD35: 0 | AE35: 0 | AF35: 0 | AG35: 0 | AH35: 0 | AI35: 41 | AJ35: 1 | AK35: 64 | AL35: 2 | AM35: 0 | AN35: 16 | AO35: 204 | AP35: 2 | AQ35: 13 | AR35: 1 | AS35: 9 | AT35: K-Lunch | AU35: 39 | AV35: 0 | AW35: 0 | AX35: 0 | AY35: LOK-LOK | AZ35: 0 | BA35: 0 | BB35: 126 | BC35: 0 | BD35: Member 30% | BE35: 0 | BF35: 0 | BG35: 0 | BH35: 0 | BI35: Member Package | BJ35: 0 | BK35: 0 | BL35: 0 | BM35: 0 | BN35: Tiger (2+1) Round | BO35: 0 | BP35: 0 | BQ35: 0 | BR35: 0 | BS35: Student Member Card | BT35: 0 | BU35: 0 | BV35: 0 | BW35: 0 | BX35: Student Member Price | BY35: 0 | BZ35: 0 | CA35: 0 | CB35: 0 | CC35: 0 | CD35: 0 | CE35: 0 | CF35: 0 | CG35: 0 | CH35: 0 | CI35: 0 | CJ35: 0 | CK35: 0 | CL35: 0 | CM35: 0 | CN35: 0 | CO35: 0 | CP35: 0 | CQ35: 0 | CR35: 0 | CS35: 0 | CT35: 50 | CU35: 0 | CV35: 0 | CW35: 3 | CX35: 2 | CY35: 1 | CZ35: 0 | DA35: 12 | DB35: 0 | DC35: 0 | DD35: 0 | DE35: 0 | DF35: 0 | DG35: 0 | DH35: 0 | DI35: 0 | DJ35: 2 | DK35: 0 | DL35: 0 | DM35: 0 | DN35: 16 | DO35: 0 | DP35: 0 | DQ35: 0 | DR35: 12 | DS35: 0 | DT35: 0 | DU35: 0 | DV35: 0 | DW35: 0 | DX35: 0 | DY35: 0 | DZ35: 0 | EA35: 0 | EB35: 0 | EC35: 0 | ED35: 0 | EE35: 0 | EF35: 0 | EG35: 0 | EH35: 0 | EI35: 0 | EJ35: 0 | EK35: 0 | EL35: 0 | EM35: 0 | EN35: 0 | EO35: 0 | EP35: 0 | EQ35: 0 | ER35: 0 | ES35: 0 | ET35: 0 | EU35: 0 | EV35: 0 | EW35: 0 | EX35: 0 | EY35: 0 | EZ35: 0 | FA35: 0 | FB35: 0 | FC35: 0
B36: 2014-07-04 | C36: 04 July 2014 Friday | D36: FALSE | E36: FALSE | F36: 3684.7 | G36: 198.9 | H36: 6144.9 | I36: 841.4 | J36: 46 | K36: 26 | L36: 29 | M36: 64 | N36: 5 | O36: 217 | P36: 0 | Q36: 21 | R36: 412.9 | S36: 301 | T36: 0 | U36: 8 | V36: 201.6 | W36: 0 | X36: 0 | Y36: 0 | Z36: 0 | AA36: 0 | AB36: 0 | AC36: 0 | AD36: 0 | AE36: 0 | AF36: 0 | AG36: 0 | AH36: 0 | AI36: 86 | AJ36: 5 | AK36: 115 | AL36: 3 | AM36: 0 | AN36: 0 | AO36: 212 | AP36: 5 | AQ36: 15 | AR36: 0 | AS36: 0 | AT36: K-Lunch | AU36: 80 | AV36: 0 | AW36: 0 | AX36: 0 | AY36: LOK-LOK | AZ36: 0 | BA36: 0 | BB36: 192 | BC36: 0 | BD36: Member 30% | BE36: 0 | BF36: 0 | BG36: 0 | BH36: 0 | BI36: Member Package | BJ36: 0 | BK36: 0 | BL36: 0 | BM36: 0 | BN36: Tiger (2+1) Round | BO36: 0 | BP36: 0 | BQ36: 0 | BR36: 0 | BS36: Student Member Card | BT36: 0 | BU36: 0 | BV36: 0 | BW36: 0 | BX36: Student Member Price | BY36: 0 | BZ36: 0 | CA36: 0 | CB36: 0 | CC36: 0 | CD36: 0 | CE36: 0 | CF36: 0 | CG36: 0 | CH36: 0 | CI36: 0 | CJ36: 0 | CK36: 0 | CL36: 0 | CM36: 0 | CN36: 0 | CO36: 0 | CP36: 0 | CQ36: 0 | CR36: 0 | CS36: 0 | CT36: 82 | CU36: 0 | CV36: 0 | CW36: 3 | CX36: 5 | CY36: 0 | CZ36: 0 | DA36: 0 | DB36: 36 | DC36: 0 | DD36: 0 | DE36: 0 | DF36: 0 | DG36: 0 | DH36: 0 | DI36: 0 | DJ36: 4 | DK36: 0 | DL36: 0 | DM36: 0 | DN36: 48 | DO36: 0 | DP36: 0 | DQ36: 0 | DR36: 24 | DS36: 0 | DT36: 0 | DU36: 0 | DV36: 0 | DW36: 0 | DX36: 0 | DY36: 0 | DZ36: 0 | EA36: 0 | EB36: 0 | EC36: 0 | ED36: 0 | EE36: 0 | EF36: 0 | EG36: 0 | EH36: 0 | EI36: 0 | EJ36: 0 | EK36: 0 | EL36: 0 | EM36: 0 | EN36: 0 | EO36: 0 | EP36: 0 | EQ36: 0 | ER36: 0 | ES36: 0 | ET36: 0 | EU36: 0 | EV36: 0 | EW36: 0 | EX36: 0 | EY36: 0 | EZ36: 0 | FA36: 0 | FB36: 0 | FC36: 0
B37: 2014-07-05 | C37: 05 July 2014 Saturday | D37: FALSE | E37: FALSE | F37: 6724.3 | G37: 403 | H37: 9133.4 | I37: 1302.8 | J37: 46 | K37: 35 | L37: 45 | M37: 71 | N37: 18 | O37: 201 | P37: 0 | Q37: 39 | R37: 718 | S37: 217 | T37: 0 | U37: 18 | V37: 372.6 | W37: 301 | X37: 0 | Y37: 26 | Z37: 483.2 | AA37: 308 | AB37: 0 | AC37: 17 | AD37: 463.6 | AE37: 0 | AF37: 0 | AG37: 0 | AH37: 0 | AI37: 129 | AJ37: 5 | AK37: 183 | AL37: 8 | AM37: 0 | AN37: 0 | AO37: 259 | AP37: 6 | AQ37: 77 | AR37: 2 | AS37: 0 | AT37: K-Lunch | AU37: 120 | AV37: 0 | AW37: 0 | AX37: 0 | AY37: LOK-LOK | AZ37: 0 | BA37: 0 | BB37: 138 | BC37: 0 | BD37: Member 30% | BE37: 0 | BF37: 0 | BG37: 0 | BH37: 0 | BI37: Member Package | BJ37: 0 | BK37: 0 | BL37: 0 | BM37: 0 | BN37: Tiger (2+1) Round | BO37: 0 | BP37: 0 | BQ37: 0 | BR37: 0 | BS37: Student Member Card | BT37: 0 | BU37: 0 | BV37: 0 | BW37: 0 | BX37: Student Member Price | BY37: 0 | BZ37: 0 | CA37: 0 | CB37: 0 | CC37: 0 | CD37: 0 | CE37: 0 | CF37: 0 | CG37: 0 | CH37: 0 | CI37: 0 | CJ37: 0 | CK37: 0 | CL37: 0 | CM37: 0 | CN37: 0 | CO37: 0 | CP37: 0 | CQ37: 0 | CR37: 0 | CS37: 0 | CT37: 115 | CU37: 0 | CV37: 0 | CW37: 4 | CX37: 13 | CY37: 0 | CZ37: 0 | DA37: 12 | DB37: 96 | DC37: 24 | DD37: 0 | DE37: 0 | DF37: 0 | DG37: 0 | DH37: 0 | DI37: 0 | DJ37: 4 | DK37: 0 | DL37: 0 | DM37: 0 | DN37: 180 | DO37: 0 | DP37: 0 | DQ37: 0 | DR37: 72 | DS37: 0 | DT37: 0 | DU37: 0 | DV37: 0 | DW37: 0 | DX37: 0 | DY37: 0 | DZ37: 0 | EA37: 0 | EB37: 0 | EC37: 0 | ED37: 0 | EE37: 0 | EF37: 0 | EG37: 0 | EH37: 0 | EI37: 0 | EJ37: 0 | EK37: 0 | EL37: 0 | EM37: 0 | EN37: 0 | EO37: 0 | EP37: 0 | EQ37: 0 | ER37: 0 | ES37: 0 | ET37: 0 | EU37: 0 | EV37: 0 | EW37: 0 | EX37: 0 | EY37: 0 | EZ37: 0 | FA37: 0 | FB37: 0 | FC37: 0
B38: 2014-07-06 | C38: 06 July 2014 Sunday | D38: FALSE | E38: FALSE | F38: 5770.1 | G38: 324.2 | H38: 2753.2 | I38: 688.4 | J38: 46 | K38: 34 | L38: 49 | M38: 41 | N38: 10 | O38: 201 | P38: 0 | Q38: 13 | R38: 427.7 | S38: 217 | T38: 0 | U38: 12 | V38: 194.4 | W38: 301 | X38: 0 | Y38: 6 | Z38: 97.2 | AA38: 308 | AB38: 0 | AC38: 9 | AD38: 162 | AE38: 0 | AF38: 0 | AG38: 0 | AH38: 0 | AI38: 109 | AJ38: 2 | AK38: 164 | AL38: 2 | AM38: 0 | AN38: 0 | AO38: 126 | AP38: 1 | AQ38: 31 | AR38: 0 | AS38: 22 | AT38: K-Lunch | AU38: 100 | AV38: 0 | AW38: 0 | AX38: 0 | AY38: LOK-LOK | AZ38: 0 | BA38: 0 | BB38: 88 | BC38: 0 | BD38: Member 30% | BE38: 0 | BF38: 0 | BG38: 0 | BH38: 0 | BI38: Member Package | BJ38: 0 | BK38: 0 | BL38: 0 | BM38: 0 | BN38: Tiger (2+1) Round | BO38: 0 | BP38: 0 | BQ38: 0 | BR38: 0 | BS38: Student Member Card | BT38: 0 | BU38: 0 | BV38: 0 | BW38: 0 | BX38: Student Member Price | BY38: 0 | BZ38: 0 | CA38: 0 | CB38: 0 | CC38: 0 | CD38: 0 | CE38: 0 | CF38: 0 | CG38: 0 | CH38: 0 | CI38: 0 | CJ38: 0 | CK38: 0 | CL38: 0 | CM38: 0 | CN38: 0 | CO38: 0 | CP38: 0 | CQ38: 0 | CR38: 0 | CS38: 0 | CT38: 108 | CU38: 0 | CV38: 0 | CW38: 1 | CX38: 1 | CY38: 0 | CZ38: 0 | DA38: 24 | DB38: 0 | DC38: 0 | DD38: 0 | DE38: 0 | DF38: 0 | DG38: 0 | DH38: 0 | DI38: 0 | DJ38: 3 | DK38: 0 | DL38: 0 | DM38: 0 | DN38: 72 | DO38: 0 | DP38: 0 | DQ38: 0 | DR38: 24 | DS38: 0 | DT38: 0 | DU38: 0 | DV38: 0 | DW38: 0 | DX38: 0 | DY38: 0 | DZ38: 0 | EA38: 0 | EB38: 0 | EC38: 0 | ED38: 0 | EE38: 0 | EF38: 0 | EG38: 0 | EH38: 0 | EI38: 0 | EJ38: 0 | EK38: 0 | EL38: 0 | EM38: 0 | EN38: 0 | EO38: 0 | EP38: 0 | EQ38: 0 | ER38: 0 | ES38: 0 | ET38: 0 | EU38: 0 | EV38: 0 | EW38: 0 | EX38: 0 | EY38: 0 | EZ38: 0 | FA38: 0 | FB38: 0 | FC38: 0
B39: 2014-07-07 | C39: 07 July 2014 Monday | D39: FALSE | E39: FALSE | F39: 2773.7 | G39: 0 | H39: 4000.2 | I39: 86.4 | J39: 46 | K39: 25 | L39: 22 | M39: 68 | N39: 9 | O39: 217 | P39: 0 | Q39: 24 | R39: 184 | S39: 301 | T39: 0 | U39: 8 | V39: 32 | W39: 308 | X39: 0 | Y39: 8 | Z39: 32 | AA39: 0 | AB39: 0 | AC39: 0 | AD39: 0 | AE39: 0 | AF39: 0 | AG39: 0 | AH39: 0 | AI39: 82 | AJ39: 1 | AK39: 60 | AL39: 0 | AM39: 0 | AN39: 19 | AO39: 253 | AP39: 1 | AQ39: 28 | AR39: 0 | AS39: 19 | AT39: K-Lunch | AU39: 79 | AV39: 0 | AW39: 0 | AX39: 0 | AY39: LOK-LOK | AZ39: 0 | BA39: 0 | BB39: 91 | BC39: 0 | BD39: Member 30% | BE39: 0 | BF39: 0 | BG39: 0 | BH39: 0 | BI39: Member Package | BJ39: 0 | BK39: 0 | BL39: 0 | BM39: 0 | BN39: Tiger (2+1) Round | BO39: 0 | BP39: 0 | BQ39: 3 | BR39: 0 | BS39: Student Member Card | BT39: 0 | BU39: 0 | BV39: 0 | BW39: 0 | BX39: Student Member Price | BY39: 0 | BZ39: 0 | CA39: 0 | CB39: 0 | CC39: 0 | CD39: 0 | CE39: 0 | CF39: 0 | CG39: 0 | CH39: 0 | CI39: 0 | CJ39: 0 | CK39: 0 | CL39: 0 | CM39: 0 | CN39: 0 | CO39: 0 | CP39: 0 | CQ39: 0 | CR39: 0 | CS39: 0 | CT39: 0 | CU39: 0 | CV39: 0 | CW39: 1 | CX39: 1 | CY39: 0 | CZ39: 0 | DA39: 0 | DB39: 12 | DC39: 0 | DD39: 0 | DE39: 0 | DF39: 0 | DG39: 0 | DH39: 0 | DI39: 0 | DJ39: 0 | DK39: 0 | DL39: 0 | DM39: 0 | DN39: 64 | DO39: 0 | DP39: 0 | DQ39: 0 | DR39: 0 | DS39: 0 | DT39: 0 | DU39: 0 | DV39: 0 | DW39: 0 | DX39: 0 | DY39: 0 | DZ39: 0 | EA39: 0 | EB39: 0 | EC39: 0 | ED39: 0 | EE39: 0 | EF39: 0 | EG39: 0 | EH39: 0 | EI39: 0 | EJ39: 0 | EK39: 0 | EL39: 0 | EM39: 0 | EN39: 0 | EO39: 0 | EP39: 0 | EQ39: 0 | ER39: 0 | ES39: 0 | ET39: 0 | EU39: 0 | EV39: 0 | EW39: 0 | EX39: 0 | EY39: 0 | EZ39: 0 | FA39: 0 | FB39: 0 | FC39: 0
B40: 2014-07-08 | C40: 08 July 2014 Tuesday | D40: FALSE | E40: FALSE | F40: 1697.5 | G40: 0 | H40: 3210.5 | I40: 268 | J40: 46 | K40: 9 | L40: 16 | M40: 59 | N40: 11 | O40: 217 | P40: 0 | Q40: 17 | R40: 183.2 | S40: 201 | T40: 0 | U40: 10 | V40: 40 | W40: 0 | X40: 0 | Y40: 0 | Z40: 0 | AA40: 0 | AB40: 0 | AC40: 0 | AD40: 0 | AE40: 0 | AF40: 0 | AG40: 0 | AH40: 0 | AI40: 34 | AJ40: 0 | AK40: 46 | AL40: 0 | AM40: 0 | AN40: 3 | AO40: 196 | AP40: 2 | AQ40: 42 | AR40: 0 | AS40: 16 | AT40: K-Lunch | AU40: 29 | AV40: 0 | AW40: 0 | AX40: 0 | AY40: LOK-LOK | AZ40: 0 | BA40: 0 | BB40: 172 | BC40: 0 | BD40: Member 30% | BE40: 0 | BF40: 30 | BG40: 0 | BH40: 0 | BI40: Member Package | BJ40: 0 | BK40: 0 | BL40: 0 | BM40: 0 | BN40: Tiger (2+1) Round | BO40: 0 | BP40: 0 | BQ40: 0 | BR40: 0 | BS40: Student Member Card | BT40: 0 | BU40: 0 | BV40: 0 | BW40: 0 | BX40: Student Member Price | BY40: 0 | BZ40: 0 | CA40: 0 | CB40: 0 | CC40: 0 | CD40: 0 | CE40: 0 | CF40: 0 | CG40: 0 | CH40: 0 | CI40: 0 | CJ40: 0 | CK40: 0 | CL40: 0 | CM40: 0 | CN40: 0 | CO40: 0 | CP40: 0 | CQ40: 0 | CR40: 0 | CS40: 0 | CT40: 81 | CU40: 0 | CV40: 0 | CW40: 0 | CX40: 1 | CY40: 0 | CZ40: 0 | DA40: 0 | DB40: 0 | DC40: 0 | DD40: 0 | DE40: 0 | DF40: 0 | DG40: 0 | DH40: 0 | DI40: 0 | DJ40: 1 | DK40: 0 | DL40: 0 | DM40: 0 | DN40: 24 | DO40: 0 | DP40: 0 | DQ40: 0 | DR40: 0 | DS40: 0 | DT40: 0 | DU40: 0 | DV40: 0 | DW40: 0 | DX40: 0 | DY40: 0 | DZ40: 0 | EA40: 0 | EB40: 0 | EC40: 0 | ED40: 0 | EE40: 0 | EF40: 0 | EG40: 0 | EH40: 0 | EI40: 0 | EJ40: 0 | EK40: 0 | EL40: 0 | EM40: 0 | EN40: 0 | EO40: 0 | EP40: 0 | EQ40: 0 | ER40: 0 | ES40: 0 | ET40: 0 | EU40: 0 | EV40: 0 | EW40: 0 | EX40: 0 | EY40: 0 | EZ40: 0 | FA40: 0 | FB40: 0 | FC40: 0
B41: 2014-07-09 | C41: 09 July 2014 Wednesday | D41: FALSE | E41: FALSE | F41: 2240 | G41: 0 | H41: 2823.1 | I41: 172.8 | J41: 46 | K41: 23 | L41: 17 | M41: 54 | N41: 10 | O41: 0 | P41: 0 | Q41: 0 | R41: 0 | S41: 0 | T41: 0 | U41: 0 | V41: 0 | W41: 0 | X41: 0 | Y41: 0 | Z41: 0 | AA41: 0 | AB41: 0 | AC41: 0 | AD41: 0 | AE41: 0 | AF41: 0 | AG41: 0 | AH41: 0 | AI41: 62 | AJ41: 2 | AK41: 55 | AL41: 1 | AM41: 0 | AN41: 13 | AO41: 179 | AP41: 4 | AQ41: 24 | AR41: 0 | AS41: 16 | AT41: K-Lunch | AU41: 59 | AV41: 0 | AW41: 0 | AX41: 0 | AY41: LOK-LOK | AZ41: 0 | BA41: 0 | BB41: 106 | BC41: 0 | BD41: Member 30% | BE41: 0 | BF41: 0 | BG41: 0 | BH41: 0 | BI41: Member Package | BJ41: 0 | BK41: 0 | BL41: 0 | BM41: 0 | BN41: Tiger (2+1) Round | BO41: 0 | BP41: 0 | BQ41: 0 | BR41: 0 | BS41: Student Member Card | BT41: 0 | BU41: 0 | BV41: 0 | BW41: 0 | BX41: Student Member Price | BY41: 0 | BZ41: 0 | CA41: 0 | CB41: 0 | CC41: 0 | CD41: 0 | CE41: 0 | CF41: 0 | CG41: 0 | CH41: 0 | CI41: 0 | CJ41: 0 | CK41: 0 | CL41: 0 | CM41: 0 | CN41: 0 | CO41: 0 | CP41: 0 | CQ41: 0 | CR41: 0 | CS41: 0 | CT41: 76 | CU41: 0 | CV41: 0 | CW41: 1 | CX41: 1 | CY41: 0 | CZ41: 0 | DA41: 0 | DB41: 0 | DC41: 0 | DD41: 0 | DE41: 0 | DF41: 0 | DG41: 0 | DH41: 0 | DI41: 0 | DJ41: 2 | DK41: 0 | DL41: 0 | DM41: 0 | DN41: 20 | DO41: 0 | DP41: 0 | DQ41: 0 | DR41: 12 | DS41: 0 | DT41: 0 | DU41: 0 | DV41: 0 | DW41: 0 | DX41: 0 | DY41: 0 | DZ41: 0 | EA41: 0 | EB41: 0 | EC41: 0 | ED41: 0 | EE41: 0 | EF41: 0 | EG41: 0 | EH41: 0 | EI41: 0 | EJ41: 0 | EK41: 0 | EL41: 0 | EM41: 0 | EN41: 0 | EO41: 0 | EP41: 0 | EQ41: 0 | ER41: 0 | ES41: 0 | ET41: 0 | EU41: 0 | EV41: 0 | EW41: 0 | EX41: 0 | EY41: 0 | EZ41: 0 | FA41: 0 | FB41: 0 | FC41: 0
B42: 2014-07-10 | C42: 10 July 2014 Thursday | D42: FALSE | E42: FALSE | F42: 1945.3 | G42: 130 | H42: 2340.4 | I42: 439.6 | J42: 46 | K42: 13 | L42: 11 | M42: 63 | N42: 4 | O42: 201 | P42: 0 | Q42: 15 | R42: 60 | S42: 301 | T42: 0 | U42: 6 | V42: 20 | W42: 217 | X42: 0 | Y42: 7 | Z42: 28 | AA42: 308 | AB42: 0 | AC42: 10 | AD42: 40 | AE42: 0 | AF42: 0 | AG42: 0 | AH42: 0 | AI42: 37 | AJ42: 0 | AK42: 36 | AL42: 0 | AM42: 0 | AN42: 19 | AO42: 221 | AP42: 6 | AQ42: 10 | AR42: 0 | AS42: 5 | AT42: K-Lunch | AU42: 32 | AV42: 0 | AW42: 0 | AX42: 0 | AY42: LOK-LOK | AZ42: 0 | BA42: 0 | BB42: 141 | BC42: 0 | BD42: Member 30% | BE42: 0 | BF42: 0 | BG42: 0 | BH42: 0 | BI42: Member Package | BJ42: 0 | BK42: 0 | BL42: 0 | BM42: 0 | BN42: Tiger (2+1) Round | BO42: 0 | BP42: 0 | BQ42: 0 | BR42: 0 | BS42: Student Member Card | BT42: 0 | BU42: 0 | BV42: 0 | BW42: 0 | BX42: Student Member Price | BY42: 0 | BZ42: 0 | CA42: 0 | CB42: 0 | CC42: 0 | CD42: 0 | CE42: 0 | CF42: 0 | CG42: 0 | CH42: 0 | CI42: 0 | CJ42: 0 | CK42: 0 | CL42: 0 | CM42: 0 | CN42: 0 | CO42: 0 | CP42: 0 | CQ42: 0 | CR42: 0 | CS42: 0 | CT42: 63 | CU42: 0 | CV42: 0 | CW42: 0 | CX42: 2 | CY42: 0 | CZ42: 0 | DA42: 0 | DB42: 12 | DC42: 0 | DD42: 0 | DE42: 0 | DF42: 0 | DG42: 0 | DH42: 0 | DI42: 0 | DJ42: 2 | DK42: 0 | DL42: 0 | DM42: 0 | DN42: 20 | DO42: 0 | DP42: 0 | DQ42: 0 | DR42: 12 | DS42: 0 | DT42: 0 | DU42: 0 | DV42: 0 | DW42: 0 | DX42: 0 | DY42: 0 | DZ42: 0 | EA42: 0 | EB42: 0 | EC42: 0 | ED42: 0 | EE42: 0 | EF42: 0 | EG42: 0 | EH42: 0 | EI42: 0 | EJ42: 0 | EK42: 0 | EL42: 0 | EM42: 0 | EN42: 0 | EO42: 0 | EP42: 0 | EQ42: 0 | ER42: 0 | ES42: 0 | ET42: 0 | EU42: 0 | EV42: 0 | EW42: 0 | EX42: 0 | EY42: 0 | EZ42: 0 | FA42: 0 | FB42: 0 | FC42: 0
B43: 2014-07-11 | C43: 11 July 2014 Friday | D43: FALSE | E43: FALSE | F43: 3349.9 | G43: 1236 | H43: 4818.3 | I43: 1508.4 | J43: 46 | K43: 24 | L43: 20 | M43: 48 | N43: 9 | O43: 308 | P43: 0 | Q43: 10 | R43: 149 | S43: 301 | T43: 0 | U43: 14 | V43: 208 | W43: 217 | X43: 0 | Y43: 11 | Z43: 163.9 | AA43: 201 | AB43: 0 | AC43: 50 | AD43: 1563.8 | AE43: 0 | AF43: 0 | AG43: 0 | AH43: 0 | AI43: 133 | AJ43: 2 | AK43: 88 | AL43: 5 | AM43: 0 | AN43: 0 | AO43: 151 | AP43: 7 | AQ43: 25 | AR43: 0 | AS43: 0 | AT43: K-Lunch | AU43: 131 | AV43: 0 | AW43: 0 | AX43: 0 | AY43: LOK-LOK | AZ43: 0 | BA43: 0 | BB43: 155 | BC43: 0 | BD43: Member 30% | BE43: 0 | BF43: 0 | BG43: 0 | BH43: 0 | BI43: Member Package | BJ43: 0 | BK43: 0 | BL43: 0 | BM43: 0 | BN43: Tiger (2+1) Round | BO43: 0 | BP43: 0 | BQ43: 0 | BR43: 0 | BS43: Student Member Card | BT43: 0 | BU43: 0 | BV43: 0 | BW43: 0 | BX43: Student Member Price | BY43: 0 | BZ43: 0 | CA43: 0 | CB43: 0 | CC43: 0 | CD43: 0 | CE43: 0 | CF43: 0 | CG43: 0 | CH43: 0 | CI43: 0 | CJ43: 0 | CK43: 0 | CL43: 0 | CM43: 0 | CN43: 0 | CO43: 0 | CP43: 0 | CQ43: 0 | CR43: 0 | CS43: 0 | CT43: 74 | CU43: 0 | CV43: 0 | CW43: 0 | CX43: 8 | CY43: 1 | CZ43: 0 | DA43: 96 | DB43: 48 | DC43: 12 | DD43: 0 | DE43: 0 | DF43: 0 | DG43: 0 | DH43: 0 | DI43: 0 | DJ43: 0 | DK43: 0 | DL43: 0 | DM43: 0 | DN43: 164 | DO43: 0 | DP43: 0 | DQ43: 0 | DR43: 24 | DS43: 0 | DT43: 0 | DU43: 0 | DV43: 0 | DW43: 0 | DX43: 0 | DY43: 0 | DZ43: 0 | EA43: 0 | EB43: 0 | EC43: 0 | ED43: 0 | EE43: 0 | EF43: 0 | EG43: 0 | EH43: 0 | EI43: 0 | EJ43: 0 | EK43: 0 | EL43: 0 | EM43: 0 | EN43: 0 | EO43: 0 | EP43: 0 | EQ43: 0 | ER43: 0 | ES43: 0 | ET43: 0 | EU43: 0 | EV43: 0 | EW43: 0 | EX43: 0 | EY43: 0 | EZ43: 0 | FA43: 0 | FB43: 0 | FC43: 0
B44: 2014-07-12 | C44: 12 July 2014 Saturday | D44: FALSE | E44: FALSE | F44: 5977.2 | G44: 526.9 | H44: 7675.4 | I44: 2613.6 | J44: 46 | K44: 33 | L44: 57 | M44: 69 | N44: 13 | O44: 201 | P44: 0 | Q44: 30 | R44: 1262 | S44: 217 | T44: 0 | U44: 28 | V44: 578 | W44: 308 | X44: 0 | Y44: 14 | Z44: 199.6 | AA44: 301 | AB44: 0 | AC44: 20 | AD44: 375.6 | AE44: 0 | AF44: 0 | AG44: 0 | AH44: 0 | AI44: 121 | AJ44: 1 | AK44: 202 | AL44: 17 | AM44: 0 | AN44: 0 | AO44: 267 | AP44: 2 | AQ44: 44 | AR44: 0 | AS44: 0 | AT44: K-Lunch | AU44: 116 | AV44: 0 | AW44: 0 | AX44: 0 | AY44: LOK-LOK | AZ44: 0 | BA44: 0 | BB44: 97 | BC44: 0 | BD44: Member 30% | BE44: 0 | BF44: 0 | BG44: 0 | BH44: 0 | BI44: Member Package | BJ44: 0 | BK44: 0 | BL44: 0 | BM44: 0 | BN44: Tiger (2+1) Round | BO44: 0 | BP44: 0 | BQ44: 0 | BR44: 0 | BS44: Student Member Card | BT44: 0 | BU44: 0 | BV44: 0 | BW44: 0 | BX44: Student Member Price | BY44: 0 | BZ44: 0 | CA44: 0 | CB44: 0 | CC44: 0 | CD44: 0 | CE44: 0 | CF44: 0 | CG44: 0 | CH44: 0 | CI44: 0 | CJ44: 0 | CK44: 0 | CL44: 0 | CM44: 0 | CN44: 0 | CO44: 0 | CP44: 0 | CQ44: 0 | CR44: 0 | CS44: 0 | CT44: 97 | CU44: 0 | CV44: 0 | CW44: 5 | CX44: 5 | CY44: 0 | CZ44: 0 | DA44: 0 | DB44: 108 | DC44: 12 | DD44: 0 | DE44: 0 | DF44: 0 | DG44: 0 | DH44: 0 | DI44: 0 | DJ44: 1 | DK44: 0 | DL44: 0 | DM44: 0 | DN44: 156 | DO44: 0 | DP44: 0 | DQ44: 0 | DR44: 48 | DS44: 0 | DT44: 0 | DU44: 0 | DV44: 0 | DW44: 0 | DX44: 0 | DY44: 0 | DZ44: 0 | EA44: 0 | EB44: 0 | EC44: 0 | ED44: 0 | EE44: 0 | EF44: 0 | EG44: 0 | EH44: 0 | EI44: 0 | EJ44: 0 | EK44: 0 | EL44: 0 | EM44: 0 | EN44: 0 | EO44: 0 | EP44: 0 | EQ44: 0 | ER44: 0 | ES44: 0 | ET44: 0 | EU44: 0 | EV44: 0 | EW44: 0 | EX44: 0 | EY44: 0 | EZ44: 0 | FA44: 0 | FB44: 0 | FC44: 0
B45: 2014-07-13 | C45: 13 July 2014 Sunday | D45: FALSE | E45: FALSE | F45: 5160.8 | G45: 130 | H45: 3949.8 | I45: 916 | J45: 46 | K45: 23 | L45: 48 | M45: 58 | N45: 9 | O45: 301 | P45: 0 | Q45: 7 | R45: 113.4 | S45: 308 | T45: 0 | U45: 3 | V45: 54 | W45: 217 | X45: 0 | Y45: 27 | Z45: 776 | AA45: 0 | AB45: 0 | AC45: 0 | AD45: 0 | AE45: 0 | AF45: 0 | AG45: 0 | AH45: 0 | AI45: 69 | AJ45: 3 | AK45: 160 | AL45: 4 | AM45: 3 | AN45: 0 | AO45: 181 | AP45: 4 | AQ45: 31 | AR45: 0 | AS45: 10 | AT45: K-Lunch | AU45: 52 | AV45: 0 | AW45: 0 | AX45: 0 | AY45: LOK-LOK | AZ45: 0 | BA45: 0 | BB45: 182 | BC45: 0 | BD45: Member 30% | BE45: 0 | BF45: 0 | BG45: 0 | BH45: 0 | BI45: Member Package | BJ45: 0 | BK45: 0 | BL45: 0 | BM45: 0 | BN45: Tiger (2+1) Round | BO45: 0 | BP45: 0 | BQ45: 0 | BR45: 0 | BS45: Student Member Card | BT45: 0 | BU45: 0 | BV45: 0 | BW45: 0 | BX45: Student Member Price | BY45: 0 | BZ45: 0 | CA45: 0 | CB45: 0 | CC45: 0 | CD45: 0 | CE45: 0 | CF45: 0 | CG45: 0 | CH45: 0 | CI45: 0 | CJ45: 0 | CK45: 0 | CL45: 0 | CM45: 0 | CN45: 0 | CO45: 0 | CP45: 0 | CQ45: 0 | CR45: 0 | CS45: 0 | CT45: 96 | CU45: 0 | CV45: 0 | CW45: 2 | CX45: 3 | CY45: 0 | CZ45: 0 | DA45: 0 | DB45: 24 | DC45: 0 | DD45: 0 | DE45: 0 | DF45: 0 | DG45: 0 | DH45: 0 | DI45: 0 | DJ45: 5 | DK45: 0 | DL45: 0 | DM45: 0 | DN45: 48 | DO45: 0 | DP45: 0 | DQ45: 0 | DR45: 12 | DS45: 0 | DT45: 0 | DU45: 0 | DV45: 0 | DW45: 0 | DX45: 0 | DY45: 0 | DZ45: 0 | EA45: 0 | EB45: 0 | EC45: 0 | ED45: 0 | EE45: 0 | EF45: 0 | EG45: 0 | EH45: 0 | EI45: 0 | EJ45: 0 | EK45: 0 | EL45: 0 | EM45: 0 | EN45: 0 | EO45: 0 | EP45: 0 | EQ45: 0 | ER45: 0 | ES45: 0 | ET45: 0 | EU45: 0 | EV45: 0 | EW45: 0 | EX45: 0 | EY45: 0 | EZ45: 0 | FA45: 0 | FB45: 0 | FC45: 0
B46: 2014-07-14 | C46: 14 July 2014 Monday | D46: FALSE | E46: FALSE | F46: 2212.6 | G46: 0 | H46: 2356.8 | I46: 172.8 | J46: 46 | K46: 19 | L46: 21 | M46: 62 | N46: 6 | O46: 308 | P46: 0.7083333333 | Q46: 8 | R46: 16 | S46: 217 | T46: 0.7083333333 | U46: 9 | V46: 18 | W46: 201 | X46: 0.7395833333 | Y46: 10 | Z46: 20 | AA46: 0 | AB46: 0 | AC46: 0 | AD46: 0 | AE46: 0 | AF46: 0 | AG46: 0 | AH46: 0 | AI46: 60 | AJ46: 2 | AK46: 59 | AL46: 0 | AM46: 0 | AN46: 14 | AO46: 230 | AP46: 12 | AQ46: 17 | AR46: 0 | AS46: 15 | AT46: K-Lunch | AU46: 56 | AV46: 0 | AW46: 0 | AX46: 0 | AY46: LOK-LOK | AZ46: 0 | BA46: 0 | BB46: 103 | BC46: 0 | BD46: Member 30% | BE46: 0 | BF46: 0 | BG46: 0 | BH46: 0 | BI46: Member Package | BJ46: 0 | BK46: 0 | BL46: 0 | BM46: 0 | BN46: Tiger (2+1) Round | BO46: 0 | BP46: 0 | BQ46: 0 | BR46: 0 | BS46: Student Member Card | BT46: 0 | BU46: 0 | BV46: 0 | BW46: 0 | BX46: Student Member Price | BY46: 0 | BZ46: 0 | CA46: 0 | CB46: 0 | CC46: 0 | CD46: 0 | CE46: 0 | CF46: 0 | CG46: 0 | CH46: 0 | CI46: 0 | CJ46: 0 | CK46: 0 | CL46: 0 | CM46: 0 | CN46: 0 | CO46: 0 | CP46: 0 | CQ46: 0 | CR46: 0 | CS46: 0 | CT46: 76 | CU46: 0 | CV46: 0 | CW46: 1 | CX46: 0 | CY46: 0 | CZ46: 0 | DA46: 0 | DB46: 12 | DC46: 0 | DD46: 0 | DE46: 0 | DF46: 0 | DG46: 0 | DH46: 0 | DI46: 0 | DJ46: 2 | DK46: 0 | DL46: 0 | DM46: 0 | DN46: 40 | DO46: 0 | DP46: 0 | DQ46: 0 | DR46: 0 | DS46: 0 | DT46: 0 | DU46: 0 | DV46: 0 | DW46: 0 | DX46: 0 | DY46: 0 | DZ46: 0 | EA46: 0 | EB46: 0 | EC46: 0 | ED46: 0 | EE46: 0 | EF46: 0 | EG46: 0 | EH46: 0 | EI46: 0 | EJ46: 0 | EK46: 0 | EL46: 0 | EM46: 0 | EN46: 0 | EO46: 0 | EP46: 0 | EQ46: 0 | ER46: 0 | ES46: 0 | ET46: 0 | EU46: 0 | EV46: 0 | EW46: 0 | EX46: 0 | EY46: 0 | EZ46: 0 | FA46: 0 | FB46: 0 | FC46: 0
B47: 2014-07-15 | C47: 15 July 2014 Tuesday | D47: FALSE | E47: FALSE | F47: 2254.3 | G47: 57.1 | H47: 2154.4 | I47: 402.8 | J47: 46 | K47: 18 | L47: 30 | M47: 30 | N47: 4 | O47: 217 | P47: 0 | Q47: 16 | R47: 378.4 | S47: 201 | T47: 0 | U47: 8 | V47: 134.4 | W47: 0 | X47: 0 | Y47: 0 | Z47: 0 | AA47: 0 | AB47: 0 | AC47: 0 | AD47: 0 | AE47: 0 | AF47: 0 | AG47: 0 | AH47: 0 | AI47: 56 | AJ47: 1 | AK47: 79 | AL47: 3 | AM47: 1 | AN47: 4 | AO47: 104 | AP47: 0 | AQ47: 15 | AR47: 0 | AS47: 8 | AT47: K-Lunch | AU47: 55 | AV47: 0 | AW47: 0 | AX47: 0 | AY47: LOK-LOK | AZ47: 0 | BA47: 0 | BB47: 47 | BC47: 0 | BD47: Member 30% | BE47: 0 | BF47: 45 | BG47: 92 | BH47: 2 | BI47: Member Package | BJ47: 0 | BK47: 0 | BL47: 0 | BM47: 1 | BN47: Tiger (2+1) Round | BO47: 0 | BP47: 0 | BQ47: 0 | BR47: 0 | BS47: Student Member Card | BT47: 0 | BU47: 0 | BV47: 0 | BW47: 0 | BX47: Student Member Price | BY47: 0 | BZ47: 0 | CA47: 0 | CB47: 0 | CC47: 0 | CD47: 0 | CE47: 0 | CF47: 0 | CG47: 0 | CH47: 0 | CI47: 0 | CJ47: 0 | CK47: 0 | CL47: 0 | CM47: 0 | CN47: 0 | CO47: 0 | CP47: 0 | CQ47: 0 | CR47: 0 | CS47: 0 | CT47: 52 | CU47: 0 | CV47: 0 | CW47: 4 | CX47: 3 | CY47: 0 | CZ47: 0 | DA47: 0 | DB47: 12 | DC47: 12 | DD47: 0 | DE47: 0 | DF47: 0 | DG47: 0 | DH47: 0 | DI47: 0 | DJ47: 0 | DK47: 0 | DL47: 0 | DM47: 0 | DN47: 32 | DO47: 0 | DP47: 0 | DQ47: 0 | DR47: 24 | DS47: 0 | DT47: 0 | DU47: 0 | DV47: 0 | DW47: 0 | DX47: 0 | DY47: 0 | DZ47: 0 | EA47: 0 | EB47: 0 | EC47: 0 | ED47: 0 | EE47: 0 | EF47: 0 | EG47: 0 | EH47: 0 | EI47: 0 | EJ47: 0 | EK47: 0 | EL47: 0 | EM47: 0 | EN47: 0 | EO47: 0 | EP47: 0 | EQ47: 0 | ER47: 0 | ES47: 0 | ET47: 0 | EU47: 0 | EV47: 0 | EW47: 0 | EX47: 0 | EY47: 0 | EZ47: 0 | FA47: 0 | FB47: 0 | FC47: 0
B48: 2014-07-16 | C48: 16 July 2014 Wednesday | D48: FALSE | E48: FALSE | F48: 0 | G48: 0 | H48: 0 | I48: 0 | J48: 46 | K48: 17 | L48: 19 | M48: 39 | N48: 9 | O48: 201 | P48: 0 | Q48: 23 | R48: 441.6 | S48: 217 | T48: 0 | U48: 18 | V48: 352.9 | W48: 0 | X48: 0 | Y48: 0 | Z48: 0 | AA48: 0 | AB48: 0 | AC48: 0 | AD48: 0 | AE48: 0 | AF48: 0 | AG48: 0 | AH48: 0 | AI48: 56 | AJ48: 0 | AK48: 78 | AL48: 0 | AM48: 0 | AN48: 6 | AO48: 118 | AP48: 0 | AQ48: 33 | AR48: 0 | AS48: 21 | AT48: K-Lunch | AU48: 49 | AV48: 0 | AW48: 0 | AX48: 0 | AY48: LOK-LOK | AZ48: 0 | BA48: 0 | BB48: 93 | BC48: 0 | BD48: Member 30% | BE48: 0 | BF48: 0 | BG48: 0 | BH48: 0 | BI48: Member Package | BJ48: 0 | BK48: 0 | BL48: 0 | BM48: 0 | BN48: Tiger (2+1) Round | BO48: 0 | BP48: 0 | BQ48: 5 | BR48: 0 | BS48: Student Member Card | BT48: 0 | BU48: 0 | BV48: 0 | BW48: 0 | BX48: Student Member Price | BY48: 0 | BZ48: 0 | CA48: 0 | CB48: 0 | CC48: 0 | CD48: 0 | CE48: 0 | CF48: 0 | CG48: 0 | CH48: 0 | CI48: 0 | CJ48: 0 | CK48: 0 | CL48: 0 | CM48: 0 | CN48: 0 | CO48: 0 | CP48: 0 | CQ48: 0 | CR48: 0 | CS48: 0 | CT48: 56 | CU48: 0 | CV48: 0 | CW48: 0 | CX48: 2 | CY48: 0 | CZ48: 0 | DA48: 12 | DB48: 12 | DC48: 12 | DD48: 0 | DE48: 0 | DF48: 0 | DG48: 0 | DH48: 0 | DI48: 0 | DJ48: 3 | DK48: 0 | DL48: 0 | DM48: 0 | DN48: 100 | DO48: 0 | DP48: 0 | DQ48: 0 | DR48: 12 | DS48: 0 | DT48: 0 | DU48: 0 | DV48: 0 | DW48: 0 | DX48: 0 | DY48: 0 | DZ48: 0 | EA48: 0 | EB48: 0 | EC48: 0 | ED48: 0 | EE48: 0 | EF48: 0 | EG48: 0 | EH48: 0 | EI48: 0 | EJ48: 0 | EK48: 0 | EL48: 0 | EM48: 0 | EN48: 0 | EO48: 0 | EP48: 0 | EQ48: 0 | ER48: 0 | ES48: 0 | ET48: 0 | EU48: 0 | EV48: 0 | EW48: 0 | EX48: 0 | EY48: 0 | EZ48: 0 | FA48: 0 | FB48: 0 | FC48: 0
B49: 2014-07-17 | C49: 17 July 2014 Thursday | D49: FALSE | E49: FALSE | F49: 2193.6 | G49: 168 | H49: 4529.2 | I49: 0 | J49: 46 | K49: 16 | L49: 21 | M49: 41 | N49: 7 | O49: 217 | P49: 0 | Q49: 19 | R49: 209.1 | S49: 201 | T49: 0 | U49: 10 | V49: 359.2 | W49: 0 | X49: 0 | Y49: 0 | Z49: 0 | AA49: 0 | AB49: 0 | AC49: 0 | AD49: 0 | AE49: 0 | AF49: 0 | AG49: 0 | AH49: 0 | AI49: 52 | AJ49: 0 | AK49: 72 | AL49: 2 | AM49: 0 | AN49: 28 | AO49: 130 | AP49: 1 | AQ49: 22 | AR49: 0 | AS49: 12 | AT49: K-Lunch | AU49: 46 | AV49: 0 | AW49: 0 | AX49: 0 | AY49: LOK-LOK | AZ49: 0 | BA49: 0 | BB49: 35 | BC49: 0 | BD49: Member 30% | BE49: 0 | BF49: 0 | BG49: 0 | BH49: 0 | BI49: Member Package | BJ49: 0 | BK49: 0 | BL49: 0 | BM49: 0 | BN49: Tiger (2+1) Round | BO49: 0 | BP49: 0 | BQ49: 0 | BR49: 0 | BS49: Student Member Card | BT49: 0 | BU49: 0 | BV49: 0 | BW49: 0 | BX49: Student Member Price | BY49: 0 | BZ49: 0 | CA49: 0 | CB49: 0 | CC49: 0 | CD49: 0 | CE49: 0 | CF49: 0 | CG49: 0 | CH49: 0 | CI49: 0 | CJ49: 0 | CK49: 0 | CL49: 0 | CM49: 0 | CN49: 0 | CO49: 0 | CP49: 0 | CQ49: 0 | CR49: 0 | CS49: 0 | CT49: 59 | CU49: 0 | CV49: 0 | CW49: 2 | CX49: 6 | CY49: 0 | CZ49: 0 | DA49: 0 | DB49: 36 | DC49: 12 | DD49: 0 | DE49: 0 | DF49: 0 | DG49: 0 | DH49: 0 | DI49: 0 | DJ49: 5 | DK49: 0 | DL49: 0 | DM49: 0 | DN49: 68 | DO49: 0 | DP49: 0 | DQ49: 0 | DR49: 24 | DS49: 0 | DT49: 0 | DU49: 0 | DV49: 0 | DW49: 0 | DX49: 0 | DY49: 0 | DZ49: 0 | EA49: 0 | EB49: 0 | EC49: 0 | ED49: 0 | EE49: 0 | EF49: 0 | EG49: 0 | EH49: 0 | EI49: 0 | EJ49: 0 | EK49: 0 | EL49: 0 | EM49: 0 | EN49: 0 | EO49: 0 | EP49: 0 | EQ49: 0 | ER49: 0 | ES49: 0 | ET49: 0 | EU49: 0 | EV49: 0 | EW49: 0 | EX49: 0 | EY49: 0 | EZ49: 0 | FA49: 0 | FB49: 0 | FC49: 0
B50: 2014-07-18 | C50: 18 July 2014 Friday | D50: FALSE | E50: FALSE | F50: 3102.1 | G50: 0 | H50: 6252 | I50: 3305.2 | J50: 46 | K50: 27 | L50: 17 | M50: 64 | N50: 5 | O50: 217 | P50: 0 | Q50: 24 | R50: 840 | S50: 201 | T50: 0 | U50: 12 | V50: 624 | W50: 301 | X50: 0 | Y50: 10 | Z50: 526.4 | AA50: 308 | AB50: 0 | AC50: 12 | AD50: 409.6 | AE50: 0 | AF50: 0 | AG50: 0 | AH50: 0 | AI50: 96 | AJ50: 5 | AK50: 58 | AL50: 0 | AM50: 0 | AN50: 0 | AO50: 245 | AP50: 4 | AQ50: 13 | AR50: 0 | AS50: 0 | AT50: K-Lunch | AU50: 89 | AV50: 0 | AW50: 0 | AX50: 0 | AY50: LOK-LOK | AZ50: 0 | BA50: 0 | BB50: 103 | BC50: 0 | BD50: Member 30% | BE50: 0 | BF50: 0 | BG50: 0 | BH50: 0 | BI50: Member Package | BJ50: 0 | BK50: 0 | BL50: 0 | BM50: 0 | BN50: Tiger (2+1) Round | BO50: 0 | BP50: 0 | BQ50: 0 | BR50: 0 | BS50: Student Member Card | BT50: 0 | BU50: 0 | BV50: 0 | BW50: 0 | BX50: Student Member Price | BY50: 0 | BZ50: 0 | CA50: 0 | CB50: 0 | CC50: 0 | CD50: 0 | CE50: 0 | CF50: 0 | CG50: 0 | CH50: 0 | CI50: 0 | CJ50: 0 | CK50: 0 | CL50: 0 | CM50: 0 | CN50: 0 | CO50: 0 | CP50: 0 | CQ50: 0 | CR50: 0 | CS50: 0 | CT50: 73 | CU50: 0 | CV50: 0 | CW50: 0 | CX50: 8 | CY50: 0 | CZ50: 0 | DA50: 12 | DB50: 204 | DC50: 12 | DD50: 0 | DE50: 0 | DF50: 0 | DG50: 0 | DH50: 0 | DI50: 0 | DJ50: 0 | DK50: 0 | DL50: 0 | DM50: 0 | DN50: 244 | DO50: 0 | DP50: 0 | DQ50: 0 | DR50: 48 | DS50: 0 | DT50: 0 | DU50: 0 | DV50: 0 | DW50: 0 | DX50: 0 | DY50: 0 | DZ50: 0 | EA50: 0 | EB50: 0 | EC50: 0 | ED50: 0 | EE50: 0 | EF50: 0 | EG50: 0 | EH50: 0 | EI50: 0 | EJ50: 0 | EK50: 0 | EL50: 0 | EM50: 0 | EN50: 0 | EO50: 0 | EP50: 0 | EQ50: 0 | ER50: 0 | ES50: 0 | ET50: 0 | EU50: 0 | EV50: 0 | EW50: 0 | EX50: 0 | EY50: 0 | EZ50: 0 | FA50: 0 | FB50: 0 | FC50: 0
B51: 2014-07-19 | C51: 19 July 2014 Saturday | D51: FALSE | E51: FALSE | F51: 5571.1 | G51: 131.6 | H51: 9584.7 | I51: 1224.8 | J51: 46 | K51: 34 | L51: 53 | M51: 76 | N51: 16 | O51: 201 | P51: 0 | Q51: 15 | R51: 722.4 | S51: 217 | T51: 0 | U51: 27 | V51: 816 | W51: 301 | X51: 0 | Y51: 22 | Z51: 576 | AA51: 308 | AB51: 0 | AC51: 14 | AD51: 199.8 | AE51: 0 | AF51: 0 | AG51: 0 | AH51: 0 | AI51: 105 | AJ51: 3 | AK51: 162 | AL51: 11 | AM51: 0 | AN51: 0 | AO51: 287 | AP51: 17 | AQ51: 67 | AR51: 0 | AS51: 0 | AT51: K-Lunch | AU51: 100 | AV51: 0 | AW51: 0 | AX51: 0 | AY51: LOK-LOK | AZ51: 0 | BA51: 0 | BB51: 214 | BC51: 0 | BD51: Member 30% | BE51: 0 | BF51: 0 | BG51: 0 | BH51: 0 | BI51: Member Package | BJ51: 0 | BK51: 0 | BL51: 0 | BM51: 0 | BN51: Tiger (2+1) Round | BO51: 0 | BP51: 0 | BQ51: 0 | BR51: 0 | BS51: Student Member Card | BT51: 0 | BU51: 0 | BV51: 0 | BW51: 0 | BX51: Student Member Price | BY51: 0 | BZ51: 0 | CA51: 0 | CB51: 0 | CC51: 0 | CD51: 0 | CE51: 0 | CF51: 0 | CG51: 0 | CH51: 0 | CI51: 0 | CJ51: 0 | CK51: 0 | CL51: 0 | CM51: 0 | CN51: 0 | CO51: 0 | CP51: 0 | CQ51: 0 | CR51: 0 | CS51: 0 | CT51: 119 | CU51: 0 | CV51: 0 | CW51: 5 | CX51: 13 | CY51: 1 | CZ51: 0 | DA51: 12 | DB51: 108 | DC51: 48 | DD51: 0 | DE51: 0 | DF51: 0 | DG51: 0 | DH51: 0 | DI51: 0 | DJ51: 3 | DK51: 0 | DL51: 0 | DM51: 0 | DN51: 192 | DO51: 0 | DP51: 0 | DQ51: 0 | DR51: 0 | DS51: 0 | DT51: 0 | DU51: 0 | DV51: 0 | DW51: 0 | DX51: 0 | DY51: 0 | DZ51: 0 | EA51: 0 | EB51: 0 | EC51: 0 | ED51: 0 | EE51: 0 | EF51: 0 | EG51: 0 | EH51: 0 | EI51: 0 | EJ51: 0 | EK51: 0 | EL51: 0 | EM51: 0 | EN51: 0 | EO51: 0 | EP51: 0 | EQ51: 0 | ER51: 0 | ES51: 0 | ET51: 0 | EU51: 0 | EV51: 0 | EW51: 0 | EX51: 0 | EY51: 0 | EZ51: 0 | FA51: 0 | FB51: 0 | FC51: 0
B52: 2014-07-20 | C52: 20 July 2014 Sunday | D52: FALSE | E52: FALSE | F52: 4853.2 | G52: 467.2 | H52: 3396.9 | I52: 790.7 | J52: 46 | K52: 36 | L52: 51 | M52: 44 | N52: 11 | O52: 217 | P52: 0 | Q52: 23 | R52: 629.2 | S52: 301 | T52: 0 | U52: 2 | V52: 32.4 | W52: 308 | X52: 0 | Y52: 4 | Z52: 36 | AA52: 0 | AB52: 0 | AC52: 0 | AD52: 0 | AE52: 0 | AF52: 0 | AG52: 0 | AH52: 0 | AI52: 111 | AJ52: 4 | AK52: 154 | AL52: 7 | AM52: 0 | AN52: 0 | AO52: 136 | AP52: 3 | AQ52: 34 | AR52: 0 | AS52: 13 | AT52: K-Lunch | AU52: 104 | AV52: 0 | AW52: 0 | AX52: 0 | AY52: LOK-LOK | AZ52: 0 | BA52: 0 | BB52: 53 | BC52: 0 | BD52: Member 30% | BE52: 0 | BF52: 0 | BG52: 0 | BH52: 0 | BI52: Member Package | BJ52: 0 | BK52: 0 | BL52: 0 | BM52: 0 | BN52: Tiger (2+1) Round | BO52: 0 | BP52: 0 | BQ52: 0 | BR52: 0 | BS52: Student Member Card | BT52: 0 | BU52: 0 | BV52: 0 | BW52: 0 | BX52: Student Member Price | BY52: 0 | BZ52: 0 | CA52: 0 | CB52: 0 | CC52: 0 | CD52: 0 | CE52: 0 | CF52: 0 | CG52: 0 | CH52: 0 | CI52: 0 | CJ52: 0 | CK52: 0 | CL52: 0 | CM52: 0 | CN52: 0 | CO52: 0 | CP52: 0 | CQ52: 0 | CR52: 0 | CS52: 0 | CT52: 57 | CU52: 0 | CV52: 0 | CW52: 5 | CX52: 3 | CY52: 0 | CZ52: 0 | DA52: 12 | DB52: 24 | DC52: 24 | DD52: 0 | DE52: 0 | DF52: 0 | DG52: 0 | DH52: 0 | DI52: 0 | DJ52: 3 | DK52: 0 | DL52: 0 | DM52: 0 | DN52: 80 | DO52: 0 | DP52: 0 | DQ52: 0 | DR52: 36 | DS52: 0 | DT52: 0 | DU52: 0 | DV52: 0 | DW52: 0 | DX52: 0 | DY52: 0 | DZ52: 0 | EA52: 0 | EB52: 0 | EC52: 0 | ED52: 0 | EE52: 0 | EF52: 0 | EG52: 0 | EH52: 0 | EI52: 0 | EJ52: 0 | EK52: 0 | EL52: 0 | EM52: 0 | EN52: 0 | EO52: 0 | EP52: 0 | EQ52: 0 | ER52: 0 | ES52: 0 | ET52: 0 | EU52: 0 | EV52: 0 | EW52: 0 | EX52: 0 | EY52: 0 | EZ52: 0 | FA52: 0 | FB52: 0 | FC52: 0
B53: 2014-07-21 | C53: 21 July 2014 Monday | D53: FALSE | E53: FALSE | F53: 1548.2 | G53: 127.3 | H53: 2658.2 | I53: 86.4 | J53: 46 | K53: 20 | L53: 18 | M53: 29 | N53: 11 | O53: 217 | P53: 0 | Q53: 4 | R53: 39.6 | S53: 0 | T53: 0 | U53: 0 | V53: 0 | W53: 0 | X53: 0 | Y53: 0 | Z53: 0 | AA53: 0 | AB53: 0 | AC53: 0 | AD53: 0 | AE53: 0 | AF53: 0 | AG53: 0 | AH53: 0 | AI53: 61 | AJ53: 2 | AK53: 57 | AL53: 1 | AM53: 0 | AN53: 21 | AO53: 76 | AP53: 0 | AQ53: 34 | AR53: 0 | AS53: 19 | AT53: K-Lunch | AU53: 53 | AV53: 0 | AW53: 0 | AX53: 0 | AY53: LOK-LOK | AZ53: 0 | BA53: 0 | BB53: 44 | BC53: 0 | BD53: Member 30% | BE53: 0 | BF53: 0 | BG53: 0 | BH53: 0 | BI53: Member Package | BJ53: 0 | BK53: 0 | BL53: 0 | BM53: 0 | BN53: Tiger (2+1) Round | BO53: 0 | BP53: 0 | BQ53: 0 | BR53: 0 | BS53: Student Member Card | BT53: 0 | BU53: 0 | BV53: 0 | BW53: 0 | BX53: Student Member Price | BY53: 0 | BZ53: 0 | CA53: 0 | CB53: 0 | CC53: 0 | CD53: 0 | CE53: 0 | CF53: 0 | CG53: 0 | CH53: 0 | CI53: 0 | CJ53: 0 | CK53: 0 | CL53: 0 | CM53: 0 | CN53: 0 | CO53: 0 | CP53: 0 | CQ53: 0 | CR53: 0 | CS53: 0 | CT53: 49 | CU53: 0 | CV53: 0 | CW53: 1 | CX53: 1 | CY53: 0 | CZ53: 0 | DA53: 0 | DB53: 0 | DC53: 12 | DD53: 0 | DE53: 0 | DF53: 0 | DG53: 0 | DH53: 0 | DI53: 0 | DJ53: 1 | DK53: 0 | DL53: 0 | DM53: 0 | DN53: 40 | DO53: 0 | DP53: 0 | DQ53: 0 | DR53: 12 | DS53: 0 | DT53: 0 | DU53: 0 | DV53: 0 | DW53: 0 | DX53: 0 | DY53: 0 | DZ53: 0 | EA53: 0 | EB53: 0 | EC53: 0 | ED53: 0 | EE53: 0 | EF53: 0 | EG53: 0 | EH53: 0 | EI53: 0 | EJ53: 0 | EK53: 0 | EL53: 0 | EM53: 0 | EN53: 0 | EO53: 0 | EP53: 0 | EQ53: 0 | ER53: 0 | ES53: 0 | ET53: 0 | EU53: 0 | EV53: 0 | EW53: 0 | EX53: 0 | EY53: 0 | EZ53: 0 | FA53: 0 | FB53: 0 | FC53: 0
B54: 2014-07-22 | C54: 22 July 2014 Tuesday | D54: FALSE | E54: FALSE | F54: 1398.1 | G54: 0 | H54: 3489.1 | I54: 1028.8 | J54: 46 | K54: 16 | L54: 18 | M54: 38 | N54: 12 | O54: 0 | P54: 0 | Q54: 0 | R54: 0 | S54: 0 | T54: 0 | U54: 0 | V54: 0 | W54: 0 | X54: 0 | Y54: 0 | Z54: 0 | AA54: 0 | AB54: 0 | AC54: 0 | AD54: 0 | AE54: 0 | AF54: 0 | AG54: 0 | AH54: 0 | AI54: 46 | AJ54: 3 | AK54: 50 | AL54: 0 | AM54: 0 | AN54: 3 | AO54: 123 | AP54: 1 | AQ54: 38 | AR54: 0 | AS54: 14 | AT54: K-Lunch | AU54: 38 | AV54: 0 | AW54: 0 | AX54: 0 | AY54: LOK-LOK | AZ54: 0 | BA54: 0 | BB54: 101 | BC54: 0 | BD54: Member 30% | BE54: 0 | BF54: 30 | BG54: 79 | BH54: 13 | BI54: Member Package | BJ54: 0 | BK54: 0 | BL54: 4 | BM54: 0 | BN54: Tiger (2+1) Round | BO54: 0 | BP54: 0 | BQ54: 0 | BR54: 0 | BS54: Student Member Card | BT54: 0 | BU54: 0 | BV54: 0 | BW54: 0 | BX54: Student Member Price | BY54: 0 | BZ54: 0 | CA54: 0 | CB54: 0 | CC54: 0 | CD54: 0 | CE54: 0 | CF54: 0 | CG54: 0 | CH54: 0 | CI54: 0 | CJ54: 0 | CK54: 0 | CL54: 0 | CM54: 0 | CN54: 0 | CO54: 0 | CP54: 0 | CQ54: 0 | CR54: 0 | CS54: 0 | CT54: 50 | CU54: 0 | CV54: 0 | CW54: 1 | CX54: 4 | CY54: 0 | CZ54: 0 | DA54: 0 | DB54: 48 | DC54: 0 | DD54: 0 | DE54: 0 | DF54: 0 | DG54: 0 | DH54: 0 | DI54: 0 | DJ54: 4 | DK54: 0 | DL54: 0 | DM54: 0 | DN54: 76 | DO54: 0 | DP54: 0 | DQ54: 0 | DR54: 24 | DS54: 0 | DT54: 0 | DU54: 0 | DV54: 0 | DW54: 0 | DX54: 0 | DY54: 0 | DZ54: 0 | EA54: 0 | EB54: 0 | EC54: 0 | ED54: 0 | EE54: 0 | EF54: 0 | EG54: 0 | EH54: 0 | EI54: 0 | EJ54: 0 | EK54: 0 | EL54: 0 | EM54: 0 | EN54: 0 | EO54: 0 | EP54: 0 | EQ54: 0 | ER54: 0 | ES54: 0 | ET54: 0 | EU54: 0 | EV54: 0 | EW54: 0 | EX54: 0 | EY54: 0 | EZ54: 0 | FA54: 0 | FB54: 0 | FC54: 0
B55: 2014-07-23 | C55: 23 July 2014 Wednesday | D55: FALSE | E55: FALSE | F55: 1807.3 | G55: 0 | H55: 2300.7 | I55: 278.4 | J55: 46 | K55: 14 | L55: 22 | M55: 25 | N55: 9 | O55: 0 | P55: 0 | Q55: 0 | R55: 0 | S55: 0 | T55: 0 | U55: 0 | V55: 0 | W55: 0 | X55: 0 | Y55: 0 | Z55: 0 | AA55: 0 | AB55: 0 | AC55: 0 | AD55: 0 | AE55: 0 | AF55: 0 | AG55: 0 | AH55: 0 | AI55: 54 | AJ55: 0 | AK55: 57 | AL55: 2 | AM55: 0 | AN55: 8 | AO55: 77 | AP55: 0 | AQ55: 30 | AR55: 0 | AS55: 18 | AT55: K-Lunch | AU55: 52 | AV55: 0 | AW55: 0 | AX55: 0 | AY55: LOK-LOK | AZ55: 0 | BA55: 0 | BB55: 88 | BC55: 0 | BD55: Member 30% | BE55: 0 | BF55: 0 | BG55: 0 | BH55: 0 | BI55: Member Package | BJ55: 0 | BK55: 0 | BL55: 0 | BM55: 0 | BN55: Tiger (2+1) Round | BO55: 0 | BP55: 0 | BQ55: 1 | BR55: 0 | BS55: Student Member Card | BT55: 0 | BU55: 0 | BV55: 0 | BW55: 0 | BX55: Student Member Price | BY55: 0 | BZ55: 0 | CA55: 0 | CB55: 0 | CC55: 0 | CD55: 0 | CE55: 0 | CF55: 0 | CG55: 0 | CH55: 0 | CI55: 0 | CJ55: 0 | CK55: 0 | CL55: 0 | CM55: 0 | CN55: 0 | CO55: 0 | CP55: 0 | CQ55: 0 | CR55: 0 | CS55: 0 | CT55: 38 | CU55: 0 | CV55: 0 | CW55: 1 | CX55: 1 | CY55: 0 | CZ55: 0 | DA55: 0 | DB55: 0 | DC55: 0 | DD55: 0 | DE55: 0 | DF55: 0 | DG55: 0 | DH55: 0 | DI55: 0 | DJ55: 1 | DK55: 0 | DL55: 0 | DM55: 0 | DN55: 16 | DO55: 0 | DP55: 0 | DQ55: 0 | DR55: 12 | DS55: 0 | DT55: 0 | DU55: 0 | DV55: 0 | DW55: 0 | DX55: 0 | DY55: 0 | DZ55: 0 | EA55: 0 | EB55: 0 | EC55: 0 | ED55: 0 | EE55: 0 | EF55: 0 | EG55: 0 | EH55: 0 | EI55: 0 | EJ55: 0 | EK55: 0 | EL55: 0 | EM55: 0 | EN55: 0 | EO55: 0 | EP55: 0 | EQ55: 0 | ER55: 0 | ES55: 0 | ET55: 0 | EU55: 0 | EV55: 0 | EW55: 0 | EX55: 0 | EY55: 0 | EZ55: 0 | FA55: 0 | FB55: 0 | FC55: 0
B56: 2014-07-24 | C56: 24 July 2014 Thursday | D56: FALSE | E56: FALSE | F56: 2390.5 | G56: 0 | H56: 3574.6 | I56: 556 | J56: 46 | K56: 17 | L56: 21 | M56: 35 | N56: 6 | O56: 217 | P56: 0 | Q56: 10 | R56: 119 | S56: 201 | T56: 0 | U56: 9 | V56: 95.2 | W56: 308 | X56: 0 | Y56: 8 | Z56: 194 | AA56: 0 | AB56: 0 | AC56: 0 | AD56: 0 | AE56: 0 | AF56: 0 | AG56: 0 | AH56: 0 | AI56: 75 | AJ56: 5 | AK56: 64 | AL56: 0 | AM56: 0 | AN56: 8 | AO56: 114 | AP56: 2 | AQ56: 19 | AR56: 0 | AS56: 9 | AT56: K-Lunch | AU56: 68 | AV56: 0 | AW56: 0 | AX56: 0 | AY56: LOK-LOK | AZ56: 0 | BA56: 0 | BB56: 95 | BC56: 0 | BD56: Member 30% | BE56: 0 | BF56: 0 | BG56: 0 | BH56: 0 | BI56: Member Package | BJ56: 0 | BK56: 0 | BL56: 0 | BM56: 0 | BN56: Tiger (2+1) Round | BO56: 0 | BP56: 0 | BQ56: 0 | BR56: 0 | BS56: Student Member Card | BT56: 0 | BU56: 0 | BV56: 0 | BW56: 0 | BX56: Student Member Price | BY56: 0 | BZ56: 0 | CA56: 0 | CB56: 0 | CC56: 0 | CD56: 0 | CE56: 0 | CF56: 0 | CG56: 0 | CH56: 0 | CI56: 0 | CJ56: 0 | CK56: 0 | CL56: 0 | CM56: 0 | CN56: 0 | CO56: 0 | CP56: 0 | CQ56: 0 | CR56: 0 | CS56: 0 | CT56: 15 | CU56: 0 | CV56: 0 | CW56: 1 | CX56: 1 | CY56: 0 | CZ56: 0 | DA56: 0 | DB56: 36 | DC56: 0 | DD56: 0 | DE56: 0 | DF56: 0 | DG56: 0 | DH56: 0 | DI56: 0 | DJ56: 4 | DK56: 0 | DL56: 0 | DM56: 0 | DN56: 48 | DO56: 0 | DP56: 0 | DQ56: 0 | DR56: 12 | DS56: 0 | DT56: 0 | DU56: 0 | DV56: 0 | DW56: 0 | DX56: 0 | DY56: 0 | DZ56: 0 | EA56: 0 | EB56: 0 | EC56: 0 | ED56: 0 | EE56: 0 | EF56: 0 | EG56: 0 | EH56: 0 | EI56: 0 | EJ56: 0 | EK56: 0 | EL56: 0 | EM56: 0 | EN56: 0 | EO56: 0 | EP56: 0 | EQ56: 0 | ER56: 0 | ES56: 0 | ET56: 0 | EU56: 0 | EV56: 0 | EW56: 0 | EX56: 0 | EY56: 0 | EZ56: 0 | FA56: 0 | FB56: 0 | FC56: 0
B57: 2014-07-25 | C57: 25 July 2014 Friday | D57: FALSE | E57: FALSE | F57: 3413.2 | G57: 285.3 | H57: 3984.2 | I57: 1316.4 | J57: 46 | K57: 23 | L57: 23 | M57: 49 | N57: 6 | O57: 217 | P57: 0 | Q57: 9 | R57: 134.1 | S57: 0 | T57: 0 | U57: 0 | V57: 0 | W57: 0 | X57: 0 | Y57: 0 | Z57: 0 | AA57: 0 | AB57: 0 | AC57: 0 | AD57: 0 | AE57: 0 | AF57: 0 | AG57: 0 | AH57: 0 | AI57: 80 | AJ57: 1 | AK57: 88 | AL57: 2 | AM57: 0 | AN57: 0 | AO57: 168 | AP57: 7 | AQ57: 19 | AR57: 0 | AS57: 0 | AT57: K-Lunch | AU57: 78 | AV57: 0 | AW57: 0 | AX57: 0 | AY57: LOK-LOK | AZ57: 0 | BA57: 0 | BB57: 76 | BC57: 0 | BD57: Member 30% | BE57: 0 | BF57: 0 | BG57: 0 | BH57: 0 | BI57: Member Package | BJ57: 0 | BK57: 0 | BL57: 0 | BM57: 0 | BN57: Tiger (2+1) Round | BO57: 0 | BP57: 0 | BQ57: 0 | BR57: 0 | BS57: Student Member Card | BT57: 0 | BU57: 0 | BV57: 0 | BW57: 0 | BX57: Student Member Price | BY57: 0 | BZ57: 0 | CA57: 0 | CB57: 0 | CC57: 0 | CD57: 0 | CE57: 0 | CF57: 0 | CG57: 0 | CH57: 0 | CI57: 0 | CJ57: 0 | CK57: 0 | CL57: 0 | CM57: 0 | CN57: 0 | CO57: 0 | CP57: 0 | CQ57: 0 | CR57: 0 | CS57: 0 | CT57: 57 | CU57: 0 | CV57: 0 | CW57: 3 | CX57: 5 | CY57: 0 | CZ57: 0 | DA57: 12 | DB57: 24 | DC57: 0 | DD57: 0 | DE57: 0 | DF57: 0 | DG57: 0 | DH57: 0 | DI57: 0 | DJ57: 0 | DK57: 0 | DL57: 0 | DM57: 0 | DN57: 60 | DO57: 0 | DP57: 0 | DQ57: 0 | DR57: 36 | DS57: 0 | DT57: 0 | DU57: 0 | DV57: 0 | DW57: 0 | DX57: 0 | DY57: 0 | DZ57: 0 | EA57: 0 | EB57: 0 | EC57: 0 | ED57: 0 | EE57: 0 | EF57: 0 | EG57: 0 | EH57: 0 | EI57: 0 | EJ57: 0 | EK57: 0 | EL57: 0 | EM57: 0 | EN57: 0 | EO57: 0 | EP57: 0 | EQ57: 0 | ER57: 0 | ES57: 0 | ET57: 0 | EU57: 0 | EV57: 0 | EW57: 0 | EX57: 0 | EY57: 0 | EZ57: 0 | FA57: 0 | FB57: 0 | FC57: 0
B58: 2014-07-26 | C58: 26 July 2014 Saturday | D58: FALSE | E58: FALSE | F58: 7238.6 | G58: 724.2 | H58: 8983.2 | I58: 2719.6 | J58: 46 | K58: 45 | L58: 51 | M58: 83 | N58: 9 | O58: 201 | P58: 0 | Q58: 27 | R58: 596.7 | S58: 217 | T58: 0 | U58: 33 | V58: 1094.4 | W58: 301 | X58: 0 | Y58: 22 | Z58: 430.2 | AA58: 308 | AB58: 0 | AC58: 26 | AD58: 695.4 | AE58: 0 | AF58: 0 | AG58: 0 | AH58: 0 | AI58: 171 | AJ58: 3 | AK58: 179 | AL58: 3 | AM58: 0 | AN58: 0 | AO58: 348 | AP58: 7 | AQ58: 50 | AR58: 0 | AS58: 0 | AT58: K-Lunch | AU58: 163 | AV58: 0 | AW58: 0 | AX58: 0 | AY58: LOK-LOK | AZ58: 0 | BA58: 0 | BB58: 72 | BC58: 0 | BD58: Member 30% | BE58: 0 | BF58: 0 | BG58: 0 | BH58: 0 | BI58: Member Package | BJ58: 0 | BK58: 0 | BL58: 0 | BM58: 0 | BN58: Tiger (2+1) Round | BO58: 0 | BP58: 0 | BQ58: 0 | BR58: 0 | BS58: Student Member Card | BT58: 0 | BU58: 0 | BV58: 0 | BW58: 0 | BX58: Student Member Price | BY58: 0 | BZ58: 0 | CA58: 0 | CB58: 0 | CC58: 0 | CD58: 0 | CE58: 0 | CF58: 0 | CG58: 0 | CH58: 0 | CI58: 0 | CJ58: 0 | CK58: 0 | CL58: 0 | CM58: 0 | CN58: 0 | CO58: 0 | CP58: 0 | CQ58: 0 | CR58: 0 | CS58: 0 | CT58: 98 | CU58: 0 | CV58: 0 | CW58: 1 | CX58: 11 | CY58: 0 | CZ58: 0 | DA58: 0 | DB58: 156 | DC58: 36 | DD58: 0 | DE58: 0 | DF58: 0 | DG58: 0 | DH58: 0 | DI58: 0 | DJ58: 1 | DK58: 0 | DL58: 0 | DM58: 0 | DN58: 248 | DO58: 0 | DP58: 0 | DQ58: 0 | DR58: 24 | DS58: 0 | DT58: 0 | DU58: 0 | DV58: 0 | DW58: 0 | DX58: 0 | DY58: 0 | DZ58: 0 | EA58: 0 | EB58: 0 | EC58: 0 | ED58: 0 | EE58: 0 | EF58: 0 | EG58: 0 | EH58: 0 | EI58: 0 | EJ58: 0 | EK58: 0 | EL58: 0 | EM58: 0 | EN58: 0 | EO58: 0 | EP58: 0 | EQ58: 0 | ER58: 0 | ES58: 0 | ET58: 0 | EU58: 0 | EV58: 0 | EW58: 0 | EX58: 0 | EY58: 0 | EZ58: 0 | FA58: 0 | FB58: 0 | FC58: 0
B59: 2014-07-27 | C59: 27 July 2014 Sunday | D59: TRUE | E59: FALSE | F59: 7080.5 | G59: 496.2 | H59: 10738.5 | I59: 386 | J59: 46 | K59: 47 | L59: 47 | M59: 83 | N59: 15 | O59: 201 | P59: 0 | Q59: 35 | R59: 709.1 | S59: 217 | T59: 0 | U59: 28 | V59: 633 | W59: 301 | X59: 0 | Y59: 28 | Z59: 702.3 | AA59: 308 | AB59: 0 | AC59: 16 | AD59: 273 | AE59: 0 | AF59: 0 | AG59: 0 | AH59: 0 | AI59: 187 | AJ59: 15 | AK59: 177 | AL59: 6 | AM59: 0 | AN59: 0 | AO59: 314 | AP59: 7 | AQ59: 74 | AR59: 0 | AS59: 0 | AT59: K-Lunch | AU59: 172 | AV59: 0 | AW59: 0 | AX59: 0 | AY59: LOK-LOK | AZ59: 0 | BA59: 0 | BB59: 126 | BC59: 0 | BD59: Member 30% | BE59: 0 | BF59: 0 | BG59: 0 | BH59: 0 | BI59: Member Package | BJ59: 0 | BK59: 0 | BL59: 0 | BM59: 0 | BN59: Tiger (2+1) Round | BO59: 0 | BP59: 0 | BQ59: 0 | BR59: 0 | BS59: Student Member Card | BT59: 0 | BU59: 0 | BV59: 0 | BW59: 0 | BX59: Student Member Price | BY59: 0 | BZ59: 0 | CA59: 0 | CB59: 0 | CC59: 0 | CD59: 0 | CE59: 0 | CF59: 0 | CG59: 0 | CH59: 0 | CI59: 0 | CJ59: 0 | CK59: 0 | CL59: 0 | CM59: 0 | CN59: 0 | CO59: 0 | CP59: 0 | CQ59: 0 | CR59: 0 | CS59: 0 | CT59: 96 | CU59: 0 | CV59: 0 | CW59: 0 | CX59: 1 | CY59: 0 | CZ59: 0 | DA59: 12 | DB59: 48 | DC59: 12 | DD59: 0 | DE59: 0 | DF59: 0 | DG59: 0 | DH59: 0 | DI59: 0 | DJ59: 3 | DK59: 0 | DL59: 0 | DM59: 0 | DN59: 104 | DO59: 0 | DP59: 0 | DQ59: 0 | DR59: 48 | DS59: 0 | DT59: 0 | DU59: 0 | DV59: 0 | DW59: 0 | DX59: 0 | DY59: 0 | DZ59: 0 | EA59: 0 | EB59: 0 | EC59: 0 | ED59: 0 | EE59: 0 | EF59: 0 | EG59: 0 | EH59: 0 | EI59: 0 | EJ59: 0 | EK59: 0 | EL59: 0 | EM59: 0 | EN59: 0 | EO59: 0 | EP59: 0 | EQ59: 0 | ER59: 0 | ES59: 0 | ET59: 0 | EU59: 0 | EV59: 0 | EW59: 0 | EX59: 0 | EY59: 0 | EZ59: 0 | FA59: 0 | FB59: 0 | FC59: 0
B60: 2014-07-28 | C60: 28 July 2014 Monday | D60: FALSE | E60: TRUE | F60: 7112.5 | G60: 1013.5 | H60: 7470.2 | I60: 2171.7 | J60: 46 | K60: 46 | L60: 46 | M60: 76 | N60: 9 | O60: 217 | P60: 0 | Q60: 20 | R60: 351 | S60: 308 | T60: 0 | U60: 15 | V60: 329.6 | W60: 301 | X60: 0 | Y60: 9 | Z60: 320 | AA60: 201 | AB60: 0 | AC60: 16 | AD60: 952 | AE60: 0 | AF60: 0 | AG60: 0 | AH60: 0 | AI60: 191 | AJ60: 15 | AK60: 190 | AL60: 12 | AM60: 0 | AN60: 0 | AO60: 305 | AP60: 10 | AQ60: 10 | AR60: 0 | AS60: 0 | AT60: K-Lunch | AU60: 167 | AV60: 0 | AW60: 0 | AX60: 0 | AY60: LOK-LOK | AZ60: 0 | BA60: 0 | BB60: 187 | BC60: 0 | BD60: Member 30% | BE60: 0 | BF60: 0 | BG60: 0 | BH60: 0 | BI60: Member Package | BJ60: 0 | BK60: 0 | BL60: 0 | BM60: 0 | BN60: Tiger (2+1) Round | BO60: 0 | BP60: 0 | BQ60: 3 | BR60: 0 | BS60: Student Member Card | BT60: 0 | BU60: 0 | BV60: 0 | BW60: 0 | BX60: Student Member Price | BY60: 0 | BZ60: 0 | CA60: 0 | CB60: 0 | CC60: 0 | CD60: 0 | CE60: 0 | CF60: 0 | CG60: 0 | CH60: 0 | CI60: 0 | CJ60: 0 | CK60: 0 | CL60: 0 | CM60: 0 | CN60: 0 | CO60: 0 | CP60: 0 | CQ60: 0 | CR60: 0 | CS60: 0 | CT60: 110 | CU60: 0 | CV60: 0 | CW60: 0 | CX60: 0 | CY60: 0 | CZ60: 0 | DA60: 0 | DB60: 84 | DC60: 0 | DD60: 0 | DE60: 0 | DF60: 0 | DG60: 0 | DH60: 0 | DI60: 0 | DJ60: 10 | DK60: 0 | DL60: 0 | DM60: 0 | DN60: 148 | DO60: 0 | DP60: 0 | DQ60: 0 | DR60: 12 | DS60: 0 | DT60: 0 | DU60: 0 | DV60: 0 | DW60: 0 | DX60: 0 | DY60: 0 | DZ60: 0 | EA60: 0 | EB60: 0 | EC60: 0 | ED60: 0 | EE60: 0 | EF60: 0 | EG60: 0 | EH60: 0 | EI60: 0 | EJ60: 0 | EK60: 0 | EL60: 0 | EM60: 0 | EN60: 0 | EO60: 0 | EP60: 0 | EQ60: 0 | ER60: 0 | ES60: 0 | ET60: 0 | EU60: 0 | EV60: 0 | EW60: 0 | EX60: 0 | EY60: 0 | EZ60: 0 | FA60: 0 | FB60: 0 | FC60: 0
B61: 2014-07-29 | C61: 29 July 2014 Tuesday | D61: FALSE | E61: TRUE | F61: 6573.5 | G61: 621.1 | H61: 5591 | I61: 517.2 | J61: 46 | K61: 46 | L61: 46 | M61: 74 | N61: 9 | O61: 201 | P61: 0 | Q61: 16 | R61: 250.8 | S61: 217 | T61: 0 | U61: 34 | V61: 736.4 | W61: 308 | X61: 0 | Y61: 15 | Z61: 185.6 | AA61: 301 | AB61: 0 | AC61: 21 | AD61: 385.1 | AE61: 0 | AF61: 0 | AG61: 0 | AH61: 0 | AI61: 204 | AJ61: 9 | AK61: 142 | AL61: 10 | AM61: 0 | AN61: 0 | AO61: 257 | AP61: 4 | AQ61: 20 | AR61: 0 | AS61: 12 | AT61: K-Lunch | AU61: 193 | AV61: 0 | AW61: 0 | AX61: 0 | AY61: LOK-LOK | AZ61: 0 | BA61: 0 | BB61: 138 | BC61: 0 | BD61: Member 30% | BE61: 0 | BF61: 0 | BG61: 0 | BH61: 0 | BI61: Member Package | BJ61: 0 | BK61: 0 | BL61: 0 | BM61: 0 | BN61: Tiger (2+1) Round | BO61: 0 | BP61: 0 | BQ61: 0 | BR61: 0 | BS61: Student Member Card | BT61: 0 | BU61: 0 | BV61: 0 | BW61: 0 | BX61: Student Member Price | BY61: 0 | BZ61: 0 | CA61: 0 | CB61: 0 | CC61: 0 | CD61: 0 | CE61: 0 | CF61: 0 | CG61: 0 | CH61: 0 | CI61: 0 | CJ61: 0 | CK61: 0 | CL61: 0 | CM61: 0 | CN61: 0 | CO61: 0 | CP61: 0 | CQ61: 0 | CR61: 0 | CS61: 0 | CT61: 84 | CU61: 0 | CV61: 0 | CW61: 1 | CX61: 2 | CY61: 0 | CZ61: 0 | DA61: 0 | DB61: 24 | DC61: 0 | DD61: 0 | DE61: 0 | DF61: 0 | DG61: 0 | DH61: 0 | DI61: 0 | DJ61: 7 | DK61: 0 | DL61: 0 | DM61: 0 | DN61: 52 | DO61: 0 | DP61: 0 | DQ61: 0 | DR61: 24 | DS61: 0 | DT61: 0 | DU61: 0 | DV61: 0 | DW61: 0 | DX61: 0 | DY61: 0 | DZ61: 0 | EA61: 0 | EB61: 0 | EC61: 0 | ED61: 0 | EE61: 0 | EF61: 0 | EG61: 0 | EH61: 0 | EI61: 0 | EJ61: 0 | EK61: 0 | EL61: 0 | EM61: 0 | EN61: 0 | EO61: 0 | EP61: 0 | EQ61: 0 | ER61: 0 | ES61: 0 | ET61: 0 | EU61: 0 | EV61: 0 | EW61: 0 | EX61: 0 | EY61: 0 | EZ61: 0 | FA61: 0 | FB61: 0 | FC61: 0
B62: 2014-07-30 | C62: 30 July 2014 Wednesday | D62: FALSE | E62: FALSE | F62: 4742.3 | G62: 217.8 | H62: 4028.3 | I62: 408 | J62: 46 | K62: 42 | L62: 47 | M62: 51 | N62: 10 | O62: 201 | P62: 0 | Q62: 20 | R62: 316 | S62: 217 | T62: 0 | U62: 11 | V62: 140.4 | W62: 301 | X62: 0 | Y62: 14 | Z62: 156.6 | AA62: 308 | AB62: 0 | AC62: 5 | AD62: 49.5 | AE62: 0 | AF62: 0 | AG62: 0 | AH62: 0 | AI62: 187 | AJ62: 7 | AK62: 159 | AL62: 3 | AM62: 0 | AN62: 66 | AO62: 172 | AP62: 4 | AQ62: 37 | AR62: 2 | AS62: 21 | AT62: K-Lunch | AU62: 170 | AV62: 0 | AW62: 0 | AX62: 0 | AY62: LOK-LOK | AZ62: 0 | BA62: 0 | BB62: 107 | BC62: 0 | BD62: Member 30% | BE62: 0 | BF62: 0 | BG62: 0 | BH62: 0 | BI62: Member Package | BJ62: 0 | BK62: 0 | BL62: 0 | BM62: 0 | BN62: Tiger (2+1) Round | BO62: 0 | BP62: 0 | BQ62: 0 | BR62: 0 | BS62: Student Member Card | BT62: 0 | BU62: 0 | BV62: 0 | BW62: 0 | BX62: Student Member Price | BY62: 0 | BZ62: 0 | CA62: 0 | CB62: 0 | CC62: 0 | CD62: 0 | CE62: 0 | CF62: 0 | CG62: 0 | CH62: 0 | CI62: 0 | CJ62: 0 | CK62: 0 | CL62: 0 | CM62: 0 | CN62: 0 | CO62: 0 | CP62: 0 | CQ62: 0 | CR62: 0 | CS62: 0 | CT62: 102 | CU62: 0 | CV62: 0 | CW62: 0 | CX62: 0 | CY62: 0 | CZ62: 0 | DA62: 0 | DB62: 12 | DC62: 0 | DD62: 0 | DE62: 0 | DF62: 0 | DG62: 0 | DH62: 0 | DI62: 0 | DJ62: 5 | DK62: 0 | DL62: 0 | DM62: 0 | DN62: 24 | DO62: 0 | DP62: 0 | DQ62: 0 | DR62: 0 | DS62: 0 | DT62: 0 | DU62: 0 | DV62: 0 | DW62: 0 | DX62: 0 | DY62: 0 | DZ62: 0 | EA62: 0 | EB62: 0 | EC62: 0 | ED62: 0 | EE62: 0 | EF62: 0 | EG62: 0 | EH62: 0 | EI62: 0 | EJ62: 0 | EK62: 0 | EL62: 0 | EM62: 0 | EN62: 0 | EO62: 0 | EP62: 0 | EQ62: 0 | ER62: 0 | ES62: 0 | ET62: 0 | EU62: 0 | EV62: 0 | EW62: 0 | EX62: 0 | EY62: 0 | EZ62: 0 | FA62: 0 | FB62: 0 | FC62: 0
B63: 2014-07-31 | C63: 31 July 2014 Thursday | D63: FALSE | E63: FALSE | F63: 4532.7 | G63: 450 | H63: 3931.2 | I63: 302.4 | J63: 46 | K63: 44 | L63: 40 | M63: 35 | N63: 10 | O63: 201 | P63: 0 | Q63: 4 | R63: 40 | S63: 217 | T63: 0 | U63: 29 | V63: 508.3 | W63: 301 | X63: 0 | Y63: 3 | Z63: 35.7 | AA63: 308 | AB63: 0 | AC63: 16 | AD63: 303.4 | AE63: 0 | AF63: 0 | AG63: 0 | AH63: 0 | AI63: 175 | AJ63: 19 | AK63: 141 | AL63: 3 | AM63: 1 | AN63: 40 | AO63: 144 | AP63: 4 | AQ63: 35 | AR63: 1 | AS63: 20 | AT63: K-Lunch | AU63: 153 | AV63: 0 | AW63: 0 | AX63: 0 | AY63: LOK-LOK | AZ63: 0 | BA63: 0 | BB63: 49 | BC63: 0 | BD63: Member 30% | BE63: 0 | BF63: 0 | BG63: 0 | BH63: 0 | BI63: Member Package | BJ63: 0 | BK63: 0 | BL63: 0 | BM63: 0 | BN63: Tiger (2+1) Round | BO63: 0 | BP63: 0 | BQ63: 0 | BR63: 0 | BS63: Student Member Card | BT63: 0 | BU63: 0 | BV63: 0 | BW63: 0 | BX63: Student Member Price | BY63: 0 | BZ63: 0 | CA63: 0 | CB63: 0 | CC63: 0 | CD63: 0 | CE63: 0 | CF63: 0 | CG63: 0 | CH63: 0 | CI63: 0 | CJ63: 0 | CK63: 0 | CL63: 0 | CM63: 0 | CN63: 0 | CO63: 0 | CP63: 0 | CQ63: 0 | CR63: 0 | CS63: 0 | CT63: 54 | CU63: 0 | CV63: 0 | CW63: 1 | CX63: 3 | CY63: 0 | CZ63: 0 | DA63: 0 | DB63: 0 | DC63: 12 | DD63: 0 | DE63: 0 | DF63: 0 | DG63: 0 | DH63: 0 | DI63: 0 | DJ63: 2 | DK63: 0 | DL63: 0 | DM63: 0 | DN63: 28 | DO63: 0 | DP63: 0 | DQ63: 0 | DR63: 24 | DS63: 0 | DT63: 0 | DU63: 0 | DV63: 0 | DW63: 0 | DX63: 0 | DY63: 0 | DZ63: 0 | EA63: 0 | EB63: 0 | EC63: 0 | ED63: 0 | EE63: 0 | EF63: 0 | EG63: 0 | EH63: 0 | EI63: 0 | EJ63: 0 | EK63: 0 | EL63: 0 | EM63: 0 | EN63: 0 | EO63: 0 | EP63: 0 | EQ63: 0 | ER63: 0 | ES63: 0 | ET63: 0 | EU63: 0 | EV63: 0 | EW63: 0 | EX63: 0 | EY63: 0 | EZ63: 0 | FA63: 0 | FB63: 0 | FC63: 0

Sheet Report A
C3: MONTHLY SALES REPORTING BY OUTLET
B6: SUBJECT | C6: REPORT A : SALES PERFORMANCE FOR THE MONTH
B8: OUTLET | C8: =Data!$C$8 -> TSU
B10: MONTH / YEAR | C10: =Data!$C$10 -> July 2014
B12: MENU
B14: DATE | C14: DAY | D14: ROW | E14: ="SALES FOR "&IF(MATCH(MID($C$10,1,FIND(" ",$C$10,1)-1),Data!$D$14:$D$25,0)=1,"December "&MID($C$10,FIND(" ",$C$10,1)+1,4)-1,INDEX(Data!$D$14:$D$25,MATCH(MID($C$10,1,FIND(" ",$C$10,1)-1),Data!$D$14:$D$25,0)-1,1)&" "&MID($C$10,FIND(" ",$C$10,1)+1,4)) -> SALES FOR June 2014 | H14: ="SALES FOR "&$C$10 -> SALES FOR July 2014 | K14: ="SALES FOR "&MID($C$10,1,FIND(" ",$C$10,1)-1)&" "&MID($C$10,FIND(" ",$C$10,1)+1,4)-1 -> SALES FOR July 2013 | N14: COMPARISON OF SALES | Q14: CHART : COMPARISON OF SALES PERFORMANCE
E15: =IFERROR(MID(CELL("FILENAME",$A$1),1,FIND("Reports",CELL("FILENAME",$A$1))+7)&"YR"&MID($E$14,FIND("20",$E$14),4)&"\"&MID($E$14,11,FIND("20",$E$14)-12)&"\"&$C$8&"\","") ->  | K15: =IFERROR(MID(CELL("FILENAME",$A$1),1,FIND("Reports",CELL("FILENAME",$A$1))+7)&"YR"&MID($K$14,FIND("20",$K$14),4)&"\"&MID($K$14,11,FIND("20",$K$14)-12)&"\"&$C$8&"\","") -> 
E16: =IFERROR($C$8&MID($E$14,FIND("20",$E$14),4)&TEXT(MATCH(MID($E$14,11,FIND("20",$E$14)-12),Data!$D$14:$D$25,0),"00")&"Sales.xlsm","") -> TSU201406Sales.xlsm | K16: =IFERROR($C$8&MID($K$14,FIND("20",$K$14),4)&TEXT(MATCH(MID($K$14,11,FIND("20",$K$14)-12),Data!$D$14:$D$25,0),"00")&"Sales.xlsm","") -> TSU201307Sales.xlsm
E17: A.M. | F17: P.M. | G17: TOTAL | H17: A.M. | I17: P.M. | J17: TOTAL | K17: A.M. | L17: P.M. | M17: TOTAL | N17: LAST MONTH | O17: THIS MONTH | P17: LAST YEAR | Q17: SELECT TO VIEW
N18: =IF($N$20=TRUE,"A.M.",IF($O$20=TRUE,"P.M.","TOTAL")) -> A.M. | O18: =$N$18 -> A.M. | P18: =$N$18 -> A.M.
E19: ( RM ) | F19: ( RM ) | G19: ( RM ) | H19: ( RM ) | I19: ( RM ) | J19: ( RM ) | K19: ( RM ) | L19: ( RM ) | M19: ( RM ) | N19: ( RM ) | O19: ( RM ) | P19: ( RM )
B20: SUMMARY FOR MONTH | N20: TRUE | O20: FALSE | P20: FALSE | Q20: LEGEND
B21: TOTAL SALES | E21: =SUM(E$32:E$62) -> 135427.2 | F21: =SUM(F$32:F$62) -> 210731.5 | G21: =SUM(G$32:G$62) -> 346158.7 | H21: =SUM(H$32:H$62) -> 121167.8 | I21: =SUM(I$32:I$62) -> 163333.9 | J21: 284501.7 | K21: 0 | L21: 0 | M21: 0
B22: AVERAGE SALES | E22: =IFERROR(SUM(E$32:E$62)/COUNTIF($D$32:$D$62,">0"),"") -> 4368.619355 | F22: =IFERROR(SUM(F$32:F$62)/COUNTIF($D$32:$D$62,">0"),"") -> 6797.790323 | G22: =IFERROR(SUM(G$32:G$62)/COUNTIF($D$32:$D$62,">0"),"") -> 11166.40968 | H22: =IFERROR(SUM(H$32:H$62)/COUNTIF($D$32:$D$62,">0"),"") -> 3908.63871 | I22: 5268.835484 | J22: 9177.474194 | K22: 0 | L22: 0 | M22: 0
B23: HIGHEST SALES | E23: =IFERROR(IF(LARGE(E$32:E$62,1)>0,LARGE(E$32:E$62,1),"NIL"),"NIL") -> 7245.2 | F23: 13509.4 | G23: 20754.6 | H23: 8126 | I23: 11702.8 | J23: 19665.6 | K23: NIL | L23: NIL | M23: NIL
B24: LOWEST SALES | E24: =IFERROR(IF(LARGE(E$32:E$62,COUNTIF(E$32:E$62,">0"))<>E$23,LARGE(E$32:E$62,COUNTIF(E$32:E$62,">0")),"NIL"),"NIL") -> 2872.2 | F24: 3826.7 | G24: 7353.5 | H24: 1398.1 | I24: 2012.1 | J24: 3961.6 | K24: NIL | L24: NIL | M24: NIL
B25: AVERAGE FOR | C25: MONDAY | E25: 3578.775 | F25: 6261.325 | G25: 9840.1 | H25: =IFERROR(SUMIF($C$32:$C$62,"Monday*",H$32:H$62)/COUNTIF($C$32:$C$62,"Monday*"),"") -> 3696.95 | I25: 4750.675 | J25: 8447.625
C26: TUESDAY | E26: 3462.5 | F26: 4939.5 | G26: 8402 | H26: =IFERROR(SUMIF($C$32:$C$62,"Tuesday*",H$32:H$62)/COUNTIF($C$32:$C$62,"Tuesday*"),"") -> 2897.44 | I26: 3750.42 | J26: 6647.86
C27: WEDNESDAY | E27: 4213.18 | F27: 5379.78 | G27: 9592.96 | H27: =IFERROR(SUMIF($C$32:$C$62,"Wednesday*",H$32:H$62)/COUNTIF($C$32:$C$62,"Wednesday*"),"") -> 2191.38 | I27: 2404.68 | J27: 4596.06
C28: THURSDAY | E28: 3530.36 | F28: 6631.52 | G28: 10161.88 | H28: =IFERROR(SUMIF($C$32:$C$62,"Thursday*",H$32:H$62)/COUNTIF($C$32:$C$62,"Thursday*"),"") -> 2817.34 | I28: 3705.58 | J28: 6522.92
C29: FRIDAY | E29: 4035.425 | F29: 7703.025 | G29: 11738.45 | H29: =IFERROR(SUMIF($C$32:$C$62,"Friday*",H$32:H$62)/COUNTIF($C$32:$C$62,"Friday*"),"") -> 3817.525 | I29: 7042.7 | J29: 10860.225
C30: SATURDAY | E30: 6214.55 | F30: 11544.65 | G30: 17759.2 | H30: =IFERROR(SUMIF($C$32:$C$62,"Saturday*",H$32:H$62)/COUNTIF($C$32:$C$62,"Saturday*"),"") -> 6824.225 | I30: 10809.375 | J30: 17633.6
B31: =ROW()+COUNTIF($B$32:$B$62,">0") -> 62 | C31: SUNDAY | D31: =COUNTIF(D32:D62,">0") -> 31 | E31: 6020.5 | F31: 5985.375 | G31: 12005.875 | H31: =IFERROR(SUMIF($C$32:$C$62,"Sunday*",H$32:H$62)/COUNTIF($C$32:$C$62,"Sunday*"),"") -> 6070.55 | I31: 5904.875 | J31: 11975.425
B32: =IFERROR(DATE(MID(CELL("FILENAME",$A$1),FIND("[",CELL("FILENAME",$A$1))+4,4),MID(CELL("FILENAME",$A$1),FIND("[",CELL("FILENAME",$A$1))+8,2),1),"") -> 2014-07-01 | C32: =IFERROR(IF($B32="","",IF(AND($B32<>"",INDEX(Data!$D$33:$D$82,MATCH($B32,Data!$B$33:$B$82,0),1)=TRUE),TEXT($B32,"DDDD")&" +",IF(AND($B32<>"",INDEX(Data!$E$33:$E$82,MATCH($B32,Data!$B$33:$B$82,0),1)=TRUE),TEXT($B32,"DDDD")&" ++",TEXT($B32,"DDDD")))),TEXT($B32,"DDDD")) -> Tuesday | D32: =IFERROR(IF($B32<>"",MATCH($B32,Data!$B$33:$B$82,0),""),"") -> 1 | E32: 3392.2 | F32: 6221.8 | G32: =IFERROR($E32+$F32,"") -> 9614 | H32: =IFERROR(INDEX(Data!$F$33:$F$82,$D32,1)+INDEX(Data!$G$33:$G$82,$D32,1),"") -> 1885.6 | I32: =IFERROR(INDEX(Data!$H$33:$H$82,$D32,1)+INDEX(Data!$I$33:$I$82,$D32,1),"") -> 2090.3 | J32: =IFERROR($H32+$I32,"") -> 3975.9 | M32: =IFERROR($K32+$L32,"") -> 0 | N32: =IFERROR(IF(N$18="A.M.",$E32,IF(N$18="P.M.",$F32,$G32)),"") -> 3392.2 | O32: =IFERROR(IF(O$18="A.M.",$H32,IF(O$18="P.M.",$I32,$J32)),"") -> 1885.6 | P32: =IFERROR(IF(P$18="A.M.",$K32,IF(P$18="P.M.",$L32,$M32)),"") -> 0
B33: =IFERROR(IF(AND(MONTH($B32+1)=MONTH($B$32),YEAR($B32+1)=YEAR($B$32)),$B32+1,""),"") -> 2014-07-02 | C33: =IFERROR(IF($B33="","",IF(AND($B33<>"",INDEX(Data!$D$33:$D$82,MATCH($B33,Data!$B$33:$B$82,0),1)=TRUE),TEXT($B33,"DDDD")&" +",IF(AND($B33<>"",INDEX(Data!$E$33:$E$82,MATCH($B33,Data!$B$33:$B$82,0),1)=TRUE),TEXT($B33,"DDDD")&" ++",TEXT($B33,"DDDD")))),TEXT($B33,"DDDD")) -> Wednesday | D33: =IFERROR(IF($B33<>"",MATCH($B33,Data!$B$33:$B$82,0),""),"") -> 2 | E33: 2970.9 | F33: 5456.8 | G33: 8427.7 | H33: =IFERROR(INDEX(Data!$F$33:$F$82,$D33,1)+INDEX(Data!$G$33:$G$82,$D33,1),"") -> 1949.5 | I33: =IFERROR(INDEX(Data!$H$33:$H$82,$D33,1)+INDEX(Data!$I$33:$I$82,$D33,1),"") -> 2012.1 | J33: =IFERROR($H33+$I33,"") -> 3961.6 | M33: =IFERROR($K33+$L33,"") -> 0 | N33: =IFERROR(IF(N$18="A.M.",$E33,IF(N$18="P.M.",$F33,$G33)),"") -> 2970.9 | O33: =IFERROR(IF(O$18="A.M.",$H33,IF(O$18="P.M.",$I33,$J33)),"") -> 1949.5 | P33: =IFERROR(IF(P$18="A.M.",$K33,IF(P$18="P.M.",$L33,$M33)),"") -> 0
B34: 2014-07-03 | C34: =IFERROR(IF($B34="","",IF(AND($B34<>"",INDEX(Data!$D$33:$D$82,MATCH($B34,Data!$B$33:$B$82,0),1)=TRUE),TEXT($B34,"DDDD")&" +",IF(AND($B34<>"",INDEX(Data!$E$33:$E$82,MATCH($B34,Data!$B$33:$B$82,0),1)=TRUE),TEXT($B34,"DDDD")&" ++",TEXT($B34,"DDDD")))),TEXT($B34,"DDDD")) -> Thursday | D34: =IFERROR(IF($B34<>"",MATCH($B34,Data!$B$33:$B$82,0),""),"") -> 3 | E34: 3139.6 | F34: 8148.3 | G34: 11287.9 | H34: =IFERROR(INDEX(Data!$F$33:$F$82,$D34,1)+INDEX(Data!$G$33:$G$82,$D34,1),"") -> 2276.6 | I34: =IFERROR(INDEX(Data!$H$33:$H$82,$D34,1)+INDEX(Data!$I$33:$I$82,$D34,1),"") -> 2854.5 | J34: 5131.1 | M34: 0 | N34: 3139.6 | O34: 2276.6 | P34: =IFERROR(IF(P$18="A.M.",$K34,IF(P$18="P.M.",$L34,$M34)),"") -> 0
B35: 2014-07-04 | C35: =IFERROR(IF($B35="","",IF(AND($B35<>"",INDEX(Data!$D$33:$D$82,MATCH($B35,Data!$B$33:$B$82,0),1)=TRUE),TEXT($B35,"DDDD")&" +",IF(AND($B35<>"",INDEX(Data!$E$33:$E$82,MATCH($B35,Data!$B$33:$B$82,0),1)=TRUE),TEXT($B35,"DDDD")&" ++",TEXT($B35,"DDDD")))),TEXT($B35,"DDDD")) -> Friday | D35: =IFERROR(IF($B35<>"",MATCH($B35,Data!$B$33:$B$82,0),""),"") -> 4 | E35: 3189.6 | F35: 7064.2 | G35: 10253.8 | H35: =IFERROR(INDEX(Data!$F$33:$F$82,$D35,1)+INDEX(Data!$G$33:$G$82,$D35,1),"") -> 3883.6 | I35: =IFERROR(INDEX(Data!$H$33:$H$82,$D35,1)+INDEX(Data!$I$33:$I$82,$D35,1),"") -> 6986.3 | J35: 10869.9 | M35: 0 | N35: 3189.6 | O35: 3883.6 | P35: 0
B36: 2014-07-05 | C36: =IFERROR(IF($B36="","",IF(AND($B36<>"",INDEX(Data!$D$33:$D$82,MATCH($B36,Data!$B$33:$B$82,0),1)=TRUE),TEXT($B36,"DDDD")&" +",IF(AND($B36<>"",INDEX(Data!$E$33:$E$82,MATCH($B36,Data!$B$33:$B$82,0),1)=TRUE),TEXT($B36,"DDDD")&" ++",TEXT($B36,"DDDD")))),TEXT($B36,"DDDD")) -> Saturday | D36: =IFERROR(IF($B36<>"",MATCH($B36,Data!$B$33:$B$82,0),""),"") -> 5 | E36: 5475.6 | F36: 12631 | G36: 18106.6 | H36: =IFERROR(INDEX(Data!$F$33:$F$82,$D36,1)+INDEX(Data!$G$33:$G$82,$D36,1),"") -> 7127.3 | I36: =IFERROR(INDEX(Data!$H$33:$H$82,$D36,1)+INDEX(Data!$I$33:$I$82,$D36,1),"") -> 10436.2 | J36: 17563.5 | M36: 0 | N36: 5475.6 | O36: 7127.3 | P36: 0
B37: 2014-07-06 | C37: =IFERROR(IF($B37="","",IF(AND($B37<>"",INDEX(Data!$D$33:$D$82,MATCH($B37,Data!$B$33:$B$82,0),1)=TRUE),TEXT($B37,"DDDD")&" +",IF(AND($B37<>"",INDEX(Data!$E$33:$E$82,MATCH($B37,Data!$B$33:$B$82,0),1)=TRUE),TEXT($B37,"DDDD")&" ++",TEXT($B37,"DDDD")))),TEXT($B37,"DDDD")) -> Sunday | D37: =IFERROR(IF($B37<>"",MATCH($B37,Data!$B$33:$B$82,0),""),"") -> 6 | E37: 6792.8 | F37: 7622.5 | G37: 14415.3 | H37: =IFERROR(INDEX(Data!$F$33:$F$82,$D37,1)+INDEX(Data!$G$33:$G$82,$D37,1),"") -> 6094.3 | I37: =IFERROR(INDEX(Data!$H$33:$H$82,$D37,1)+INDEX(Data!$I$33:$I$82,$D37,1),"") -> 3441.6 | J37: 9535.9 | M37: 0 | N37: 6792.8 | O37: 6094.3 | P37: 0
B38: 2014-07-07 | C38: =IFERROR(IF($B38="","",IF(AND($B38<>"",INDEX(Data!$D$33:$D$82,MATCH($B38,Data!$B$33:$B$82,0),1)=TRUE),TEXT($B38,"DDDD")&" +",IF(AND($B38<>"",INDEX(Data!$E$33:$E$82,MATCH($B38,Data!$B$33:$B$82,0),1)=TRUE),TEXT($B38,"DDDD")&" ++",TEXT($B38,"DDDD")))),TEXT($B38,"DDDD")) -> Monday | D38: =IFERROR(IF($B38<>"",MATCH($B38,Data!$B$33:$B$82,0),""),"") -> 7 | E38: 3266.8 | F38: 7486.5 | G38: 10753.3 | H38: =IFERROR(INDEX(Data!$F$33:$F$82,$D38,1)+INDEX(Data!$G$33:$G$82,$D38,1),"") -> 2773.7 | I38: =IFERROR(INDEX(Data!$H$33:$H$82,$D38,1)+INDEX(Data!$I$33:$I$82,$D38,1),"") -> 4086.6 | J38: 6860.3 | M38: 0 | N38: 3266.8 | O38: 2773.7 | P38: 0
B39: 2014-07-08 | C39: =IFERROR(IF($B39="","",IF(AND($B39<>"",INDEX(Data!$D$33:$D$82,MATCH($B39,Data!$B$33:$B$82,0),1)=TRUE),TEXT($B39,"DDDD")&" +",IF(AND($B39<>"",INDEX(Data!$E$33:$E$82,MATCH($B39,Data!$B$33:$B$82,0),1)=TRUE),TEXT($B39,"DDDD")&" ++",TEXT($B39,"DDDD")))),TEXT($B39,"DDDD")) -> Tuesday | D39: =IFERROR(IF($B39<>"",MATCH($B39,Data!$B$33:$B$82,0),""),"") -> 8 | E39: 3427.8 | F39: 4113.2 | G39: 7541 | H39: =IFERROR(INDEX(Data!$F$33:$F$82,$D39,1)+INDEX(Data!$G$33:$G$82,$D39,1),"") -> 1697.5 | I39: =IFERROR(INDEX(Data!$H$33:$H$82,$D39,1)+INDEX(Data!$I$33:$I$82,$D39,1),"") -> 3478.5 | J39: 5176 | M39: 0 | N39: 3427.8 | O39: 1697.5 | P39: 0
B40: 2014-07-09 | C40: =IFERROR(IF($B40="","",IF(AND($B40<>"",INDEX(Data!$D$33:$D$82,MATCH($B40,Data!$B$33:$B$82,0),1)=TRUE),TEXT($B40,"DDDD")&" +",IF(AND($B40<>"",INDEX(Data!$E$33:$E$82,MATCH($B40,Data!$B$33:$B$82,0),1)=TRUE),TEXT($B40,"DDDD")&" ++",TEXT($B40,"DDDD")))),TEXT($B40,"DDDD")) -> Wednesday | D40: =IFERROR(IF($B40<>"",MATCH($B40,Data!$B$33:$B$82,0),""),"") -> 9 | E40: 4181.6 | F40: 4727.6 | G40: 8909.2 | H40: =IFERROR(INDEX(Data!$F$33:$F$82,$D40,1)+INDEX(Data!$G$33:$G$82,$D40,1),"") -> 2240 | I40: =IFERROR(INDEX(Data!$H$33:$H$82,$D40,1)+INDEX(Data!$I$33:$I$82,$D40,1),"") -> 2995.9 | J40: 5235.9 | M40: 0 | N40: 4181.6 | O40: 2240 | P40: 0
B41: 2014-07-10 | C41: =IFERROR(IF($B41="","",IF(AND($B41<>"",INDEX(Data!$D$33:$D$82,MATCH($B41,Data!$B$33:$B$82,0),1)=TRUE),TEXT($B41,"DDDD")&" +",IF(AND($B41<>"",INDEX(Data!$E$33:$E$82,MATCH($B41,Data!$B$33:$B$82,0),1)=TRUE),TEXT($B41,"DDDD")&" ++",TEXT($B41,"DDDD")))),TEXT($B41,"DDDD")) -> Thursday | D41: =IFERROR(IF($B41<>"",MATCH($B41,Data!$B$33:$B$82,0),""),"") -> 10 | E41: 3495.1 | F41: 4728.9 | G41: 8224 | H41: =IFERROR(INDEX(Data!$F$33:$F$82,$D41,1)+INDEX(Data!$G$33:$G$82,$D41,1),"") -> 2075.3 | I41: =IFERROR(INDEX(Data!$H$33:$H$82,$D41,1)+INDEX(Data!$I$33:$I$82,$D41,1),"") -> 2780 | J41: 4855.3 | M41: 0 | N41: 3495.1 | O41: 2075.3 | P41: 0
B42: 2014-07-11 | C42: =IFERROR(IF($B42="","",IF(AND($B42<>"",INDEX(Data!$D$33:$D$82,MATCH($B42,Data!$B$33:$B$82,0),1)=TRUE),TEXT($B42,"DDDD")&" +",IF(AND($B42<>"",INDEX(Data!$E$33:$E$82,MATCH($B42,Data!$B$33:$B$82,0),1)=TRUE),TEXT($B42,"DDDD")&" ++",TEXT($B42,"DDDD")))),TEXT($B42,"DDDD")) -> Friday | D42: =IFERROR(IF($B42<>"",MATCH($B42,Data!$B$33:$B$82,0),""),"") -> 11 | E42: 4095.4 | F42: 7683.1 | G42: 11778.5 | H42: =IFERROR(INDEX(Data!$F$33:$F$82,$D42,1)+INDEX(Data!$G$33:$G$82,$D42,1),"") -> 4585.9 | I42: =IFERROR(INDEX(Data!$H$33:$H$82,$D42,1)+INDEX(Data!$I$33:$I$82,$D42,1),"") -> 6326.7 | J42: 10912.6 | M42: 0 | N42: 4095.4 | O42: 4585.9 | P42: 0
B43: 2014-07-12 | C43: =IFERROR(IF($B43="","",IF(AND($B43<>"",INDEX(Data!$D$33:$D$82,MATCH($B43,Data!$B$33:$B$82,0),1)=TRUE),TEXT($B43,"DDDD")&" +",IF(AND($B43<>"",INDEX(Data!$E$33:$E$82,MATCH($B43,Data!$B$33:$B$82,0),1)=TRUE),TEXT($B43,"DDDD")&" ++",TEXT($B43,"DDDD")))),TEXT($B43,"DDDD")) -> Saturday | D43: =IFERROR(IF($B43<>"",MATCH($B43,Data!$B$33:$B$82,0),""),"") -> 12 | E43: 7245.2 | F43: 13509.4 | G43: 20754.6 | H43: =IFERROR(INDEX(Data!$F$33:$F$82,$D43,1)+INDEX(Data!$G$33:$G$82,$D43,1),"") -> 6504.1 | I43: =IFERROR(INDEX(Data!$H$33:$H$82,$D43,1)+INDEX(Data!$I$33:$I$82,$D43,1),"") -> 10289 | J43: 16793.1 | M43: 0 | N43: 7245.2 | O43: 6504.1 | P43: 0
B44: 2014-07-13 | C44: =IFERROR(IF($B44="","",IF(AND($B44<>"",INDEX(Data!$D$33:$D$82,MATCH($B44,Data!$B$33:$B$82,0),1)=TRUE),TEXT($B44,"DDDD")&" +",IF(AND($B44<>"",INDEX(Data!$E$33:$E$82,MATCH($B44,Data!$B$33:$B$82,0),1)=TRUE),TEXT($B44,"DDDD")&" ++",TEXT($B44,"DDDD")))),TEXT($B44,"DDDD")) -> Sunday | D44: =IFERROR(IF($B44<>"",MATCH($B44,Data!$B$33:$B$82,0),""),"") -> 13 | E44: 5629.4 | F44: 6836.5 | G44: 12465.9 | H44: =IFERROR(INDEX(Data!$F$33:$F$82,$D44,1)+INDEX(Data!$G$33:$G$82,$D44,1),"") -> 5290.8 | I44: =IFERROR(INDEX(Data!$H$33:$H$82,$D44,1)+INDEX(Data!$I$33:$I$82,$D44,1),"") -> 4865.8 | J44: 10156.6 | M44: 0 | N44: 5629.4 | O44: 5290.8 | P44: 0
B45: 2014-07-14 | C45: =IFERROR(IF($B45="","",IF(AND($B45<>"",INDEX(Data!$D$33:$D$82,MATCH($B45,Data!$B$33:$B$82,0),1)=TRUE),TEXT($B45,"DDDD")&" +",IF(AND($B45<>"",INDEX(Data!$E$33:$E$82,MATCH($B45,Data!$B$33:$B$82,0),1)=TRUE),TEXT($B45,"DDDD")&" ++",TEXT($B45,"DDDD")))),TEXT($B45,"DDDD")) -> Monday | D45: =IFERROR(IF($B45<>"",MATCH($B45,Data!$B$33:$B$82,0),""),"") -> 14 | E45: 4682.9 | F45: 5204.8 | G45: 9887.7 | H45: =IFERROR(INDEX(Data!$F$33:$F$82,$D45,1)+INDEX(Data!$G$33:$G$82,$D45,1),"") -> 2212.6 | I45: =IFERROR(INDEX(Data!$H$33:$H$82,$D45,1)+INDEX(Data!$I$33:$I$82,$D45,1),"") -> 2529.6 | J45: 4742.2 | M45: 0 | N45: 4682.9 | O45: 2212.6 | P45: 0
B46: 2014-07-15 | C46: =IFERROR(IF($B46="","",IF(AND($B46<>"",INDEX(Data!$D$33:$D$82,MATCH($B46,Data!$B$33:$B$82,0),1)=TRUE),TEXT($B46,"DDDD")&" +",IF(AND($B46<>"",INDEX(Data!$E$33:$E$82,MATCH($B46,Data!$B$33:$B$82,0),1)=TRUE),TEXT($B46,"DDDD")&" ++",TEXT($B46,"DDDD")))),TEXT($B46,"DDDD")) -> Tuesday | D46: =IFERROR(IF($B46<>"",MATCH($B46,Data!$B$33:$B$82,0),""),"") -> 15 | E46: 4093.5 | F46: 4806.9 | G46: 8900.4 | H46: =IFERROR(INDEX(Data!$F$33:$F$82,$D46,1)+INDEX(Data!$G$33:$G$82,$D46,1),"") -> 2311.4 | I46: =IFERROR(INDEX(Data!$H$33:$H$82,$D46,1)+INDEX(Data!$I$33:$I$82,$D46,1),"") -> 2557.2 | J46: 4868.6 | M46: 0 | N46: 4093.5 | O46: 2311.4 | P46: 0
B47: 2014-07-16 | C47: =IFERROR(IF($B47="","",IF(AND($B47<>"",INDEX(Data!$D$33:$D$82,MATCH($B47,Data!$B$33:$B$82,0),1)=TRUE),TEXT($B47,"DDDD")&" +",IF(AND($B47<>"",INDEX(Data!$E$33:$E$82,MATCH($B47,Data!$B$33:$B$82,0),1)=TRUE),TEXT($B47,"DDDD")&" ++",TEXT($B47,"DDDD")))),TEXT($B47,"DDDD")) -> Wednesday | D47: =IFERROR(IF($B47<>"",MATCH($B47,Data!$B$33:$B$82,0),""),"") -> 16 | E47: 4354.2 | F47: 5840.1 | G47: 10194.3 | H47: =IFERROR(INDEX(Data!$F$33:$F$82,$D47,1)+INDEX(Data!$G$33:$G$82,$D47,1),"") -> 0 | I47: =IFERROR(INDEX(Data!$H$33:$H$82,$D47,1)+INDEX(Data!$I$33:$I$82,$D47,1),"") -> 0 | J47: 0 | M47: 0 | N47: 4354.2 | O47: 0 | P47: 0
B48: 2014-07-17 | C48: =IFERROR(IF($B48="","",IF(AND($B48<>"",INDEX(Data!$D$33:$D$82,MATCH($B48,Data!$B$33:$B$82,0),1)=TRUE),TEXT($B48,"DDDD")&" +",IF(AND($B48<>"",INDEX(Data!$E$33:$E$82,MATCH($B48,Data!$B$33:$B$82,0),1)=TRUE),TEXT($B48,"DDDD")&" ++",TEXT($B48,"DDDD")))),TEXT($B48,"DDDD")) -> Thursday | D48: =IFERROR(IF($B48<>"",MATCH($B48,Data!$B$33:$B$82,0),""),"") -> 17 | E48: 4856.2 | F48: 7123.6 | G48: 11979.8 | H48: =IFERROR(INDEX(Data!$F$33:$F$82,$D48,1)+INDEX(Data!$G$33:$G$82,$D48,1),"") -> 2361.6 | I48: =IFERROR(INDEX(Data!$H$33:$H$82,$D48,1)+INDEX(Data!$I$33:$I$82,$D48,1),"") -> 4529.2 | J48: 6890.8 | M48: 0 | N48: 4856.2 | O48: 2361.6 | P48: 0
B49: 2014-07-18 | C49: =IFERROR(IF($B49="","",IF(AND($B49<>"",INDEX(Data!$D$33:$D$82,MATCH($B49,Data!$B$33:$B$82,0),1)=TRUE),TEXT($B49,"DDDD")&" +",IF(AND($B49<>"",INDEX(Data!$E$33:$E$82,MATCH($B49,Data!$B$33:$B$82,0),1)=TRUE),TEXT($B49,"DDDD")&" ++",TEXT($B49,"DDDD")))),TEXT($B49,"DDDD")) -> Friday | D49: =IFERROR(IF($B49<>"",MATCH($B49,Data!$B$33:$B$82,0),""),"") -> 18 | E49: 5804 | F49: 7793.8 | G49: 13597.8 | H49: =IFERROR(INDEX(Data!$F$33:$F$82,$D49,1)+INDEX(Data!$G$33:$G$82,$D49,1),"") -> 3102.1 | I49: =IFERROR(INDEX(Data!$H$33:$H$82,$D49,1)+INDEX(Data!$I$33:$I$82,$D49,1),"") -> 9557.2 | J49: 12659.3 | M49: 0 | N49: 5804 | O49: 3102.1 | P49: 0
B50: 2014-07-19 | C50: =IFERROR(IF($B50="","",IF(AND($B50<>"",INDEX(Data!$D$33:$D$82,MATCH($B50,Data!$B$33:$B$82,0),1)=TRUE),TEXT($B50,"DDDD")&" +",IF(AND($B50<>"",INDEX(Data!$E$33:$E$82,MATCH($B50,Data!$B$33:$B$82,0),1)=TRUE),TEXT($B50,"DDDD")&" ++",TEXT($B50,"DDDD")))),TEXT($B50,"DDDD")) -> Saturday | D50: =IFERROR(IF($B50<>"",MATCH($B50,Data!$B$33:$B$82,0),""),"") -> 19 | E50: 6424.5 | F50: 10153.5 | G50: 16578 | H50: =IFERROR(INDEX(Data!$F$33:$F$82,$D50,1)+INDEX(Data!$G$33:$G$82,$D50,1),"") -> 5702.7 | I50: =IFERROR(INDEX(Data!$H$33:$H$82,$D50,1)+INDEX(Data!$I$33:$I$82,$D50,1),"") -> 10809.5 | J50: 16512.2 | M50: 0 | N50: 6424.5 | O50: 5702.7 | P50: 0
B51: 2014-07-20 | C51: =IFERROR(IF($B51="","",IF(AND($B51<>"",INDEX(Data!$D$33:$D$82,MATCH($B51,Data!$B$33:$B$82,0),1)=TRUE),TEXT($B51,"DDDD")&" +",IF(AND($B51<>"",INDEX(Data!$E$33:$E$82,MATCH($B51,Data!$B$33:$B$82,0),1)=TRUE),TEXT($B51,"DDDD")&" ++",TEXT($B51,"DDDD")))),TEXT($B51,"DDDD")) -> Sunday | D51: =IFERROR(IF($B51<>"",MATCH($B51,Data!$B$33:$B$82,0),""),"") -> 20 | E51: 6261.8 | F51: 4775.4 | G51: 11037.2 | H51: =IFERROR(INDEX(Data!$F$33:$F$82,$D51,1)+INDEX(Data!$G$33:$G$82,$D51,1),"") -> 5320.4 | I51: =IFERROR(INDEX(Data!$H$33:$H$82,$D51,1)+INDEX(Data!$I$33:$I$82,$D51,1),"") -> 4187.6 | J51: 9508 | M51: 0 | N51: 6261.8 | O51: 5320.4 | P51: 0
B52: 2014-07-21 | C52: =IFERROR(IF($B52="","",IF(AND($B52<>"",INDEX(Data!$D$33:$D$82,MATCH($B52,Data!$B$33:$B$82,0),1)=TRUE),TEXT($B52,"DDDD")&" +",IF(AND($B52<>"",INDEX(Data!$E$33:$E$82,MATCH($B52,Data!$B$33:$B$82,0),1)=TRUE),TEXT($B52,"DDDD")&" ++",TEXT($B52,"DDDD")))),TEXT($B52,"DDDD")) -> Monday | D52: =IFERROR(IF($B52<>"",MATCH($B52,Data!$B$33:$B$82,0),""),"") -> 21 | E52: 3010.2 | F52: 7798.2 | G52: 10808.4 | H52: =IFERROR(INDEX(Data!$F$33:$F$82,$D52,1)+INDEX(Data!$G$33:$G$82,$D52,1),"") -> 1675.5 | I52: =IFERROR(INDEX(Data!$H$33:$H$82,$D52,1)+INDEX(Data!$I$33:$I$82,$D52,1),"") -> 2744.6 | J52: 4420.1 | M52: 0 | N52: 3010.2 | O52: 1675.5 | P52: 0
B53: 2014-07-22 | C53: =IFERROR(IF($B53="","",IF(AND($B53<>"",INDEX(Data!$D$33:$D$82,MATCH($B53,Data!$B$33:$B$82,0),1)=TRUE),TEXT($B53,"DDDD")&" +",IF(AND($B53<>"",INDEX(Data!$E$33:$E$82,MATCH($B53,Data!$B$33:$B$82,0),1)=TRUE),TEXT($B53,"DDDD")&" ++",TEXT($B53,"DDDD")))),TEXT($B53,"DDDD")) -> Tuesday | D53: =IFERROR(IF($B53<>"",MATCH($B53,Data!$B$33:$B$82,0),""),"") -> 22 | E53: 2872.2 | F53: 5728.9 | G53: 8601.1 | H53: =IFERROR(INDEX(Data!$F$33:$F$82,$D53,1)+INDEX(Data!$G$33:$G$82,$D53,1),"") -> 1398.1 | I53: =IFERROR(INDEX(Data!$H$33:$H$82,$D53,1)+INDEX(Data!$I$33:$I$82,$D53,1),"") -> 4517.9 | J53: 5916 | M53: 0 | N53: 2872.2 | O53: 1398.1 | P53: 0
B54: 2014-07-23 | C54: =IFERROR(IF($B54="","",IF(AND($B54<>"",INDEX(Data!$D$33:$D$82,MATCH($B54,Data!$B$33:$B$82,0),1)=TRUE),TEXT($B54,"DDDD")&" +",IF(AND($B54<>"",INDEX(Data!$E$33:$E$82,MATCH($B54,Data!$B$33:$B$82,0),1)=TRUE),TEXT($B54,"DDDD")&" ++",TEXT($B54,"DDDD")))),TEXT($B54,"DDDD")) -> Wednesday | D54: =IFERROR(IF($B54<>"",MATCH($B54,Data!$B$33:$B$82,0),""),"") -> 23 | E54: 5488.2 | F54: 4422.6 | G54: 9910.8 | H54: =IFERROR(INDEX(Data!$F$33:$F$82,$D54,1)+INDEX(Data!$G$33:$G$82,$D54,1),"") -> 1807.3 | I54: =IFERROR(INDEX(Data!$H$33:$H$82,$D54,1)+INDEX(Data!$I$33:$I$82,$D54,1),"") -> 2579.1 | J54: 4386.4 | M54: 0 | N54: 5488.2 | O54: 1807.3 | P54: 0
B55: 2014-07-24 | C55: =IFERROR(IF($B55="","",IF(AND($B55<>"",INDEX(Data!$D$33:$D$82,MATCH($B55,Data!$B$33:$B$82,0),1)=TRUE),TEXT($B55,"DDDD")&" +",IF(AND($B55<>"",INDEX(Data!$E$33:$E$82,MATCH($B55,Data!$B$33:$B$82,0),1)=TRUE),TEXT($B55,"DDDD")&" ++",TEXT($B55,"DDDD")))),TEXT($B55,"DDDD")) -> Thursday | D55: =IFERROR(IF($B55<>"",MATCH($B55,Data!$B$33:$B$82,0),""),"") -> 24 | E55: 3203.1 | F55: 6114.4 | G55: 9317.5 | H55: =IFERROR(INDEX(Data!$F$33:$F$82,$D55,1)+INDEX(Data!$G$33:$G$82,$D55,1),"") -> 2390.5 | I55: =IFERROR(INDEX(Data!$H$33:$H$82,$D55,1)+INDEX(Data!$I$33:$I$82,$D55,1),"") -> 4130.6 | J55: 6521.1 | M55: 0 | N55: 3203.1 | O55: 2390.5 | P55: 0
B56: 2014-07-25 | C56: =IFERROR(IF($B56="","",IF(AND($B56<>"",INDEX(Data!$D$33:$D$82,MATCH($B56,Data!$B$33:$B$82,0),1)=TRUE),TEXT($B56,"DDDD")&" +",IF(AND($B56<>"",INDEX(Data!$E$33:$E$82,MATCH($B56,Data!$B$33:$B$82,0),1)=TRUE),TEXT($B56,"DDDD")&" ++",TEXT($B56,"DDDD")))),TEXT($B56,"DDDD")) -> Friday | D56: =IFERROR(IF($B56<>"",MATCH($B56,Data!$B$33:$B$82,0),""),"") -> 25 | E56: 3052.7 | F56: 8271 | G56: 11323.7 | H56: =IFERROR(INDEX(Data!$F$33:$F$82,$D56,1)+INDEX(Data!$G$33:$G$82,$D56,1),"") -> 3698.5 | I56: =IFERROR(INDEX(Data!$H$33:$H$82,$D56,1)+INDEX(Data!$I$33:$I$82,$D56,1),"") -> 5300.6 | J56: 8999.1 | M56: 0 | N56: 3052.7 | O56: 3698.5 | P56: 0
B57: 2014-07-26 | C57: =IFERROR(IF($B57="","",IF(AND($B57<>"",INDEX(Data!$D$33:$D$82,MATCH($B57,Data!$B$33:$B$82,0),1)=TRUE),TEXT($B57,"DDDD")&" +",IF(AND($B57<>"",INDEX(Data!$E$33:$E$82,MATCH($B57,Data!$B$33:$B$82,0),1)=TRUE),TEXT($B57,"DDDD")&" ++",TEXT($B57,"DDDD")))),TEXT($B57,"DDDD")) -> Saturday | D57: =IFERROR(IF($B57<>"",MATCH($B57,Data!$B$33:$B$82,0),""),"") -> 26 | E57: 5712.9 | F57: 9884.7 | G57: 15597.6 | H57: =IFERROR(INDEX(Data!$F$33:$F$82,$D57,1)+INDEX(Data!$G$33:$G$82,$D57,1),"") -> 7962.8 | I57: =IFERROR(INDEX(Data!$H$33:$H$82,$D57,1)+INDEX(Data!$I$33:$I$82,$D57,1),"") -> 11702.8 | J57: 19665.6 | M57: 0 | N57: 5712.9 | O57: 7962.8 | P57: 0
B58: 2014-07-27 | C58: =IFERROR(IF($B58="","",IF(AND($B58<>"",INDEX(Data!$D$33:$D$82,MATCH($B58,Data!$B$33:$B$82,0),1)=TRUE),TEXT($B58,"DDDD")&" +",IF(AND($B58<>"",INDEX(Data!$E$33:$E$82,MATCH($B58,Data!$B$33:$B$82,0),1)=TRUE),TEXT($B58,"DDDD")&" ++",TEXT($B58,"DDDD")))),TEXT($B58,"DDDD")) -> Sunday + | D58: =IFERROR(IF($B58<>"",MATCH($B58,Data!$B$33:$B$82,0),""),"") -> 27 | E58: 5398 | F58: 4707.1 | G58: 10105.1 | H58: =IFERROR(INDEX(Data!$F$33:$F$82,$D58,1)+INDEX(Data!$G$33:$G$82,$D58,1),"") -> 7576.7 | I58: =IFERROR(INDEX(Data!$H$33:$H$82,$D58,1)+INDEX(Data!$I$33:$I$82,$D58,1),"") -> 11124.5 | J58: 18701.2 | M58: 0 | N58: 5398 | O58: 7576.7 | P58: 0
B59: 2014-07-28 | C59: =IFERROR(IF($B59="","",IF(AND($B59<>"",INDEX(Data!$D$33:$D$82,MATCH($B59,Data!$B$33:$B$82,0),1)=TRUE),TEXT($B59,"DDDD")&" +",IF(AND($B59<>"",INDEX(Data!$E$33:$E$82,MATCH($B59,Data!$B$33:$B$82,0),1)=TRUE),TEXT($B59,"DDDD")&" ++",TEXT($B59,"DDDD")))),TEXT($B59,"DDDD")) -> Monday ++ | D59: =IFERROR(IF($B59<>"",MATCH($B59,Data!$B$33:$B$82,0),""),"") -> 28 | E59: 3355.2 | F59: 4555.8 | G59: 7911 | H59: =IFERROR(INDEX(Data!$F$33:$F$82,$D59,1)+INDEX(Data!$G$33:$G$82,$D59,1),"") -> 8126 | I59: =IFERROR(INDEX(Data!$H$33:$H$82,$D59,1)+INDEX(Data!$I$33:$I$82,$D59,1),"") -> 9641.9 | J59: 17767.9 | M59: 0 | N59: 3355.2 | O59: 8126 | P59: 0
B60: 2014-07-29 | C60: =IFERROR(IF($B60="","",IF(AND($B60<>"",INDEX(Data!$D$33:$D$82,MATCH($B60,Data!$B$33:$B$82,0),1)=TRUE),TEXT($B60,"DDDD")&" +",IF(AND($B60<>"",INDEX(Data!$E$33:$E$82,MATCH($B60,Data!$B$33:$B$82,0),1)=TRUE),TEXT($B60,"DDDD")&" ++",TEXT($B60,"DDDD")))),TEXT($B60,"DDDD")) -> Tuesday ++ | D60: =IFERROR(IF($B60<>"",MATCH($B60,Data!$B$33:$B$82,0),""),"") -> 29 | E60: 3526.8 | F60: 3826.7 | G60: 7353.5 | H60: =IFERROR(INDEX(Data!$F$33:$F$82,$D60,1)+INDEX(Data!$G$33:$G$82,$D60,1),"") -> 7194.6 | I60: =IFERROR(INDEX(Data!$H$33:$H$82,$D60,1)+INDEX(Data!$I$33:$I$82,$D60,1),"") -> 6108.2 | J60: 13302.8 | M60: 0 | N60: 3526.8 | O60: 7194.6 | P60: 0
B61: 2014-07-30 | C61: =IFERROR(IF($B61="","",IF(AND($B61<>"",INDEX(Data!$D$33:$D$82,MATCH($B61,Data!$B$33:$B$82,0),1)=TRUE),TEXT($B61,"DDDD")&" +",IF(AND($B61<>"",INDEX(Data!$E$33:$E$82,MATCH($B61,Data!$B$33:$B$82,0),1)=TRUE),TEXT($B61,"DDDD")&" ++",TEXT($B61,"DDDD")))),TEXT($B61,"DDDD")) -> Wednesday | D61: =IFERROR(IF($B61<>"",MATCH($B61,Data!$B$33:$B$82,0),""),"") -> 30 | E61: 4071 | F61: 6451.8 | G61: 10522.8 | H61: =IFERROR(INDEX(Data!$F$33:$F$82,$D61,1)+INDEX(Data!$G$33:$G$82,$D61,1),"") -> 4960.1 | I61: =IFERROR(INDEX(Data!$H$33:$H$82,$D61,1)+INDEX(Data!$I$33:$I$82,$D61,1),"") -> 4436.3 | J61: 9396.4 | M61: 0 | N61: 4071 | O61: 4960.1 | P61: 0
B62: 2014-07-31 | C62: =IFERROR(IF($B62="","",IF(AND($B62<>"",INDEX(Data!$D$33:$D$82,MATCH($B62,Data!$B$33:$B$82,0),1)=TRUE),TEXT($B62,"DDDD")&" +",IF(AND($B62<>"",INDEX(Data!$E$33:$E$82,MATCH($B62,Data!$B$33:$B$82,0),1)=TRUE),TEXT($B62,"DDDD")&" ++",TEXT($B62,"DDDD")))),TEXT($B62,"DDDD")) -> Thursday | D62: =IFERROR(IF($B62<>"",MATCH($B62,Data!$B$33:$B$82,0),""),"") -> 31 | E62: 2957.8 | F62: 7042.4 | G62: 10000.2 | H62: =IFERROR(INDEX(Data!$F$33:$F$82,$D62,1)+INDEX(Data!$G$33:$G$82,$D62,1),"") -> 4982.7 | I62: =IFERROR(INDEX(Data!$H$33:$H$82,$D62,1)+INDEX(Data!$I$33:$I$82,$D62,1),"") -> 4233.6 | J62: 9216.3 | M62: 0 | N62: 2957.8 | O62: 4982.7 | P62: 0

Sheet Report B
C3: MONTHLY SALES REPORTING BY OUTLET
B6: SUBJECT | C6: REPORT B : ROOM OCCUPANCY AND USAGE OF PARTY ROOMS
B8: OUTLET | C8: =Data!$C$8 -> TSU
B10: MONTH / YEAR | C10: =Data!$C$10 -> July 2014
B12: MENU
B14: DATE | C14: DAY | D14: ROW | E14: TOTAL | F14: OCCUPANCY OF ROOMS | K14: % OCCUPANCY OF ROOMS | O14: USAGE OF PARTY ROOMS | X14: CHART : % ROOM OCCUPANCY BY SESSION
E15: ROOMS
F16: SESSION | G16: TRUE | K16: SESSION | O16: ROOM | P16: PAX | Q16: SPENDING | R16: ROOM | S16: PAX | T16: SPENDING | U16: ROOM | V16: PAX | W16: SPENDING
F17: NOON K | G17: HAPPY | H17: NORMAL | I17: MIDNIGHT | J17: ALL | K17: NOON K | L17: HAPPY | M17: NORMAL | N17: MIDNIGHT | O17: 201 | R17: 217 | U17: 308
E18: ( ROOMS ) | F18: ( rooms ) | G18: ( rooms ) | H18: ( rooms ) | I18: ( rooms ) | J18: ( rooms ) | K18: ( % ) | L18: ( % ) | M18: ( % ) | N18: ( % ) | P18: ( pax ) | Q18: ( RM ) | S18: ( pax ) | T18: ( RM ) | V18: ( pax ) | W18: ( RM )
B19: SUMMARY FOR MONTH | X19: LEGEND
B20: TOTAL ROOM OCCUPANCY | F20: =IF($G$16=TRUE,SUM(F$31:F$61),"") -> 814 | G20: =IF($G$16=TRUE,SUM(G$31:G$61),"") -> 960 | H20: 1655 | I20: 278 | J20: 3707 | O20: =SUM(O$31:O$61) -> 20 | P20: 375 | Q20: 9436.9 | R20: 28 | S20: 509 | T20: 10186.8 | U20: 19 | V20: 215 | W20: 3832.1
B21: AVERAGE ROOM OCCUPANCY | F21: =IFERROR(SUM(F$31:F$61)/COUNTIF($D$31:$D$61,">0"),"") -> 26.25806452 | G21: 30.96774194 | H21: 53.38709677 | I21: 8.967741935 | J21: 119.5806452 | K21: 0.1141654979 | L21: 0.1346423562 | M21: 0.2321178121 | N21: 0.03899018233 | O21: 0.6451612903 | P21: 12.09677419 | Q21: 304.416129 | R21: 0.9032258065 | S21: 16.41935484 | T21: 328.6064516 | U21: 0.6129032258 | V21: 6.935483871 | W21: 123.616129
B22: HIGHEST ROOM OCCUPANCY | F22: =IFERROR(IF(LARGE(F$31:F$61,1)>0,LARGE(F$31:F$61,1),"NIL"),"NIL") -> 47 | G22: 57 | H22: 83 | I22: 18 | J22: 192 | K22: 0.2043478261 | L22: 0.247826087 | M22: 0.3608695652 | N22: 0.07826086957 | O22: 1 | P22: 50 | Q22: 1563.8 | R22: 1 | S22: 34 | T22: 1094.4 | U22: 1 | V22: 26 | W22: 695.4
B23: LOWEST ROOM OCCUPANCY | F23: =IFERROR(IF(LARGE(F$31:F$61,COUNTIF(F$31:F$61,">0"))<>F$22,LARGE(F$31:F$61,COUNTIF(F$31:F$61,">0")),"NIL"),"NIL") -> 9 | G23: 11 | H23: 25 | I23: 4 | J23: 70 | K23: 0.03913043478 | L23: 0.04782608696 | M23: 0.1086956522 | N23: 0.01739130435 | O23: NIL | P23: 4 | Q23: 20 | R23: NIL | S23: 4 | T23: 18 | U23: NIL | V23: 3 | W23: 16
B24: AVERAGE FOR | C24: MONDAY | F24: =IFERROR(SUMIF($C$31:$C$61,"Monday*",F$31:F$61)/COUNTIF($C$31:$C$61,"Monday*"),"") -> 27.5 | G24: 26.75 | H24: 58.75 | I24: 8.75 | J24: 121.75 | K24: 0.1195652174 | L24: 0.1163043478 | M24: 0.2554347826 | N24: 0.03804347826 | O24: 0.5 | P24: 6.5 | Q24: 243 | R24: 1 | S24: 14.25 | T24: 148.15 | U24: 0.75 | V24: 7.75 | W24: 94.4
C25: TUESDAY | F25: =IFERROR(SUMIF($C$31:$C$61,"Tuesday*",F$31:F$61)/COUNTIF($C$31:$C$61,"Tuesday*"),"") -> 20.6 | G25: 25.8 | H25: 47.4 | I25: 8.8 | J25: 102.6 | K25: 0.08956521739 | L25: 0.112173913 | M25: 0.2060869565 | N25: 0.03826086957 | O25: 0.6 | P25: 6.8 | Q25: 85.04 | R25: 0.8 | S25: 16.2 | T25: 284.8 | U25: 0.2 | V25: 3 | W25: 37.12
C26: WEDNESDAY | F26: =IFERROR(SUMIF($C$31:$C$61,"Wednesday*",F$31:F$61)/COUNTIF($C$31:$C$61,"Wednesday*"),"") -> 22.2 | G26: 24.4 | H26: 40.8 | I26: 8.4 | J26: 95.8 | K26: 0.09652173913 | L26: 0.1060869565 | M26: 0.1773913043 | N26: 0.03652173913 | O26: 0.4 | P26: 8.6 | Q26: 151.52 | R26: 0.6 | S26: 7.4 | T26: 119.46 | U26: 0.2 | V26: 1 | W26: 9.9
C27: THURSDAY | F27: =IFERROR(SUMIF($C$31:$C$61,"Thursday*",F$31:F$61)/COUNTIF($C$31:$C$61,"Thursday*"),"") -> 20.6 | G27: 22.4 | H27: 45.8 | I27: 6.2 | J27: 95 | K27: 0.08956521739 | L27: 0.09739130435 | M27: 0.1991304348 | N27: 0.02695652174 | O27: 1 | P27: 10.2 | Q27: 131.68 | R27: 1 | S27: 14.6 | T27: 185.68 | U27: 0.8 | V27: 7.8 | W27: 115.48
C28: FRIDAY | F28: =IFERROR(SUMIF($C$31:$C$61,"Friday*",F$31:F$61)/COUNTIF($C$31:$C$61,"Friday*"),"") -> 25 | G28: 22.25 | H28: 56.25 | I28: 6.25 | J28: 109.75 | K28: 0.1086956522 | L28: 0.09673913043 | M28: 0.2445652174 | N28: 0.02717391304 | O28: 0.5 | P28: 15.5 | Q28: 546.95 | R28: 1 | S28: 16.25 | T28: 387.725 | U28: 0.5 | V28: 5.5 | W28: 139.65
C29: SATURDAY | F29: =IFERROR(SUMIF($C$31:$C$61,"Saturday*",F$31:F$61)/COUNTIF($C$31:$C$61,"Saturday*"),"") -> 36.75 | G29: 51.5 | H29: 74.75 | I29: 14 | J29: 177 | K29: 0.1597826087 | L29: 0.2239130435 | M29: 0.325 | N29: 0.06086956522 | O29: 1 | P29: 27.75 | Q29: 824.775 | R29: 1 | S29: 26.5 | T29: 715.25 | U29: 1 | V29: 17.75 | W29: 389.6
C30: SUNDAY | F30: =IFERROR(SUMIF($C$31:$C$61,"Sunday*",F$31:F$61)/COUNTIF($C$31:$C$61,"Sunday*"),"") -> 35 | G30: 48.75 | H30: 56.5 | I30: 11.25 | J30: 151.5 | K30: 0.152173913 | L30: 0.2119565217 | M30: 0.2456521739 | N30: 0.04891304348 | O30: 0.5 | P30: 12 | Q30: 284.2 | R30: 1 | S30: 22.5 | T30: 558.15 | U30: 1 | V30: 8 | W30: 131.25
B31: ='Report A'!$B32 -> 2014-07-01 | C31: ='Report A'!$C32 -> Tuesday | D31: ='Report A'!$D32 -> 1 | E31: =IFERROR(INDEX(Data!$J$33:$J$82,$D31,1),"") -> 46 | F31: =IFERROR(IF($G$16=TRUE,INDEX(Data!$K$33:$K$82,$D31,1),INDEX(Data!$K$33:$K$82,$D31,1)/$E31),"") -> 14 | G31: =IFERROR(IF($G$16=TRUE,INDEX(Data!$L$33:$L$82,$D31,1),INDEX(Data!$L$33:$L$82,$D31,1)/(2*$E31)),"") -> 19 | H31: =IFERROR(IF($G$16=TRUE,INDEX(Data!$M$33:$M$82,$D31,1),INDEX(Data!$M$33:$M$82,$D31,1)/$E31),"") -> 36 | I31: =IFERROR(IF($G$16=TRUE,INDEX(Data!$N$33:$N$82,$D31,1),INDEX(Data!$N$33:$N$82,$D31,1)/$E31),"") -> 8 | J31: =IFERROR(IF($G$16=TRUE,INDEX(Data!$K$33:$K$82,$D31,1)+INDEX(Data!$L$33:$L$82,$D31,1)+INDEX(Data!$M$33:$M$82,$D31,1)+INDEX(Data!$N$33:$N$82,$D31,1),(INDEX(Data!$K$33:$K$82,$D31,1)+INDEX(Data!$L$33:$L$82,$D31,1)+INDEX(Data!$M$33:$M$82,$D31,1)+INDEX(Data!$N$33:$N$82,$D31,1))/(5*$E31)),"") -> 77 | K31: =IFERROR(INDEX(Data!$K$33:$K$82,$D31,1)/(5*$E31),"") -> 0.06086956522 | L31: =IFERROR(INDEX(Data!$L$33:$L$82,$D31,1)/(5*$E31),"") -> 0.08260869565 | M31: =IFERROR(INDEX(Data!$M$33:$M$82,$D31,1)/(5*$E31),"") -> 0.1565217391 | N31: =IFERROR(INDEX(Data!$N$33:$N$82,$D31,1)/(5*$E31),"") -> 0.0347826087 | O31: =IFERROR(IF($O$17<>"",COUNTIF(INDIRECT("Data!$O$"&$D31+32&":$AH$"&$D31+32),$O$17),""),"") -> 0 | P31: =IFERROR((SUMIF(INDIRECT("Data!$O$"&$D31+32&":$O$"&$D31+32),$O$17,INDIRECT("Data!$Q$"&$D31+32&":$Q$"&$D31+32))+SUMIF(INDIRECT("Data!$S$"&$D31+32&":$S$"&$D31+32),$O$17,INDIRECT("Data!$U$"&$D31+32&":$U$"&$D31+32))+SUMIF(INDIRECT("Data!$W$"&$D31+32&":$W$"&$D31+32),$O$17,INDIRECT("Data!$Y$"&$D31+32&":$Y$"&$D31+32))+SUMIF(INDIRECT("Data!$AA$"&$D31+32&":$AA$"&$D31+32),$O$17,INDIRECT("Data!$AC$"&$D31+32&":$AC$"&$D31+32))+SUMIF(INDIRECT("Data!$AE$"&$D31+32&":$AE$"&$D31+32),$O$17,INDIRECT("Data!$AG$"&$D31+32&":$AG$"&$D31+32)))/$O31,"") ->  | Q31: =IFERROR((SUMIF(INDIRECT("Data!$O$"&$D31+32&":$O$"&$D31+32),$O$17,INDIRECT("Data!$R$"&$D31+32&":$R$"&$D31+32))+SUMIF(INDIRECT("Data!$S$"&$D31+32&":$S$"&$D31+32),$O$17,INDIRECT("Data!$V$"&$D31+32&":$V$"&$D31+32))+SUMIF(INDIRECT("Data!$W$"&$D31+32&":$W$"&$D31+32),$O$17,INDIRECT("Data!$Z$"&$D31+32&":$Z$"&$D31+32))+SUMIF(INDIRECT("Data!$AA$"&$D31+32&":$AA$"&$D31+32),$O$17,INDIRECT("Data!$AD$"&$D31+32&":$AD$"&$D31+32))+SUMIF(INDIRECT("Data!$AE$"&$D31+32&":$AE$"&$D31+32),$O$17,INDIRECT("Data!$AH$"&$D31+32&":$AH$"&$D31+32)))/$O31,"") ->  | R31: =IFERROR(IF($R$17<>"",COUNTIF(INDIRECT("Data!$O$"&$D31+32&":$AH$"&$D31+32),$R$17),""),"") -> 1 | S31: =IFERROR((SUMIF(INDIRECT("Data!$O$"&$D31+32&":$O$"&$D31+32),$R$17,INDIRECT("Data!$Q$"&$D31+32&":$Q$"&$D31+32))+SUMIF(INDIRECT("Data!$S$"&$D31+32&":$S$"&$D31+32),$R$17,INDIRECT("Data!$U$"&$D31+32&":$U$"&$D31+32))+SUMIF(INDIRECT("Data!$W$"&$D31+32&":$W$"&$D31+32),$R$17,INDIRECT("Data!$Y$"&$D31+32&":$Y$"&$D31+32))+SUMIF(INDIRECT("Data!$AA$"&$D31+32&":$AA$"&$D31+32),$R$17,INDIRECT("Data!$AC$"&$D31+32&":$AC$"&$D31+32))+SUMIF(INDIRECT("Data!$AE$"&$D31+32&":$AE$"&$D31+32),$R$17,INDIRECT("Data!$AG$"&$D31+32&":$AG$"&$D31+32)))/$R31,"") -> 14 | T31: =IFERROR((SUMIF(INDIRECT("Data!$O$"&$D31+32&":$O$"&$D31+32),$R$17,INDIRECT("Data!$R$"&$D31+32&":$R$"&$D31+32))+SUMIF(INDIRECT("Data!$S$"&$D31+32&":$S$"&$D31+32),$R$17,INDIRECT("Data!$V$"&$D31+32&":$V$"&$D31+32))+SUMIF(INDIRECT("Data!$W$"&$D31+32&":$W$"&$D31+32),$R$17,INDIRECT("Data!$Z$"&$D31+32&":$Z$"&$D31+32))+SUMIF(INDIRECT("Data!$AA$"&$D31+32&":$AA$"&$D31+32),$R$17,INDIRECT("Data!$AD$"&$D31+32&":$AD$"&$D31+32))+SUMIF(INDIRECT("Data!$AE$"&$D31+32&":$AE$"&$D31+32),$R$17,INDIRECT("Data!$AH$"&$D31+32&":$AH$"&$D31+32)))/$R31,"") -> 126 | U31: =IFERROR(IF($U$17<>"",COUNTIF(INDIRECT("Data!$O$"&$D31+32&":$AH$"&$D31+32),$U$17),""),"") -> 0 | V31: =IFERROR((SUMIF(INDIRECT("Data!$O$"&$D31+32&":$O$"&$D31+32),$U$17,INDIRECT("Data!$Q$"&$D31+32&":$Q$"&$D31+32))+SUMIF(INDIRECT("Data!$S$"&$D31+32&":$S$"&$D31+32),$U$17,INDIRECT("Data!$U$"&$D31+32&":$U$"&$D31+32))+SUMIF(INDIRECT("Data!$W$"&$D31+32&":$W$"&$D31+32),$U$17,INDIRECT("Data!$Y$"&$D31+32&":$Y$"&$D31+32))+SUMIF(INDIRECT("Data!$AA$"&$D31+32&":$AA$"&$D31+32),$U$17,INDIRECT("Data!$AC$"&$D31+32&":$AC$"&$D31+32))+SUMIF(INDIRECT("Data!$AE$"&$D31+32&":$AE$"&$D31+32),$U$17,INDIRECT("Data!$AG$"&$D31+32&":$AG$"&$D31+32)))/$U31,"") ->  | W31: =IFERROR((SUMIF(INDIRECT("Data!$O$"&$D31+32&":$O$"&$D31+32),$U$17,INDIRECT("Data!$R$"&$D31+32&":$R$"&$D31+32))+SUMIF(INDIRECT("Data!$S$"&$D31+32&":$S$"&$D31+32),$U$17,INDIRECT("Data!$V$"&$D31+32&":$V$"&$D31+32))+SUMIF(INDIRECT("Data!$W$"&$D31+32&":$W$"&$D31+32),$U$17,INDIRECT("Data!$Z$"&$D31+32&":$Z$"&$D31+32))+SUMIF(INDIRECT("Data!$AA$"&$D31+32&":$AA$"&$D31+32),$U$17,INDIRECT("Data!$AD$"&$D31+32&":$AD$"&$D31+32))+SUMIF(INDIRECT("Data!$AE$"&$D31+32&":$AE$"&$D31+32),$U$17,INDIRECT("Data!$AH$"&$D31+32&":$AH$"&$D31+32)))/$U31,"") -> 
B32: ='Report A'!$B33 -> 2014-07-02 | C32: ='Report A'!$C33 -> Wednesday | D32: ='Report A'!$D33 -> 2 | E32: =IFERROR(INDEX(Data!$J$33:$J$82,$D32,1),"") -> 46 | F32: =IFERROR(IF($G$16=TRUE,INDEX(Data!$K$33:$K$82,$D32,1),INDEX(Data!$K$33:$K$82,$D32,1)/$E32),"") -> 15 | G32: =IFERROR(IF($G$16=TRUE,INDEX(Data!$L$33:$L$82,$D32,1),INDEX(Data!$L$33:$L$82,$D32,1)/(2*$E32)),"") -> 17 | H32: =IFERROR(IF($G$16=TRUE,INDEX(Data!$M$33:$M$82,$D32,1),INDEX(Data!$M$33:$M$82,$D32,1)/$E32),"") -> 35 | I32: =IFERROR(IF($G$16=TRUE,INDEX(Data!$N$33:$N$82,$D32,1),INDEX(Data!$N$33:$N$82,$D32,1)/$E32),"") -> 4 | J32: =IFERROR(IF($G$16=TRUE,INDEX(Data!$K$33:$K$82,$D32,1)+INDEX(Data!$L$33:$L$82,$D32,1)+INDEX(Data!$M$33:$M$82,$D32,1)+INDEX(Data!$N$33:$N$82,$D32,1),(INDEX(Data!$K$33:$K$82,$D32,1)+INDEX(Data!$L$33:$L$82,$D32,1)+INDEX(Data!$M$33:$M$82,$D32,1)+INDEX(Data!$N$33:$N$82,$D32,1))/(5*$E32)),"") -> 71 | K32: =IFERROR(INDEX(Data!$K$33:$K$82,$D32,1)/(5*$E32),"") -> 0.0652173913 | L32: =IFERROR(INDEX(Data!$L$33:$L$82,$D32,1)/(5*$E32),"") -> 0.07391304348 | M32: =IFERROR(INDEX(Data!$M$33:$M$82,$D32,1)/(5*$E32),"") -> 0.152173913 | N32: =IFERROR(INDEX(Data!$N$33:$N$82,$D32,1)/(5*$E32),"") -> 0.01739130435 | O32: 0 | R32: 1 | S32: 8 | T32: 104 | U32: 0
B33: ='Report A'!$B34 -> 2014-07-03 | C33: ='Report A'!$C34 -> Thursday | D33: ='Report A'!$D34 -> 3 | E33: =IFERROR(INDEX(Data!$J$33:$J$82,$D33,1),"") -> 46 | F33: =IFERROR(IF($G$16=TRUE,INDEX(Data!$K$33:$K$82,$D33,1),INDEX(Data!$K$33:$K$82,$D33,1)/$E33),"") -> 13 | G33: =IFERROR(IF($G$16=TRUE,INDEX(Data!$L$33:$L$82,$D33,1),INDEX(Data!$L$33:$L$82,$D33,1)/(2*$E33)),"") -> 19 | H33: =IFERROR(IF($G$16=TRUE,INDEX(Data!$M$33:$M$82,$D33,1),INDEX(Data!$M$33:$M$82,$D33,1)/$E33),"") -> 55 | I33: =IFERROR(IF($G$16=TRUE,INDEX(Data!$N$33:$N$82,$D33,1),INDEX(Data!$N$33:$N$82,$D33,1)/$E33),"") -> 4 | J33: =IFERROR(IF($G$16=TRUE,INDEX(Data!$K$33:$K$82,$D33,1)+INDEX(Data!$L$33:$L$82,$D33,1)+INDEX(Data!$M$33:$M$82,$D33,1)+INDEX(Data!$N$33:$N$82,$D33,1),(INDEX(Data!$K$33:$K$82,$D33,1)+INDEX(Data!$L$33:$L$82,$D33,1)+INDEX(Data!$M$33:$M$82,$D33,1)+INDEX(Data!$N$33:$N$82,$D33,1))/(5*$E33)),"") -> 91 | K33: =IFERROR(INDEX(Data!$K$33:$K$82,$D33,1)/(5*$E33),"") -> 0.05652173913 | L33: =IFERROR(INDEX(Data!$L$33:$L$82,$D33,1)/(5*$E33),"") -> 0.08260869565 | M33: =IFERROR(INDEX(Data!$M$33:$M$82,$D33,1)/(5*$E33),"") -> 0.2391304348 | N33: =IFERROR(INDEX(Data!$N$33:$N$82,$D33,1)/(5*$E33),"") -> 0.01739130435 | O33: 1 | P33: 13 | Q33: 104 | R33: 1 | S33: 8 | T33: 64 | U33: 1 | V33: 5 | W33: 40
B34: ='Report A'!$B35 -> 2014-07-04 | C34: ='Report A'!$C35 -> Friday | D34: ='Report A'!$D35 -> 4 | E34: =IFERROR(INDEX(Data!$J$33:$J$82,$D34,1),"") -> 46 | F34: =IFERROR(IF($G$16=TRUE,INDEX(Data!$K$33:$K$82,$D34,1),INDEX(Data!$K$33:$K$82,$D34,1)/$E34),"") -> 26 | G34: =IFERROR(IF($G$16=TRUE,INDEX(Data!$L$33:$L$82,$D34,1),INDEX(Data!$L$33:$L$82,$D34,1)/(2*$E34)),"") -> 29 | H34: =IFERROR(IF($G$16=TRUE,INDEX(Data!$M$33:$M$82,$D34,1),INDEX(Data!$M$33:$M$82,$D34,1)/$E34),"") -> 64 | I34: =IFERROR(IF($G$16=TRUE,INDEX(Data!$N$33:$N$82,$D34,1),INDEX(Data!$N$33:$N$82,$D34,1)/$E34),"") -> 5 | J34: =IFERROR(IF($G$16=TRUE,INDEX(Data!$K$33:$K$82,$D34,1)+INDEX(Data!$L$33:$L$82,$D34,1)+INDEX(Data!$M$33:$M$82,$D34,1)+INDEX(Data!$N$33:$N$82,$D34,1),(INDEX(Data!$K$33:$K$82,$D34,1)+INDEX(Data!$L$33:$L$82,$D34,1)+INDEX(Data!$M$33:$M$82,$D34,1)+INDEX(Data!$N$33:$N$82,$D34,1))/(5*$E34)),"") -> 124 | K34: =IFERROR(INDEX(Data!$K$33:$K$82,$D34,1)/(5*$E34),"") -> 0.1130434783 | L34: =IFERROR(INDEX(Data!$L$33:$L$82,$D34,1)/(5*$E34),"") -> 0.1260869565 | M34: =IFERROR(INDEX(Data!$M$33:$M$82,$D34,1)/(5*$E34),"") -> 0.2782608696 | N34: =IFERROR(INDEX(Data!$N$33:$N$82,$D34,1)/(5*$E34),"") -> 0.02173913043 | O34: 0 | R34: 1 | S34: 21 | T34: 412.9 | U34: 0
B35: ='Report A'!$B36 -> 2014-07-05 | C35: ='Report A'!$C36 -> Saturday | D35: ='Report A'!$D36 -> 5 | E35: =IFERROR(INDEX(Data!$J$33:$J$82,$D35,1),"") -> 46 | F35: =IFERROR(IF($G$16=TRUE,INDEX(Data!$K$33:$K$82,$D35,1),INDEX(Data!$K$33:$K$82,$D35,1)/$E35),"") -> 35 | G35: =IFERROR(IF($G$16=TRUE,INDEX(Data!$L$33:$L$82,$D35,1),INDEX(Data!$L$33:$L$82,$D35,1)/(2*$E35)),"") -> 45 | H35: =IFERROR(IF($G$16=TRUE,INDEX(Data!$M$33:$M$82,$D35,1),INDEX(Data!$M$33:$M$82,$D35,1)/$E35),"") -> 71 | I35: =IFERROR(IF($G$16=TRUE,INDEX(Data!$N$33:$N$82,$D35,1),INDEX(Data!$N$33:$N$82,$D35,1)/$E35),"") -> 18 | J35: =IFERROR(IF($G$16=TRUE,INDEX(Data!$K$33:$K$82,$D35,1)+INDEX(Data!$L$33:$L$82,$D35,1)+INDEX(Data!$M$33:$M$82,$D35,1)+INDEX(Data!$N$33:$N$82,$D35,1),(INDEX(Data!$K$33:$K$82,$D35,1)+INDEX(Data!$L$33:$L$82,$D35,1)+INDEX(Data!$M$33:$M$82,$D35,1)+INDEX(Data!$N$33:$N$82,$D35,1))/(5*$E35)),"") -> 169 | K35: =IFERROR(INDEX(Data!$K$33:$K$82,$D35,1)/(5*$E35),"") -> 0.152173913 | L35: =IFERROR(INDEX(Data!$L$33:$L$82,$D35,1)/(5*$E35),"") -> 0.1956521739 | M35: =IFERROR(INDEX(Data!$M$33:$M$82,$D35,1)/(5*$E35),"") -> 0.3086956522 | N35: =IFERROR(INDEX(Data!$N$33:$N$82,$D35,1)/(5*$E35),"") -> 0.07826086957 | O35: 1 | P35: 39 | Q35: 718 | R35: 1 | S35: 18 | T35: 372.6 | U35: 1 | V35: 17 | W35: 463.6
B36: ='Report A'!$B37 -> 2014-07-06 | C36: ='Report A'!$C37 -> Sunday | D36: ='Report A'!$D37 -> 6 | E36: =IFERROR(INDEX(Data!$J$33:$J$82,$D36,1),"") -> 46 | F36: =IFERROR(IF($G$16=TRUE,INDEX(Data!$K$33:$K$82,$D36,1),INDEX(Data!$K$33:$K$82,$D36,1)/$E36),"") -> 34 | G36: =IFERROR(IF($G$16=TRUE,INDEX(Data!$L$33:$L$82,$D36,1),INDEX(Data!$L$33:$L$82,$D36,1)/(2*$E36)),"") -> 49 | H36: =IFERROR(IF($G$16=TRUE,INDEX(Data!$M$33:$M$82,$D36,1),INDEX(Data!$M$33:$M$82,$D36,1)/$E36),"") -> 41 | I36: =IFERROR(IF($G$16=TRUE,INDEX(Data!$N$33:$N$82,$D36,1),INDEX(Data!$N$33:$N$82,$D36,1)/$E36),"") -> 10 | J36: =IFERROR(IF($G$16=TRUE,INDEX(Data!$K$33:$K$82,$D36,1)+INDEX(Data!$L$33:$L$82,$D36,1)+INDEX(Data!$M$33:$M$82,$D36,1)+INDEX(Data!$N$33:$N$82,$D36,1),(INDEX(Data!$K$33:$K$82,$D36,1)+INDEX(Data!$L$33:$L$82,$D36,1)+INDEX(Data!$M$33:$M$82,$D36,1)+INDEX(Data!$N$33:$N$82,$D36,1))/(5*$E36)),"") -> 134 | K36: =IFERROR(INDEX(Data!$K$33:$K$82,$D36,1)/(5*$E36),"") -> 0.147826087 | L36: =IFERROR(INDEX(Data!$L$33:$L$82,$D36,1)/(5*$E36),"") -> 0.2130434783 | M36: =IFERROR(INDEX(Data!$M$33:$M$82,$D36,1)/(5*$E36),"") -> 0.1782608696 | N36: =IFERROR(INDEX(Data!$N$33:$N$82,$D36,1)/(5*$E36),"") -> 0.04347826087 | O36: 1 | P36: 13 | Q36: 427.7 | R36: 1 | S36: 12 | T36: 194.4 | U36: 1 | V36: 9 | W36: 162
B37: ='Report A'!$B38 -> 2014-07-07 | C37: ='Report A'!$C38 -> Monday | D37: ='Report A'!$D38 -> 7 | E37: =IFERROR(INDEX(Data!$J$33:$J$82,$D37,1),"") -> 46 | F37: =IFERROR(IF($G$16=TRUE,INDEX(Data!$K$33:$K$82,$D37,1),INDEX(Data!$K$33:$K$82,$D37,1)/$E37),"") -> 25 | G37: =IFERROR(IF($G$16=TRUE,INDEX(Data!$L$33:$L$82,$D37,1),INDEX(Data!$L$33:$L$82,$D37,1)/(2*$E37)),"") -> 22 | H37: =IFERROR(IF($G$16=TRUE,INDEX(Data!$M$33:$M$82,$D37,1),INDEX(Data!$M$33:$M$82,$D37,1)/$E37),"") -> 68 | I37: =IFERROR(IF($G$16=TRUE,INDEX(Data!$N$33:$N$82,$D37,1),INDEX(Data!$N$33:$N$82,$D37,1)/$E37),"") -> 9 | J37: =IFERROR(IF($G$16=TRUE,INDEX(Data!$K$33:$K$82,$D37,1)+INDEX(Data!$L$33:$L$82,$D37,1)+INDEX(Data!$M$33:$M$82,$D37,1)+INDEX(Data!$N$33:$N$82,$D37,1),(INDEX(Data!$K$33:$K$82,$D37,1)+INDEX(Data!$L$33:$L$82,$D37,1)+INDEX(Data!$M$33:$M$82,$D37,1)+INDEX(Data!$N$33:$N$82,$D37,1))/(5*$E37)),"") -> 124 | K37: =IFERROR(INDEX(Data!$K$33:$K$82,$D37,1)/(5*$E37),"") -> 0.1086956522 | L37: =IFERROR(INDEX(Data!$L$33:$L$82,$D37,1)/(5*$E37),"") -> 0.09565217391 | M37: =IFERROR(INDEX(Data!$M$33:$M$82,$D37,1)/(5*$E37),"") -> 0.2956521739 | N37: =IFERROR(INDEX(Data!$N$33:$N$82,$D37,1)/(5*$E37),"") -> 0.03913043478 | O37: 0 | R37: 1 | S37: 24 | T37: 184 | U37: 1 | V37: 8 | W37: 32
B38: ='Report A'!$B39 -> 2014-07-08 | C38: ='Report A'!$C39 -> Tuesday | D38: ='Report A'!$D39 -> 8 | E38: =IFERROR(INDEX(Data!$J$33:$J$82,$D38,1),"") -> 46 | F38: =IFERROR(IF($G$16=TRUE,INDEX(Data!$K$33:$K$82,$D38,1),INDEX(Data!$K$33:$K$82,$D38,1)/$E38),"") -> 9 | G38: =IFERROR(IF($G$16=TRUE,INDEX(Data!$L$33:$L$82,$D38,1),INDEX(Data!$L$33:$L$82,$D38,1)/(2*$E38)),"") -> 16 | H38: =IFERROR(IF($G$16=TRUE,INDEX(Data!$M$33:$M$82,$D38,1),INDEX(Data!$M$33:$M$82,$D38,1)/$E38),"") -> 59 | I38: =IFERROR(IF($G$16=TRUE,INDEX(Data!$N$33:$N$82,$D38,1),INDEX(Data!$N$33:$N$82,$D38,1)/$E38),"") -> 11 | J38: =IFERROR(IF($G$16=TRUE,INDEX(Data!$K$33:$K$82,$D38,1)+INDEX(Data!$L$33:$L$82,$D38,1)+INDEX(Data!$M$33:$M$82,$D38,1)+INDEX(Data!$N$33:$N$82,$D38,1),(INDEX(Data!$K$33:$K$82,$D38,1)+INDEX(Data!$L$33:$L$82,$D38,1)+INDEX(Data!$M$33:$M$82,$D38,1)+INDEX(Data!$N$33:$N$82,$D38,1))/(5*$E38)),"") -> 95 | K38: =IFERROR(INDEX(Data!$K$33:$K$82,$D38,1)/(5*$E38),"") -> 0.03913043478 | L38: =IFERROR(INDEX(Data!$L$33:$L$82,$D38,1)/(5*$E38),"") -> 0.06956521739 | M38: =IFERROR(INDEX(Data!$M$33:$M$82,$D38,1)/(5*$E38),"") -> 0.2565217391 | N38: =IFERROR(INDEX(Data!$N$33:$N$82,$D38,1)/(5*$E38),"") -> 0.04782608696 | O38: 1 | P38: 10 | Q38: 40 | R38: 1 | S38: 17 | T38: 183.2 | U38: 0
B39: ='Report A'!$B40 -> 2014-07-09 | C39: ='Report A'!$C40 -> Wednesday | D39: ='Report A'!$D40 -> 9 | E39: =IFERROR(INDEX(Data!$J$33:$J$82,$D39,1),"") -> 46 | F39: =IFERROR(IF($G$16=TRUE,INDEX(Data!$K$33:$K$82,$D39,1),INDEX(Data!$K$33:$K$82,$D39,1)/$E39),"") -> 23 | G39: =IFERROR(IF($G$16=TRUE,INDEX(Data!$L$33:$L$82,$D39,1),INDEX(Data!$L$33:$L$82,$D39,1)/(2*$E39)),"") -> 17 | H39: =IFERROR(IF($G$16=TRUE,INDEX(Data!$M$33:$M$82,$D39,1),INDEX(Data!$M$33:$M$82,$D39,1)/$E39),"") -> 54 | I39: =IFERROR(IF($G$16=TRUE,INDEX(Data!$N$33:$N$82,$D39,1),INDEX(Data!$N$33:$N$82,$D39,1)/$E39),"") -> 10 | J39: =IFERROR(IF($G$16=TRUE,INDEX(Data!$K$33:$K$82,$D39,1)+INDEX(Data!$L$33:$L$82,$D39,1)+INDEX(Data!$M$33:$M$82,$D39,1)+INDEX(Data!$N$33:$N$82,$D39,1),(INDEX(Data!$K$33:$K$82,$D39,1)+INDEX(Data!$L$33:$L$82,$D39,1)+INDEX(Data!$M$33:$M$82,$D39,1)+INDEX(Data!$N$33:$N$82,$D39,1))/(5*$E39)),"") -> 104 | K39: =IFERROR(INDEX(Data!$K$33:$K$82,$D39,1)/(5*$E39),"") -> 0.1 | L39: =IFERROR(INDEX(Data!$L$33:$L$82,$D39,1)/(5*$E39),"") -> 0.07391304348 | M39: =IFERROR(INDEX(Data!$M$33:$M$82,$D39,1)/(5*$E39),"") -> 0.2347826087 | N39: =IFERROR(INDEX(Data!$N$33:$N$82,$D39,1)/(5*$E39),"") -> 0.04347826087 | O39: 0 | R39: 0 | U39: 0
B40: ='Report A'!$B41 -> 2014-07-10 | C40: ='Report A'!$C41 -> Thursday | D40: ='Report A'!$D41 -> 10 | E40: =IFERROR(INDEX(Data!$J$33:$J$82,$D40,1),"") -> 46 | F40: =IFERROR(IF($G$16=TRUE,INDEX(Data!$K$33:$K$82,$D40,1),INDEX(Data!$K$33:$K$82,$D40,1)/$E40),"") -> 13 | G40: =IFERROR(IF($G$16=TRUE,INDEX(Data!$L$33:$L$82,$D40,1),INDEX(Data!$L$33:$L$82,$D40,1)/(2*$E40)),"") -> 11 | H40: =IFERROR(IF($G$16=TRUE,INDEX(Data!$M$33:$M$82,$D40,1),INDEX(Data!$M$33:$M$82,$D40,1)/$E40),"") -> 63 | I40: =IFERROR(IF($G$16=TRUE,INDEX(Data!$N$33:$N$82,$D40,1),INDEX(Data!$N$33:$N$82,$D40,1)/$E40),"") -> 4 | J40: =IFERROR(IF($G$16=TRUE,INDEX(Data!$K$33:$K$82,$D40,1)+INDEX(Data!$L$33:$L$82,$D40,1)+INDEX(Data!$M$33:$M$82,$D40,1)+INDEX(Data!$N$33:$N$82,$D40,1),(INDEX(Data!$K$33:$K$82,$D40,1)+INDEX(Data!$L$33:$L$82,$D40,1)+INDEX(Data!$M$33:$M$82,$D40,1)+INDEX(Data!$N$33:$N$82,$D40,1))/(5*$E40)),"") -> 91 | K40: =IFERROR(INDEX(Data!$K$33:$K$82,$D40,1)/(5*$E40),"") -> 0.05652173913 | L40: =IFERROR(INDEX(Data!$L$33:$L$82,$D40,1)/(5*$E40),"") -> 0.04782608696 | M40: =IFERROR(INDEX(Data!$M$33:$M$82,$D40,1)/(5*$E40),"") -> 0.2739130435 | N40: =IFERROR(INDEX(Data!$N$33:$N$82,$D40,1)/(5*$E40),"") -> 0.01739130435 | O40: 1 | P40: 15 | Q40: 60 | R40: 1 | S40: 7 | T40: 28 | U40: 1 | V40: 10 | W40: 40
B41: ='Report A'!$B42 -> 2014-07-11 | C41: ='Report A'!$C42 -> Friday | D41: ='Report A'!$D42 -> 11 | E41: =IFERROR(INDEX(Data!$J$33:$J$82,$D41,1),"") -> 46 | F41: =IFERROR(IF($G$16=TRUE,INDEX(Data!$K$33:$K$82,$D41,1),INDEX(Data!$K$33:$K$82,$D41,1)/$E41),"") -> 24 | G41: =IFERROR(IF($G$16=TRUE,INDEX(Data!$L$33:$L$82,$D41,1),INDEX(Data!$L$33:$L$82,$D41,1)/(2*$E41)),"") -> 20 | H41: =IFERROR(IF($G$16=TRUE,INDEX(Data!$M$33:$M$82,$D41,1),INDEX(Data!$M$33:$M$82,$D41,1)/$E41),"") -> 48 | I41: =IFERROR(IF($G$16=TRUE,INDEX(Data!$N$33:$N$82,$D41,1),INDEX(Data!$N$33:$N$82,$D41,1)/$E41),"") -> 9 | J41: =IFERROR(IF($G$16=TRUE,INDEX(Data!$K$33:$K$82,$D41,1)+INDEX(Data!$L$33:$L$82,$D41,1)+INDEX(Data!$M$33:$M$82,$D41,1)+INDEX(Data!$N$33:$N$82,$D41,1),(INDEX(Data!$K$33:$K$82,$D41,1)+INDEX(Data!$L$33:$L$82,$D41,1)+INDEX(Data!$M$33:$M$82,$D41,1)+INDEX(Data!$N$33:$N$82,$D41,1))/(5*$E41)),"") -> 101 | K41: =IFERROR(INDEX(Data!$K$33:$K$82,$D41,1)/(5*$E41),"") -> 0.1043478261 | L41: =IFERROR(INDEX(Data!$L$33:$L$82,$D41,1)/(5*$E41),"") -> 0.08695652174 | M41: =IFERROR(INDEX(Data!$M$33:$M$82,$D41,1)/(5*$E41),"") -> 0.2086956522 | N41: =IFERROR(INDEX(Data!$N$33:$N$82,$D41,1)/(5*$E41),"") -> 0.03913043478 | O41: 1 | P41: 50 | Q41: 1563.8 | R41: 1 | S41: 11 | T41: 163.9 | U41: 1 | V41: 10 | W41: 149
B42: ='Report A'!$B43 -> 2014-07-12 | C42: ='Report A'!$C43 -> Saturday | D42: ='Report A'!$D43 -> 12 | E42: =IFERROR(INDEX(Data!$J$33:$J$82,$D42,1),"") -> 46 | F42: =IFERROR(IF($G$16=TRUE,INDEX(Data!$K$33:$K$82,$D42,1),INDEX(Data!$K$33:$K$82,$D42,1)/$E42),"") -> 33 | G42: =IFERROR(IF($G$16=TRUE,INDEX(Data!$L$33:$L$82,$D42,1),INDEX(Data!$L$33:$L$82,$D42,1)/(2*$E42)),"") -> 57 | H42: =IFERROR(IF($G$16=TRUE,INDEX(Data!$M$33:$M$82,$D42,1),INDEX(Data!$M$33:$M$82,$D42,1)/$E42),"") -> 69 | I42: =IFERROR(IF($G$16=TRUE,INDEX(Data!$N$33:$N$82,$D42,1),INDEX(Data!$N$33:$N$82,$D42,1)/$E42),"") -> 13 | J42: =IFERROR(IF($G$16=TRUE,INDEX(Data!$K$33:$K$82,$D42,1)+INDEX(Data!$L$33:$L$82,$D42,1)+INDEX(Data!$M$33:$M$82,$D42,1)+INDEX(Data!$N$33:$N$82,$D42,1),(INDEX(Data!$K$33:$K$82,$D42,1)+INDEX(Data!$L$33:$L$82,$D42,1)+INDEX(Data!$M$33:$M$82,$D42,1)+INDEX(Data!$N$33:$N$82,$D42,1))/(5*$E42)),"") -> 172 | K42: =IFERROR(INDEX(Data!$K$33:$K$82,$D42,1)/(5*$E42),"") -> 0.1434782609 | L42: =IFERROR(INDEX(Data!$L$33:$L$82,$D42,1)/(5*$E42),"") -> 0.247826087 | M42: =IFERROR(INDEX(Data!$M$33:$M$82,$D42,1)/(5*$E42),"") -> 0.3 | N42: =IFERROR(INDEX(Data!$N$33:$N$82,$D42,1)/(5*$E42),"") -> 0.05652173913 | O42: 1 | P42: 30 | Q42: 1262 | R42: 1 | S42: 28 | T42: 578 | U42: 1 | V42: 14 | W42: 199.6
B43: ='Report A'!$B44 -> 2014-07-13 | C43: ='Report A'!$C44 -> Sunday | D43: ='Report A'!$D44 -> 13 | E43: =IFERROR(INDEX(Data!$J$33:$J$82,$D43,1),"") -> 46 | F43: =IFERROR(IF($G$16=TRUE,INDEX(Data!$K$33:$K$82,$D43,1),INDEX(Data!$K$33:$K$82,$D43,1)/$E43),"") -> 23 | G43: =IFERROR(IF($G$16=TRUE,INDEX(Data!$L$33:$L$82,$D43,1),INDEX(Data!$L$33:$L$82,$D43,1)/(2*$E43)),"") -> 48 | H43: =IFERROR(IF($G$16=TRUE,INDEX(Data!$M$33:$M$82,$D43,1),INDEX(Data!$M$33:$M$82,$D43,1)/$E43),"") -> 58 | I43: =IFERROR(IF($G$16=TRUE,INDEX(Data!$N$33:$N$82,$D43,1),INDEX(Data!$N$33:$N$82,$D43,1)/$E43),"") -> 9 | J43: =IFERROR(IF($G$16=TRUE,INDEX(Data!$K$33:$K$82,$D43,1)+INDEX(Data!$L$33:$L$82,$D43,1)+INDEX(Data!$M$33:$M$82,$D43,1)+INDEX(Data!$N$33:$N$82,$D43,1),(INDEX(Data!$K$33:$K$82,$D43,1)+INDEX(Data!$L$33:$L$82,$D43,1)+INDEX(Data!$M$33:$M$82,$D43,1)+INDEX(Data!$N$33:$N$82,$D43,1))/(5*$E43)),"") -> 138 | K43: =IFERROR(INDEX(Data!$K$33:$K$82,$D43,1)/(5*$E43),"") -> 0.1 | L43: =IFERROR(INDEX(Data!$L$33:$L$82,$D43,1)/(5*$E43),"") -> 0.2086956522 | M43: =IFERROR(INDEX(Data!$M$33:$M$82,$D43,1)/(5*$E43),"") -> 0.252173913 | N43: =IFERROR(INDEX(Data!$N$33:$N$82,$D43,1)/(5*$E43),"") -> 0.03913043478 | O43: 0 | R43: 1 | S43: 27 | T43: 776 | U43: 1 | V43: 3 | W43: 54
B44: ='Report A'!$B45 -> 2014-07-14 | C44: ='Report A'!$C45 -> Monday | D44: ='Report A'!$D45 -> 14 | E44: =IFERROR(INDEX(Data!$J$33:$J$82,$D44,1),"") -> 46 | F44: =IFERROR(IF($G$16=TRUE,INDEX(Data!$K$33:$K$82,$D44,1),INDEX(Data!$K$33:$K$82,$D44,1)/$E44),"") -> 19 | G44: =IFERROR(IF($G$16=TRUE,INDEX(Data!$L$33:$L$82,$D44,1),INDEX(Data!$L$33:$L$82,$D44,1)/(2*$E44)),"") -> 21 | H44: =IFERROR(IF($G$16=TRUE,INDEX(Data!$M$33:$M$82,$D44,1),INDEX(Data!$M$33:$M$82,$D44,1)/$E44),"") -> 62 | I44: =IFERROR(IF($G$16=TRUE,INDEX(Data!$N$33:$N$82,$D44,1),INDEX(Data!$N$33:$N$82,$D44,1)/$E44),"") -> 6 | J44: =IFERROR(IF($G$16=TRUE,INDEX(Data!$K$33:$K$82,$D44,1)+INDEX(Data!$L$33:$L$82,$D44,1)+INDEX(Data!$M$33:$M$82,$D44,1)+INDEX(Data!$N$33:$N$82,$D44,1),(INDEX(Data!$K$33:$K$82,$D44,1)+INDEX(Data!$L$33:$L$82,$D44,1)+INDEX(Data!$M$33:$M$82,$D44,1)+INDEX(Data!$N$33:$N$82,$D44,1))/(5*$E44)),"") -> 108 | K44: =IFERROR(INDEX(Data!$K$33:$K$82,$D44,1)/(5*$E44),"") -> 0.08260869565 | L44: =IFERROR(INDEX(Data!$L$33:$L$82,$D44,1)/(5*$E44),"") -> 0.09130434783 | M44: =IFERROR(INDEX(Data!$M$33:$M$82,$D44,1)/(5*$E44),"") -> 0.2695652174 | N44: =IFERROR(INDEX(Data!$N$33:$N$82,$D44,1)/(5*$E44),"") -> 0.02608695652 | O44: 1 | P44: 10 | Q44: 20 | R44: 1 | S44: 9 | T44: 18 | U44: 1 | V44: 8 | W44: 16
B45: ='Report A'!$B46 -> 2014-07-15 | C45: ='Report A'!$C46 -> Tuesday | D45: ='Report A'!$D46 -> 15 | E45: =IFERROR(INDEX(Data!$J$33:$J$82,$D45,1),"") -> 46 | F45: =IFERROR(IF($G$16=TRUE,INDEX(Data!$K$33:$K$82,$D45,1),INDEX(Data!$K$33:$K$82,$D45,1)/$E45),"") -> 18 | G45: =IFERROR(IF($G$16=TRUE,INDEX(Data!$L$33:$L$82,$D45,1),INDEX(Data!$L$33:$L$82,$D45,1)/(2*$E45)),"") -> 30 | H45: =IFERROR(IF($G$16=TRUE,INDEX(Data!$M$33:$M$82,$D45,1),INDEX(Data!$M$33:$M$82,$D45,1)/$E45),"") -> 30 | I45: =IFERROR(IF($G$16=TRUE,INDEX(Data!$N$33:$N$82,$D45,1),INDEX(Data!$N$33:$N$82,$D45,1)/$E45),"") -> 4 | J45: =IFERROR(IF($G$16=TRUE,INDEX(Data!$K$33:$K$82,$D45,1)+INDEX(Data!$L$33:$L$82,$D45,1)+INDEX(Data!$M$33:$M$82,$D45,1)+INDEX(Data!$N$33:$N$82,$D45,1),(INDEX(Data!$K$33:$K$82,$D45,1)+INDEX(Data!$L$33:$L$82,$D45,1)+INDEX(Data!$M$33:$M$82,$D45,1)+INDEX(Data!$N$33:$N$82,$D45,1))/(5*$E45)),"") -> 82 | K45: =IFERROR(INDEX(Data!$K$33:$K$82,$D45,1)/(5*$E45),"") -> 0.07826086957 | L45: =IFERROR(INDEX(Data!$L$33:$L$82,$D45,1)/(5*$E45),"") -> 0.1304347826 | M45: =IFERROR(INDEX(Data!$M$33:$M$82,$D45,1)/(5*$E45),"") -> 0.1304347826 | N45: =IFERROR(INDEX(Data!$N$33:$N$82,$D45,1)/(5*$E45),"") -> 0.01739130435 | O45: 1 | P45: 8 | Q45: 134.4 | R45: 1 | S45: 16 | T45: 378.4 | U45: 0
B46: ='Report A'!$B47 -> 2014-07-16 | C46: ='Report A'!$C47 -> Wednesday | D46: ='Report A'!$D47 -> 16 | E46: =IFERROR(INDEX(Data!$J$33:$J$82,$D46,1),"") -> 46 | F46: =IFERROR(IF($G$16=TRUE,INDEX(Data!$K$33:$K$82,$D46,1),INDEX(Data!$K$33:$K$82,$D46,1)/$E46),"") -> 17 | G46: =IFERROR(IF($G$16=TRUE,INDEX(Data!$L$33:$L$82,$D46,1),INDEX(Data!$L$33:$L$82,$D46,1)/(2*$E46)),"") -> 19 | H46: =IFERROR(IF($G$16=TRUE,INDEX(Data!$M$33:$M$82,$D46,1),INDEX(Data!$M$33:$M$82,$D46,1)/$E46),"") -> 39 | I46: =IFERROR(IF($G$16=TRUE,INDEX(Data!$N$33:$N$82,$D46,1),INDEX(Data!$N$33:$N$82,$D46,1)/$E46),"") -> 9 | J46: =IFERROR(IF($G$16=TRUE,INDEX(Data!$K$33:$K$82,$D46,1)+INDEX(Data!$L$33:$L$82,$D46,1)+INDEX(Data!$M$33:$M$82,$D46,1)+INDEX(Data!$N$33:$N$82,$D46,1),(INDEX(Data!$K$33:$K$82,$D46,1)+INDEX(Data!$L$33:$L$82,$D46,1)+INDEX(Data!$M$33:$M$82,$D46,1)+INDEX(Data!$N$33:$N$82,$D46,1))/(5*$E46)),"") -> 84 | K46: =IFERROR(INDEX(Data!$K$33:$K$82,$D46,1)/(5*$E46),"") -> 0.07391304348 | L46: =IFERROR(INDEX(Data!$L$33:$L$82,$D46,1)/(5*$E46),"") -> 0.08260869565 | M46: =IFERROR(INDEX(Data!$M$33:$M$82,$D46,1)/(5*$E46),"") -> 0.1695652174 | N46: =IFERROR(INDEX(Data!$N$33:$N$82,$D46,1)/(5*$E46),"") -> 0.03913043478 | O46: 1 | P46: 23 | Q46: 441.6 | R46: 1 | S46: 18 | T46: 352.9 | U46: 0
B47: ='Report A'!$B48 -> 2014-07-17 | C47: ='Report A'!$C48 -> Thursday | D47: ='Report A'!$D48 -> 17 | E47: =IFERROR(INDEX(Data!$J$33:$J$82,$D47,1),"") -> 46 | F47: =IFERROR(IF($G$16=TRUE,INDEX(Data!$K$33:$K$82,$D47,1),INDEX(Data!$K$33:$K$82,$D47,1)/$E47),"") -> 16 | G47: =IFERROR(IF($G$16=TRUE,INDEX(Data!$L$33:$L$82,$D47,1),INDEX(Data!$L$33:$L$82,$D47,1)/(2*$E47)),"") -> 21 | H47: =IFERROR(IF($G$16=TRUE,INDEX(Data!$M$33:$M$82,$D47,1),INDEX(Data!$M$33:$M$82,$D47,1)/$E47),"") -> 41 | I47: =IFERROR(IF($G$16=TRUE,INDEX(Data!$N$33:$N$82,$D47,1),INDEX(Data!$N$33:$N$82,$D47,1)/$E47),"") -> 7 | J47: =IFERROR(IF($G$16=TRUE,INDEX(Data!$K$33:$K$82,$D47,1)+INDEX(Data!$L$33:$L$82,$D47,1)+INDEX(Data!$M$33:$M$82,$D47,1)+INDEX(Data!$N$33:$N$82,$D47,1),(INDEX(Data!$K$33:$K$82,$D47,1)+INDEX(Data!$L$33:$L$82,$D47,1)+INDEX(Data!$M$33:$M$82,$D47,1)+INDEX(Data!$N$33:$N$82,$D47,1))/(5*$E47)),"") -> 85 | K47: =IFERROR(INDEX(Data!$K$33:$K$82,$D47,1)/(5*$E47),"") -> 0.06956521739 | L47: =IFERROR(INDEX(Data!$L$33:$L$82,$D47,1)/(5*$E47),"") -> 0.09130434783 | M47: =IFERROR(INDEX(Data!$M$33:$M$82,$D47,1)/(5*$E47),"") -> 0.1782608696 | N47: =IFERROR(INDEX(Data!$N$33:$N$82,$D47,1)/(5*$E47),"") -> 0.03043478261 | O47: 1 | P47: 10 | Q47: 359.2 | R47: 1 | S47: 19 | T47: 209.1 | U47: 0
B48: ='Report A'!$B49 -> 2014-07-18 | C48: ='Report A'!$C49 -> Friday | D48: ='Report A'!$D49 -> 18 | E48: =IFERROR(INDEX(Data!$J$33:$J$82,$D48,1),"") -> 46 | F48: =IFERROR(IF($G$16=TRUE,INDEX(Data!$K$33:$K$82,$D48,1),INDEX(Data!$K$33:$K$82,$D48,1)/$E48),"") -> 27 | G48: =IFERROR(IF($G$16=TRUE,INDEX(Data!$L$33:$L$82,$D48,1),INDEX(Data!$L$33:$L$82,$D48,1)/(2*$E48)),"") -> 17 | H48: =IFERROR(IF($G$16=TRUE,INDEX(Data!$M$33:$M$82,$D48,1),INDEX(Data!$M$33:$M$82,$D48,1)/$E48),"") -> 64 | I48: =IFERROR(IF($G$16=TRUE,INDEX(Data!$N$33:$N$82,$D48,1),INDEX(Data!$N$33:$N$82,$D48,1)/$E48),"") -> 5 | J48: =IFERROR(IF($G$16=TRUE,INDEX(Data!$K$33:$K$82,$D48,1)+INDEX(Data!$L$33:$L$82,$D48,1)+INDEX(Data!$M$33:$M$82,$D48,1)+INDEX(Data!$N$33:$N$82,$D48,1),(INDEX(Data!$K$33:$K$82,$D48,1)+INDEX(Data!$L$33:$L$82,$D48,1)+INDEX(Data!$M$33:$M$82,$D48,1)+INDEX(Data!$N$33:$N$82,$D48,1))/(5*$E48)),"") -> 113 | K48: =IFERROR(INDEX(Data!$K$33:$K$82,$D48,1)/(5*$E48),"") -> 0.1173913043 | L48: =IFERROR(INDEX(Data!$L$33:$L$82,$D48,1)/(5*$E48),"") -> 0.07391304348 | M48: =IFERROR(INDEX(Data!$M$33:$M$82,$D48,1)/(5*$E48),"") -> 0.2782608696 | N48: =IFERROR(INDEX(Data!$N$33:$N$82,$D48,1)/(5*$E48),"") -> 0.02173913043 | O48: 1 | P48: 12 | Q48: 624 | R48: 1 | S48: 24 | T48: 840 | U48: 1 | V48: 12 | W48: 409.6
B49: ='Report A'!$B50 -> 2014-07-19 | C49: ='Report A'!$C50 -> Saturday | D49: ='Report A'!$D50 -> 19 | E49: =IFERROR(INDEX(Data!$J$33:$J$82,$D49,1),"") -> 46 | F49: =IFERROR(IF($G$16=TRUE,INDEX(Data!$K$33:$K$82,$D49,1),INDEX(Data!$K$33:$K$82,$D49,1)/$E49),"") -> 34 | G49: =IFERROR(IF($G$16=TRUE,INDEX(Data!$L$33:$L$82,$D49,1),INDEX(Data!$L$33:$L$82,$D49,1)/(2*$E49)),"") -> 53 | H49: =IFERROR(IF($G$16=TRUE,INDEX(Data!$M$33:$M$82,$D49,1),INDEX(Data!$M$33:$M$82,$D49,1)/$E49),"") -> 76 | I49: =IFERROR(IF($G$16=TRUE,INDEX(Data!$N$33:$N$82,$D49,1),INDEX(Data!$N$33:$N$82,$D49,1)/$E49),"") -> 16 | J49: =IFERROR(IF($G$16=TRUE,INDEX(Data!$K$33:$K$82,$D49,1)+INDEX(Data!$L$33:$L$82,$D49,1)+INDEX(Data!$M$33:$M$82,$D49,1)+INDEX(Data!$N$33:$N$82,$D49,1),(INDEX(Data!$K$33:$K$82,$D49,1)+INDEX(Data!$L$33:$L$82,$D49,1)+INDEX(Data!$M$33:$M$82,$D49,1)+INDEX(Data!$N$33:$N$82,$D49,1))/(5*$E49)),"") -> 179 | K49: =IFERROR(INDEX(Data!$K$33:$K$82,$D49,1)/(5*$E49),"") -> 0.147826087 | L49: =IFERROR(INDEX(Data!$L$33:$L$82,$D49,1)/(5*$E49),"") -> 0.2304347826 | M49: =IFERROR(INDEX(Data!$M$33:$M$82,$D49,1)/(5*$E49),"") -> 0.3304347826 | N49: =IFERROR(INDEX(Data!$N$33:$N$82,$D49,1)/(5*$E49),"") -> 0.06956521739 | O49: 1 | P49: 15 | Q49: 722.4 | R49: 1 | S49: 27 | T49: 816 | U49: 1 | V49: 14 | W49: 199.8
B50: ='Report A'!$B51 -> 2014-07-20 | C50: ='Report A'!$C51 -> Sunday | D50: ='Report A'!$D51 -> 20 | E50: =IFERROR(INDEX(Data!$J$33:$J$82,$D50,1),"") -> 46 | F50: =IFERROR(IF($G$16=TRUE,INDEX(Data!$K$33:$K$82,$D50,1),INDEX(Data!$K$33:$K$82,$D50,1)/$E50),"") -> 36 | G50: =IFERROR(IF($G$16=TRUE,INDEX(Data!$L$33:$L$82,$D50,1),INDEX(Data!$L$33:$L$82,$D50,1)/(2*$E50)),"") -> 51 | H50: =IFERROR(IF($G$16=TRUE,INDEX(Data!$M$33:$M$82,$D50,1),INDEX(Data!$M$33:$M$82,$D50,1)/$E50),"") -> 44 | I50: =IFERROR(IF($G$16=TRUE,INDEX(Data!$N$33:$N$82,$D50,1),INDEX(Data!$N$33:$N$82,$D50,1)/$E50),"") -> 11 | J50: =IFERROR(IF($G$16=TRUE,INDEX(Data!$K$33:$K$82,$D50,1)+INDEX(Data!$L$33:$L$82,$D50,1)+INDEX(Data!$M$33:$M$82,$D50,1)+INDEX(Data!$N$33:$N$82,$D50,1),(INDEX(Data!$K$33:$K$82,$D50,1)+INDEX(Data!$L$33:$L$82,$D50,1)+INDEX(Data!$M$33:$M$82,$D50,1)+INDEX(Data!$N$33:$N$82,$D50,1))/(5*$E50)),"") -> 142 | K50: =IFERROR(INDEX(Data!$K$33:$K$82,$D50,1)/(5*$E50),"") -> 0.1565217391 | L50: =IFERROR(INDEX(Data!$L$33:$L$82,$D50,1)/(5*$E50),"") -> 0.2217391304 | M50: =IFERROR(INDEX(Data!$M$33:$M$82,$D50,1)/(5*$E50),"") -> 0.1913043478 | N50: =IFERROR(INDEX(Data!$N$33:$N$82,$D50,1)/(5*$E50),"") -> 0.04782608696 | O50: 0 | R50: 1 | S50: 23 | T50: 629.2 | U50: 1 | V50: 4 | W50: 36
B51: ='Report A'!$B52 -> 2014-07-21 | C51: ='Report A'!$C52 -> Monday | D51: ='Report A'!$D52 -> 21 | E51: =IFERROR(INDEX(Data!$J$33:$J$82,$D51,1),"") -> 46 | F51: =IFERROR(IF($G$16=TRUE,INDEX(Data!$K$33:$K$82,$D51,1),INDEX(Data!$K$33:$K$82,$D51,1)/$E51),"") -> 20 | G51: =IFERROR(IF($G$16=TRUE,INDEX(Data!$L$33:$L$82,$D51,1),INDEX(Data!$L$33:$L$82,$D51,1)/(2*$E51)),"") -> 18 | H51: =IFERROR(IF($G$16=TRUE,INDEX(Data!$M$33:$M$82,$D51,1),INDEX(Data!$M$33:$M$82,$D51,1)/$E51),"") -> 29 | I51: =IFERROR(IF($G$16=TRUE,INDEX(Data!$N$33:$N$82,$D51,1),INDEX(Data!$N$33:$N$82,$D51,1)/$E51),"") -> 11 | J51: =IFERROR(IF($G$16=TRUE,INDEX(Data!$K$33:$K$82,$D51,1)+INDEX(Data!$L$33:$L$82,$D51,1)+INDEX(Data!$M$33:$M$82,$D51,1)+INDEX(Data!$N$33:$N$82,$D51,1),(INDEX(Data!$K$33:$K$82,$D51,1)+INDEX(Data!$L$33:$L$82,$D51,1)+INDEX(Data!$M$33:$M$82,$D51,1)+INDEX(Data!$N$33:$N$82,$D51,1))/(5*$E51)),"") -> 78 | K51: =IFERROR(INDEX(Data!$K$33:$K$82,$D51,1)/(5*$E51),"") -> 0.08695652174 | L51: =IFERROR(INDEX(Data!$L$33:$L$82,$D51,1)/(5*$E51),"") -> 0.07826086957 | M51: =IFERROR(INDEX(Data!$M$33:$M$82,$D51,1)/(5*$E51),"") -> 0.1260869565 | N51: =IFERROR(INDEX(Data!$N$33:$N$82,$D51,1)/(5*$E51),"") -> 0.04782608696 | O51: 0 | R51: 1 | S51: 4 | T51: 39.6 | U51: 0
B52: ='Report A'!$B53 -> 2014-07-22 | C52: ='Report A'!$C53 -> Tuesday | D52: ='Report A'!$D53 -> 22 | E52: =IFERROR(INDEX(Data!$J$33:$J$82,$D52,1),"") -> 46 | F52: =IFERROR(IF($G$16=TRUE,INDEX(Data!$K$33:$K$82,$D52,1),INDEX(Data!$K$33:$K$82,$D52,1)/$E52),"") -> 16 | G52: =IFERROR(IF($G$16=TRUE,INDEX(Data!$L$33:$L$82,$D52,1),INDEX(Data!$L$33:$L$82,$D52,1)/(2*$E52)),"") -> 18 | H52: =IFERROR(IF($G$16=TRUE,INDEX(Data!$M$33:$M$82,$D52,1),INDEX(Data!$M$33:$M$82,$D52,1)/$E52),"") -> 38 | I52: =IFERROR(IF($G$16=TRUE,INDEX(Data!$N$33:$N$82,$D52,1),INDEX(Data!$N$33:$N$82,$D52,1)/$E52),"") -> 12 | J52: =IFERROR(IF($G$16=TRUE,INDEX(Data!$K$33:$K$82,$D52,1)+INDEX(Data!$L$33:$L$82,$D52,1)+INDEX(Data!$M$33:$M$82,$D52,1)+INDEX(Data!$N$33:$N$82,$D52,1),(INDEX(Data!$K$33:$K$82,$D52,1)+INDEX(Data!$L$33:$L$82,$D52,1)+INDEX(Data!$M$33:$M$82,$D52,1)+INDEX(Data!$N$33:$N$82,$D52,1))/(5*$E52)),"") -> 84 | K52: =IFERROR(INDEX(Data!$K$33:$K$82,$D52,1)/(5*$E52),"") -> 0.06956521739 | L52: =IFERROR(INDEX(Data!$L$33:$L$82,$D52,1)/(5*$E52),"") -> 0.07826086957 | M52: =IFERROR(INDEX(Data!$M$33:$M$82,$D52,1)/(5*$E52),"") -> 0.1652173913 | N52: =IFERROR(INDEX(Data!$N$33:$N$82,$D52,1)/(5*$E52),"") -> 0.05217391304 | O52: 0 | R52: 0 | U52: 0
B53: ='Report A'!$B54 -> 2014-07-23 | C53: ='Report A'!$C54 -> Wednesday | D53: ='Report A'!$D54 -> 23 | E53: =IFERROR(INDEX(Data!$J$33:$J$82,$D53,1),"") -> 46 | F53: =IFERROR(IF($G$16=TRUE,INDEX(Data!$K$33:$K$82,$D53,1),INDEX(Data!$K$33:$K$82,$D53,1)/$E53),"") -> 14 | G53: =IFERROR(IF($G$16=TRUE,INDEX(Data!$L$33:$L$82,$D53,1),INDEX(Data!$L$33:$L$82,$D53,1)/(2*$E53)),"") -> 22 | H53: =IFERROR(IF($G$16=TRUE,INDEX(Data!$M$33:$M$82,$D53,1),INDEX(Data!$M$33:$M$82,$D53,1)/$E53),"") -> 25 | I53: =IFERROR(IF($G$16=TRUE,INDEX(Data!$N$33:$N$82,$D53,1),INDEX(Data!$N$33:$N$82,$D53,1)/$E53),"") -> 9 | J53: =IFERROR(IF($G$16=TRUE,INDEX(Data!$K$33:$K$82,$D53,1)+INDEX(Data!$L$33:$L$82,$D53,1)+INDEX(Data!$M$33:$M$82,$D53,1)+INDEX(Data!$N$33:$N$82,$D53,1),(INDEX(Data!$K$33:$K$82,$D53,1)+INDEX(Data!$L$33:$L$82,$D53,1)+INDEX(Data!$M$33:$M$82,$D53,1)+INDEX(Data!$N$33:$N$82,$D53,1))/(5*$E53)),"") -> 70 | K53: =IFERROR(INDEX(Data!$K$33:$K$82,$D53,1)/(5*$E53),"") -> 0.06086956522 | L53: =IFERROR(INDEX(Data!$L$33:$L$82,$D53,1)/(5*$E53),"") -> 0.09565217391 | M53: =IFERROR(INDEX(Data!$M$33:$M$82,$D53,1)/(5*$E53),"") -> 0.1086956522 | N53: =IFERROR(INDEX(Data!$N$33:$N$82,$D53,1)/(5*$E53),"") -> 0.03913043478 | O53: 0 | R53: 0 | U53: 0
B54: ='Report A'!$B55 -> 2014-07-24 | C54: ='Report A'!$C55 -> Thursday | D54: ='Report A'!$D55 -> 24 | E54: =IFERROR(INDEX(Data!$J$33:$J$82,$D54,1),"") -> 46 | F54: =IFERROR(IF($G$16=TRUE,INDEX(Data!$K$33:$K$82,$D54,1),INDEX(Data!$K$33:$K$82,$D54,1)/$E54),"") -> 17 | G54: =IFERROR(IF($G$16=TRUE,INDEX(Data!$L$33:$L$82,$D54,1),INDEX(Data!$L$33:$L$82,$D54,1)/(2*$E54)),"") -> 21 | H54: =IFERROR(IF($G$16=TRUE,INDEX(Data!$M$33:$M$82,$D54,1),INDEX(Data!$M$33:$M$82,$D54,1)/$E54),"") -> 35 | I54: =IFERROR(IF($G$16=TRUE,INDEX(Data!$N$33:$N$82,$D54,1),INDEX(Data!$N$33:$N$82,$D54,1)/$E54),"") -> 6 | J54: =IFERROR(IF($G$16=TRUE,INDEX(Data!$K$33:$K$82,$D54,1)+INDEX(Data!$L$33:$L$82,$D54,1)+INDEX(Data!$M$33:$M$82,$D54,1)+INDEX(Data!$N$33:$N$82,$D54,1),(INDEX(Data!$K$33:$K$82,$D54,1)+INDEX(Data!$L$33:$L$82,$D54,1)+INDEX(Data!$M$33:$M$82,$D54,1)+INDEX(Data!$N$33:$N$82,$D54,1))/(5*$E54)),"") -> 79 | K54: =IFERROR(INDEX(Data!$K$33:$K$82,$D54,1)/(5*$E54),"") -> 0.07391304348 | L54: =IFERROR(INDEX(Data!$L$33:$L$82,$D54,1)/(5*$E54),"") -> 0.09130434783 | M54: =IFERROR(INDEX(Data!$M$33:$M$82,$D54,1)/(5*$E54),"") -> 0.152173913 | N54: =IFERROR(INDEX(Data!$N$33:$N$82,$D54,1)/(5*$E54),"") -> 0.02608695652 | O54: 1 | P54: 9 | Q54: 95.2 | R54: 1 | S54: 10 | T54: 119 | U54: 1 | V54: 8 | W54: 194
B55: ='Report A'!$B56 -> 2014-07-25 | C55: ='Report A'!$C56 -> Friday | D55: ='Report A'!$D56 -> 25 | E55: =IFERROR(INDEX(Data!$J$33:$J$82,$D55,1),"") -> 46 | F55: =IFERROR(IF($G$16=TRUE,INDEX(Data!$K$33:$K$82,$D55,1),INDEX(Data!$K$33:$K$82,$D55,1)/$E55),"") -> 23 | G55: =IFERROR(IF($G$16=TRUE,INDEX(Data!$L$33:$L$82,$D55,1),INDEX(Data!$L$33:$L$82,$D55,1)/(2*$E55)),"") -> 23 | H55: =IFERROR(IF($G$16=TRUE,INDEX(Data!$M$33:$M$82,$D55,1),INDEX(Data!$M$33:$M$82,$D55,1)/$E55),"") -> 49 | I55: =IFERROR(IF($G$16=TRUE,INDEX(Data!$N$33:$N$82,$D55,1),INDEX(Data!$N$33:$N$82,$D55,1)/$E55),"") -> 6 | J55: =IFERROR(IF($G$16=TRUE,INDEX(Data!$K$33:$K$82,$D55,1)+INDEX(Data!$L$33:$L$82,$D55,1)+INDEX(Data!$M$33:$M$82,$D55,1)+INDEX(Data!$N$33:$N$82,$D55,1),(INDEX(Data!$K$33:$K$82,$D55,1)+INDEX(Data!$L$33:$L$82,$D55,1)+INDEX(Data!$M$33:$M$82,$D55,1)+INDEX(Data!$N$33:$N$82,$D55,1))/(5*$E55)),"") -> 101 | K55: =IFERROR(INDEX(Data!$K$33:$K$82,$D55,1)/(5*$E55),"") -> 0.1 | L55: =IFERROR(INDEX(Data!$L$33:$L$82,$D55,1)/(5*$E55),"") -> 0.1 | M55: =IFERROR(INDEX(Data!$M$33:$M$82,$D55,1)/(5*$E55),"") -> 0.2130434783 | N55: =IFERROR(INDEX(Data!$N$33:$N$82,$D55,1)/(5*$E55),"") -> 0.02608695652 | O55: 0 | R55: 1 | S55: 9 | T55: 134.1 | U55: 0
B56: ='Report A'!$B57 -> 2014-07-26 | C56: ='Report A'!$C57 -> Saturday | D56: ='Report A'!$D57 -> 26 | E56: =IFERROR(INDEX(Data!$J$33:$J$82,$D56,1),"") -> 46 | F56: =IFERROR(IF($G$16=TRUE,INDEX(Data!$K$33:$K$82,$D56,1),INDEX(Data!$K$33:$K$82,$D56,1)/$E56),"") -> 45 | G56: =IFERROR(IF($G$16=TRUE,INDEX(Data!$L$33:$L$82,$D56,1),INDEX(Data!$L$33:$L$82,$D56,1)/(2*$E56)),"") -> 51 | H56: =IFERROR(IF($G$16=TRUE,INDEX(Data!$M$33:$M$82,$D56,1),INDEX(Data!$M$33:$M$82,$D56,1)/$E56),"") -> 83 | I56: =IFERROR(IF($G$16=TRUE,INDEX(Data!$N$33:$N$82,$D56,1),INDEX(Data!$N$33:$N$82,$D56,1)/$E56),"") -> 9 | J56: =IFERROR(IF($G$16=TRUE,INDEX(Data!$K$33:$K$82,$D56,1)+INDEX(Data!$L$33:$L$82,$D56,1)+INDEX(Data!$M$33:$M$82,$D56,1)+INDEX(Data!$N$33:$N$82,$D56,1),(INDEX(Data!$K$33:$K$82,$D56,1)+INDEX(Data!$L$33:$L$82,$D56,1)+INDEX(Data!$M$33:$M$82,$D56,1)+INDEX(Data!$N$33:$N$82,$D56,1))/(5*$E56)),"") -> 188 | K56: =IFERROR(INDEX(Data!$K$33:$K$82,$D56,1)/(5*$E56),"") -> 0.1956521739 | L56: =IFERROR(INDEX(Data!$L$33:$L$82,$D56,1)/(5*$E56),"") -> 0.2217391304 | M56: =IFERROR(INDEX(Data!$M$33:$M$82,$D56,1)/(5*$E56),"") -> 0.3608695652 | N56: =IFERROR(INDEX(Data!$N$33:$N$82,$D56,1)/(5*$E56),"") -> 0.03913043478 | O56: 1 | P56: 27 | Q56: 596.7 | R56: 1 | S56: 33 | T56: 1094.4 | U56: 1 | V56: 26 | W56: 695.4
B57: ='Report A'!$B58 -> 2014-07-27 | C57: ='Report A'!$C58 -> Sunday + | D57: ='Report A'!$D58 -> 27 | E57: =IFERROR(INDEX(Data!$J$33:$J$82,$D57,1),"") -> 46 | F57: =IFERROR(IF($G$16=TRUE,INDEX(Data!$K$33:$K$82,$D57,1),INDEX(Data!$K$33:$K$82,$D57,1)/$E57),"") -> 47 | G57: =IFERROR(IF($G$16=TRUE,INDEX(Data!$L$33:$L$82,$D57,1),INDEX(Data!$L$33:$L$82,$D57,1)/(2*$E57)),"") -> 47 | H57: =IFERROR(IF($G$16=TRUE,INDEX(Data!$M$33:$M$82,$D57,1),INDEX(Data!$M$33:$M$82,$D57,1)/$E57),"") -> 83 | I57: =IFERROR(IF($G$16=TRUE,INDEX(Data!$N$33:$N$82,$D57,1),INDEX(Data!$N$33:$N$82,$D57,1)/$E57),"") -> 15 | J57: =IFERROR(IF($G$16=TRUE,INDEX(Data!$K$33:$K$82,$D57,1)+INDEX(Data!$L$33:$L$82,$D57,1)+INDEX(Data!$M$33:$M$82,$D57,1)+INDEX(Data!$N$33:$N$82,$D57,1),(INDEX(Data!$K$33:$K$82,$D57,1)+INDEX(Data!$L$33:$L$82,$D57,1)+INDEX(Data!$M$33:$M$82,$D57,1)+INDEX(Data!$N$33:$N$82,$D57,1))/(5*$E57)),"") -> 192 | K57: =IFERROR(INDEX(Data!$K$33:$K$82,$D57,1)/(5*$E57),"") -> 0.2043478261 | L57: =IFERROR(INDEX(Data!$L$33:$L$82,$D57,1)/(5*$E57),"") -> 0.2043478261 | M57: =IFERROR(INDEX(Data!$M$33:$M$82,$D57,1)/(5*$E57),"") -> 0.3608695652 | N57: =IFERROR(INDEX(Data!$N$33:$N$82,$D57,1)/(5*$E57),"") -> 0.0652173913 | O57: 1 | P57: 35 | Q57: 709.1 | R57: 1 | S57: 28 | T57: 633 | U57: 1 | V57: 16 | W57: 273
B58: ='Report A'!$B59 -> 2014-07-28 | C58: ='Report A'!$C59 -> Monday ++ | D58: ='Report A'!$D59 -> 28 | E58: =IFERROR(INDEX(Data!$J$33:$J$82,$D58,1),"") -> 46 | F58: =IFERROR(IF($G$16=TRUE,INDEX(Data!$K$33:$K$82,$D58,1),INDEX(Data!$K$33:$K$82,$D58,1)/$E58),"") -> 46 | G58: =IFERROR(IF($G$16=TRUE,INDEX(Data!$L$33:$L$82,$D58,1),INDEX(Data!$L$33:$L$82,$D58,1)/(2*$E58)),"") -> 46 | H58: =IFERROR(IF($G$16=TRUE,INDEX(Data!$M$33:$M$82,$D58,1),INDEX(Data!$M$33:$M$82,$D58,1)/$E58),"") -> 76 | I58: =IFERROR(IF($G$16=TRUE,INDEX(Data!$N$33:$N$82,$D58,1),INDEX(Data!$N$33:$N$82,$D58,1)/$E58),"") -> 9 | J58: =IFERROR(IF($G$16=TRUE,INDEX(Data!$K$33:$K$82,$D58,1)+INDEX(Data!$L$33:$L$82,$D58,1)+INDEX(Data!$M$33:$M$82,$D58,1)+INDEX(Data!$N$33:$N$82,$D58,1),(INDEX(Data!$K$33:$K$82,$D58,1)+INDEX(Data!$L$33:$L$82,$D58,1)+INDEX(Data!$M$33:$M$82,$D58,1)+INDEX(Data!$N$33:$N$82,$D58,1))/(5*$E58)),"") -> 177 | K58: =IFERROR(INDEX(Data!$K$33:$K$82,$D58,1)/(5*$E58),"") -> 0.2 | L58: =IFERROR(INDEX(Data!$L$33:$L$82,$D58,1)/(5*$E58),"") -> 0.2 | M58: =IFERROR(INDEX(Data!$M$33:$M$82,$D58,1)/(5*$E58),"") -> 0.3304347826 | N58: =IFERROR(INDEX(Data!$N$33:$N$82,$D58,1)/(5*$E58),"") -> 0.03913043478 | O58: 1 | P58: 16 | Q58: 952 | R58: 1 | S58: 20 | T58: 351 | U58: 1 | V58: 15 | W58: 329.6
B59: ='Report A'!$B60 -> 2014-07-29 | C59: ='Report A'!$C60 -> Tuesday ++ | D59: ='Report A'!$D60 -> 29 | E59: =IFERROR(INDEX(Data!$J$33:$J$82,$D59,1),"") -> 46 | F59: =IFERROR(IF($G$16=TRUE,INDEX(Data!$K$33:$K$82,$D59,1),INDEX(Data!$K$33:$K$82,$D59,1)/$E59),"") -> 46 | G59: =IFERROR(IF($G$16=TRUE,INDEX(Data!$L$33:$L$82,$D59,1),INDEX(Data!$L$33:$L$82,$D59,1)/(2*$E59)),"") -> 46 | H59: =IFERROR(IF($G$16=TRUE,INDEX(Data!$M$33:$M$82,$D59,1),INDEX(Data!$M$33:$M$82,$D59,1)/$E59),"") -> 74 | I59: =IFERROR(IF($G$16=TRUE,INDEX(Data!$N$33:$N$82,$D59,1),INDEX(Data!$N$33:$N$82,$D59,1)/$E59),"") -> 9 | J59: =IFERROR(IF($G$16=TRUE,INDEX(Data!$K$33:$K$82,$D59,1)+INDEX(Data!$L$33:$L$82,$D59,1)+INDEX(Data!$M$33:$M$82,$D59,1)+INDEX(Data!$N$33:$N$82,$D59,1),(INDEX(Data!$K$33:$K$82,$D59,1)+INDEX(Data!$L$33:$L$82,$D59,1)+INDEX(Data!$M$33:$M$82,$D59,1)+INDEX(Data!$N$33:$N$82,$D59,1))/(5*$E59)),"") -> 175 | K59: =IFERROR(INDEX(Data!$K$33:$K$82,$D59,1)/(5*$E59),"") -> 0.2 | L59: =IFERROR(INDEX(Data!$L$33:$L$82,$D59,1)/(5*$E59),"") -> 0.2 | M59: =IFERROR(INDEX(Data!$M$33:$M$82,$D59,1)/(5*$E59),"") -> 0.3217391304 | N59: =IFERROR(INDEX(Data!$N$33:$N$82,$D59,1)/(5*$E59),"") -> 0.03913043478 | O59: 1 | P59: 16 | Q59: 250.8 | R59: 1 | S59: 34 | T59: 736.4 | U59: 1 | V59: 15 | W59: 185.6
B60: ='Report A'!$B61 -> 2014-07-30 | C60: ='Report A'!$C61 -> Wednesday | D60: ='Report A'!$D61 -> 30 | E60: =IFERROR(INDEX(Data!$J$33:$J$82,$D60,1),"") -> 46 | F60: =IFERROR(IF($G$16=TRUE,INDEX(Data!$K$33:$K$82,$D60,1),INDEX(Data!$K$33:$K$82,$D60,1)/$E60),"") -> 42 | G60: =IFERROR(IF($G$16=TRUE,INDEX(Data!$L$33:$L$82,$D60,1),INDEX(Data!$L$33:$L$82,$D60,1)/(2*$E60)),"") -> 47 | H60: =IFERROR(IF($G$16=TRUE,INDEX(Data!$M$33:$M$82,$D60,1),INDEX(Data!$M$33:$M$82,$D60,1)/$E60),"") -> 51 | I60: =IFERROR(IF($G$16=TRUE,INDEX(Data!$N$33:$N$82,$D60,1),INDEX(Data!$N$33:$N$82,$D60,1)/$E60),"") -> 10 | J60: =IFERROR(IF($G$16=TRUE,INDEX(Data!$K$33:$K$82,$D60,1)+INDEX(Data!$L$33:$L$82,$D60,1)+INDEX(Data!$M$33:$M$82,$D60,1)+INDEX(Data!$N$33:$N$82,$D60,1),(INDEX(Data!$K$33:$K$82,$D60,1)+INDEX(Data!$L$33:$L$82,$D60,1)+INDEX(Data!$M$33:$M$82,$D60,1)+INDEX(Data!$N$33:$N$82,$D60,1))/(5*$E60)),"") -> 150 | K60: =IFERROR(INDEX(Data!$K$33:$K$82,$D60,1)/(5*$E60),"") -> 0.1826086957 | L60: =IFERROR(INDEX(Data!$L$33:$L$82,$D60,1)/(5*$E60),"") -> 0.2043478261 | M60: =IFERROR(INDEX(Data!$M$33:$M$82,$D60,1)/(5*$E60),"") -> 0.2217391304 | N60: =IFERROR(INDEX(Data!$N$33:$N$82,$D60,1)/(5*$E60),"") -> 0.04347826087 | O60: 1 | P60: 20 | Q60: 316 | R60: 1 | S60: 11 | T60: 140.4 | U60: 1 | V60: 5 | W60: 49.5
B61: ='Report A'!$B62 -> 2014-07-31 | C61: ='Report A'!$C62 -> Thursday | D61: ='Report A'!$D62 -> 31 | E61: =IFERROR(INDEX(Data!$J$33:$J$82,$D61,1),"") -> 46 | F61: =IFERROR(IF($G$16=TRUE,INDEX(Data!$K$33:$K$82,$D61,1),INDEX(Data!$K$33:$K$82,$D61,1)/$E61),"") -> 44 | G61: =IFERROR(IF($G$16=TRUE,INDEX(Data!$L$33:$L$82,$D61,1),INDEX(Data!$L$33:$L$82,$D61,1)/(2*$E61)),"") -> 40 | H61: =IFERROR(IF($G$16=TRUE,INDEX(Data!$M$33:$M$82,$D61,1),INDEX(Data!$M$33:$M$82,$D61,1)/$E61),"") -> 35 | I61: =IFERROR(IF($G$16=TRUE,INDEX(Data!$N$33:$N$82,$D61,1),INDEX(Data!$N$33:$N$82,$D61,1)/$E61),"") -> 10 | J61: =IFERROR(IF($G$16=TRUE,INDEX(Data!$K$33:$K$82,$D61,1)+INDEX(Data!$L$33:$L$82,$D61,1)+INDEX(Data!$M$33:$M$82,$D61,1)+INDEX(Data!$N$33:$N$82,$D61,1),(INDEX(Data!$K$33:$K$82,$D61,1)+INDEX(Data!$L$33:$L$82,$D61,1)+INDEX(Data!$M$33:$M$82,$D61,1)+INDEX(Data!$N$33:$N$82,$D61,1))/(5*$E61)),"") -> 129 | K61: =IFERROR(INDEX(Data!$K$33:$K$82,$D61,1)/(5*$E61),"") -> 0.1913043478 | L61: =IFERROR(INDEX(Data!$L$33:$L$82,$D61,1)/(5*$E61),"") -> 0.1739130435 | M61: =IFERROR(INDEX(Data!$M$33:$M$82,$D61,1)/(5*$E61),"") -> 0.152173913 | N61: =IFERROR(INDEX(Data!$N$33:$N$82,$D61,1)/(5*$E61),"") -> 0.04347826087 | O61: 1 | P61: 4 | Q61: 40 | R61: 1 | S61: 29 | T61: 508.3 | U61: 1 | V61: 16 | W61: 303.4

Sheet Report C
C3: MONTHLY SALES REPORTING BY OUTLET
B6: SUBJECT | C6: REPORT C : PAX BY CATEGORY AND AVERAGE PAX PER ROOM
B8: OUTLET | C8: =Data!$C$8 -> TSU
B10: MONTH / YEAR | C10: =Data!$C$10 -> July 2014
B12: MENU
B14: DATE | C14: DAY | D14: ROW | E14: TOTAL PAX PER SESSION BY CATEGORY | J14: AVERAGE PAX PER ROOM BY ALL CATEGORY | O14: ="CHART : PAX BY "&$G$15&" ( CATEGORY ) AND AVERAGE PAX PER ROOM" -> CHART : PAX BY STUDENT ( CATEGORY ) AND AVERAGE PAX PER ROOM
E15: CHOOSE CATEGORY | G15: STUDENT
E16: NOON K | F16: HAPPY | G16: NORMAL | H16: MIDNIGHT | I16: ALL | J16: NOON K | K16: HAPPY | L16: NORMAL | M16: MIDNIGHT | N16: ALL
E17: ( pax ) | F17: ( pax ) | G17: ( pax ) | H17: ( pax ) | I17: ( pax ) | J17: ( pax ) | K17: ( pax ) | L17: ( pax ) | M17: ( pax ) | N17: ( pax )
B18: SUMMARY FOR MONTH | O18: LEGEND
B20: TOTAL PAX | E20: =SUM(E$31:E$61) -> 0 | F20: =SUM(F$31:F$61) -> 309 | G20: 0 | H20: 0 | I20: 309 | J20: 112.1491316 | K20: 120.4893551 | L20: 107.8745483 | M20: 139.1012279 | N20: 114.8527321
B21: AVERAGE PAX | E21: =IFERROR(SUM(E$31:E$61)/COUNTIF($D$31:$D$61,">0"),"") -> 0 | F21: =IFERROR(SUM(F$31:F$61)/COUNTIF($D$31:$D$61,">0"),"") -> 9.967741935 | G21: 0 | H21: 0 | I21: 9.967741935 | J21: 3.617713923 | K21: 3.886753391 | L21: 3.479824138 | M21: 4.487136385 | N21: 3.704926841
B22: HIGHEST PAX | E22: =IFERROR(IF(LARGE(E$31:E$61,1)>0,LARGE(E$31:E$61,1),"NIL"),"NIL") -> NIL | F22: 66 | G22: NIL | H22: NIL | I22: 66 | J22: 5.625 | K22: 5 | L22: 4.277108434 | M22: 6 | N22: 4.519379845
B23: LOWEST PAX | E23: =IFERROR(IF(LARGE(E$31:E$61,COUNTIF(E$31:E$61,">0"))<>E$22,LARGE(E$31:E$61,COUNTIF(E$31:E$61,">0")),"NIL"),"NIL") -> NIL | F23: 3 | G23: NIL | H23: NIL | I23: 3 | J23: 2.533333333 | K23: 2.9 | L23: 2.542857143 | M23: 1.111111111 | N23: 3.225352113
B24: AVERAGE FOR | C24: MONDAY | E24: =IFERROR(SUMIF($C$31:$C$61,"Monday*",E$31:E$61)/COUNTIF($C$31:$C$61,"Monday*"),"") -> 0 | F24: =IFERROR(SUMIF($C$31:$C$61,"Monday*",F$31:F$61)/COUNTIF($C$31:$C$61,"Monday*"),"") -> 13.5 | G24: 0 | H24: 0 | I24: 13.5 | J24: 3.552854691 | K24: 3.961823201 | L24: 3.600986605 | M24: 4.121212121 | N24: 3.784127479
C25: TUESDAY | E25: =IFERROR(SUMIF($C$31:$C$61,"Tuesday*",E$31:E$61)/COUNTIF($C$31:$C$61,"Tuesday*"),"") -> 0 | F25: =IFERROR(SUMIF($C$31:$C$61,"Tuesday*",F$31:F$61)/COUNTIF($C$31:$C$61,"Tuesday*"),"") -> 5.6 | G25: 0 | H25: 0 | I25: 5.6 | J25: 3.513190131 | K25: 3.231732138 | L25: 3.305890092 | M25: 4.857323232 | N25: 3.474278868
C26: WEDNESDAY | E26: =IFERROR(SUMIF($C$31:$C$61,"Wednesday*",E$31:E$61)/COUNTIF($C$31:$C$61,"Wednesday*"),"") -> 0 | F26: =IFERROR(SUMIF($C$31:$C$61,"Wednesday*",F$31:F$61)/COUNTIF($C$31:$C$61,"Wednesday*"),"") -> 23.2 | G26: 0 | H26: 0 | I26: 23.2 | J26: 3.41725003 | K26: 4.275278907 | L26: 3.09767349 | M26: 5.116666667 | N26: 3.652733426
C27: THURSDAY | E27: =IFERROR(SUMIF($C$31:$C$61,"Thursday*",E$31:E$61)/COUNTIF($C$31:$C$61,"Thursday*"),"") -> 0 | F27: =IFERROR(SUMIF($C$31:$C$61,"Thursday*",F$31:F$61)/COUNTIF($C$31:$C$61,"Thursday*"),"") -> 22.2 | G27: 0 | H27: 0 | I27: 22.2 | J27: 3.688379268 | K27: 4.445300752 | L27: 3.617321649 | M27: 4.924761905 | N27: 3.913721403
C28: FRIDAY | E28: =IFERROR(SUMIF($C$31:$C$61,"Friday*",E$31:E$61)/COUNTIF($C$31:$C$61,"Friday*"),"") -> 0 | F28: =IFERROR(SUMIF($C$31:$C$61,"Friday*",F$31:F$61)/COUNTIF($C$31:$C$61,"Friday*"),"") -> 0 | G28: 0 | H28: 0 | I28: 0 | J28: 4.096869968 | K28: 4.010943425 | L28: 3.53608631 | M28: 2.886111111 | N28: 3.741320912
C29: SATURDAY | E29: =IFERROR(SUMIF($C$31:$C$61,"Saturday*",E$31:E$61)/COUNTIF($C$31:$C$61,"Saturday*"),"") -> 0 | F29: =IFERROR(SUMIF($C$31:$C$61,"Saturday*",F$31:F$61)/COUNTIF($C$31:$C$61,"Saturday*"),"") -> 0 | G29: 0 | H29: 0 | I29: 0 | J29: 3.642169595 | K29: 3.729832025 | L29: 3.977013381 | M29: 4.379139957 | N29: 3.862808976
C30: SUNDAY | E30: =IFERROR(SUMIF($C$31:$C$61,"Sunday*",E$31:E$61)/COUNTIF($C$31:$C$61,"Sunday*"),"") -> 0 | F30: =IFERROR(SUMIF($C$31:$C$61,"Sunday*",F$31:F$61)/COUNTIF($C$31:$C$61,"Sunday*"),"") -> 0 | G30: 0 | H30: 0 | I30: 0 | J30: 3.471864362 | K30: 3.479350384 | L30: 3.328444234 | M30: 4.76540404 | N30: 3.524008526
B31: ='Report A'!$B32 -> 2014-07-01 | C31: ='Report A'!$C32 -> Tuesday | D31: ='Report A'!$D32 -> 1 | E31: =IFERROR(IF($G$15="ALL",SUMIFS(INDIRECT("Data!$AI$"&$D31+32&":$AS$"&$D31+32),Data!$AI$30:$AS$30,E$16),SUMIFS(INDIRECT("Data!$AI$"&$D31+32&":$AS$"&$D31+32),Data!$AI$30:$AS$30,E$16,Data!$AI$31:$AS$31,$G$15)),"") -> 0 | F31: =IFERROR(IF($G$15="ALL",SUMIFS(INDIRECT("Data!$AI$"&$D31+32&":$AS$"&$D31+32),Data!$AI$30:$AS$30,F$16),SUMIFS(INDIRECT("Data!$AI$"&$D31+32&":$AS$"&$D31+32),Data!$AI$30:$AS$30,F$16,Data!$AI$31:$AS$31,$G$15)),"") -> 18 | G31: =IFERROR(IF($G$15="ALL",SUMIFS(INDIRECT("Data!$AI$"&$D31+32&":$AS$"&$D31+32),Data!$AI$30:$AS$30,G$16),SUMIFS(INDIRECT("Data!$AI$"&$D31+32&":$AS$"&$D31+32),Data!$AI$30:$AS$30,G$16,Data!$AI$31:$AS$31,$G$15)),"") -> 0 | H31: =IFERROR(IF($G$15="ALL",SUMIFS(INDIRECT("Data!$AI$"&$D31+32&":$AS$"&$D31+32),Data!$AI$30:$AS$30,H$16),SUMIFS(INDIRECT("Data!$AI$"&$D31+32&":$AS$"&$D31+32),Data!$AI$30:$AS$30,H$16,Data!$AI$31:$AS$31,$G$15)),"") -> 0 | I31: =IFERROR(SUM($E31:$H31),"") -> 18 | J31: =IFERROR((SUMIFS(INDIRECT("Data!$AI$"&$D31+32&":$AS$"&$D31+32),Data!$AI$30:$AS$30,J$16))/(INDEX(Data!$K$33:$K$82,$D31,1)),"") -> 2.928571429 | K31: =IFERROR((SUMIFS(INDIRECT("Data!$AI$"&$D31+32&":$AS$"&$D31+32),Data!$AI$30:$AS$30,K$16))/(INDEX(Data!$L$33:$L$82,$D31,1)),"") -> 3.947368421 | L31: =IFERROR((SUMIFS(INDIRECT("Data!$AI$"&$D31+32&":$AS$"&$D31+32),Data!$AI$30:$AS$30,L$16))/(INDEX(Data!$M$33:$M$82,$D31,1)),"") -> 2.916666667 | M31: =IFERROR((SUMIFS(INDIRECT("Data!$AI$"&$D31+32&":$AS$"&$D31+32),Data!$AI$30:$AS$30,M$16))/(INDEX(Data!$N$33:$N$82,$D31,1)),"") -> 5.375 | N31: =IFERROR((SUM(INDIRECT("Data!$AI$"&$D31+32&":$AS$"&$D31+32)))/(INDEX(Data!$K$33:$K$82,$D31,1)+INDEX(Data!$L$33:$L$82,$D31,1)+INDEX(Data!$M$33:$M$82,$D31,1)+INDEX(Data!$N$33:$N$82,$D31,1)),"") -> 3.428571429
B32: ='Report A'!$B33 -> 2014-07-02 | C32: ='Report A'!$C33 -> Wednesday | D32: ='Report A'!$D33 -> 2 | E32: =IFERROR(IF($G$15="ALL",SUMIFS(INDIRECT("Data!$AI$"&$D32+32&":$AS$"&$D32+32),Data!$AI$30:$AS$30,E$16),SUMIFS(INDIRECT("Data!$AI$"&$D32+32&":$AS$"&$D32+32),Data!$AI$30:$AS$30,E$16,Data!$AI$31:$AS$31,$G$15)),"") -> 0 | F32: =IFERROR(IF($G$15="ALL",SUMIFS(INDIRECT("Data!$AI$"&$D32+32&":$AS$"&$D32+32),Data!$AI$30:$AS$30,F$16),SUMIFS(INDIRECT("Data!$AI$"&$D32+32&":$AS$"&$D32+32),Data!$AI$30:$AS$30,F$16,Data!$AI$31:$AS$31,$G$15)),"") -> 23 | G32: =IFERROR(IF($G$15="ALL",SUMIFS(INDIRECT("Data!$AI$"&$D32+32&":$AS$"&$D32+32),Data!$AI$30:$AS$30,G$16),SUMIFS(INDIRECT("Data!$AI$"&$D32+32&":$AS$"&$D32+32),Data!$AI$30:$AS$30,G$16,Data!$AI$31:$AS$31,$G$15)),"") -> 0 | H32: =IFERROR(IF($G$15="ALL",SUMIFS(INDIRECT("Data!$AI$"&$D32+32&":$AS$"&$D32+32),Data!$AI$30:$AS$30,H$16),SUMIFS(INDIRECT("Data!$AI$"&$D32+32&":$AS$"&$D32+32),Data!$AI$30:$AS$30,H$16,Data!$AI$31:$AS$31,$G$15)),"") -> 0 | I32: =IFERROR(SUM($E32:$H32),"") -> 23 | J32: =IFERROR((SUMIFS(INDIRECT("Data!$AI$"&$D32+32&":$AS$"&$D32+32),Data!$AI$30:$AS$30,J$16))/(INDEX(Data!$K$33:$K$82,$D32,1)),"") -> 2.533333333 | K32: =IFERROR((SUMIFS(INDIRECT("Data!$AI$"&$D32+32&":$AS$"&$D32+32),Data!$AI$30:$AS$30,K$16))/(INDEX(Data!$L$33:$L$82,$D32,1)),"") -> 5 | L32: =IFERROR((SUMIFS(INDIRECT("Data!$AI$"&$D32+32&":$AS$"&$D32+32),Data!$AI$30:$AS$30,L$16))/(INDEX(Data!$M$33:$M$82,$D32,1)),"") -> 2.542857143 | M32: =IFERROR((SUMIFS(INDIRECT("Data!$AI$"&$D32+32&":$AS$"&$D32+32),Data!$AI$30:$AS$30,M$16))/(INDEX(Data!$N$33:$N$82,$D32,1)),"") -> 4.25 | N32: =IFERROR((SUM(INDIRECT("Data!$AI$"&$D32+32&":$AS$"&$D32+32)))/(INDEX(Data!$K$33:$K$82,$D32,1)+INDEX(Data!$L$33:$L$82,$D32,1)+INDEX(Data!$M$33:$M$82,$D32,1)+INDEX(Data!$N$33:$N$82,$D32,1)),"") -> 3.225352113
B33: ='Report A'!$B34 -> 2014-07-03 | C33: ='Report A'!$C34 -> Thursday | D33: ='Report A'!$D34 -> 3 | E33: =IFERROR(IF($G$15="ALL",SUMIFS(INDIRECT("Data!$AI$"&$D33+32&":$AS$"&$D33+32),Data!$AI$30:$AS$30,E$16),SUMIFS(INDIRECT("Data!$AI$"&$D33+32&":$AS$"&$D33+32),Data!$AI$30:$AS$30,E$16,Data!$AI$31:$AS$31,$G$15)),"") -> 0 | F33: =IFERROR(IF($G$15="ALL",SUMIFS(INDIRECT("Data!$AI$"&$D33+32&":$AS$"&$D33+32),Data!$AI$30:$AS$30,F$16),SUMIFS(INDIRECT("Data!$AI$"&$D33+32&":$AS$"&$D33+32),Data!$AI$30:$AS$30,F$16,Data!$AI$31:$AS$31,$G$15)),"") -> 16 | G33: =IFERROR(IF($G$15="ALL",SUMIFS(INDIRECT("Data!$AI$"&$D33+32&":$AS$"&$D33+32),Data!$AI$30:$AS$30,G$16),SUMIFS(INDIRECT("Data!$AI$"&$D33+32&":$AS$"&$D33+32),Data!$AI$30:$AS$30,G$16,Data!$AI$31:$AS$31,$G$15)),"") -> 0 | H33: =IFERROR(IF($G$15="ALL",SUMIFS(INDIRECT("Data!$AI$"&$D33+32&":$AS$"&$D33+32),Data!$AI$30:$AS$30,H$16),SUMIFS(INDIRECT("Data!$AI$"&$D33+32&":$AS$"&$D33+32),Data!$AI$30:$AS$30,H$16,Data!$AI$31:$AS$31,$G$15)),"") -> 0 | I33: 16 | J33: =IFERROR((SUMIFS(INDIRECT("Data!$AI$"&$D33+32&":$AS$"&$D33+32),Data!$AI$30:$AS$30,J$16))/(INDEX(Data!$K$33:$K$82,$D33,1)),"") -> 3.230769231 | K33: =IFERROR((SUMIFS(INDIRECT("Data!$AI$"&$D33+32&":$AS$"&$D33+32),Data!$AI$30:$AS$30,K$16))/(INDEX(Data!$L$33:$L$82,$D33,1)),"") -> 4.315789474 | L33: =IFERROR((SUMIFS(INDIRECT("Data!$AI$"&$D33+32&":$AS$"&$D33+32),Data!$AI$30:$AS$30,L$16))/(INDEX(Data!$M$33:$M$82,$D33,1)),"") -> 3.745454545 | M33: =IFERROR((SUMIFS(INDIRECT("Data!$AI$"&$D33+32&":$AS$"&$D33+32),Data!$AI$30:$AS$30,M$16))/(INDEX(Data!$N$33:$N$82,$D33,1)),"") -> 5.75 | N33: =IFERROR((SUM(INDIRECT("Data!$AI$"&$D33+32&":$AS$"&$D33+32)))/(INDEX(Data!$K$33:$K$82,$D33,1)+INDEX(Data!$L$33:$L$82,$D33,1)+INDEX(Data!$M$33:$M$82,$D33,1)+INDEX(Data!$N$33:$N$82,$D33,1)),"") -> 3.879120879
B34: ='Report A'!$B35 -> 2014-07-04 | C34: ='Report A'!$C35 -> Friday | D34: ='Report A'!$D35 -> 4 | E34: =IFERROR(IF($G$15="ALL",SUMIFS(INDIRECT("Data!$AI$"&$D34+32&":$AS$"&$D34+32),Data!$AI$30:$AS$30,E$16),SUMIFS(INDIRECT("Data!$AI$"&$D34+32&":$AS$"&$D34+32),Data!$AI$30:$AS$30,E$16,Data!$AI$31:$AS$31,$G$15)),"") -> 0 | F34: =IFERROR(IF($G$15="ALL",SUMIFS(INDIRECT("Data!$AI$"&$D34+32&":$AS$"&$D34+32),Data!$AI$30:$AS$30,F$16),SUMIFS(INDIRECT("Data!$AI$"&$D34+32&":$AS$"&$D34+32),Data!$AI$30:$AS$30,F$16,Data!$AI$31:$AS$31,$G$15)),"") -> 0 | G34: =IFERROR(IF($G$15="ALL",SUMIFS(INDIRECT("Data!$AI$"&$D34+32&":$AS$"&$D34+32),Data!$AI$30:$AS$30,G$16),SUMIFS(INDIRECT("Data!$AI$"&$D34+32&":$AS$"&$D34+32),Data!$AI$30:$AS$30,G$16,Data!$AI$31:$AS$31,$G$15)),"") -> 0 | H34: =IFERROR(IF($G$15="ALL",SUMIFS(INDIRECT("Data!$AI$"&$D34+32&":$AS$"&$D34+32),Data!$AI$30:$AS$30,H$16),SUMIFS(INDIRECT("Data!$AI$"&$D34+32&":$AS$"&$D34+32),Data!$AI$30:$AS$30,H$16,Data!$AI$31:$AS$31,$G$15)),"") -> 0 | I34: 0 | J34: =IFERROR((SUMIFS(INDIRECT("Data!$AI$"&$D34+32&":$AS$"&$D34+32),Data!$AI$30:$AS$30,J$16))/(INDEX(Data!$K$33:$K$82,$D34,1)),"") -> 3.5 | K34: =IFERROR((SUMIFS(INDIRECT("Data!$AI$"&$D34+32&":$AS$"&$D34+32),Data!$AI$30:$AS$30,K$16))/(INDEX(Data!$L$33:$L$82,$D34,1)),"") -> 4.068965517 | L34: =IFERROR((SUMIFS(INDIRECT("Data!$AI$"&$D34+32&":$AS$"&$D34+32),Data!$AI$30:$AS$30,L$16))/(INDEX(Data!$M$33:$M$82,$D34,1)),"") -> 3.390625 | M34: =IFERROR((SUMIFS(INDIRECT("Data!$AI$"&$D34+32&":$AS$"&$D34+32),Data!$AI$30:$AS$30,M$16))/(INDEX(Data!$N$33:$N$82,$D34,1)),"") -> 3 | N34: =IFERROR((SUM(INDIRECT("Data!$AI$"&$D34+32&":$AS$"&$D34+32)))/(INDEX(Data!$K$33:$K$82,$D34,1)+INDEX(Data!$L$33:$L$82,$D34,1)+INDEX(Data!$M$33:$M$82,$D34,1)+INDEX(Data!$N$33:$N$82,$D34,1)),"") -> 3.556451613
B35: ='Report A'!$B36 -> 2014-07-05 | C35: ='Report A'!$C36 -> Saturday | D35: ='Report A'!$D36 -> 5 | E35: =IFERROR(IF($G$15="ALL",SUMIFS(INDIRECT("Data!$AI$"&$D35+32&":$AS$"&$D35+32),Data!$AI$30:$AS$30,E$16),SUMIFS(INDIRECT("Data!$AI$"&$D35+32&":$AS$"&$D35+32),Data!$AI$30:$AS$30,E$16,Data!$AI$31:$AS$31,$G$15)),"") -> 0 | F35: =IFERROR(IF($G$15="ALL",SUMIFS(INDIRECT("Data!$AI$"&$D35+32&":$AS$"&$D35+32),Data!$AI$30:$AS$30,F$16),SUMIFS(INDIRECT("Data!$AI$"&$D35+32&":$AS$"&$D35+32),Data!$AI$30:$AS$30,F$16,Data!$AI$31:$AS$31,$G$15)),"") -> 0 | G35: =IFERROR(IF($G$15="ALL",SUMIFS(INDIRECT("Data!$AI$"&$D35+32&":$AS$"&$D35+32),Data!$AI$30:$AS$30,G$16),SUMIFS(INDIRECT("Data!$AI$"&$D35+32&":$AS$"&$D35+32),Data!$AI$30:$AS$30,G$16,Data!$AI$31:$AS$31,$G$15)),"") -> 0 | H35: =IFERROR(IF($G$15="ALL",SUMIFS(INDIRECT("Data!$AI$"&$D35+32&":$AS$"&$D35+32),Data!$AI$30:$AS$30,H$16),SUMIFS(INDIRECT("Data!$AI$"&$D35+32&":$AS$"&$D35+32),Data!$AI$30:$AS$30,H$16,Data!$AI$31:$AS$31,$G$15)),"") -> 0 | I35: 0 | J35: =IFERROR((SUMIFS(INDIRECT("Data!$AI$"&$D35+32&":$AS$"&$D35+32),Data!$AI$30:$AS$30,J$16))/(INDEX(Data!$K$33:$K$82,$D35,1)),"") -> 3.828571429 | K35: =IFERROR((SUMIFS(INDIRECT("Data!$AI$"&$D35+32&":$AS$"&$D35+32),Data!$AI$30:$AS$30,K$16))/(INDEX(Data!$L$33:$L$82,$D35,1)),"") -> 4.244444444 | L35: =IFERROR((SUMIFS(INDIRECT("Data!$AI$"&$D35+32&":$AS$"&$D35+32),Data!$AI$30:$AS$30,L$16))/(INDEX(Data!$M$33:$M$82,$D35,1)),"") -> 3.732394366 | M35: =IFERROR((SUMIFS(INDIRECT("Data!$AI$"&$D35+32&":$AS$"&$D35+32),Data!$AI$30:$AS$30,M$16))/(INDEX(Data!$N$33:$N$82,$D35,1)),"") -> 4.388888889 | N35: =IFERROR((SUM(INDIRECT("Data!$AI$"&$D35+32&":$AS$"&$D35+32)))/(INDEX(Data!$K$33:$K$82,$D35,1)+INDEX(Data!$L$33:$L$82,$D35,1)+INDEX(Data!$M$33:$M$82,$D35,1)+INDEX(Data!$N$33:$N$82,$D35,1)),"") -> 3.958579882
B36: ='Report A'!$B37 -> 2014-07-06 | C36: ='Report A'!$C37 -> Sunday | D36: ='Report A'!$D37 -> 6 | E36: =IFERROR(IF($G$15="ALL",SUMIFS(INDIRECT("Data!$AI$"&$D36+32&":$AS$"&$D36+32),Data!$AI$30:$AS$30,E$16),SUMIFS(INDIRECT("Data!$AI$"&$D36+32&":$AS$"&$D36+32),Data!$AI$30:$AS$30,E$16,Data!$AI$31:$AS$31,$G$15)),"") -> 0 | F36: =IFERROR(IF($G$15="ALL",SUMIFS(INDIRECT("Data!$AI$"&$D36+32&":$AS$"&$D36+32),Data!$AI$30:$AS$30,F$16),SUMIFS(INDIRECT("Data!$AI$"&$D36+32&":$AS$"&$D36+32),Data!$AI$30:$AS$30,F$16,Data!$AI$31:$AS$31,$G$15)),"") -> 0 | G36: =IFERROR(IF($G$15="ALL",SUMIFS(INDIRECT("Data!$AI$"&$D36+32&":$AS$"&$D36+32),Data!$AI$30:$AS$30,G$16),SUMIFS(INDIRECT("Data!$AI$"&$D36+32&":$AS$"&$D36+32),Data!$AI$30:$AS$30,G$16,Data!$AI$31:$AS$31,$G$15)),"") -> 0 | H36: =IFERROR(IF($G$15="ALL",SUMIFS(INDIRECT("Data!$AI$"&$D36+32&":$AS$"&$D36+32),Data!$AI$30:$AS$30,H$16),SUMIFS(INDIRECT("Data!$AI$"&$D36+32&":$AS$"&$D36+32),Data!$AI$30:$AS$30,H$16,Data!$AI$31:$AS$31,$G$15)),"") -> 0 | I36: 0 | J36: =IFERROR((SUMIFS(INDIRECT("Data!$AI$"&$D36+32&":$AS$"&$D36+32),Data!$AI$30:$AS$30,J$16))/(INDEX(Data!$K$33:$K$82,$D36,1)),"") -> 3.264705882 | K36: =IFERROR((SUMIFS(INDIRECT("Data!$AI$"&$D36+32&":$AS$"&$D36+32),Data!$AI$30:$AS$30,K$16))/(INDEX(Data!$L$33:$L$82,$D36,1)),"") -> 3.387755102 | L36: =IFERROR((SUMIFS(INDIRECT("Data!$AI$"&$D36+32&":$AS$"&$D36+32),Data!$AI$30:$AS$30,L$16))/(INDEX(Data!$M$33:$M$82,$D36,1)),"") -> 3.097560976 | M36: =IFERROR((SUMIFS(INDIRECT("Data!$AI$"&$D36+32&":$AS$"&$D36+32),Data!$AI$30:$AS$30,M$16))/(INDEX(Data!$N$33:$N$82,$D36,1)),"") -> 5.3 | N36: =IFERROR((SUM(INDIRECT("Data!$AI$"&$D36+32&":$AS$"&$D36+32)))/(INDEX(Data!$K$33:$K$82,$D36,1)+INDEX(Data!$L$33:$L$82,$D36,1)+INDEX(Data!$M$33:$M$82,$D36,1)+INDEX(Data!$N$33:$N$82,$D36,1)),"") -> 3.410447761
B37: ='Report A'!$B38 -> 2014-07-07 | C37: ='Report A'!$C38 -> Monday | D37: ='Report A'!$D38 -> 7 | E37: =IFERROR(IF($G$15="ALL",SUMIFS(INDIRECT("Data!$AI$"&$D37+32&":$AS$"&$D37+32),Data!$AI$30:$AS$30,E$16),SUMIFS(INDIRECT("Data!$AI$"&$D37+32&":$AS$"&$D37+32),Data!$AI$30:$AS$30,E$16,Data!$AI$31:$AS$31,$G$15)),"") -> 0 | F37: =IFERROR(IF($G$15="ALL",SUMIFS(INDIRECT("Data!$AI$"&$D37+32&":$AS$"&$D37+32),Data!$AI$30:$AS$30,F$16),SUMIFS(INDIRECT("Data!$AI$"&$D37+32&":$AS$"&$D37+32),Data!$AI$30:$AS$30,F$16,Data!$AI$31:$AS$31,$G$15)),"") -> 19 | G37: =IFERROR(IF($G$15="ALL",SUMIFS(INDIRECT("Data!$AI$"&$D37+32&":$AS$"&$D37+32),Data!$AI$30:$AS$30,G$16),SUMIFS(INDIRECT("Data!$AI$"&$D37+32&":$AS$"&$D37+32),Data!$AI$30:$AS$30,G$16,Data!$AI$31:$AS$31,$G$15)),"") -> 0 | H37: =IFERROR(IF($G$15="ALL",SUMIFS(INDIRECT("Data!$AI$"&$D37+32&":$AS$"&$D37+32),Data!$AI$30:$AS$30,H$16),SUMIFS(INDIRECT("Data!$AI$"&$D37+32&":$AS$"&$D37+32),Data!$AI$30:$AS$30,H$16,Data!$AI$31:$AS$31,$G$15)),"") -> 0 | I37: 19 | J37: =IFERROR((SUMIFS(INDIRECT("Data!$AI$"&$D37+32&":$AS$"&$D37+32),Data!$AI$30:$AS$30,J$16))/(INDEX(Data!$K$33:$K$82,$D37,1)),"") -> 3.32 | K37: =IFERROR((SUMIFS(INDIRECT("Data!$AI$"&$D37+32&":$AS$"&$D37+32),Data!$AI$30:$AS$30,K$16))/(INDEX(Data!$L$33:$L$82,$D37,1)),"") -> 3.590909091 | L37: =IFERROR((SUMIFS(INDIRECT("Data!$AI$"&$D37+32&":$AS$"&$D37+32),Data!$AI$30:$AS$30,L$16))/(INDEX(Data!$M$33:$M$82,$D37,1)),"") -> 3.735294118 | M37: =IFERROR((SUMIFS(INDIRECT("Data!$AI$"&$D37+32&":$AS$"&$D37+32),Data!$AI$30:$AS$30,M$16))/(INDEX(Data!$N$33:$N$82,$D37,1)),"") -> 5.222222222 | N37: =IFERROR((SUM(INDIRECT("Data!$AI$"&$D37+32&":$AS$"&$D37+32)))/(INDEX(Data!$K$33:$K$82,$D37,1)+INDEX(Data!$L$33:$L$82,$D37,1)+INDEX(Data!$M$33:$M$82,$D37,1)+INDEX(Data!$N$33:$N$82,$D37,1)),"") -> 3.733870968
B38: ='Report A'!$B39 -> 2014-07-08 | C38: ='Report A'!$C39 -> Tuesday | D38: ='Report A'!$D39 -> 8 | E38: =IFERROR(IF($G$15="ALL",SUMIFS(INDIRECT("Data!$AI$"&$D38+32&":$AS$"&$D38+32),Data!$AI$30:$AS$30,E$16),SUMIFS(INDIRECT("Data!$AI$"&$D38+32&":$AS$"&$D38+32),Data!$AI$30:$AS$30,E$16,Data!$AI$31:$AS$31,$G$15)),"") -> 0 | F38: =IFERROR(IF($G$15="ALL",SUMIFS(INDIRECT("Data!$AI$"&$D38+32&":$AS$"&$D38+32),Data!$AI$30:$AS$30,F$16),SUMIFS(INDIRECT("Data!$AI$"&$D38+32&":$AS$"&$D38+32),Data!$AI$30:$AS$30,F$16,Data!$AI$31:$AS$31,$G$15)),"") -> 3 | G38: =IFERROR(IF($G$15="ALL",SUMIFS(INDIRECT("Data!$AI$"&$D38+32&":$AS$"&$D38+32),Data!$AI$30:$AS$30,G$16),SUMIFS(INDIRECT("Data!$AI$"&$D38+32&":$AS$"&$D38+32),Data!$AI$30:$AS$30,G$16,Data!$AI$31:$AS$31,$G$15)),"") -> 0 | H38: =IFERROR(IF($G$15="ALL",SUMIFS(INDIRECT("Data!$AI$"&$D38+32&":$AS$"&$D38+32),Data!$AI$30:$AS$30,H$16),SUMIFS(INDIRECT("Data!$AI$"&$D38+32&":$AS$"&$D38+32),Data!$AI$30:$AS$30,H$16,Data!$AI$31:$AS$31,$G$15)),"") -> 0 | I38: 3 | J38: =IFERROR((SUMIFS(INDIRECT("Data!$AI$"&$D38+32&":$AS$"&$D38+32),Data!$AI$30:$AS$30,J$16))/(INDEX(Data!$K$33:$K$82,$D38,1)),"") -> 3.777777778 | K38: =IFERROR((SUMIFS(INDIRECT("Data!$AI$"&$D38+32&":$AS$"&$D38+32),Data!$AI$30:$AS$30,K$16))/(INDEX(Data!$L$33:$L$82,$D38,1)),"") -> 3.0625 | L38: =IFERROR((SUMIFS(INDIRECT("Data!$AI$"&$D38+32&":$AS$"&$D38+32),Data!$AI$30:$AS$30,L$16))/(INDEX(Data!$M$33:$M$82,$D38,1)),"") -> 3.355932203 | M38: =IFERROR((SUMIFS(INDIRECT("Data!$AI$"&$D38+32&":$AS$"&$D38+32),Data!$AI$30:$AS$30,M$16))/(INDEX(Data!$N$33:$N$82,$D38,1)),"") -> 5.272727273 | N38: =IFERROR((SUM(INDIRECT("Data!$AI$"&$D38+32&":$AS$"&$D38+32)))/(INDEX(Data!$K$33:$K$82,$D38,1)+INDEX(Data!$L$33:$L$82,$D38,1)+INDEX(Data!$M$33:$M$82,$D38,1)+INDEX(Data!$N$33:$N$82,$D38,1)),"") -> 3.568421053
B39: ='Report A'!$B40 -> 2014-07-09 | C39: ='Report A'!$C40 -> Wednesday | D39: ='Report A'!$D40 -> 9 | E39: =IFERROR(IF($G$15="ALL",SUMIFS(INDIRECT("Data!$AI$"&$D39+32&":$AS$"&$D39+32),Data!$AI$30:$AS$30,E$16),SUMIFS(INDIRECT("Data!$AI$"&$D39+32&":$AS$"&$D39+32),Data!$AI$30:$AS$30,E$16,Data!$AI$31:$AS$31,$G$15)),"") -> 0 | F39: =IFERROR(IF($G$15="ALL",SUMIFS(INDIRECT("Data!$AI$"&$D39+32&":$AS$"&$D39+32),Data!$AI$30:$AS$30,F$16),SUMIFS(INDIRECT("Data!$AI$"&$D39+32&":$AS$"&$D39+32),Data!$AI$30:$AS$30,F$16,Data!$AI$31:$AS$31,$G$15)),"") -> 13 | G39: =IFERROR(IF($G$15="ALL",SUMIFS(INDIRECT("Data!$AI$"&$D39+32&":$AS$"&$D39+32),Data!$AI$30:$AS$30,G$16),SUMIFS(INDIRECT("Data!$AI$"&$D39+32&":$AS$"&$D39+32),Data!$AI$30:$AS$30,G$16,Data!$AI$31:$AS$31,$G$15)),"") -> 0 | H39: =IFERROR(IF($G$15="ALL",SUMIFS(INDIRECT("Data!$AI$"&$D39+32&":$AS$"&$D39+32),Data!$AI$30:$AS$30,H$16),SUMIFS(INDIRECT("Data!$AI$"&$D39+32&":$AS$"&$D39+32),Data!$AI$30:$AS$30,H$16,Data!$AI$31:$AS$31,$G$15)),"") -> 0 | I39: 13 | J39: =IFERROR((SUMIFS(INDIRECT("Data!$AI$"&$D39+32&":$AS$"&$D39+32),Data!$AI$30:$AS$30,J$16))/(INDEX(Data!$K$33:$K$82,$D39,1)),"") -> 2.782608696 | K39: =IFERROR((SUMIFS(INDIRECT("Data!$AI$"&$D39+32&":$AS$"&$D39+32),Data!$AI$30:$AS$30,K$16))/(INDEX(Data!$L$33:$L$82,$D39,1)),"") -> 4.058823529 | L39: =IFERROR((SUMIFS(INDIRECT("Data!$AI$"&$D39+32&":$AS$"&$D39+32),Data!$AI$30:$AS$30,L$16))/(INDEX(Data!$M$33:$M$82,$D39,1)),"") -> 3.388888889 | M39: =IFERROR((SUMIFS(INDIRECT("Data!$AI$"&$D39+32&":$AS$"&$D39+32),Data!$AI$30:$AS$30,M$16))/(INDEX(Data!$N$33:$N$82,$D39,1)),"") -> 4 | N39: =IFERROR((SUM(INDIRECT("Data!$AI$"&$D39+32&":$AS$"&$D39+32)))/(INDEX(Data!$K$33:$K$82,$D39,1)+INDEX(Data!$L$33:$L$82,$D39,1)+INDEX(Data!$M$33:$M$82,$D39,1)+INDEX(Data!$N$33:$N$82,$D39,1)),"") -> 3.423076923
B40: ='Report A'!$B41 -> 2014-07-10 | C40: ='Report A'!$C41 -> Thursday | D40: ='Report A'!$D41 -> 10 | E40: =IFERROR(IF($G$15="ALL",SUMIFS(INDIRECT("Data!$AI$"&$D40+32&":$AS$"&$D40+32),Data!$AI$30:$AS$30,E$16),SUMIFS(INDIRECT("Data!$AI$"&$D40+32&":$AS$"&$D40+32),Data!$AI$30:$AS$30,E$16,Data!$AI$31:$AS$31,$G$15)),"") -> 0 | F40: =IFERROR(IF($G$15="ALL",SUMIFS(INDIRECT("Data!$AI$"&$D40+32&":$AS$"&$D40+32),Data!$AI$30:$AS$30,F$16),SUMIFS(INDIRECT("Data!$AI$"&$D40+32&":$AS$"&$D40+32),Data!$AI$30:$AS$30,F$16,Data!$AI$31:$AS$31,$G$15)),"") -> 19 | G40: =IFERROR(IF($G$15="ALL",SUMIFS(INDIRECT("Data!$AI$"&$D40+32&":$AS$"&$D40+32),Data!$AI$30:$AS$30,G$16),SUMIFS(INDIRECT("Data!$AI$"&$D40+32&":$AS$"&$D40+32),Data!$AI$30:$AS$30,G$16,Data!$AI$31:$AS$31,$G$15)),"") -> 0 | H40: =IFERROR(IF($G$15="ALL",SUMIFS(INDIRECT("Data!$AI$"&$D40+32&":$AS$"&$D40+32),Data!$AI$30:$AS$30,H$16),SUMIFS(INDIRECT("Data!$AI$"&$D40+32&":$AS$"&$D40+32),Data!$AI$30:$AS$30,H$16,Data!$AI$31:$AS$31,$G$15)),"") -> 0 | I40: 19 | J40: =IFERROR((SUMIFS(INDIRECT("Data!$AI$"&$D40+32&":$AS$"&$D40+32),Data!$AI$30:$AS$30,J$16))/(INDEX(Data!$K$33:$K$82,$D40,1)),"") -> 2.846153846 | K40: =IFERROR((SUMIFS(INDIRECT("Data!$AI$"&$D40+32&":$AS$"&$D40+32),Data!$AI$30:$AS$30,K$16))/(INDEX(Data!$L$33:$L$82,$D40,1)),"") -> 5 | L40: =IFERROR((SUMIFS(INDIRECT("Data!$AI$"&$D40+32&":$AS$"&$D40+32),Data!$AI$30:$AS$30,L$16))/(INDEX(Data!$M$33:$M$82,$D40,1)),"") -> 3.603174603 | M40: =IFERROR((SUMIFS(INDIRECT("Data!$AI$"&$D40+32&":$AS$"&$D40+32),Data!$AI$30:$AS$30,M$16))/(INDEX(Data!$N$33:$N$82,$D40,1)),"") -> 3.75 | N40: =IFERROR((SUM(INDIRECT("Data!$AI$"&$D40+32&":$AS$"&$D40+32)))/(INDEX(Data!$K$33:$K$82,$D40,1)+INDEX(Data!$L$33:$L$82,$D40,1)+INDEX(Data!$M$33:$M$82,$D40,1)+INDEX(Data!$N$33:$N$82,$D40,1)),"") -> 3.67032967
B41: ='Report A'!$B42 -> 2014-07-11 | C41: ='Report A'!$C42 -> Friday | D41: ='Report A'!$D42 -> 11 | E41: =IFERROR(IF($G$15="ALL",SUMIFS(INDIRECT("Data!$AI$"&$D41+32&":$AS$"&$D41+32),Data!$AI$30:$AS$30,E$16),SUMIFS(INDIRECT("Data!$AI$"&$D41+32&":$AS$"&$D41+32),Data!$AI$30:$AS$30,E$16,Data!$AI$31:$AS$31,$G$15)),"") -> 0 | F41: =IFERROR(IF($G$15="ALL",SUMIFS(INDIRECT("Data!$AI$"&$D41+32&":$AS$"&$D41+32),Data!$AI$30:$AS$30,F$16),SUMIFS(INDIRECT("Data!$AI$"&$D41+32&":$AS$"&$D41+32),Data!$AI$30:$AS$30,F$16,Data!$AI$31:$AS$31,$G$15)),"") -> 0 | G41: =IFERROR(IF($G$15="ALL",SUMIFS(INDIRECT("Data!$AI$"&$D41+32&":$AS$"&$D41+32),Data!$AI$30:$AS$30,G$16),SUMIFS(INDIRECT("Data!$AI$"&$D41+32&":$AS$"&$D41+32),Data!$AI$30:$AS$30,G$16,Data!$AI$31:$AS$31,$G$15)),"") -> 0 | H41: =IFERROR(IF($G$15="ALL",SUMIFS(INDIRECT("Data!$AI$"&$D41+32&":$AS$"&$D41+32),Data!$AI$30:$AS$30,H$16),SUMIFS(INDIRECT("Data!$AI$"&$D41+32&":$AS$"&$D41+32),Data!$AI$30:$AS$30,H$16,Data!$AI$31:$AS$31,$G$15)),"") -> 0 | I41: 0 | J41: =IFERROR((SUMIFS(INDIRECT("Data!$AI$"&$D41+32&":$AS$"&$D41+32),Data!$AI$30:$AS$30,J$16))/(INDEX(Data!$K$33:$K$82,$D41,1)),"") -> 5.625 | K41: =IFERROR((SUMIFS(INDIRECT("Data!$AI$"&$D41+32&":$AS$"&$D41+32),Data!$AI$30:$AS$30,K$16))/(INDEX(Data!$L$33:$L$82,$D41,1)),"") -> 4.65 | L41: =IFERROR((SUMIFS(INDIRECT("Data!$AI$"&$D41+32&":$AS$"&$D41+32),Data!$AI$30:$AS$30,L$16))/(INDEX(Data!$M$33:$M$82,$D41,1)),"") -> 3.291666667 | M41: =IFERROR((SUMIFS(INDIRECT("Data!$AI$"&$D41+32&":$AS$"&$D41+32),Data!$AI$30:$AS$30,M$16))/(INDEX(Data!$N$33:$N$82,$D41,1)),"") -> 2.777777778 | N41: =IFERROR((SUM(INDIRECT("Data!$AI$"&$D41+32&":$AS$"&$D41+32)))/(INDEX(Data!$K$33:$K$82,$D41,1)+INDEX(Data!$L$33:$L$82,$D41,1)+INDEX(Data!$M$33:$M$82,$D41,1)+INDEX(Data!$N$33:$N$82,$D41,1)),"") -> 4.069306931
B42: ='Report A'!$B43 -> 2014-07-12 | C42: ='Report A'!$C43 -> Saturday | D42: ='Report A'!$D43 -> 12 | E42: =IFERROR(IF($G$15="ALL",SUMIFS(INDIRECT("Data!$AI$"&$D42+32&":$AS$"&$D42+32),Data!$AI$30:$AS$30,E$16),SUMIFS(INDIRECT("Data!$AI$"&$D42+32&":$AS$"&$D42+32),Data!$AI$30:$AS$30,E$16,Data!$AI$31:$AS$31,$G$15)),"") -> 0 | F42: =IFERROR(IF($G$15="ALL",SUMIFS(INDIRECT("Data!$AI$"&$D42+32&":$AS$"&$D42+32),Data!$AI$30:$AS$30,F$16),SUMIFS(INDIRECT("Data!$AI$"&$D42+32&":$AS$"&$D42+32),Data!$AI$30:$AS$30,F$16,Data!$AI$31:$AS$31,$G$15)),"") -> 0 | G42: =IFERROR(IF($G$15="ALL",SUMIFS(INDIRECT("Data!$AI$"&$D42+32&":$AS$"&$D42+32),Data!$AI$30:$AS$30,G$16),SUMIFS(INDIRECT("Data!$AI$"&$D42+32&":$AS$"&$D42+32),Data!$AI$30:$AS$30,G$16,Data!$AI$31:$AS$31,$G$15)),"") -> 0 | H42: =IFERROR(IF($G$15="ALL",SUMIFS(INDIRECT("Data!$AI$"&$D42+32&":$AS$"&$D42+32),Data!$AI$30:$AS$30,H$16),SUMIFS(INDIRECT("Data!$AI$"&$D42+32&":$AS$"&$D42+32),Data!$AI$30:$AS$30,H$16,Data!$AI$31:$AS$31,$G$15)),"") -> 0 | I42: 0 | J42: =IFERROR((SUMIFS(INDIRECT("Data!$AI$"&$D42+32&":$AS$"&$D42+32),Data!$AI$30:$AS$30,J$16))/(INDEX(Data!$K$33:$K$82,$D42,1)),"") -> 3.696969697 | K42: =IFERROR((SUMIFS(INDIRECT("Data!$AI$"&$D42+32&":$AS$"&$D42+32),Data!$AI$30:$AS$30,K$16))/(INDEX(Data!$L$33:$L$82,$D42,1)),"") -> 3.842105263 | L42: =IFERROR((SUMIFS(INDIRECT("Data!$AI$"&$D42+32&":$AS$"&$D42+32),Data!$AI$30:$AS$30,L$16))/(INDEX(Data!$M$33:$M$82,$D42,1)),"") -> 3.898550725 | M42: =IFERROR((SUMIFS(INDIRECT("Data!$AI$"&$D42+32&":$AS$"&$D42+32),Data!$AI$30:$AS$30,M$16))/(INDEX(Data!$N$33:$N$82,$D42,1)),"") -> 3.384615385 | N42: =IFERROR((SUM(INDIRECT("Data!$AI$"&$D42+32&":$AS$"&$D42+32)))/(INDEX(Data!$K$33:$K$82,$D42,1)+INDEX(Data!$L$33:$L$82,$D42,1)+INDEX(Data!$M$33:$M$82,$D42,1)+INDEX(Data!$N$33:$N$82,$D42,1)),"") -> 3.802325581
B43: ='Report A'!$B44 -> 2014-07-13 | C43: ='Report A'!$C44 -> Sunday | D43: ='Report A'!$D44 -> 13 | E43: =IFERROR(IF($G$15="ALL",SUMIFS(INDIRECT("Data!$AI$"&$D43+32&":$AS$"&$D43+32),Data!$AI$30:$AS$30,E$16),SUMIFS(INDIRECT("Data!$AI$"&$D43+32&":$AS$"&$D43+32),Data!$AI$30:$AS$30,E$16,Data!$AI$31:$AS$31,$G$15)),"") -> 0 | F43: =IFERROR(IF($G$15="ALL",SUMIFS(INDIRECT("Data!$AI$"&$D43+32&":$AS$"&$D43+32),Data!$AI$30:$AS$30,F$16),SUMIFS(INDIRECT("Data!$AI$"&$D43+32&":$AS$"&$D43+32),Data!$AI$30:$AS$30,F$16,Data!$AI$31:$AS$31,$G$15)),"") -> 0 | G43: =IFERROR(IF($G$15="ALL",SUMIFS(INDIRECT("Data!$AI$"&$D43+32&":$AS$"&$D43+32),Data!$AI$30:$AS$30,G$16),SUMIFS(INDIRECT("Data!$AI$"&$D43+32&":$AS$"&$D43+32),Data!$AI$30:$AS$30,G$16,Data!$AI$31:$AS$31,$G$15)),"") -> 0 | H43: =IFERROR(IF($G$15="ALL",SUMIFS(INDIRECT("Data!$AI$"&$D43+32&":$AS$"&$D43+32),Data!$AI$30:$AS$30,H$16),SUMIFS(INDIRECT("Data!$AI$"&$D43+32&":$AS$"&$D43+32),Data!$AI$30:$AS$30,H$16,Data!$AI$31:$AS$31,$G$15)),"") -> 0 | I43: 0 | J43: =IFERROR((SUMIFS(INDIRECT("Data!$AI$"&$D43+32&":$AS$"&$D43+32),Data!$AI$30:$AS$30,J$16))/(INDEX(Data!$K$33:$K$82,$D43,1)),"") -> 3.130434783 | K43: =IFERROR((SUMIFS(INDIRECT("Data!$AI$"&$D43+32&":$AS$"&$D43+32),Data!$AI$30:$AS$30,K$16))/(INDEX(Data!$L$33:$L$82,$D43,1)),"") -> 3.479166667 | L43: =IFERROR((SUMIFS(INDIRECT("Data!$AI$"&$D43+32&":$AS$"&$D43+32),Data!$AI$30:$AS$30,L$16))/(INDEX(Data!$M$33:$M$82,$D43,1)),"") -> 3.189655172 | M43: =IFERROR((SUMIFS(INDIRECT("Data!$AI$"&$D43+32&":$AS$"&$D43+32),Data!$AI$30:$AS$30,M$16))/(INDEX(Data!$N$33:$N$82,$D43,1)),"") -> 4.555555556 | N43: =IFERROR((SUM(INDIRECT("Data!$AI$"&$D43+32&":$AS$"&$D43+32)))/(INDEX(Data!$K$33:$K$82,$D43,1)+INDEX(Data!$L$33:$L$82,$D43,1)+INDEX(Data!$M$33:$M$82,$D43,1)+INDEX(Data!$N$33:$N$82,$D43,1)),"") -> 3.369565217
B44: ='Report A'!$B45 -> 2014-07-14 | C44: ='Report A'!$C45 -> Monday | D44: ='Report A'!$D45 -> 14 | E44: =IFERROR(IF($G$15="ALL",SUMIFS(INDIRECT("Data!$AI$"&$D44+32&":$AS$"&$D44+32),Data!$AI$30:$AS$30,E$16),SUMIFS(INDIRECT("Data!$AI$"&$D44+32&":$AS$"&$D44+32),Data!$AI$30:$AS$30,E$16,Data!$AI$31:$AS$31,$G$15)),"") -> 0 | F44: =IFERROR(IF($G$15="ALL",SUMIFS(INDIRECT("Data!$AI$"&$D44+32&":$AS$"&$D44+32),Data!$AI$30:$AS$30,F$16),SUMIFS(INDIRECT("Data!$AI$"&$D44+32&":$AS$"&$D44+32),Data!$AI$30:$AS$30,F$16,Data!$AI$31:$AS$31,$G$15)),"") -> 14 | G44: =IFERROR(IF($G$15="ALL",SUMIFS(INDIRECT("Data!$AI$"&$D44+32&":$AS$"&$D44+32),Data!$AI$30:$AS$30,G$16),SUMIFS(INDIRECT("Data!$AI$"&$D44+32&":$AS$"&$D44+32),Data!$AI$30:$AS$30,G$16,Data!$AI$31:$AS$31,$G$15)),"") -> 0 | H44: =IFERROR(IF($G$15="ALL",SUMIFS(INDIRECT("Data!$AI$"&$D44+32&":$AS$"&$D44+32),Data!$AI$30:$AS$30,H$16),SUMIFS(INDIRECT("Data!$AI$"&$D44+32&":$AS$"&$D44+32),Data!$AI$30:$AS$30,H$16,Data!$AI$31:$AS$31,$G$15)),"") -> 0 | I44: 14 | J44: =IFERROR((SUMIFS(INDIRECT("Data!$AI$"&$D44+32&":$AS$"&$D44+32),Data!$AI$30:$AS$30,J$16))/(INDEX(Data!$K$33:$K$82,$D44,1)),"") -> 3.263157895 | K44: =IFERROR((SUMIFS(INDIRECT("Data!$AI$"&$D44+32&":$AS$"&$D44+32),Data!$AI$30:$AS$30,K$16))/(INDEX(Data!$L$33:$L$82,$D44,1)),"") -> 3.476190476 | L44: =IFERROR((SUMIFS(INDIRECT("Data!$AI$"&$D44+32&":$AS$"&$D44+32),Data!$AI$30:$AS$30,L$16))/(INDEX(Data!$M$33:$M$82,$D44,1)),"") -> 3.903225806 | M44: =IFERROR((SUMIFS(INDIRECT("Data!$AI$"&$D44+32&":$AS$"&$D44+32),Data!$AI$30:$AS$30,M$16))/(INDEX(Data!$N$33:$N$82,$D44,1)),"") -> 5.333333333 | N44: =IFERROR((SUM(INDIRECT("Data!$AI$"&$D44+32&":$AS$"&$D44+32)))/(INDEX(Data!$K$33:$K$82,$D44,1)+INDEX(Data!$L$33:$L$82,$D44,1)+INDEX(Data!$M$33:$M$82,$D44,1)+INDEX(Data!$N$33:$N$82,$D44,1)),"") -> 3.787037037
B45: ='Report A'!$B46 -> 2014-07-15 | C45: ='Report A'!$C46 -> Tuesday | D45: ='Report A'!$D46 -> 15 | E45: =IFERROR(IF($G$15="ALL",SUMIFS(INDIRECT("Data!$AI$"&$D45+32&":$AS$"&$D45+32),Data!$AI$30:$AS$30,E$16),SUMIFS(INDIRECT("Data!$AI$"&$D45+32&":$AS$"&$D45+32),Data!$AI$30:$AS$30,E$16,Data!$AI$31:$AS$31,$G$15)),"") -> 0 | F45: =IFERROR(IF($G$15="ALL",SUMIFS(INDIRECT("Data!$AI$"&$D45+32&":$AS$"&$D45+32),Data!$AI$30:$AS$30,F$16),SUMIFS(INDIRECT("Data!$AI$"&$D45+32&":$AS$"&$D45+32),Data!$AI$30:$AS$30,F$16,Data!$AI$31:$AS$31,$G$15)),"") -> 4 | G45: =IFERROR(IF($G$15="ALL",SUMIFS(INDIRECT("Data!$AI$"&$D45+32&":$AS$"&$D45+32),Data!$AI$30:$AS$30,G$16),SUMIFS(INDIRECT("Data!$AI$"&$D45+32&":$AS$"&$D45+32),Data!$AI$30:$AS$30,G$16,Data!$AI$31:$AS$31,$G$15)),"") -> 0 | H45: =IFERROR(IF($G$15="ALL",SUMIFS(INDIRECT("Data!$AI$"&$D45+32&":$AS$"&$D45+32),Data!$AI$30:$AS$30,H$16),SUMIFS(INDIRECT("Data!$AI$"&$D45+32&":$AS$"&$D45+32),Data!$AI$30:$AS$30,H$16,Data!$AI$31:$AS$31,$G$15)),"") -> 0 | I45: 4 | J45: =IFERROR((SUMIFS(INDIRECT("Data!$AI$"&$D45+32&":$AS$"&$D45+32),Data!$AI$30:$AS$30,J$16))/(INDEX(Data!$K$33:$K$82,$D45,1)),"") -> 3.166666667 | K45: =IFERROR((SUMIFS(INDIRECT("Data!$AI$"&$D45+32&":$AS$"&$D45+32),Data!$AI$30:$AS$30,K$16))/(INDEX(Data!$L$33:$L$82,$D45,1)),"") -> 2.9 | L45: =IFERROR((SUMIFS(INDIRECT("Data!$AI$"&$D45+32&":$AS$"&$D45+32),Data!$AI$30:$AS$30,L$16))/(INDEX(Data!$M$33:$M$82,$D45,1)),"") -> 3.466666667 | M45: =IFERROR((SUMIFS(INDIRECT("Data!$AI$"&$D45+32&":$AS$"&$D45+32),Data!$AI$30:$AS$30,M$16))/(INDEX(Data!$N$33:$N$82,$D45,1)),"") -> 5.75 | N45: =IFERROR((SUM(INDIRECT("Data!$AI$"&$D45+32&":$AS$"&$D45+32)))/(INDEX(Data!$K$33:$K$82,$D45,1)+INDEX(Data!$L$33:$L$82,$D45,1)+INDEX(Data!$M$33:$M$82,$D45,1)+INDEX(Data!$N$33:$N$82,$D45,1)),"") -> 3.304878049
B46: ='Report A'!$B47 -> 2014-07-16 | C46: ='Report A'!$C47 -> Wednesday | D46: ='Report A'!$D47 -> 16 | E46: =IFERROR(IF($G$15="ALL",SUMIFS(INDIRECT("Data!$AI$"&$D46+32&":$AS$"&$D46+32),Data!$AI$30:$AS$30,E$16),SUMIFS(INDIRECT("Data!$AI$"&$D46+32&":$AS$"&$D46+32),Data!$AI$30:$AS$30,E$16,Data!$AI$31:$AS$31,$G$15)),"") -> 0 | F46: =IFERROR(IF($G$15="ALL",SUMIFS(INDIRECT("Data!$AI$"&$D46+32&":$AS$"&$D46+32),Data!$AI$30:$AS$30,F$16),SUMIFS(INDIRECT("Data!$AI$"&$D46+32&":$AS$"&$D46+32),Data!$AI$30:$AS$30,F$16,Data!$AI$31:$AS$31,$G$15)),"") -> 6 | G46: =IFERROR(IF($G$15="ALL",SUMIFS(INDIRECT("Data!$AI$"&$D46+32&":$AS$"&$D46+32),Data!$AI$30:$AS$30,G$16),SUMIFS(INDIRECT("Data!$AI$"&$D46+32&":$AS$"&$D46+32),Data!$AI$30:$AS$30,G$16,Data!$AI$31:$AS$31,$G$15)),"") -> 0 | H46: =IFERROR(IF($G$15="ALL",SUMIFS(INDIRECT("Data!$AI$"&$D46+32&":$AS$"&$D46+32),Data!$AI$30:$AS$30,H$16),SUMIFS(INDIRECT("Data!$AI$"&$D46+32&":$AS$"&$D46+32),Data!$AI$30:$AS$30,H$16,Data!$AI$31:$AS$31,$G$15)),"") -> 0 | I46: 6 | J46: =IFERROR((SUMIFS(INDIRECT("Data!$AI$"&$D46+32&":$AS$"&$D46+32),Data!$AI$30:$AS$30,J$16))/(INDEX(Data!$K$33:$K$82,$D46,1)),"") -> 3.294117647 | K46: =IFERROR((SUMIFS(INDIRECT("Data!$AI$"&$D46+32&":$AS$"&$D46+32),Data!$AI$30:$AS$30,K$16))/(INDEX(Data!$L$33:$L$82,$D46,1)),"") -> 4.421052632 | L46: =IFERROR((SUMIFS(INDIRECT("Data!$AI$"&$D46+32&":$AS$"&$D46+32),Data!$AI$30:$AS$30,L$16))/(INDEX(Data!$M$33:$M$82,$D46,1)),"") -> 3.025641026 | M46: =IFERROR((SUMIFS(INDIRECT("Data!$AI$"&$D46+32&":$AS$"&$D46+32),Data!$AI$30:$AS$30,M$16))/(INDEX(Data!$N$33:$N$82,$D46,1)),"") -> 6 | N46: =IFERROR((SUM(INDIRECT("Data!$AI$"&$D46+32&":$AS$"&$D46+32)))/(INDEX(Data!$K$33:$K$82,$D46,1)+INDEX(Data!$L$33:$L$82,$D46,1)+INDEX(Data!$M$33:$M$82,$D46,1)+INDEX(Data!$N$33:$N$82,$D46,1)),"") -> 3.714285714
B47: ='Report A'!$B48 -> 2014-07-17 | C47: ='Report A'!$C48 -> Thursday | D47: ='Report A'!$D48 -> 17 | E47: =IFERROR(IF($G$15="ALL",SUMIFS(INDIRECT("Data!$AI$"&$D47+32&":$AS$"&$D47+32),Data!$AI$30:$AS$30,E$16),SUMIFS(INDIRECT("Data!$AI$"&$D47+32&":$AS$"&$D47+32),Data!$AI$30:$AS$30,E$16,Data!$AI$31:$AS$31,$G$15)),"") -> 0 | F47: =IFERROR(IF($G$15="ALL",SUMIFS(INDIRECT("Data!$AI$"&$D47+32&":$AS$"&$D47+32),Data!$AI$30:$AS$30,F$16),SUMIFS(INDIRECT("Data!$AI$"&$D47+32&":$AS$"&$D47+32),Data!$AI$30:$AS$30,F$16,Data!$AI$31:$AS$31,$G$15)),"") -> 28 | G47: =IFERROR(IF($G$15="ALL",SUMIFS(INDIRECT("Data!$AI$"&$D47+32&":$AS$"&$D47+32),Data!$AI$30:$AS$30,G$16),SUMIFS(INDIRECT("Data!$AI$"&$D47+32&":$AS$"&$D47+32),Data!$AI$30:$AS$30,G$16,Data!$AI$31:$AS$31,$G$15)),"") -> 0 | H47: =IFERROR(IF($G$15="ALL",SUMIFS(INDIRECT("Data!$AI$"&$D47+32&":$AS$"&$D47+32),Data!$AI$30:$AS$30,H$16),SUMIFS(INDIRECT("Data!$AI$"&$D47+32&":$AS$"&$D47+32),Data!$AI$30:$AS$30,H$16,Data!$AI$31:$AS$31,$G$15)),"") -> 0 | I47: 28 | J47: =IFERROR((SUMIFS(INDIRECT("Data!$AI$"&$D47+32&":$AS$"&$D47+32),Data!$AI$30:$AS$30,J$16))/(INDEX(Data!$K$33:$K$82,$D47,1)),"") -> 3.25 | K47: =IFERROR((SUMIFS(INDIRECT("Data!$AI$"&$D47+32&":$AS$"&$D47+32),Data!$AI$30:$AS$30,K$16))/(INDEX(Data!$L$33:$L$82,$D47,1)),"") -> 4.857142857 | L47: =IFERROR((SUMIFS(INDIRECT("Data!$AI$"&$D47+32&":$AS$"&$D47+32),Data!$AI$30:$AS$30,L$16))/(INDEX(Data!$M$33:$M$82,$D47,1)),"") -> 3.195121951 | M47: =IFERROR((SUMIFS(INDIRECT("Data!$AI$"&$D47+32&":$AS$"&$D47+32),Data!$AI$30:$AS$30,M$16))/(INDEX(Data!$N$33:$N$82,$D47,1)),"") -> 4.857142857 | N47: =IFERROR((SUM(INDIRECT("Data!$AI$"&$D47+32&":$AS$"&$D47+32)))/(INDEX(Data!$K$33:$K$82,$D47,1)+INDEX(Data!$L$33:$L$82,$D47,1)+INDEX(Data!$M$33:$M$82,$D47,1)+INDEX(Data!$N$33:$N$82,$D47,1)),"") -> 3.752941176
B48: ='Report A'!$B49 -> 2014-07-18 | C48: ='Report A'!$C49 -> Friday | D48: ='Report A'!$D49 -> 18 | E48: =IFERROR(IF($G$15="ALL",SUMIFS(INDIRECT("Data!$AI$"&$D48+32&":$AS$"&$D48+32),Data!$AI$30:$AS$30,E$16),SUMIFS(INDIRECT("Data!$AI$"&$D48+32&":$AS$"&$D48+32),Data!$AI$30:$AS$30,E$16,Data!$AI$31:$AS$31,$G$15)),"") -> 0 | F48: =IFERROR(IF($G$15="ALL",SUMIFS(INDIRECT("Data!$AI$"&$D48+32&":$AS$"&$D48+32),Data!$AI$30:$AS$30,F$16),SUMIFS(INDIRECT("Data!$AI$"&$D48+32&":$AS$"&$D48+32),Data!$AI$30:$AS$30,F$16,Data!$AI$31:$AS$31,$G$15)),"") -> 0 | G48: =IFERROR(IF($G$15="ALL",SUMIFS(INDIRECT("Data!$AI$"&$D48+32&":$AS$"&$D48+32),Data!$AI$30:$AS$30,G$16),SUMIFS(INDIRECT("Data!$AI$"&$D48+32&":$AS$"&$D48+32),Data!$AI$30:$AS$30,G$16,Data!$AI$31:$AS$31,$G$15)),"") -> 0 | H48: =IFERROR(IF($G$15="ALL",SUMIFS(INDIRECT("Data!$AI$"&$D48+32&":$AS$"&$D48+32),Data!$AI$30:$AS$30,H$16),SUMIFS(INDIRECT("Data!$AI$"&$D48+32&":$AS$"&$D48+32),Data!$AI$30:$AS$30,H$16,Data!$AI$31:$AS$31,$G$15)),"") -> 0 | I48: 0 | J48: =IFERROR((SUMIFS(INDIRECT("Data!$AI$"&$D48+32&":$AS$"&$D48+32),Data!$AI$30:$AS$30,J$16))/(INDEX(Data!$K$33:$K$82,$D48,1)),"") -> 3.740740741 | K48: =IFERROR((SUMIFS(INDIRECT("Data!$AI$"&$D48+32&":$AS$"&$D48+32),Data!$AI$30:$AS$30,K$16))/(INDEX(Data!$L$33:$L$82,$D48,1)),"") -> 3.411764706 | L48: =IFERROR((SUMIFS(INDIRECT("Data!$AI$"&$D48+32&":$AS$"&$D48+32),Data!$AI$30:$AS$30,L$16))/(INDEX(Data!$M$33:$M$82,$D48,1)),"") -> 3.890625 | M48: =IFERROR((SUMIFS(INDIRECT("Data!$AI$"&$D48+32&":$AS$"&$D48+32),Data!$AI$30:$AS$30,M$16))/(INDEX(Data!$N$33:$N$82,$D48,1)),"") -> 2.6 | N48: =IFERROR((SUM(INDIRECT("Data!$AI$"&$D48+32&":$AS$"&$D48+32)))/(INDEX(Data!$K$33:$K$82,$D48,1)+INDEX(Data!$L$33:$L$82,$D48,1)+INDEX(Data!$M$33:$M$82,$D48,1)+INDEX(Data!$N$33:$N$82,$D48,1)),"") -> 3.725663717
B49: ='Report A'!$B50 -> 2014-07-19 | C49: ='Report A'!$C50 -> Saturday | D49: ='Report A'!$D50 -> 19 | E49: =IFERROR(IF($G$15="ALL",SUMIFS(INDIRECT("Data!$AI$"&$D49+32&":$AS$"&$D49+32),Data!$AI$30:$AS$30,E$16),SUMIFS(INDIRECT("Data!$AI$"&$D49+32&":$AS$"&$D49+32),Data!$AI$30:$AS$30,E$16,Data!$AI$31:$AS$31,$G$15)),"") -> 0 | F49: =IFERROR(IF($G$15="ALL",SUMIFS(INDIRECT("Data!$AI$"&$D49+32&":$AS$"&$D49+32),Data!$AI$30:$AS$30,F$16),SUMIFS(INDIRECT("Data!$AI$"&$D49+32&":$AS$"&$D49+32),Data!$AI$30:$AS$30,F$16,Data!$AI$31:$AS$31,$G$15)),"") -> 0 | G49: =IFERROR(IF($G$15="ALL",SUMIFS(INDIRECT("Data!$AI$"&$D49+32&":$AS$"&$D49+32),Data!$AI$30:$AS$30,G$16),SUMIFS(INDIRECT("Data!$AI$"&$D49+32&":$AS$"&$D49+32),Data!$AI$30:$AS$30,G$16,Data!$AI$31:$AS$31,$G$15)),"") -> 0 | H49: =IFERROR(IF($G$15="ALL",SUMIFS(INDIRECT("Data!$AI$"&$D49+32&":$AS$"&$D49+32),Data!$AI$30:$AS$30,H$16),SUMIFS(INDIRECT("Data!$AI$"&$D49+32&":$AS$"&$D49+32),Data!$AI$30:$AS$30,H$16,Data!$AI$31:$AS$31,$G$15)),"") -> 0 | I49: 0 | J49: =IFERROR((SUMIFS(INDIRECT("Data!$AI$"&$D49+32&":$AS$"&$D49+32),Data!$AI$30:$AS$30,J$16))/(INDEX(Data!$K$33:$K$82,$D49,1)),"") -> 3.176470588 | K49: =IFERROR((SUMIFS(INDIRECT("Data!$AI$"&$D49+32&":$AS$"&$D49+32),Data!$AI$30:$AS$30,K$16))/(INDEX(Data!$L$33:$L$82,$D49,1)),"") -> 3.264150943 | L49: =IFERROR((SUMIFS(INDIRECT("Data!$AI$"&$D49+32&":$AS$"&$D49+32),Data!$AI$30:$AS$30,L$16))/(INDEX(Data!$M$33:$M$82,$D49,1)),"") -> 4 | M49: =IFERROR((SUMIFS(INDIRECT("Data!$AI$"&$D49+32&":$AS$"&$D49+32),Data!$AI$30:$AS$30,M$16))/(INDEX(Data!$N$33:$N$82,$D49,1)),"") -> 4.1875 | N49: =IFERROR((SUM(INDIRECT("Data!$AI$"&$D49+32&":$AS$"&$D49+32)))/(INDEX(Data!$K$33:$K$82,$D49,1)+INDEX(Data!$L$33:$L$82,$D49,1)+INDEX(Data!$M$33:$M$82,$D49,1)+INDEX(Data!$N$33:$N$82,$D49,1)),"") -> 3.642458101
B50: ='Report A'!$B51 -> 2014-07-20 | C50: ='Report A'!$C51 -> Sunday | D50: ='Report A'!$D51 -> 20 | E50: =IFERROR(IF($G$15="ALL",SUMIFS(INDIRECT("Data!$AI$"&$D50+32&":$AS$"&$D50+32),Data!$AI$30:$AS$30,E$16),SUMIFS(INDIRECT("Data!$AI$"&$D50+32&":$AS$"&$D50+32),Data!$AI$30:$AS$30,E$16,Data!$AI$31:$AS$31,$G$15)),"") -> 0 | F50: =IFERROR(IF($G$15="ALL",SUMIFS(INDIRECT("Data!$AI$"&$D50+32&":$AS$"&$D50+32),Data!$AI$30:$AS$30,F$16),SUMIFS(INDIRECT("Data!$AI$"&$D50+32&":$AS$"&$D50+32),Data!$AI$30:$AS$30,F$16,Data!$AI$31:$AS$31,$G$15)),"") -> 0 | G50: =IFERROR(IF($G$15="ALL",SUMIFS(INDIRECT("Data!$AI$"&$D50+32&":$AS$"&$D50+32),Data!$AI$30:$AS$30,G$16),SUMIFS(INDIRECT("Data!$AI$"&$D50+32&":$AS$"&$D50+32),Data!$AI$30:$AS$30,G$16,Data!$AI$31:$AS$31,$G$15)),"") -> 0 | H50: =IFERROR(IF($G$15="ALL",SUMIFS(INDIRECT("Data!$AI$"&$D50+32&":$AS$"&$D50+32),Data!$AI$30:$AS$30,H$16),SUMIFS(INDIRECT("Data!$AI$"&$D50+32&":$AS$"&$D50+32),Data!$AI$30:$AS$30,H$16,Data!$AI$31:$AS$31,$G$15)),"") -> 0 | I50: 0 | J50: =IFERROR((SUMIFS(INDIRECT("Data!$AI$"&$D50+32&":$AS$"&$D50+32),Data!$AI$30:$AS$30,J$16))/(INDEX(Data!$K$33:$K$82,$D50,1)),"") -> 3.194444444 | K50: =IFERROR((SUMIFS(INDIRECT("Data!$AI$"&$D50+32&":$AS$"&$D50+32),Data!$AI$30:$AS$30,K$16))/(INDEX(Data!$L$33:$L$82,$D50,1)),"") -> 3.156862745 | L50: =IFERROR((SUMIFS(INDIRECT("Data!$AI$"&$D50+32&":$AS$"&$D50+32),Data!$AI$30:$AS$30,L$16))/(INDEX(Data!$M$33:$M$82,$D50,1)),"") -> 3.159090909 | M50: =IFERROR((SUMIFS(INDIRECT("Data!$AI$"&$D50+32&":$AS$"&$D50+32),Data!$AI$30:$AS$30,M$16))/(INDEX(Data!$N$33:$N$82,$D50,1)),"") -> 4.272727273 | N50: =IFERROR((SUM(INDIRECT("Data!$AI$"&$D50+32&":$AS$"&$D50+32)))/(INDEX(Data!$K$33:$K$82,$D50,1)+INDEX(Data!$L$33:$L$82,$D50,1)+INDEX(Data!$M$33:$M$82,$D50,1)+INDEX(Data!$N$33:$N$82,$D50,1)),"") -> 3.253521127
B51: ='Report A'!$B52 -> 2014-07-21 | C51: ='Report A'!$C52 -> Monday | D51: ='Report A'!$D52 -> 21 | E51: =IFERROR(IF($G$15="ALL",SUMIFS(INDIRECT("Data!$AI$"&$D51+32&":$AS$"&$D51+32),Data!$AI$30:$AS$30,E$16),SUMIFS(INDIRECT("Data!$AI$"&$D51+32&":$AS$"&$D51+32),Data!$AI$30:$AS$30,E$16,Data!$AI$31:$AS$31,$G$15)),"") -> 0 | F51: =IFERROR(IF($G$15="ALL",SUMIFS(INDIRECT("Data!$AI$"&$D51+32&":$AS$"&$D51+32),Data!$AI$30:$AS$30,F$16),SUMIFS(INDIRECT("Data!$AI$"&$D51+32&":$AS$"&$D51+32),Data!$AI$30:$AS$30,F$16,Data!$AI$31:$AS$31,$G$15)),"") -> 21 | G51: =IFERROR(IF($G$15="ALL",SUMIFS(INDIRECT("Data!$AI$"&$D51+32&":$AS$"&$D51+32),Data!$AI$30:$AS$30,G$16),SUMIFS(INDIRECT("Data!$AI$"&$D51+32&":$AS$"&$D51+32),Data!$AI$30:$AS$30,G$16,Data!$AI$31:$AS$31,$G$15)),"") -> 0 | H51: =IFERROR(IF($G$15="ALL",SUMIFS(INDIRECT("Data!$AI$"&$D51+32&":$AS$"&$D51+32),Data!$AI$30:$AS$30,H$16),SUMIFS(INDIRECT("Data!$AI$"&$D51+32&":$AS$"&$D51+32),Data!$AI$30:$AS$30,H$16,Data!$AI$31:$AS$31,$G$15)),"") -> 0 | I51: 21 | J51: =IFERROR((SUMIFS(INDIRECT("Data!$AI$"&$D51+32&":$AS$"&$D51+32),Data!$AI$30:$AS$30,J$16))/(INDEX(Data!$K$33:$K$82,$D51,1)),"") -> 3.15 | K51: =IFERROR((SUMIFS(INDIRECT("Data!$AI$"&$D51+32&":$AS$"&$D51+32),Data!$AI$30:$AS$30,K$16))/(INDEX(Data!$L$33:$L$82,$D51,1)),"") -> 4.388888889 | L51: =IFERROR((SUMIFS(INDIRECT("Data!$AI$"&$D51+32&":$AS$"&$D51+32),Data!$AI$30:$AS$30,L$16))/(INDEX(Data!$M$33:$M$82,$D51,1)),"") -> 2.620689655 | M51: =IFERROR((SUMIFS(INDIRECT("Data!$AI$"&$D51+32&":$AS$"&$D51+32),Data!$AI$30:$AS$30,M$16))/(INDEX(Data!$N$33:$N$82,$D51,1)),"") -> 4.818181818 | N51: =IFERROR((SUM(INDIRECT("Data!$AI$"&$D51+32&":$AS$"&$D51+32)))/(INDEX(Data!$K$33:$K$82,$D51,1)+INDEX(Data!$L$33:$L$82,$D51,1)+INDEX(Data!$M$33:$M$82,$D51,1)+INDEX(Data!$N$33:$N$82,$D51,1)),"") -> 3.474358974
B52: ='Report A'!$B53 -> 2014-07-22 | C52: ='Report A'!$C53 -> Tuesday | D52: ='Report A'!$D53 -> 22 | E52: =IFERROR(IF($G$15="ALL",SUMIFS(INDIRECT("Data!$AI$"&$D52+32&":$AS$"&$D52+32),Data!$AI$30:$AS$30,E$16),SUMIFS(INDIRECT("Data!$AI$"&$D52+32&":$AS$"&$D52+32),Data!$AI$30:$AS$30,E$16,Data!$AI$31:$AS$31,$G$15)),"") -> 0 | F52: =IFERROR(IF($G$15="ALL",SUMIFS(INDIRECT("Data!$AI$"&$D52+32&":$AS$"&$D52+32),Data!$AI$30:$AS$30,F$16),SUMIFS(INDIRECT("Data!$AI$"&$D52+32&":$AS$"&$D52+32),Data!$AI$30:$AS$30,F$16,Data!$AI$31:$AS$31,$G$15)),"") -> 3 | G52: =IFERROR(IF($G$15="ALL",SUMIFS(INDIRECT("Data!$AI$"&$D52+32&":$AS$"&$D52+32),Data!$AI$30:$AS$30,G$16),SUMIFS(INDIRECT("Data!$AI$"&$D52+32&":$AS$"&$D52+32),Data!$AI$30:$AS$30,G$16,Data!$AI$31:$AS$31,$G$15)),"") -> 0 | H52: =IFERROR(IF($G$15="ALL",SUMIFS(INDIRECT("Data!$AI$"&$D52+32&":$AS$"&$D52+32),Data!$AI$30:$AS$30,H$16),SUMIFS(INDIRECT("Data!$AI$"&$D52+32&":$AS$"&$D52+32),Data!$AI$30:$AS$30,H$16,Data!$AI$31:$AS$31,$G$15)),"") -> 0 | I52: 3 | J52: =IFERROR((SUMIFS(INDIRECT("Data!$AI$"&$D52+32&":$AS$"&$D52+32),Data!$AI$30:$AS$30,J$16))/(INDEX(Data!$K$33:$K$82,$D52,1)),"") -> 3.0625 | K52: =IFERROR((SUMIFS(INDIRECT("Data!$AI$"&$D52+32&":$AS$"&$D52+32),Data!$AI$30:$AS$30,K$16))/(INDEX(Data!$L$33:$L$82,$D52,1)),"") -> 2.944444444 | L52: =IFERROR((SUMIFS(INDIRECT("Data!$AI$"&$D52+32&":$AS$"&$D52+32),Data!$AI$30:$AS$30,L$16))/(INDEX(Data!$M$33:$M$82,$D52,1)),"") -> 3.263157895 | M52: =IFERROR((SUMIFS(INDIRECT("Data!$AI$"&$D52+32&":$AS$"&$D52+32),Data!$AI$30:$AS$30,M$16))/(INDEX(Data!$N$33:$N$82,$D52,1)),"") -> 4.333333333 | N52: =IFERROR((SUM(INDIRECT("Data!$AI$"&$D52+32&":$AS$"&$D52+32)))/(INDEX(Data!$K$33:$K$82,$D52,1)+INDEX(Data!$L$33:$L$82,$D52,1)+INDEX(Data!$M$33:$M$82,$D52,1)+INDEX(Data!$N$33:$N$82,$D52,1)),"") -> 3.30952381
B53: ='Report A'!$B54 -> 2014-07-23 | C53: ='Report A'!$C54 -> Wednesday | D53: ='Report A'!$D54 -> 23 | E53: =IFERROR(IF($G$15="ALL",SUMIFS(INDIRECT("Data!$AI$"&$D53+32&":$AS$"&$D53+32),Data!$AI$30:$AS$30,E$16),SUMIFS(INDIRECT("Data!$AI$"&$D53+32&":$AS$"&$D53+32),Data!$AI$30:$AS$30,E$16,Data!$AI$31:$AS$31,$G$15)),"") -> 0 | F53: =IFERROR(IF($G$15="ALL",SUMIFS(INDIRECT("Data!$AI$"&$D53+32&":$AS$"&$D53+32),Data!$AI$30:$AS$30,F$16),SUMIFS(INDIRECT("Data!$AI$"&$D53+32&":$AS$"&$D53+32),Data!$AI$30:$AS$30,F$16,Data!$AI$31:$AS$31,$G$15)),"") -> 8 | G53: =IFERROR(IF($G$15="ALL",SUMIFS(INDIRECT("Data!$AI$"&$D53+32&":$AS$"&$D53+32),Data!$AI$30:$AS$30,G$16),SUMIFS(INDIRECT("Data!$AI$"&$D53+32&":$AS$"&$D53+32),Data!$AI$30:$AS$30,G$16,Data!$AI$31:$AS$31,$G$15)),"") -> 0 | H53: =IFERROR(IF($G$15="ALL",SUMIFS(INDIRECT("Data!$AI$"&$D53+32&":$AS$"&$D53+32),Data!$AI$30:$AS$30,H$16),SUMIFS(INDIRECT("Data!$AI$"&$D53+32&":$AS$"&$D53+32),Data!$AI$30:$AS$30,H$16,Data!$AI$31:$AS$31,$G$15)),"") -> 0 | I53: 8 | J53: =IFERROR((SUMIFS(INDIRECT("Data!$AI$"&$D53+32&":$AS$"&$D53+32),Data!$AI$30:$AS$30,J$16))/(INDEX(Data!$K$33:$K$82,$D53,1)),"") -> 3.857142857 | K53: =IFERROR((SUMIFS(INDIRECT("Data!$AI$"&$D53+32&":$AS$"&$D53+32),Data!$AI$30:$AS$30,K$16))/(INDEX(Data!$L$33:$L$82,$D53,1)),"") -> 3.045454545 | L53: =IFERROR((SUMIFS(INDIRECT("Data!$AI$"&$D53+32&":$AS$"&$D53+32),Data!$AI$30:$AS$30,L$16))/(INDEX(Data!$M$33:$M$82,$D53,1)),"") -> 3.08 | M53: =IFERROR((SUMIFS(INDIRECT("Data!$AI$"&$D53+32&":$AS$"&$D53+32),Data!$AI$30:$AS$30,M$16))/(INDEX(Data!$N$33:$N$82,$D53,1)),"") -> 5.333333333 | N53: =IFERROR((SUM(INDIRECT("Data!$AI$"&$D53+32&":$AS$"&$D53+32)))/(INDEX(Data!$K$33:$K$82,$D53,1)+INDEX(Data!$L$33:$L$82,$D53,1)+INDEX(Data!$M$33:$M$82,$D53,1)+INDEX(Data!$N$33:$N$82,$D53,1)),"") -> 3.514285714
B54: ='Report A'!$B55 -> 2014-07-24 | C54: ='Report A'!$C55 -> Thursday | D54: ='Report A'!$D55 -> 24 | E54: =IFERROR(IF($G$15="ALL",SUMIFS(INDIRECT("Data!$AI$"&$D54+32&":$AS$"&$D54+32),Data!$AI$30:$AS$30,E$16),SUMIFS(INDIRECT("Data!$AI$"&$D54+32&":$AS$"&$D54+32),Data!$AI$30:$AS$30,E$16,Data!$AI$31:$AS$31,$G$15)),"") -> 0 | F54: =IFERROR(IF($G$15="ALL",SUMIFS(INDIRECT("Data!$AI$"&$D54+32&":$AS$"&$D54+32),Data!$AI$30:$AS$30,F$16),SUMIFS(INDIRECT("Data!$AI$"&$D54+32&":$AS$"&$D54+32),Data!$AI$30:$AS$30,F$16,Data!$AI$31:$AS$31,$G$15)),"") -> 8 | G54: =IFERROR(IF($G$15="ALL",SUMIFS(INDIRECT("Data!$AI$"&$D54+32&":$AS$"&$D54+32),Data!$AI$30:$AS$30,G$16),SUMIFS(INDIRECT("Data!$AI$"&$D54+32&":$AS$"&$D54+32),Data!$AI$30:$AS$30,G$16,Data!$AI$31:$AS$31,$G$15)),"") -> 0 | H54: =IFERROR(IF($G$15="ALL",SUMIFS(INDIRECT("Data!$AI$"&$D54+32&":$AS$"&$D54+32),Data!$AI$30:$AS$30,H$16),SUMIFS(INDIRECT("Data!$AI$"&$D54+32&":$AS$"&$D54+32),Data!$AI$30:$AS$30,H$16,Data!$AI$31:$AS$31,$G$15)),"") -> 0 | I54: 8 | J54: =IFERROR((SUMIFS(INDIRECT("Data!$AI$"&$D54+32&":$AS$"&$D54+32),Data!$AI$30:$AS$30,J$16))/(INDEX(Data!$K$33:$K$82,$D54,1)),"") -> 4.705882353 | K54: =IFERROR((SUMIFS(INDIRECT("Data!$AI$"&$D54+32&":$AS$"&$D54+32),Data!$AI$30:$AS$30,K$16))/(INDEX(Data!$L$33:$L$82,$D54,1)),"") -> 3.428571429 | L54: =IFERROR((SUMIFS(INDIRECT("Data!$AI$"&$D54+32&":$AS$"&$D54+32),Data!$AI$30:$AS$30,L$16))/(INDEX(Data!$M$33:$M$82,$D54,1)),"") -> 3.314285714 | M54: =IFERROR((SUMIFS(INDIRECT("Data!$AI$"&$D54+32&":$AS$"&$D54+32),Data!$AI$30:$AS$30,M$16))/(INDEX(Data!$N$33:$N$82,$D54,1)),"") -> 4.666666667 | N54: =IFERROR((SUM(INDIRECT("Data!$AI$"&$D54+32&":$AS$"&$D54+32)))/(INDEX(Data!$K$33:$K$82,$D54,1)+INDEX(Data!$L$33:$L$82,$D54,1)+INDEX(Data!$M$33:$M$82,$D54,1)+INDEX(Data!$N$33:$N$82,$D54,1)),"") -> 3.746835443
B55: ='Report A'!$B56 -> 2014-07-25 | C55: ='Report A'!$C56 -> Friday | D55: ='Report A'!$D56 -> 25 | E55: =IFERROR(IF($G$15="ALL",SUMIFS(INDIRECT("Data!$AI$"&$D55+32&":$AS$"&$D55+32),Data!$AI$30:$AS$30,E$16),SUMIFS(INDIRECT("Data!$AI$"&$D55+32&":$AS$"&$D55+32),Data!$AI$30:$AS$30,E$16,Data!$AI$31:$AS$31,$G$15)),"") -> 0 | F55: =IFERROR(IF($G$15="ALL",SUMIFS(INDIRECT("Data!$AI$"&$D55+32&":$AS$"&$D55+32),Data!$AI$30:$AS$30,F$16),SUMIFS(INDIRECT("Data!$AI$"&$D55+32&":$AS$"&$D55+32),Data!$AI$30:$AS$30,F$16,Data!$AI$31:$AS$31,$G$15)),"") -> 0 | G55: =IFERROR(IF($G$15="ALL",SUMIFS(INDIRECT("Data!$AI$"&$D55+32&":$AS$"&$D55+32),Data!$AI$30:$AS$30,G$16),SUMIFS(INDIRECT("Data!$AI$"&$D55+32&":$AS$"&$D55+32),Data!$AI$30:$AS$30,G$16,Data!$AI$31:$AS$31,$G$15)),"") -> 0 | H55: =IFERROR(IF($G$15="ALL",SUMIFS(INDIRECT("Data!$AI$"&$D55+32&":$AS$"&$D55+32),Data!$AI$30:$AS$30,H$16),SUMIFS(INDIRECT("Data!$AI$"&$D55+32&":$AS$"&$D55+32),Data!$AI$30:$AS$30,H$16,Data!$AI$31:$AS$31,$G$15)),"") -> 0 | I55: 0 | J55: =IFERROR((SUMIFS(INDIRECT("Data!$AI$"&$D55+32&":$AS$"&$D55+32),Data!$AI$30:$AS$30,J$16))/(INDEX(Data!$K$33:$K$82,$D55,1)),"") -> 3.52173913 | K55: =IFERROR((SUMIFS(INDIRECT("Data!$AI$"&$D55+32&":$AS$"&$D55+32),Data!$AI$30:$AS$30,K$16))/(INDEX(Data!$L$33:$L$82,$D55,1)),"") -> 3.913043478 | L55: =IFERROR((SUMIFS(INDIRECT("Data!$AI$"&$D55+32&":$AS$"&$D55+32),Data!$AI$30:$AS$30,L$16))/(INDEX(Data!$M$33:$M$82,$D55,1)),"") -> 3.571428571 | M55: =IFERROR((SUMIFS(INDIRECT("Data!$AI$"&$D55+32&":$AS$"&$D55+32),Data!$AI$30:$AS$30,M$16))/(INDEX(Data!$N$33:$N$82,$D55,1)),"") -> 3.166666667 | N55: =IFERROR((SUM(INDIRECT("Data!$AI$"&$D55+32&":$AS$"&$D55+32)))/(INDEX(Data!$K$33:$K$82,$D55,1)+INDEX(Data!$L$33:$L$82,$D55,1)+INDEX(Data!$M$33:$M$82,$D55,1)+INDEX(Data!$N$33:$N$82,$D55,1)),"") -> 3.613861386
B56: ='Report A'!$B57 -> 2014-07-26 | C56: ='Report A'!$C57 -> Saturday | D56: ='Report A'!$D57 -> 26 | E56: =IFERROR(IF($G$15="ALL",SUMIFS(INDIRECT("Data!$AI$"&$D56+32&":$AS$"&$D56+32),Data!$AI$30:$AS$30,E$16),SUMIFS(INDIRECT("Data!$AI$"&$D56+32&":$AS$"&$D56+32),Data!$AI$30:$AS$30,E$16,Data!$AI$31:$AS$31,$G$15)),"") -> 0 | F56: =IFERROR(IF($G$15="ALL",SUMIFS(INDIRECT("Data!$AI$"&$D56+32&":$AS$"&$D56+32),Data!$AI$30:$AS$30,F$16),SUMIFS(INDIRECT("Data!$AI$"&$D56+32&":$AS$"&$D56+32),Data!$AI$30:$AS$30,F$16,Data!$AI$31:$AS$31,$G$15)),"") -> 0 | G56: =IFERROR(IF($G$15="ALL",SUMIFS(INDIRECT("Data!$AI$"&$D56+32&":$AS$"&$D56+32),Data!$AI$30:$AS$30,G$16),SUMIFS(INDIRECT("Data!$AI$"&$D56+32&":$AS$"&$D56+32),Data!$AI$30:$AS$30,G$16,Data!$AI$31:$AS$31,$G$15)),"") -> 0 | H56: =IFERROR(IF($G$15="ALL",SUMIFS(INDIRECT("Data!$AI$"&$D56+32&":$AS$"&$D56+32),Data!$AI$30:$AS$30,H$16),SUMIFS(INDIRECT("Data!$AI$"&$D56+32&":$AS$"&$D56+32),Data!$AI$30:$AS$30,H$16,Data!$AI$31:$AS$31,$G$15)),"") -> 0 | I56: 0 | J56: =IFERROR((SUMIFS(INDIRECT("Data!$AI$"&$D56+32&":$AS$"&$D56+32),Data!$AI$30:$AS$30,J$16))/(INDEX(Data!$K$33:$K$82,$D56,1)),"") -> 3.866666667 | K56: =IFERROR((SUMIFS(INDIRECT("Data!$AI$"&$D56+32&":$AS$"&$D56+32),Data!$AI$30:$AS$30,K$16))/(INDEX(Data!$L$33:$L$82,$D56,1)),"") -> 3.568627451 | L56: =IFERROR((SUMIFS(INDIRECT("Data!$AI$"&$D56+32&":$AS$"&$D56+32),Data!$AI$30:$AS$30,L$16))/(INDEX(Data!$M$33:$M$82,$D56,1)),"") -> 4.277108434 | M56: =IFERROR((SUMIFS(INDIRECT("Data!$AI$"&$D56+32&":$AS$"&$D56+32),Data!$AI$30:$AS$30,M$16))/(INDEX(Data!$N$33:$N$82,$D56,1)),"") -> 5.555555556 | N56: =IFERROR((SUM(INDIRECT("Data!$AI$"&$D56+32&":$AS$"&$D56+32)))/(INDEX(Data!$K$33:$K$82,$D56,1)+INDEX(Data!$L$33:$L$82,$D56,1)+INDEX(Data!$M$33:$M$82,$D56,1)+INDEX(Data!$N$33:$N$82,$D56,1)),"") -> 4.04787234
B57: ='Report A'!$B58 -> 2014-07-27 | C57: ='Report A'!$C58 -> Sunday + | D57: ='Report A'!$D58 -> 27 | E57: =IFERROR(IF($G$15="ALL",SUMIFS(INDIRECT("Data!$AI$"&$D57+32&":$AS$"&$D57+32),Data!$AI$30:$AS$30,E$16),SUMIFS(INDIRECT("Data!$AI$"&$D57+32&":$AS$"&$D57+32),Data!$AI$30:$AS$30,E$16,Data!$AI$31:$AS$31,$G$15)),"") -> 0 | F57: =IFERROR(IF($G$15="ALL",SUMIFS(INDIRECT("Data!$AI$"&$D57+32&":$AS$"&$D57+32),Data!$AI$30:$AS$30,F$16),SUMIFS(INDIRECT("Data!$AI$"&$D57+32&":$AS$"&$D57+32),Data!$AI$30:$AS$30,F$16,Data!$AI$31:$AS$31,$G$15)),"") -> 0 | G57: =IFERROR(IF($G$15="ALL",SUMIFS(INDIRECT("Data!$AI$"&$D57+32&":$AS$"&$D57+32),Data!$AI$30:$AS$30,G$16),SUMIFS(INDIRECT("Data!$AI$"&$D57+32&":$AS$"&$D57+32),Data!$AI$30:$AS$30,G$16,Data!$AI$31:$AS$31,$G$15)),"") -> 0 | H57: =IFERROR(IF($G$15="ALL",SUMIFS(INDIRECT("Data!$AI$"&$D57+32&":$AS$"&$D57+32),Data!$AI$30:$AS$30,H$16),SUMIFS(INDIRECT("Data!$AI$"&$D57+32&":$AS$"&$D57+32),Data!$AI$30:$AS$30,H$16,Data!$AI$31:$AS$31,$G$15)),"") -> 0 | I57: 0 | J57: =IFERROR((SUMIFS(INDIRECT("Data!$AI$"&$D57+32&":$AS$"&$D57+32),Data!$AI$30:$AS$30,J$16))/(INDEX(Data!$K$33:$K$82,$D57,1)),"") -> 4.29787234 | K57: =IFERROR((SUMIFS(INDIRECT("Data!$AI$"&$D57+32&":$AS$"&$D57+32),Data!$AI$30:$AS$30,K$16))/(INDEX(Data!$L$33:$L$82,$D57,1)),"") -> 3.893617021 | L57: =IFERROR((SUMIFS(INDIRECT("Data!$AI$"&$D57+32&":$AS$"&$D57+32),Data!$AI$30:$AS$30,L$16))/(INDEX(Data!$M$33:$M$82,$D57,1)),"") -> 3.86746988 | M57: =IFERROR((SUMIFS(INDIRECT("Data!$AI$"&$D57+32&":$AS$"&$D57+32),Data!$AI$30:$AS$30,M$16))/(INDEX(Data!$N$33:$N$82,$D57,1)),"") -> 4.933333333 | N57: =IFERROR((SUM(INDIRECT("Data!$AI$"&$D57+32&":$AS$"&$D57+32)))/(INDEX(Data!$K$33:$K$82,$D57,1)+INDEX(Data!$L$33:$L$82,$D57,1)+INDEX(Data!$M$33:$M$82,$D57,1)+INDEX(Data!$N$33:$N$82,$D57,1)),"") -> 4.0625
B58: ='Report A'!$B59 -> 2014-07-28 | C58: ='Report A'!$C59 -> Monday ++ | D58: ='Report A'!$D59 -> 28 | E58: =IFERROR(IF($G$15="ALL",SUMIFS(INDIRECT("Data!$AI$"&$D58+32&":$AS$"&$D58+32),Data!$AI$30:$AS$30,E$16),SUMIFS(INDIRECT("Data!$AI$"&$D58+32&":$AS$"&$D58+32),Data!$AI$30:$AS$30,E$16,Data!$AI$31:$AS$31,$G$15)),"") -> 0 | F58: =IFERROR(IF($G$15="ALL",SUMIFS(INDIRECT("Data!$AI$"&$D58+32&":$AS$"&$D58+32),Data!$AI$30:$AS$30,F$16),SUMIFS(INDIRECT("Data!$AI$"&$D58+32&":$AS$"&$D58+32),Data!$AI$30:$AS$30,F$16,Data!$AI$31:$AS$31,$G$15)),"") -> 0 | G58: =IFERROR(IF($G$15="ALL",SUMIFS(INDIRECT("Data!$AI$"&$D58+32&":$AS$"&$D58+32),Data!$AI$30:$AS$30,G$16),SUMIFS(INDIRECT("Data!$AI$"&$D58+32&":$AS$"&$D58+32),Data!$AI$30:$AS$30,G$16,Data!$AI$31:$AS$31,$G$15)),"") -> 0 | H58: =IFERROR(IF($G$15="ALL",SUMIFS(INDIRECT("Data!$AI$"&$D58+32&":$AS$"&$D58+32),Data!$AI$30:$AS$30,H$16),SUMIFS(INDIRECT("Data!$AI$"&$D58+32&":$AS$"&$D58+32),Data!$AI$30:$AS$30,H$16,Data!$AI$31:$AS$31,$G$15)),"") -> 0 | I58: 0 | J58: =IFERROR((SUMIFS(INDIRECT("Data!$AI$"&$D58+32&":$AS$"&$D58+32),Data!$AI$30:$AS$30,J$16))/(INDEX(Data!$K$33:$K$82,$D58,1)),"") -> 4.47826087 | K58: =IFERROR((SUMIFS(INDIRECT("Data!$AI$"&$D58+32&":$AS$"&$D58+32),Data!$AI$30:$AS$30,K$16))/(INDEX(Data!$L$33:$L$82,$D58,1)),"") -> 4.391304348 | L58: =IFERROR((SUMIFS(INDIRECT("Data!$AI$"&$D58+32&":$AS$"&$D58+32),Data!$AI$30:$AS$30,L$16))/(INDEX(Data!$M$33:$M$82,$D58,1)),"") -> 4.144736842 | M58: =IFERROR((SUMIFS(INDIRECT("Data!$AI$"&$D58+32&":$AS$"&$D58+32),Data!$AI$30:$AS$30,M$16))/(INDEX(Data!$N$33:$N$82,$D58,1)),"") -> 1.111111111 | N58: =IFERROR((SUM(INDIRECT("Data!$AI$"&$D58+32&":$AS$"&$D58+32)))/(INDEX(Data!$K$33:$K$82,$D58,1)+INDEX(Data!$L$33:$L$82,$D58,1)+INDEX(Data!$M$33:$M$82,$D58,1)+INDEX(Data!$N$33:$N$82,$D58,1)),"") -> 4.141242938
B59: ='Report A'!$B60 -> 2014-07-29 | C59: ='Report A'!$C60 -> Tuesday ++ | D59: ='Report A'!$D60 -> 29 | E59: =IFERROR(IF($G$15="ALL",SUMIFS(INDIRECT("Data!$AI$"&$D59+32&":$AS$"&$D59+32),Data!$AI$30:$AS$30,E$16),SUMIFS(INDIRECT("Data!$AI$"&$D59+32&":$AS$"&$D59+32),Data!$AI$30:$AS$30,E$16,Data!$AI$31:$AS$31,$G$15)),"") -> 0 | F59: =IFERROR(IF($G$15="ALL",SUMIFS(INDIRECT("Data!$AI$"&$D59+32&":$AS$"&$D59+32),Data!$AI$30:$AS$30,F$16),SUMIFS(INDIRECT("Data!$AI$"&$D59+32&":$AS$"&$D59+32),Data!$AI$30:$AS$30,F$16,Data!$AI$31:$AS$31,$G$15)),"") -> 0 | G59: =IFERROR(IF($G$15="ALL",SUMIFS(INDIRECT("Data!$AI$"&$D59+32&":$AS$"&$D59+32),Data!$AI$30:$AS$30,G$16),SUMIFS(INDIRECT("Data!$AI$"&$D59+32&":$AS$"&$D59+32),Data!$AI$30:$AS$30,G$16,Data!$AI$31:$AS$31,$G$15)),"") -> 0 | H59: =IFERROR(IF($G$15="ALL",SUMIFS(INDIRECT("Data!$AI$"&$D59+32&":$AS$"&$D59+32),Data!$AI$30:$AS$30,H$16),SUMIFS(INDIRECT("Data!$AI$"&$D59+32&":$AS$"&$D59+32),Data!$AI$30:$AS$30,H$16,Data!$AI$31:$AS$31,$G$15)),"") -> 0 | I59: 0 | J59: =IFERROR((SUMIFS(INDIRECT("Data!$AI$"&$D59+32&":$AS$"&$D59+32),Data!$AI$30:$AS$30,J$16))/(INDEX(Data!$K$33:$K$82,$D59,1)),"") -> 4.630434783 | K59: =IFERROR((SUMIFS(INDIRECT("Data!$AI$"&$D59+32&":$AS$"&$D59+32),Data!$AI$30:$AS$30,K$16))/(INDEX(Data!$L$33:$L$82,$D59,1)),"") -> 3.304347826 | L59: =IFERROR((SUMIFS(INDIRECT("Data!$AI$"&$D59+32&":$AS$"&$D59+32),Data!$AI$30:$AS$30,L$16))/(INDEX(Data!$M$33:$M$82,$D59,1)),"") -> 3.527027027 | M59: =IFERROR((SUMIFS(INDIRECT("Data!$AI$"&$D59+32&":$AS$"&$D59+32),Data!$AI$30:$AS$30,M$16))/(INDEX(Data!$N$33:$N$82,$D59,1)),"") -> 3.555555556 | N59: =IFERROR((SUM(INDIRECT("Data!$AI$"&$D59+32&":$AS$"&$D59+32)))/(INDEX(Data!$K$33:$K$82,$D59,1)+INDEX(Data!$L$33:$L$82,$D59,1)+INDEX(Data!$M$33:$M$82,$D59,1)+INDEX(Data!$N$33:$N$82,$D59,1)),"") -> 3.76
B60: ='Report A'!$B61 -> 2014-07-30 | C60: ='Report A'!$C61 -> Wednesday | D60: ='Report A'!$D61 -> 30 | E60: =IFERROR(IF($G$15="ALL",SUMIFS(INDIRECT("Data!$AI$"&$D60+32&":$AS$"&$D60+32),Data!$AI$30:$AS$30,E$16),SUMIFS(INDIRECT("Data!$AI$"&$D60+32&":$AS$"&$D60+32),Data!$AI$30:$AS$30,E$16,Data!$AI$31:$AS$31,$G$15)),"") -> 0 | F60: =IFERROR(IF($G$15="ALL",SUMIFS(INDIRECT("Data!$AI$"&$D60+32&":$AS$"&$D60+32),Data!$AI$30:$AS$30,F$16),SUMIFS(INDIRECT("Data!$AI$"&$D60+32&":$AS$"&$D60+32),Data!$AI$30:$AS$30,F$16,Data!$AI$31:$AS$31,$G$15)),"") -> 66 | G60: =IFERROR(IF($G$15="ALL",SUMIFS(INDIRECT("Data!$AI$"&$D60+32&":$AS$"&$D60+32),Data!$AI$30:$AS$30,G$16),SUMIFS(INDIRECT("Data!$AI$"&$D60+32&":$AS$"&$D60+32),Data!$AI$30:$AS$30,G$16,Data!$AI$31:$AS$31,$G$15)),"") -> 0 | H60: =IFERROR(IF($G$15="ALL",SUMIFS(INDIRECT("Data!$AI$"&$D60+32&":$AS$"&$D60+32),Data!$AI$30:$AS$30,H$16),SUMIFS(INDIRECT("Data!$AI$"&$D60+32&":$AS$"&$D60+32),Data!$AI$30:$AS$30,H$16,Data!$AI$31:$AS$31,$G$15)),"") -> 0 | I60: 66 | J60: =IFERROR((SUMIFS(INDIRECT("Data!$AI$"&$D60+32&":$AS$"&$D60+32),Data!$AI$30:$AS$30,J$16))/(INDEX(Data!$K$33:$K$82,$D60,1)),"") -> 4.619047619 | K60: =IFERROR((SUMIFS(INDIRECT("Data!$AI$"&$D60+32&":$AS$"&$D60+32),Data!$AI$30:$AS$30,K$16))/(INDEX(Data!$L$33:$L$82,$D60,1)),"") -> 4.85106383 | L60: =IFERROR((SUMIFS(INDIRECT("Data!$AI$"&$D60+32&":$AS$"&$D60+32),Data!$AI$30:$AS$30,L$16))/(INDEX(Data!$M$33:$M$82,$D60,1)),"") -> 3.450980392 | M60: =IFERROR((SUMIFS(INDIRECT("Data!$AI$"&$D60+32&":$AS$"&$D60+32),Data!$AI$30:$AS$30,M$16))/(INDEX(Data!$N$33:$N$82,$D60,1)),"") -> 6 | N60: =IFERROR((SUM(INDIRECT("Data!$AI$"&$D60+32&":$AS$"&$D60+32)))/(INDEX(Data!$K$33:$K$82,$D60,1)+INDEX(Data!$L$33:$L$82,$D60,1)+INDEX(Data!$M$33:$M$82,$D60,1)+INDEX(Data!$N$33:$N$82,$D60,1)),"") -> 4.386666667
B61: ='Report A'!$B62 -> 2014-07-31 | C61: ='Report A'!$C62 -> Thursday | D61: ='Report A'!$D62 -> 31 | E61: =IFERROR(IF($G$15="ALL",SUMIFS(INDIRECT("Data!$AI$"&$D61+32&":$AS$"&$D61+32),Data!$AI$30:$AS$30,E$16),SUMIFS(INDIRECT("Data!$AI$"&$D61+32&":$AS$"&$D61+32),Data!$AI$30:$AS$30,E$16,Data!$AI$31:$AS$31,$G$15)),"") -> 0 | F61: =IFERROR(IF($G$15="ALL",SUMIFS(INDIRECT("Data!$AI$"&$D61+32&":$AS$"&$D61+32),Data!$AI$30:$AS$30,F$16),SUMIFS(INDIRECT("Data!$AI$"&$D61+32&":$AS$"&$D61+32),Data!$AI$30:$AS$30,F$16,Data!$AI$31:$AS$31,$G$15)),"") -> 40 | G61: =IFERROR(IF($G$15="ALL",SUMIFS(INDIRECT("Data!$AI$"&$D61+32&":$AS$"&$D61+32),Data!$AI$30:$AS$30,G$16),SUMIFS(INDIRECT("Data!$AI$"&$D61+32&":$AS$"&$D61+32),Data!$AI$30:$AS$30,G$16,Data!$AI$31:$AS$31,$G$15)),"") -> 0 | H61: =IFERROR(IF($G$15="ALL",SUMIFS(INDIRECT("Data!$AI$"&$D61+32&":$AS$"&$D61+32),Data!$AI$30:$AS$30,H$16),SUMIFS(INDIRECT("Data!$AI$"&$D61+32&":$AS$"&$D61+32),Data!$AI$30:$AS$30,H$16,Data!$AI$31:$AS$31,$G$15)),"") -> 0 | I61: 40 | J61: =IFERROR((SUMIFS(INDIRECT("Data!$AI$"&$D61+32&":$AS$"&$D61+32),Data!$AI$30:$AS$30,J$16))/(INDEX(Data!$K$33:$K$82,$D61,1)),"") -> 4.409090909 | K61: =IFERROR((SUMIFS(INDIRECT("Data!$AI$"&$D61+32&":$AS$"&$D61+32),Data!$AI$30:$AS$30,K$16))/(INDEX(Data!$L$33:$L$82,$D61,1)),"") -> 4.625 | L61: =IFERROR((SUMIFS(INDIRECT("Data!$AI$"&$D61+32&":$AS$"&$D61+32),Data!$AI$30:$AS$30,L$16))/(INDEX(Data!$M$33:$M$82,$D61,1)),"") -> 4.228571429 | M61: =IFERROR((SUMIFS(INDIRECT("Data!$AI$"&$D61+32&":$AS$"&$D61+32),Data!$AI$30:$AS$30,M$16))/(INDEX(Data!$N$33:$N$82,$D61,1)),"") -> 5.6 | N61: =IFERROR((SUM(INDIRECT("Data!$AI$"&$D61+32&":$AS$"&$D61+32)))/(INDEX(Data!$K$33:$K$82,$D61,1)+INDEX(Data!$L$33:$L$82,$D61,1)+INDEX(Data!$M$33:$M$82,$D61,1)+INDEX(Data!$N$33:$N$82,$D61,1)),"") -> 4.519379845

Sheet Report D
C3: MONTHLY SALES REPORTING BY OUTLET
B6: SUBJECT | C6: REPORT D : AVERAGE SALES PER ROOM AND AVERAGE SALES PER PAX
B8: OUTLET | C8: =Data!$C$8 -> TSU
B10: MONTH / YEAR | C10: =Data!$C$10 -> July 2014
B12: MENU
B14: DATE | C14: DAY | D14: ROW | E14: AVERAGE SALES PER ROOM | H14: AVERAGE SALES PER PAX | K14: CHART : AVERAGE SALES PER ROOM AND AVERAGE SALES PER PAX
E15: A.M. | F15: P.M. | G15: TOTAL | H15: A.M. | I15: P.M. | J15: TOTAL
E17: ( RM ) | F17: ( RM ) | G17: ( RM ) | H17: ( RM ) | I17: ( RM ) | J17: ( RM )
B18: SUMMARY FOR MONTH | K18: LEGEND
B19: AVERAGE SALES | E19: =IFERROR(SUM(E$29:E$59)/COUNTIF($D$29:$D$59,">0"),"") -> 65.51878073 | F19: =IFERROR(SUM(F$29:F$59)/COUNTIF($D$29:$D$59,">0"),"") -> 80.61461456 | G19: 72.5431599 | H19: 17.50020303 | I19: 21.9954451 | J19: 19.53779492
B20: HIGHEST SALES | E20: =IFERROR(IF(LARGE(E$29:E$59,1)>0,LARGE(E$29:E$59,1),"NIL"),"NIL") -> 104.225 | F20: =IFERROR(IF(LARGE(F$29:F$59,1)>0,LARGE(F$29:F$59,1),"NIL"),"NIL") -> 138.5101449 | G20: 112.0292035 | H20: 22.5576087 | I20: 36.4778626 | J20: 30.0695962
B21: LOWEST SALES | E21: =IFERROR(IF(LARGE(E$29:E$59,COUNTIF(E$29:E$59,">0"))<>E$20,LARGE(E$29:E$59,COUNTIF(E$29:E$59,">0")),"NIL"),"NIL") -> 41.12058824 | F21: 37.2 | G21: 43.90925926 | H21: 11.75379147 | I21: 9.232116788 | J21: 11.59462103
B22: AVERAGE FOR | C22: MONDAY | E22: =IFERROR(SUMIF($C$29:$C$59,"Monday*",E$29:E$59)/COUNTIF($C$29:$C$59,"Monday*"),"") -> 61.68702146 | F22: =IFERROR(SUMIF($C$29:$C$59,"Monday*",F$29:F$59)/COUNTIF($C$29:$C$59,"Monday*"),"") -> 68.08046123 | G22: 64.07145595 | H22: 16.30679925 | I22: 18.43805365 | J22: 16.74049712
C23: TUESDAY | E23: =IFERROR(SUMIF($C$29:$C$59,"Tuesday*",E$29:E$59)/COUNTIF($C$29:$C$59,"Tuesday*"),"") -> 58.50326455 | F23: =IFERROR(SUMIF($C$29:$C$59,"Tuesday*",F$29:F$59)/COUNTIF($C$29:$C$59,"Tuesday*"),"") -> 67.27244222 | G23: 62.38740352 | H23: 17.23529283 | I23: 18.87279154 | J23: 17.95831486
C24: WEDNESDAY | E24: =IFERROR(SUMIF($C$29:$C$59,"Wednesday*",E$29:E$59)/COUNTIF($C$29:$C$59,"Wednesday*"),"") -> 44.57122269 | F24: =IFERROR(SUMIF($C$29:$C$59,"Wednesday*",F$29:F$59)/COUNTIF($C$29:$C$59,"Wednesday*"),"") -> 49.39707141 | G24: 46.28957984 | H24: 11.87637077 | I24: 14.3694572 | J24: 12.82365701
C25: THURSDAY | E25: =IFERROR(SUMIF($C$29:$C$59,"Thursday*",E$29:E$59)/COUNTIF($C$29:$C$59,"Thursday*"),"") -> 68.73347245 | F25: =IFERROR(SUMIF($C$29:$C$59,"Thursday*",F$29:F$59)/COUNTIF($C$29:$C$59,"Thursday*"),"") -> 75.81171361 | G25: 68.95973006 | H25: 17.02525809 | I25: 20.16800584 | J25: 17.70258447
C26: FRIDAY | E26: =IFERROR(SUMIF($C$29:$C$59,"Friday*",E$29:E$59)/COUNTIF($C$29:$C$59,"Friday*"),"") -> 81.43508893 | F26: =IFERROR(SUMIF($C$29:$C$59,"Friday*",F$29:F$59)/COUNTIF($C$29:$C$59,"Friday*"),"") -> 111.782538 | G26: 99.20880799 | H26: 19.95853313 | I26: 32.12150906 | J26: 26.48107555
C27: SATURDAY | E27: =IFERROR(SUMIF($C$29:$C$59,"Saturday*",E$29:E$59)/COUNTIF($C$29:$C$59,"Saturday*"),"") -> 77.46328424 | F27: =IFERROR(SUMIF($C$29:$C$59,"Saturday*",F$29:F$59)/COUNTIF($C$29:$C$59,"Saturday*"),"") -> 121.8587992 | G27: 99.60288013 | H27: 20.91637067 | I27: 30.31047906 | J27: 25.77453335
C28: SUNDAY | E28: =IFERROR(SUMIF($C$29:$C$59,"Sunday*",E$29:E$59)/COUNTIF($C$29:$C$59,"Sunday*"),"") -> 72.42520639 | F28: =IFERROR(SUMIF($C$29:$C$59,"Sunday*",F$29:F$59)/COUNTIF($C$29:$C$59,"Sunday*"),"") -> 82.43993037 | G28: 77.28045334 | H28: 20.77371835 | I28: 22.83183953 | J28: 21.81610913
B29: ='Report A'!$B32 -> 2014-07-01 | C29: ='Report A'!$C32 -> Tuesday | D29: ='Report A'!$D32 -> 1 | E29: =IFERROR('Report A'!$H32/(INDEX(Data!$K$33:$K$82,$D29,1)+INDEX(Data!$L$33:$L$82,$D29,1)),"") -> 57.13939394 | F29: =IFERROR('Report A'!$I32/(INDEX(Data!$M$33:$M$82,$D29,1)+INDEX(Data!$N$33:$N$82,$D29,1)),"") -> 47.50681818 | G29: =IFERROR('Report A'!$J32/(INDEX(Data!$K$33:$K$82,$D29,1)+INDEX(Data!$L$33:$L$82,$D29,1)+INDEX(Data!$M$33:$M$82,$D29,1)+INDEX(Data!$N$33:$N$82,$D29,1)),"") -> 51.63506494 | H29: =IFERROR('Report A'!$H32/(SUM(INDIRECT("Data!$AI$"&$D29+32&":$AN$"&$D29+32))),"") -> 16.25517241 | I29: =IFERROR('Report A'!$I32/(SUM(INDIRECT("Data!$AO$"&$D29+32&":$AS$"&$D29+32))),"") -> 14.12364865 | J29: =IFERROR('Report A'!$J32/(SUM(INDIRECT("Data!$AI$"&$D29+32&":$AS$"&$D29+32))),"") -> 15.06022727
B30: ='Report A'!$B33 -> 2014-07-02 | C30: ='Report A'!$C33 -> Wednesday | D30: ='Report A'!$D33 -> 2 | E30: =IFERROR('Report A'!$H33/(INDEX(Data!$K$33:$K$82,$D30,1)+INDEX(Data!$L$33:$L$82,$D30,1)),"") -> 60.921875 | F30: =IFERROR('Report A'!$I33/(INDEX(Data!$M$33:$M$82,$D30,1)+INDEX(Data!$N$33:$N$82,$D30,1)),"") -> 51.59230769 | G30: =IFERROR('Report A'!$J33/(INDEX(Data!$K$33:$K$82,$D30,1)+INDEX(Data!$L$33:$L$82,$D30,1)+INDEX(Data!$M$33:$M$82,$D30,1)+INDEX(Data!$N$33:$N$82,$D30,1)),"") -> 55.7971831 | H30: =IFERROR('Report A'!$H33/(SUM(INDIRECT("Data!$AI$"&$D30+32&":$AN$"&$D30+32))),"") -> 15.8495935 | I30: =IFERROR('Report A'!$I33/(SUM(INDIRECT("Data!$AO$"&$D30+32&":$AS$"&$D30+32))),"") -> 18.98207547 | J30: =IFERROR('Report A'!$J33/(SUM(INDIRECT("Data!$AI$"&$D30+32&":$AS$"&$D30+32))),"") -> 17.29956332
B31: ='Report A'!$B34 -> 2014-07-03 | C31: ='Report A'!$C34 -> Thursday | D31: ='Report A'!$D34 -> 3 | E31: =IFERROR('Report A'!$H34/(INDEX(Data!$K$33:$K$82,$D31,1)+INDEX(Data!$L$33:$L$82,$D31,1)),"") -> 71.14375 | F31: =IFERROR('Report A'!$I34/(INDEX(Data!$M$33:$M$82,$D31,1)+INDEX(Data!$N$33:$N$82,$D31,1)),"") -> 48.38135593 | G31: =IFERROR('Report A'!$J34/(INDEX(Data!$K$33:$K$82,$D31,1)+INDEX(Data!$L$33:$L$82,$D31,1)+INDEX(Data!$M$33:$M$82,$D31,1)+INDEX(Data!$N$33:$N$82,$D31,1)),"") -> 56.38571429 | H31: =IFERROR('Report A'!$H34/(SUM(INDIRECT("Data!$AI$"&$D31+32&":$AN$"&$D31+32))),"") -> 18.35967742 | I31: =IFERROR('Report A'!$I34/(SUM(INDIRECT("Data!$AO$"&$D31+32&":$AS$"&$D31+32))),"") -> 12.4650655 | J31: =IFERROR('Report A'!$J34/(SUM(INDIRECT("Data!$AI$"&$D31+32&":$AS$"&$D31+32))),"") -> 14.53569405
B32: ='Report A'!$B35 -> 2014-07-04 | C32: ='Report A'!$C35 -> Friday | D32: ='Report A'!$D35 -> 4 | E32: =IFERROR('Report A'!$H35/(INDEX(Data!$K$33:$K$82,$D32,1)+INDEX(Data!$L$33:$L$82,$D32,1)),"") -> 70.61090909 | F32: =IFERROR('Report A'!$I35/(INDEX(Data!$M$33:$M$82,$D32,1)+INDEX(Data!$N$33:$N$82,$D32,1)),"") -> 101.2507246 | G32: =IFERROR('Report A'!$J35/(INDEX(Data!$K$33:$K$82,$D32,1)+INDEX(Data!$L$33:$L$82,$D32,1)+INDEX(Data!$M$33:$M$82,$D32,1)+INDEX(Data!$N$33:$N$82,$D32,1)),"") -> 87.66048387 | H32: =IFERROR('Report A'!$H35/(SUM(INDIRECT("Data!$AI$"&$D32+32&":$AN$"&$D32+32))),"") -> 18.58181818 | I32: =IFERROR('Report A'!$I35/(SUM(INDIRECT("Data!$AO$"&$D32+32&":$AS$"&$D32+32))),"") -> 30.11336207 | J32: =IFERROR('Report A'!$J35/(SUM(INDIRECT("Data!$AI$"&$D32+32&":$AS$"&$D32+32))),"") -> 24.64829932
B33: ='Report A'!$B36 -> 2014-07-05 | C33: ='Report A'!$C36 -> Saturday | D33: ='Report A'!$D36 -> 5 | E33: =IFERROR('Report A'!$H36/(INDEX(Data!$K$33:$K$82,$D33,1)+INDEX(Data!$L$33:$L$82,$D33,1)),"") -> 89.09125 | F33: =IFERROR('Report A'!$I36/(INDEX(Data!$M$33:$M$82,$D33,1)+INDEX(Data!$N$33:$N$82,$D33,1)),"") -> 117.2606742 | G33: =IFERROR('Report A'!$J36/(INDEX(Data!$K$33:$K$82,$D33,1)+INDEX(Data!$L$33:$L$82,$D33,1)+INDEX(Data!$M$33:$M$82,$D33,1)+INDEX(Data!$N$33:$N$82,$D33,1)),"") -> 103.9260355 | H33: =IFERROR('Report A'!$H36/(SUM(INDIRECT("Data!$AI$"&$D33+32&":$AN$"&$D33+32))),"") -> 21.93015385 | I33: =IFERROR('Report A'!$I36/(SUM(INDIRECT("Data!$AO$"&$D33+32&":$AS$"&$D33+32))),"") -> 30.3377907 | J33: =IFERROR('Report A'!$J36/(SUM(INDIRECT("Data!$AI$"&$D33+32&":$AS$"&$D33+32))),"") -> 26.25336323
B34: ='Report A'!$B37 -> 2014-07-06 | C34: ='Report A'!$C37 -> Sunday | D34: ='Report A'!$D37 -> 6 | E34: =IFERROR('Report A'!$H37/(INDEX(Data!$K$33:$K$82,$D34,1)+INDEX(Data!$L$33:$L$82,$D34,1)),"") -> 73.4253012 | F34: =IFERROR('Report A'!$I37/(INDEX(Data!$M$33:$M$82,$D34,1)+INDEX(Data!$N$33:$N$82,$D34,1)),"") -> 67.48235294 | G34: =IFERROR('Report A'!$J37/(INDEX(Data!$K$33:$K$82,$D34,1)+INDEX(Data!$L$33:$L$82,$D34,1)+INDEX(Data!$M$33:$M$82,$D34,1)+INDEX(Data!$N$33:$N$82,$D34,1)),"") -> 71.16343284 | H34: =IFERROR('Report A'!$H37/(SUM(INDIRECT("Data!$AI$"&$D34+32&":$AN$"&$D34+32))),"") -> 22.00108303 | I34: =IFERROR('Report A'!$I37/(SUM(INDIRECT("Data!$AO$"&$D34+32&":$AS$"&$D34+32))),"") -> 19.12 | J34: =IFERROR('Report A'!$J37/(SUM(INDIRECT("Data!$AI$"&$D34+32&":$AS$"&$D34+32))),"") -> 20.86630197
B35: ='Report A'!$B38 -> 2014-07-07 | C35: ='Report A'!$C38 -> Monday | D35: ='Report A'!$D38 -> 7 | E35: =IFERROR('Report A'!$H38/(INDEX(Data!$K$33:$K$82,$D35,1)+INDEX(Data!$L$33:$L$82,$D35,1)),"") -> 59.01489362 | F35: =IFERROR('Report A'!$I38/(INDEX(Data!$M$33:$M$82,$D35,1)+INDEX(Data!$N$33:$N$82,$D35,1)),"") -> 53.07272727 | G35: =IFERROR('Report A'!$J38/(INDEX(Data!$K$33:$K$82,$D35,1)+INDEX(Data!$L$33:$L$82,$D35,1)+INDEX(Data!$M$33:$M$82,$D35,1)+INDEX(Data!$N$33:$N$82,$D35,1)),"") -> 55.325 | H35: =IFERROR('Report A'!$H38/(SUM(INDIRECT("Data!$AI$"&$D35+32&":$AN$"&$D35+32))),"") -> 17.12160494 | I35: =IFERROR('Report A'!$I38/(SUM(INDIRECT("Data!$AO$"&$D35+32&":$AS$"&$D35+32))),"") -> 13.57674419 | J35: =IFERROR('Report A'!$J38/(SUM(INDIRECT("Data!$AI$"&$D35+32&":$AS$"&$D35+32))),"") -> 14.81706263
B36: ='Report A'!$B39 -> 2014-07-08 | C36: ='Report A'!$C39 -> Tuesday | D36: ='Report A'!$D39 -> 8 | E36: =IFERROR('Report A'!$H39/(INDEX(Data!$K$33:$K$82,$D36,1)+INDEX(Data!$L$33:$L$82,$D36,1)),"") -> 67.9 | F36: =IFERROR('Report A'!$I39/(INDEX(Data!$M$33:$M$82,$D36,1)+INDEX(Data!$N$33:$N$82,$D36,1)),"") -> 49.69285714 | G36: =IFERROR('Report A'!$J39/(INDEX(Data!$K$33:$K$82,$D36,1)+INDEX(Data!$L$33:$L$82,$D36,1)+INDEX(Data!$M$33:$M$82,$D36,1)+INDEX(Data!$N$33:$N$82,$D36,1)),"") -> 54.48421053 | H36: =IFERROR('Report A'!$H39/(SUM(INDIRECT("Data!$AI$"&$D36+32&":$AN$"&$D36+32))),"") -> 20.45180723 | I36: =IFERROR('Report A'!$I39/(SUM(INDIRECT("Data!$AO$"&$D36+32&":$AS$"&$D36+32))),"") -> 13.58789062 | J36: =IFERROR('Report A'!$J39/(SUM(INDIRECT("Data!$AI$"&$D36+32&":$AS$"&$D36+32))),"") -> 15.26843658
B37: ='Report A'!$B40 -> 2014-07-09 | C37: ='Report A'!$C40 -> Wednesday | D37: ='Report A'!$D40 -> 9 | E37: =IFERROR('Report A'!$H40/(INDEX(Data!$K$33:$K$82,$D37,1)+INDEX(Data!$L$33:$L$82,$D37,1)),"") -> 56 | F37: =IFERROR('Report A'!$I40/(INDEX(Data!$M$33:$M$82,$D37,1)+INDEX(Data!$N$33:$N$82,$D37,1)),"") -> 46.8109375 | G37: =IFERROR('Report A'!$J40/(INDEX(Data!$K$33:$K$82,$D37,1)+INDEX(Data!$L$33:$L$82,$D37,1)+INDEX(Data!$M$33:$M$82,$D37,1)+INDEX(Data!$N$33:$N$82,$D37,1)),"") -> 50.34519231 | H37: =IFERROR('Report A'!$H40/(SUM(INDIRECT("Data!$AI$"&$D37+32&":$AN$"&$D37+32))),"") -> 16.84210526 | I37: =IFERROR('Report A'!$I40/(SUM(INDIRECT("Data!$AO$"&$D37+32&":$AS$"&$D37+32))),"") -> 13.43452915 | J37: =IFERROR('Report A'!$J40/(SUM(INDIRECT("Data!$AI$"&$D37+32&":$AS$"&$D37+32))),"") -> 14.70758427
B38: ='Report A'!$B41 -> 2014-07-10 | C38: ='Report A'!$C41 -> Thursday | D38: ='Report A'!$D41 -> 10 | E38: =IFERROR('Report A'!$H41/(INDEX(Data!$K$33:$K$82,$D38,1)+INDEX(Data!$L$33:$L$82,$D38,1)),"") -> 86.47083333 | F38: =IFERROR('Report A'!$I41/(INDEX(Data!$M$33:$M$82,$D38,1)+INDEX(Data!$N$33:$N$82,$D38,1)),"") -> 41.49253731 | G38: =IFERROR('Report A'!$J41/(INDEX(Data!$K$33:$K$82,$D38,1)+INDEX(Data!$L$33:$L$82,$D38,1)+INDEX(Data!$M$33:$M$82,$D38,1)+INDEX(Data!$N$33:$N$82,$D38,1)),"") -> 53.35494505 | H38: =IFERROR('Report A'!$H41/(SUM(INDIRECT("Data!$AI$"&$D38+32&":$AN$"&$D38+32))),"") -> 22.5576087 | I38: =IFERROR('Report A'!$I41/(SUM(INDIRECT("Data!$AO$"&$D38+32&":$AS$"&$D38+32))),"") -> 11.48760331 | J38: =IFERROR('Report A'!$J41/(SUM(INDIRECT("Data!$AI$"&$D38+32&":$AS$"&$D38+32))),"") -> 14.53682635
B39: ='Report A'!$B42 -> 2014-07-11 | C39: ='Report A'!$C42 -> Friday | D39: ='Report A'!$D42 -> 11 | E39: =IFERROR('Report A'!$H42/(INDEX(Data!$K$33:$K$82,$D39,1)+INDEX(Data!$L$33:$L$82,$D39,1)),"") -> 104.225 | F39: =IFERROR('Report A'!$I42/(INDEX(Data!$M$33:$M$82,$D39,1)+INDEX(Data!$N$33:$N$82,$D39,1)),"") -> 110.9947368 | G39: =IFERROR('Report A'!$J42/(INDEX(Data!$K$33:$K$82,$D39,1)+INDEX(Data!$L$33:$L$82,$D39,1)+INDEX(Data!$M$33:$M$82,$D39,1)+INDEX(Data!$N$33:$N$82,$D39,1)),"") -> 108.0455446 | H39: =IFERROR('Report A'!$H42/(SUM(INDIRECT("Data!$AI$"&$D39+32&":$AN$"&$D39+32))),"") -> 20.11359649 | I39: =IFERROR('Report A'!$I42/(SUM(INDIRECT("Data!$AO$"&$D39+32&":$AS$"&$D39+32))),"") -> 34.57213115 | J39: =IFERROR('Report A'!$J42/(SUM(INDIRECT("Data!$AI$"&$D39+32&":$AS$"&$D39+32))),"") -> 26.5513382
B40: ='Report A'!$B43 -> 2014-07-12 | C40: ='Report A'!$C43 -> Saturday | D40: ='Report A'!$D43 -> 12 | E40: =IFERROR('Report A'!$H43/(INDEX(Data!$K$33:$K$82,$D40,1)+INDEX(Data!$L$33:$L$82,$D40,1)),"") -> 72.26777778 | F40: =IFERROR('Report A'!$I43/(INDEX(Data!$M$33:$M$82,$D40,1)+INDEX(Data!$N$33:$N$82,$D40,1)),"") -> 125.4756098 | G40: =IFERROR('Report A'!$J43/(INDEX(Data!$K$33:$K$82,$D40,1)+INDEX(Data!$L$33:$L$82,$D40,1)+INDEX(Data!$M$33:$M$82,$D40,1)+INDEX(Data!$N$33:$N$82,$D40,1)),"") -> 97.63430233 | H40: =IFERROR('Report A'!$H43/(SUM(INDIRECT("Data!$AI$"&$D40+32&":$AN$"&$D40+32))),"") -> 19.07360704 | I40: =IFERROR('Report A'!$I43/(SUM(INDIRECT("Data!$AO$"&$D40+32&":$AS$"&$D40+32))),"") -> 32.87220447 | J40: =IFERROR('Report A'!$J43/(SUM(INDIRECT("Data!$AI$"&$D40+32&":$AS$"&$D40+32))),"") -> 25.67752294
B41: ='Report A'!$B44 -> 2014-07-13 | C41: ='Report A'!$C44 -> Sunday | D41: ='Report A'!$D44 -> 13 | E41: =IFERROR('Report A'!$H44/(INDEX(Data!$K$33:$K$82,$D41,1)+INDEX(Data!$L$33:$L$82,$D41,1)),"") -> 74.51830986 | F41: =IFERROR('Report A'!$I44/(INDEX(Data!$M$33:$M$82,$D41,1)+INDEX(Data!$N$33:$N$82,$D41,1)),"") -> 72.6238806 | G41: =IFERROR('Report A'!$J44/(INDEX(Data!$K$33:$K$82,$D41,1)+INDEX(Data!$L$33:$L$82,$D41,1)+INDEX(Data!$M$33:$M$82,$D41,1)+INDEX(Data!$N$33:$N$82,$D41,1)),"") -> 73.59855072 | H41: =IFERROR('Report A'!$H44/(SUM(INDIRECT("Data!$AI$"&$D41+32&":$AN$"&$D41+32))),"") -> 22.13723849 | I41: =IFERROR('Report A'!$I44/(SUM(INDIRECT("Data!$AO$"&$D41+32&":$AS$"&$D41+32))),"") -> 21.5300885 | J41: =IFERROR('Report A'!$J44/(SUM(INDIRECT("Data!$AI$"&$D41+32&":$AS$"&$D41+32))),"") -> 21.84215054
B42: ='Report A'!$B45 -> 2014-07-14 | C42: ='Report A'!$C45 -> Monday | D42: ='Report A'!$D45 -> 14 | E42: =IFERROR('Report A'!$H45/(INDEX(Data!$K$33:$K$82,$D42,1)+INDEX(Data!$L$33:$L$82,$D42,1)),"") -> 55.315 | F42: =IFERROR('Report A'!$I45/(INDEX(Data!$M$33:$M$82,$D42,1)+INDEX(Data!$N$33:$N$82,$D42,1)),"") -> 37.2 | G42: =IFERROR('Report A'!$J45/(INDEX(Data!$K$33:$K$82,$D42,1)+INDEX(Data!$L$33:$L$82,$D42,1)+INDEX(Data!$M$33:$M$82,$D42,1)+INDEX(Data!$N$33:$N$82,$D42,1)),"") -> 43.90925926 | H42: =IFERROR('Report A'!$H45/(SUM(INDIRECT("Data!$AI$"&$D42+32&":$AN$"&$D42+32))),"") -> 16.38962963 | I42: =IFERROR('Report A'!$I45/(SUM(INDIRECT("Data!$AO$"&$D42+32&":$AS$"&$D42+32))),"") -> 9.232116788 | J42: =IFERROR('Report A'!$J45/(SUM(INDIRECT("Data!$AI$"&$D42+32&":$AS$"&$D42+32))),"") -> 11.59462103
B43: ='Report A'!$B46 -> 2014-07-15 | C43: ='Report A'!$C46 -> Tuesday | D43: ='Report A'!$D46 -> 15 | E43: =IFERROR('Report A'!$H46/(INDEX(Data!$K$33:$K$82,$D43,1)+INDEX(Data!$L$33:$L$82,$D43,1)),"") -> 48.15416667 | F43: =IFERROR('Report A'!$I46/(INDEX(Data!$M$33:$M$82,$D43,1)+INDEX(Data!$N$33:$N$82,$D43,1)),"") -> 75.21176471 | G43: =IFERROR('Report A'!$J46/(INDEX(Data!$K$33:$K$82,$D43,1)+INDEX(Data!$L$33:$L$82,$D43,1)+INDEX(Data!$M$33:$M$82,$D43,1)+INDEX(Data!$N$33:$N$82,$D43,1)),"") -> 59.37317073 | H43: =IFERROR('Report A'!$H46/(SUM(INDIRECT("Data!$AI$"&$D43+32&":$AN$"&$D43+32))),"") -> 16.05138889 | I43: =IFERROR('Report A'!$I46/(SUM(INDIRECT("Data!$AO$"&$D43+32&":$AS$"&$D43+32))),"") -> 20.13543307 | J43: =IFERROR('Report A'!$J46/(SUM(INDIRECT("Data!$AI$"&$D43+32&":$AS$"&$D43+32))),"") -> 17.96531365
B44: ='Report A'!$B47 -> 2014-07-16 | C44: ='Report A'!$C47 -> Wednesday | D44: ='Report A'!$D47 -> 16 | E44: =IFERROR('Report A'!$H47/(INDEX(Data!$K$33:$K$82,$D44,1)+INDEX(Data!$L$33:$L$82,$D44,1)),"") -> 0 | F44: =IFERROR('Report A'!$I47/(INDEX(Data!$M$33:$M$82,$D44,1)+INDEX(Data!$N$33:$N$82,$D44,1)),"") -> 0 | G44: =IFERROR('Report A'!$J47/(INDEX(Data!$K$33:$K$82,$D44,1)+INDEX(Data!$L$33:$L$82,$D44,1)+INDEX(Data!$M$33:$M$82,$D44,1)+INDEX(Data!$N$33:$N$82,$D44,1)),"") -> 0 | H44: =IFERROR('Report A'!$H47/(SUM(INDIRECT("Data!$AI$"&$D44+32&":$AN$"&$D44+32))),"") -> 0 | I44: =IFERROR('Report A'!$I47/(SUM(INDIRECT("Data!$AO$"&$D44+32&":$AS$"&$D44+32))),"") -> 0 | J44: =IFERROR('Report A'!$J47/(SUM(INDIRECT("Data!$AI$"&$D44+32&":$AS$"&$D44+32))),"") -> 0
B45: ='Report A'!$B48 -> 2014-07-17 | C45: ='Report A'!$C48 -> Thursday | D45: ='Report A'!$D48 -> 17 | E45: =IFERROR('Report A'!$H48/(INDEX(Data!$K$33:$K$82,$D45,1)+INDEX(Data!$L$33:$L$82,$D45,1)),"") -> 63.82702703 | F45: =IFERROR('Report A'!$I48/(INDEX(Data!$M$33:$M$82,$D45,1)+INDEX(Data!$N$33:$N$82,$D45,1)),"") -> 94.35833333 | G45: =IFERROR('Report A'!$J48/(INDEX(Data!$K$33:$K$82,$D45,1)+INDEX(Data!$L$33:$L$82,$D45,1)+INDEX(Data!$M$33:$M$82,$D45,1)+INDEX(Data!$N$33:$N$82,$D45,1)),"") -> 81.06823529 | H45: =IFERROR('Report A'!$H48/(SUM(INDIRECT("Data!$AI$"&$D45+32&":$AN$"&$D45+32))),"") -> 15.33506494 | I45: =IFERROR('Report A'!$I48/(SUM(INDIRECT("Data!$AO$"&$D45+32&":$AS$"&$D45+32))),"") -> 27.44969697 | J45: =IFERROR('Report A'!$J48/(SUM(INDIRECT("Data!$AI$"&$D45+32&":$AS$"&$D45+32))),"") -> 21.60125392
B46: ='Report A'!$B49 -> 2014-07-18 | C46: ='Report A'!$C49 -> Friday | D46: ='Report A'!$D49 -> 18 | E46: =IFERROR('Report A'!$H49/(INDEX(Data!$K$33:$K$82,$D46,1)+INDEX(Data!$L$33:$L$82,$D46,1)),"") -> 70.50227273 | F46: =IFERROR('Report A'!$I49/(INDEX(Data!$M$33:$M$82,$D46,1)+INDEX(Data!$N$33:$N$82,$D46,1)),"") -> 138.5101449 | G46: =IFERROR('Report A'!$J49/(INDEX(Data!$K$33:$K$82,$D46,1)+INDEX(Data!$L$33:$L$82,$D46,1)+INDEX(Data!$M$33:$M$82,$D46,1)+INDEX(Data!$N$33:$N$82,$D46,1)),"") -> 112.0292035 | H46: =IFERROR('Report A'!$H49/(SUM(INDIRECT("Data!$AI$"&$D46+32&":$AN$"&$D46+32))),"") -> 19.51006289 | I46: =IFERROR('Report A'!$I49/(SUM(INDIRECT("Data!$AO$"&$D46+32&":$AS$"&$D46+32))),"") -> 36.4778626 | J46: =IFERROR('Report A'!$J49/(SUM(INDIRECT("Data!$AI$"&$D46+32&":$AS$"&$D46+32))),"") -> 30.0695962
B47: ='Report A'!$B50 -> 2014-07-19 | C47: ='Report A'!$C50 -> Saturday | D47: ='Report A'!$D50 -> 19 | E47: =IFERROR('Report A'!$H50/(INDEX(Data!$K$33:$K$82,$D47,1)+INDEX(Data!$L$33:$L$82,$D47,1)),"") -> 65.54827586 | F47: =IFERROR('Report A'!$I50/(INDEX(Data!$M$33:$M$82,$D47,1)+INDEX(Data!$N$33:$N$82,$D47,1)),"") -> 117.4945652 | G47: =IFERROR('Report A'!$J50/(INDEX(Data!$K$33:$K$82,$D47,1)+INDEX(Data!$L$33:$L$82,$D47,1)+INDEX(Data!$M$33:$M$82,$D47,1)+INDEX(Data!$N$33:$N$82,$D47,1)),"") -> 92.24692737 | H47: =IFERROR('Report A'!$H50/(SUM(INDIRECT("Data!$AI$"&$D47+32&":$AN$"&$D47+32))),"") -> 20.29430605 | I47: =IFERROR('Report A'!$I50/(SUM(INDIRECT("Data!$AO$"&$D47+32&":$AS$"&$D47+32))),"") -> 29.1361186 | J47: =IFERROR('Report A'!$J50/(SUM(INDIRECT("Data!$AI$"&$D47+32&":$AS$"&$D47+32))),"") -> 25.32546012
B48: ='Report A'!$B51 -> 2014-07-20 | C48: ='Report A'!$C51 -> Sunday | D48: ='Report A'!$D51 -> 20 | E48: =IFERROR('Report A'!$H51/(INDEX(Data!$K$33:$K$82,$D48,1)+INDEX(Data!$L$33:$L$82,$D48,1)),"") -> 61.15402299 | F48: =IFERROR('Report A'!$I51/(INDEX(Data!$M$33:$M$82,$D48,1)+INDEX(Data!$N$33:$N$82,$D48,1)),"") -> 76.13818182 | G48: =IFERROR('Report A'!$J51/(INDEX(Data!$K$33:$K$82,$D48,1)+INDEX(Data!$L$33:$L$82,$D48,1)+INDEX(Data!$M$33:$M$82,$D48,1)+INDEX(Data!$N$33:$N$82,$D48,1)),"") -> 66.95774648 | H48: =IFERROR('Report A'!$H51/(SUM(INDIRECT("Data!$AI$"&$D48+32&":$AN$"&$D48+32))),"") -> 19.27681159 | I48: =IFERROR('Report A'!$I51/(SUM(INDIRECT("Data!$AO$"&$D48+32&":$AS$"&$D48+32))),"") -> 22.51397849 | J48: =IFERROR('Report A'!$J51/(SUM(INDIRECT("Data!$AI$"&$D48+32&":$AS$"&$D48+32))),"") -> 20.58008658
B49: ='Report A'!$B52 -> 2014-07-21 | C49: ='Report A'!$C52 -> Monday | D49: ='Report A'!$D52 -> 21 | E49: =IFERROR('Report A'!$H52/(INDEX(Data!$K$33:$K$82,$D49,1)+INDEX(Data!$L$33:$L$82,$D49,1)),"") -> 44.09210526 | F49: =IFERROR('Report A'!$I52/(INDEX(Data!$M$33:$M$82,$D49,1)+INDEX(Data!$N$33:$N$82,$D49,1)),"") -> 68.615 | G49: =IFERROR('Report A'!$J52/(INDEX(Data!$K$33:$K$82,$D49,1)+INDEX(Data!$L$33:$L$82,$D49,1)+INDEX(Data!$M$33:$M$82,$D49,1)+INDEX(Data!$N$33:$N$82,$D49,1)),"") -> 56.66794872 | H49: =IFERROR('Report A'!$H52/(SUM(INDIRECT("Data!$AI$"&$D49+32&":$AN$"&$D49+32))),"") -> 11.79929577 | I49: =IFERROR('Report A'!$I52/(SUM(INDIRECT("Data!$AO$"&$D49+32&":$AS$"&$D49+32))),"") -> 21.27596899 | J49: =IFERROR('Report A'!$J52/(SUM(INDIRECT("Data!$AI$"&$D49+32&":$AS$"&$D49+32))),"") -> 16.3103321
B50: ='Report A'!$B53 -> 2014-07-22 | C50: ='Report A'!$C53 -> Tuesday | D50: ='Report A'!$D53 -> 22 | E50: =IFERROR('Report A'!$H53/(INDEX(Data!$K$33:$K$82,$D50,1)+INDEX(Data!$L$33:$L$82,$D50,1)),"") -> 41.12058824 | F50: =IFERROR('Report A'!$I53/(INDEX(Data!$M$33:$M$82,$D50,1)+INDEX(Data!$N$33:$N$82,$D50,1)),"") -> 90.358 | G50: =IFERROR('Report A'!$J53/(INDEX(Data!$K$33:$K$82,$D50,1)+INDEX(Data!$L$33:$L$82,$D50,1)+INDEX(Data!$M$33:$M$82,$D50,1)+INDEX(Data!$N$33:$N$82,$D50,1)),"") -> 70.42857143 | H50: =IFERROR('Report A'!$H53/(SUM(INDIRECT("Data!$AI$"&$D50+32&":$AN$"&$D50+32))),"") -> 13.70686275 | I50: =IFERROR('Report A'!$I53/(SUM(INDIRECT("Data!$AO$"&$D50+32&":$AS$"&$D50+32))),"") -> 25.66988636 | J50: =IFERROR('Report A'!$J53/(SUM(INDIRECT("Data!$AI$"&$D50+32&":$AS$"&$D50+32))),"") -> 21.28057554
B51: ='Report A'!$B54 -> 2014-07-23 | C51: ='Report A'!$C54 -> Wednesday | D51: ='Report A'!$D54 -> 23 | E51: =IFERROR('Report A'!$H54/(INDEX(Data!$K$33:$K$82,$D51,1)+INDEX(Data!$L$33:$L$82,$D51,1)),"") -> 50.20277778 | F51: =IFERROR('Report A'!$I54/(INDEX(Data!$M$33:$M$82,$D51,1)+INDEX(Data!$N$33:$N$82,$D51,1)),"") -> 75.85588235 | G51: =IFERROR('Report A'!$J54/(INDEX(Data!$K$33:$K$82,$D51,1)+INDEX(Data!$L$33:$L$82,$D51,1)+INDEX(Data!$M$33:$M$82,$D51,1)+INDEX(Data!$N$33:$N$82,$D51,1)),"") -> 62.66285714 | H51: =IFERROR('Report A'!$H54/(SUM(INDIRECT("Data!$AI$"&$D51+32&":$AN$"&$D51+32))),"") -> 14.93636364 | I51: =IFERROR('Report A'!$I54/(SUM(INDIRECT("Data!$AO$"&$D51+32&":$AS$"&$D51+32))),"") -> 20.6328 | J51: =IFERROR('Report A'!$J54/(SUM(INDIRECT("Data!$AI$"&$D51+32&":$AS$"&$D51+32))),"") -> 17.83089431
B52: ='Report A'!$B55 -> 2014-07-24 | C52: ='Report A'!$C55 -> Thursday | D52: ='Report A'!$D55 -> 24 | E52: =IFERROR('Report A'!$H55/(INDEX(Data!$K$33:$K$82,$D52,1)+INDEX(Data!$L$33:$L$82,$D52,1)),"") -> 62.90789474 | F52: =IFERROR('Report A'!$I55/(INDEX(Data!$M$33:$M$82,$D52,1)+INDEX(Data!$N$33:$N$82,$D52,1)),"") -> 100.7463415 | G52: =IFERROR('Report A'!$J55/(INDEX(Data!$K$33:$K$82,$D52,1)+INDEX(Data!$L$33:$L$82,$D52,1)+INDEX(Data!$M$33:$M$82,$D52,1)+INDEX(Data!$N$33:$N$82,$D52,1)),"") -> 82.54556962 | H52: =IFERROR('Report A'!$H55/(SUM(INDIRECT("Data!$AI$"&$D52+32&":$AN$"&$D52+32))),"") -> 15.72697368 | I52: =IFERROR('Report A'!$I55/(SUM(INDIRECT("Data!$AO$"&$D52+32&":$AS$"&$D52+32))),"") -> 28.68472222 | J52: =IFERROR('Report A'!$J55/(SUM(INDIRECT("Data!$AI$"&$D52+32&":$AS$"&$D52+32))),"") -> 22.03074324
B53: ='Report A'!$B56 -> 2014-07-25 | C53: ='Report A'!$C56 -> Friday | D53: ='Report A'!$D56 -> 25 | E53: =IFERROR('Report A'!$H56/(INDEX(Data!$K$33:$K$82,$D53,1)+INDEX(Data!$L$33:$L$82,$D53,1)),"") -> 80.40217391 | F53: =IFERROR('Report A'!$I56/(INDEX(Data!$M$33:$M$82,$D53,1)+INDEX(Data!$N$33:$N$82,$D53,1)),"") -> 96.37454545 | G53: =IFERROR('Report A'!$J56/(INDEX(Data!$K$33:$K$82,$D53,1)+INDEX(Data!$L$33:$L$82,$D53,1)+INDEX(Data!$M$33:$M$82,$D53,1)+INDEX(Data!$N$33:$N$82,$D53,1)),"") -> 89.1 | H53: =IFERROR('Report A'!$H56/(SUM(INDIRECT("Data!$AI$"&$D53+32&":$AN$"&$D53+32))),"") -> 21.62865497 | I53: =IFERROR('Report A'!$I56/(SUM(INDIRECT("Data!$AO$"&$D53+32&":$AS$"&$D53+32))),"") -> 27.32268041 | J53: =IFERROR('Report A'!$J56/(SUM(INDIRECT("Data!$AI$"&$D53+32&":$AS$"&$D53+32))),"") -> 24.65506849
B54: ='Report A'!$B57 -> 2014-07-26 | C54: ='Report A'!$C57 -> Saturday | D54: ='Report A'!$D57 -> 26 | E54: =IFERROR('Report A'!$H57/(INDEX(Data!$K$33:$K$82,$D54,1)+INDEX(Data!$L$33:$L$82,$D54,1)),"") -> 82.94583333 | F54: =IFERROR('Report A'!$I57/(INDEX(Data!$M$33:$M$82,$D54,1)+INDEX(Data!$N$33:$N$82,$D54,1)),"") -> 127.2043478 | G54: =IFERROR('Report A'!$J57/(INDEX(Data!$K$33:$K$82,$D54,1)+INDEX(Data!$L$33:$L$82,$D54,1)+INDEX(Data!$M$33:$M$82,$D54,1)+INDEX(Data!$N$33:$N$82,$D54,1)),"") -> 104.6042553 | H54: =IFERROR('Report A'!$H57/(SUM(INDIRECT("Data!$AI$"&$D54+32&":$AN$"&$D54+32))),"") -> 22.36741573 | I54: =IFERROR('Report A'!$I57/(SUM(INDIRECT("Data!$AO$"&$D54+32&":$AS$"&$D54+32))),"") -> 28.89580247 | J54: =IFERROR('Report A'!$J57/(SUM(INDIRECT("Data!$AI$"&$D54+32&":$AS$"&$D54+32))),"") -> 25.84178712
B55: ='Report A'!$B58 -> 2014-07-27 | C55: ='Report A'!$C58 -> Sunday + | D55: ='Report A'!$D58 -> 27 | E55: =IFERROR('Report A'!$H58/(INDEX(Data!$K$33:$K$82,$D55,1)+INDEX(Data!$L$33:$L$82,$D55,1)),"") -> 80.60319149 | F55: =IFERROR('Report A'!$I58/(INDEX(Data!$M$33:$M$82,$D55,1)+INDEX(Data!$N$33:$N$82,$D55,1)),"") -> 113.5153061 | G55: =IFERROR('Report A'!$J58/(INDEX(Data!$K$33:$K$82,$D55,1)+INDEX(Data!$L$33:$L$82,$D55,1)+INDEX(Data!$M$33:$M$82,$D55,1)+INDEX(Data!$N$33:$N$82,$D55,1)),"") -> 97.40208333 | H55: =IFERROR('Report A'!$H58/(SUM(INDIRECT("Data!$AI$"&$D55+32&":$AN$"&$D55+32))),"") -> 19.67974026 | I55: =IFERROR('Report A'!$I58/(SUM(INDIRECT("Data!$AO$"&$D55+32&":$AS$"&$D55+32))),"") -> 28.16329114 | J55: =IFERROR('Report A'!$J58/(SUM(INDIRECT("Data!$AI$"&$D55+32&":$AS$"&$D55+32))),"") -> 23.97589744
B56: ='Report A'!$B59 -> 2014-07-28 | C56: ='Report A'!$C59 -> Monday ++ | D56: ='Report A'!$D59 -> 28 | E56: =IFERROR('Report A'!$H59/(INDEX(Data!$K$33:$K$82,$D56,1)+INDEX(Data!$L$33:$L$82,$D56,1)),"") -> 88.32608696 | F56: =IFERROR('Report A'!$I59/(INDEX(Data!$M$33:$M$82,$D56,1)+INDEX(Data!$N$33:$N$82,$D56,1)),"") -> 113.4341176 | G56: =IFERROR('Report A'!$J59/(INDEX(Data!$K$33:$K$82,$D56,1)+INDEX(Data!$L$33:$L$82,$D56,1)+INDEX(Data!$M$33:$M$82,$D56,1)+INDEX(Data!$N$33:$N$82,$D56,1)),"") -> 100.3836158 | H56: =IFERROR('Report A'!$H59/(SUM(INDIRECT("Data!$AI$"&$D56+32&":$AN$"&$D56+32))),"") -> 19.91666667 | I56: =IFERROR('Report A'!$I59/(SUM(INDIRECT("Data!$AO$"&$D56+32&":$AS$"&$D56+32))),"") -> 29.66738462 | J56: =IFERROR('Report A'!$J59/(SUM(INDIRECT("Data!$AI$"&$D56+32&":$AS$"&$D56+32))),"") -> 24.23997271
B57: ='Report A'!$B60 -> 2014-07-29 | C57: ='Report A'!$C60 -> Tuesday ++ | D57: ='Report A'!$D60 -> 29 | E57: =IFERROR('Report A'!$H60/(INDEX(Data!$K$33:$K$82,$D57,1)+INDEX(Data!$L$33:$L$82,$D57,1)),"") -> 78.20217391 | F57: =IFERROR('Report A'!$I60/(INDEX(Data!$M$33:$M$82,$D57,1)+INDEX(Data!$N$33:$N$82,$D57,1)),"") -> 73.59277108 | G57: =IFERROR('Report A'!$J60/(INDEX(Data!$K$33:$K$82,$D57,1)+INDEX(Data!$L$33:$L$82,$D57,1)+INDEX(Data!$M$33:$M$82,$D57,1)+INDEX(Data!$N$33:$N$82,$D57,1)),"") -> 76.016 | H57: =IFERROR('Report A'!$H60/(SUM(INDIRECT("Data!$AI$"&$D57+32&":$AN$"&$D57+32))),"") -> 19.71123288 | I57: =IFERROR('Report A'!$I60/(SUM(INDIRECT("Data!$AO$"&$D57+32&":$AS$"&$D57+32))),"") -> 20.84709898 | J57: =IFERROR('Report A'!$J60/(SUM(INDIRECT("Data!$AI$"&$D57+32&":$AS$"&$D57+32))),"") -> 20.21702128
B58: ='Report A'!$B61 -> 2014-07-30 | C58: ='Report A'!$C61 -> Wednesday | D58: ='Report A'!$D61 -> 30 | E58: =IFERROR('Report A'!$H61/(INDEX(Data!$K$33:$K$82,$D58,1)+INDEX(Data!$L$33:$L$82,$D58,1)),"") -> 55.73146067 | F58: =IFERROR('Report A'!$I61/(INDEX(Data!$M$33:$M$82,$D58,1)+INDEX(Data!$N$33:$N$82,$D58,1)),"") -> 72.72622951 | G58: =IFERROR('Report A'!$J61/(INDEX(Data!$K$33:$K$82,$D58,1)+INDEX(Data!$L$33:$L$82,$D58,1)+INDEX(Data!$M$33:$M$82,$D58,1)+INDEX(Data!$N$33:$N$82,$D58,1)),"") -> 62.64266667 | H58: =IFERROR('Report A'!$H61/(SUM(INDIRECT("Data!$AI$"&$D58+32&":$AN$"&$D58+32))),"") -> 11.75379147 | I58: =IFERROR('Report A'!$I61/(SUM(INDIRECT("Data!$AO$"&$D58+32&":$AS$"&$D58+32))),"") -> 18.79788136 | J58: =IFERROR('Report A'!$J61/(SUM(INDIRECT("Data!$AI$"&$D58+32&":$AS$"&$D58+32))),"") -> 14.28024316
B59: ='Report A'!$B62 -> 2014-07-31 | C59: ='Report A'!$C62 -> Thursday | D59: ='Report A'!$D62 -> 31 | E59: =IFERROR('Report A'!$H62/(INDEX(Data!$K$33:$K$82,$D59,1)+INDEX(Data!$L$33:$L$82,$D59,1)),"") -> 59.31785714 | F59: =IFERROR('Report A'!$I62/(INDEX(Data!$M$33:$M$82,$D59,1)+INDEX(Data!$N$33:$N$82,$D59,1)),"") -> 94.08 | G59: =IFERROR('Report A'!$J62/(INDEX(Data!$K$33:$K$82,$D59,1)+INDEX(Data!$L$33:$L$82,$D59,1)+INDEX(Data!$M$33:$M$82,$D59,1)+INDEX(Data!$N$33:$N$82,$D59,1)),"") -> 71.44418605 | H59: =IFERROR('Report A'!$H62/(SUM(INDIRECT("Data!$AI$"&$D59+32&":$AN$"&$D59+32))),"") -> 13.1469657 | I59: =IFERROR('Report A'!$I62/(SUM(INDIRECT("Data!$AO$"&$D59+32&":$AS$"&$D59+32))),"") -> 20.75294118 | J59: =IFERROR('Report A'!$J62/(SUM(INDIRECT("Data!$AI$"&$D59+32&":$AS$"&$D59+32))),"") -> 15.8084048

Sheet Report E
C3: MONTHLY SALES REPORTING BY OUTLET
B6: SUBJECT | C6: REPORT E : PERFORMANCE OF PROMOTIONAL SALES
B8: OUTLET | C8: =Data!$C$8 -> TSU
B10: MONTH / YEAR | C10: =Data!$C$10 -> July 2014
B12: MENU
B14: DATE | C14: DAY | D14: ROW | E14: TYPE 01 | F14: TYPE 02 | G14: TYPE 03 | H14: TYPE 04 | I14: TYPE 05 | J14: TYPE 06 | K14: TYPE 07 | L14: TYPE 08 | M14: TYPE 09 | N14: TYPE 10 | O14: LIST 01 | P14: LIST 02 | Q14: LIST 03 | R14: LIST 04 | S14: LIST 05 | T14: LIST 06 | U14: LIST 07 | V14: LIST 08 | W14: LIST 09 | X14: CHOOSE PROMOTION | Z14: Tiger (2+1) Round | AC14: ="CHART : PERFORMANCE OF "&$Z$14 -> CHART : PERFORMANCE OF Tiger (2+1) Round
O15: TYPE 01 | P15: TYPE 03 | Q15: TYPE 05 | R15: TYPE 07 | S15: TYPE 09 | T15: LIST 01 | U15: LIST 03 | V15: LIST 05 | W15: LIST 07
O16: TYPE 02 | P16: TYPE 04 | Q16: TYPE 06 | R16: TYPE 08 | S16: TYPE 10 | T16: LIST 02 | U16: LIST 04 | V16: LIST 06 | W16: LIST 08 | X16: NOON K | Y16: HAPPY | Z16: NORMAL | AA16: MIDNIGHT | AB16: ALL
E17: AT | F17: AY | G17: BD | H17: BI | I17: BN | J17: BS | K17: BX | L17: CC | M17: CH | N17: CM | X17: ( item ) | Y17: ( item ) | Z17: ( item ) | AA17: ( item ) | AB17: ( item )
B18: SUMMARY FOR MONTH | AC18: LEGEND
B19: TOTAL SALES | X19: =SUM(X$30:X$60) -> 0 | Y19: =SUM(Y$30:Y$60) -> 0 | Z19: 13 | AA19: 0 | AB19: 13
B20: AVERAGE SALES | X20: =IFERROR(SUM(X$30:X$60)/COUNTIF($D$30:$D$60,">0"),"") -> 0 | Y20: =IFERROR(SUM(Y$30:Y$60)/COUNTIF($D$30:$D$60,">0"),"") -> 0 | Z20: 0.4193548387 | AA20: 0 | AB20: 0.4193548387
B21: HIGHEST SALES | X21: =IFERROR(IF(LARGE(X$30:X$60,1)>0,LARGE(X$30:X$60,1),"NIL"),"NIL") -> NIL | Y21: =IFERROR(IF(LARGE(Y$30:Y$60,1)>0,LARGE(Y$30:Y$60,1),"NIL"),"NIL") -> NIL | Z21: 5 | AA21: NIL | AB21: 5
B22: LOWEST SALES | X22: =IFERROR(IF(LARGE(X$30:X$60,COUNTIF(X$30:X$60,">0"))<>X$21,LARGE(X$30:X$60,COUNTIF(X$30:X$60,">0")),"NIL"),"NIL") -> NIL | Y22: =IFERROR(IF(LARGE(Y$30:Y$60,COUNTIF(Y$30:Y$60,">0"))<>Y$21,LARGE(Y$30:Y$60,COUNTIF(Y$30:Y$60,">0")),"NIL"),"NIL") -> NIL | Z22: =IFERROR(IF(LARGE(Z$30:Z$60,COUNTIF(Z$30:Z$60,">0"))<>Z$21,LARGE(Z$30:Z$60,COUNTIF(Z$30:Z$60,">0")),"NIL"),"NIL") -> 1 | AA22: =IFERROR(IF(LARGE(AA$30:AA$60,COUNTIF(AA$30:AA$60,">0"))<>AA$21,LARGE(AA$30:AA$60,COUNTIF(AA$30:AA$60,">0")),"NIL"),"NIL") -> NIL | AB22: =IFERROR(IF(LARGE(AB$30:AB$60,COUNTIF(AB$30:AB$60,">0"))<>AB$21,LARGE(AB$30:AB$60,COUNTIF(AB$30:AB$60,">0")),"NIL"),"NIL") -> 1
B23: AVERAGE FOR | C23: MONDAY | X23: =IFERROR(SUMIF($C$30:$C$60,"Monday*",X$30:X$60)/COUNTIF($C$30:$C$60,"Monday*"),"") -> 0 | Y23: =IFERROR(SUMIF($C$30:$C$60,"Monday*",Y$30:Y$60)/COUNTIF($C$30:$C$60,"Monday*"),"") -> 0 | Z23: 1.5 | AA23: 0 | AB23: 1.5
C24: TUESDAY | X24: =IFERROR(SUMIF($C$30:$C$60,"Tuesday*",X$30:X$60)/COUNTIF($C$30:$C$60,"Tuesday*"),"") -> 0 | Y24: =IFERROR(SUMIF($C$30:$C$60,"Tuesday*",Y$30:Y$60)/COUNTIF($C$30:$C$60,"Tuesday*"),"") -> 0 | Z24: 0 | AA24: 0 | AB24: 0
C25: WEDNESDAY | X25: =IFERROR(SUMIF($C$30:$C$60,"Wednesday*",X$30:X$60)/COUNTIF($C$30:$C$60,"Wednesday*"),"") -> 0 | Y25: =IFERROR(SUMIF($C$30:$C$60,"Wednesday*",Y$30:Y$60)/COUNTIF($C$30:$C$60,"Wednesday*"),"") -> 0 | Z25: 1.4 | AA25: 0 | AB25: 1.4
C26: THURSDAY | X26: =IFERROR(SUMIF($C$30:$C$60,"Thursday*",X$30:X$60)/COUNTIF($C$30:$C$60,"Thursday*"),"") -> 0 | Y26: =IFERROR(SUMIF($C$30:$C$60,"Thursday*",Y$30:Y$60)/COUNTIF($C$30:$C$60,"Thursday*"),"") -> 0 | Z26: 0 | AA26: 0 | AB26: 0
C27: FRIDAY | X27: =IFERROR(SUMIF($C$30:$C$60,"Friday*",X$30:X$60)/COUNTIF($C$30:$C$60,"Friday*"),"") -> 0 | Y27: =IFERROR(SUMIF($C$30:$C$60,"Friday*",Y$30:Y$60)/COUNTIF($C$30:$C$60,"Friday*"),"") -> 0 | Z27: 0 | AA27: 0 | AB27: 0
C28: SATURDAY | X28: =IFERROR(SUMIF($C$30:$C$60,"Saturday*",X$30:X$60)/COUNTIF($C$30:$C$60,"Saturday*"),"") -> 0 | Y28: =IFERROR(SUMIF($C$30:$C$60,"Saturday*",Y$30:Y$60)/COUNTIF($C$30:$C$60,"Saturday*"),"") -> 0 | Z28: 0 | AA28: 0 | AB28: 0
C29: SUNDAY | X29: =IFERROR(SUMIF($C$30:$C$60,"Sunday*",X$30:X$60)/COUNTIF($C$30:$C$60,"Sunday*"),"") -> 0 | Y29: =IFERROR(SUMIF($C$30:$C$60,"Sunday*",Y$30:Y$60)/COUNTIF($C$30:$C$60,"Sunday*"),"") -> 0 | Z29: 0 | AA29: 0 | AB29: 0
B30: ='Report A'!$B32 -> 2014-07-01 | C30: ='Report A'!$C32 -> Tuesday | D30: ='Report A'!$D32 -> 1 | E30: =IFERROR(INDIRECT("Data!"&E$17&$D30+32),"") -> K-Lunch | F30: LOK-LOK | G30: Member 30% | H30: Member Package | I30: Tiger (2+1) Round | J30: Student Member Card | K30: Student Member Price | L30: 0 | M30: 0 | N30: 0 | O30: =IFERROR(IFERROR(INDEX(($E$30:$E$60), MATCH(0, COUNTIF($O$29:O29, ($E$30:$E$60)), 0)), INDEX(($F$30:$F$60), MATCH(0, COUNTIF($O$29:O29, ($F$30:$F$60)), 0))), "") -> K-Lunch | P30: =IFERROR(IFERROR(INDEX(($G$30:$G$60), MATCH(0, COUNTIF($P$29:P29, ($G$30:$G$60)), 0)), INDEX(($H$30:$H$60), MATCH(0, COUNTIF($P$29:P29, ($H$30:$H$60)), 0))), "") -> Member 30% | Q30: =IFERROR(IFERROR(INDEX(($I$30:$I$60), MATCH(0, COUNTIF($Q$29:Q29, ($I$30:$I$60)), 0)), INDEX(($J$30:$J$60), MATCH(0, COUNTIF($Q$29:Q29, ($J$30:$J$60)), 0))), "") -> Tiger (2+1) Round | R30: =IFERROR(IFERROR(INDEX(($K$30:$K$60), MATCH(0, COUNTIF($R$29:R29, ($K$30:$K$60)), 0)), INDEX(($L$30:$L$60), MATCH(0, COUNTIF($R$29:R29, ($L$30:$L$60)), 0))), "") -> Student Member Price | S30: =IFERROR(IFERROR(INDEX(($M$30:$M$60), MATCH(0, COUNTIF($S$29:S29, ($M$30:$M$60)), 0)), INDEX(($N$30:$N$60), MATCH(0, COUNTIF($S$29:S29, ($N$30:$N$60)), 0))), "") -> 0 | T30: =IFERROR(IFERROR(INDEX(($O$30:$O$60), MATCH(0, COUNTIF($T$29:T29, ($O$30:$O$60)), 0)), INDEX(($P$30:$P$60), MATCH(0, COUNTIF($T$29:T29, ($P$30:$P$60)), 0))), "") -> K-Lunch | U30: =IFERROR(IFERROR(INDEX(($Q$30:$Q$60), MATCH(0, COUNTIF($U$29:U29, ($Q$30:$Q$60)), 0)), INDEX(($R$30:$R$60), MATCH(0, COUNTIF($U$29:U29, ($R$30:$R$60)), 0))), "") -> Tiger (2+1) Round | V30: =IFERROR(IFERROR(INDEX(($S$30:$S$60), MATCH(0, COUNTIF($V$29:V29, ($S$30:$S$60)), 0)), INDEX(($T$30:$T$60), MATCH(0, COUNTIF($V$29:V29, ($T$30:$T$60)), 0))), "") -> 0 | W30: =IFERROR(IFERROR(INDEX(($U$30:$U$60), MATCH(0, COUNTIF($W$29:W29, ($U$30:$U$60)), 0)), INDEX(($V$30:$V$60), MATCH(0, COUNTIF($W$29:W29, ($V$30:$V$60)), 0))), "") -> Tiger (2+1) Round | X30: =IFERROR(INDEX((Data!$AT$33:$AX$82,Data!$AY$33:$BC$82,Data!$BD$33:$BH$82,Data!$BI$33:$BM$82,Data!$BN$33:$BR$82,Data!$BS$33:$BW$82,Data!$BX$33:$CB$82,Data!$CC$33:$CG$82,Data!$CH$33:$CL$82,Data!$CM$33:$CQ$82),$D30,2,CHOOSE(MATCH($Z$14,INDIRECT("Data!$AT$"&$D30+32&":$CM$"&$D30+32),0),1,0,0,0,0,2,0,0,0,0,3,0,0,0,0,4,0,0,0,0,5,0,0,0,0,6,0,0,0,0,7,0,0,0,0,8,0,0,0,0,9,0,0,0,0,10)),"") -> 0 | Y30: =IFERROR(INDEX((Data!$AT$33:$AX$82,Data!$AY$33:$BC$82,Data!$BD$33:$BH$82,Data!$BI$33:$BM$82,Data!$BN$33:$BR$82,Data!$BS$33:$BW$82,Data!$BX$33:$CB$82,Data!$CC$33:$CG$82,Data!$CH$33:$CL$82,Data!$CM$33:$CQ$82),$D30,3,CHOOSE(MATCH($Z$14,INDIRECT("Data!$AT$"&$D30+32&":$CM$"&$D30+32),0),1,0,0,0,0,2,0,0,0,0,3,0,0,0,0,4,0,0,0,0,5,0,0,0,0,6,0,0,0,0,7,0,0,0,0,8,0,0,0,0,9,0,0,0,0,10)),"") -> 0 | Z30: =IFERROR(INDEX((Data!$AT$33:$AX$82,Data!$AY$33:$BC$82,Data!$BD$33:$BH$82,Data!$BI$33:$BM$82,Data!$BN$33:$BR$82,Data!$BS$33:$BW$82,Data!$BX$33:$CB$82,Data!$CC$33:$CG$82,Data!$CH$33:$CL$82,Data!$CM$33:$CQ$82),$D30,4,CHOOSE(MATCH($Z$14,INDIRECT("Data!$AT$"&$D30+32&":$CM$"&$D30+32),0),1,0,0,0,0,2,0,0,0,0,3,0,0,0,0,4,0,0,0,0,5,0,0,0,0,6,0,0,0,0,7,0,0,0,0,8,0,0,0,0,9,0,0,0,0,10)),"") -> 0 | AA30: =IFERROR(INDEX((Data!$AT$33:$AX$82,Data!$AY$33:$BC$82,Data!$BD$33:$BH$82,Data!$BI$33:$BM$82,Data!$BN$33:$BR$82,Data!$BS$33:$BW$82,Data!$BX$33:$CB$82,Data!$CC$33:$CG$82,Data!$CH$33:$CL$82,Data!$CM$33:$CQ$82),$D30,5,CHOOSE(MATCH($Z$14,INDIRECT("Data!$AT$"&$D30+32&":$CM$"&$D30+32),0),1,0,0,0,0,2,0,0,0,0,3,0,0,0,0,4,0,0,0,0,5,0,0,0,0,6,0,0,0,0,7,0,0,0,0,8,0,0,0,0,9,0,0,0,0,10)),"") -> 0 | AB30: =IFERROR(SUM($X30:$AA30),"") -> 0
B31: ='Report A'!$B33 -> 2014-07-02 | C31: ='Report A'!$C33 -> Wednesday | D31: ='Report A'!$D33 -> 2 | E31: K-Lunch | F31: LOK-LOK | G31: Member 30% | H31: Member Package | I31: Tiger (2+1) Round | J31: Student Member Card | K31: Student Member Price | L31: 0 | M31: 0 | N31: 0 | O31: =IFERROR(IFERROR(INDEX(($E$30:$E$60), MATCH(0, COUNTIF($O$29:O30, ($E$30:$E$60)), 0)), INDEX(($F$30:$F$60), MATCH(0, COUNTIF($O$29:O30, ($F$30:$F$60)), 0))), "") -> LOK-LOK | P31: =IFERROR(IFERROR(INDEX(($G$30:$G$60), MATCH(0, COUNTIF($P$29:P30, ($G$30:$G$60)), 0)), INDEX(($H$30:$H$60), MATCH(0, COUNTIF($P$29:P30, ($H$30:$H$60)), 0))), "") -> Member Package | Q31: =IFERROR(IFERROR(INDEX(($I$30:$I$60), MATCH(0, COUNTIF($Q$29:Q30, ($I$30:$I$60)), 0)), INDEX(($J$30:$J$60), MATCH(0, COUNTIF($Q$29:Q30, ($J$30:$J$60)), 0))), "") -> Student Member Card | R31: =IFERROR(IFERROR(INDEX(($K$30:$K$60), MATCH(0, COUNTIF($R$29:R30, ($K$30:$K$60)), 0)), INDEX(($L$30:$L$60), MATCH(0, COUNTIF($R$29:R30, ($L$30:$L$60)), 0))), "") -> 0 | S31: =IFERROR(IFERROR(INDEX(($M$30:$M$60), MATCH(0, COUNTIF($S$29:S30, ($M$30:$M$60)), 0)), INDEX(($N$30:$N$60), MATCH(0, COUNTIF($S$29:S30, ($N$30:$N$60)), 0))), "") ->  | T31: =IFERROR(IFERROR(INDEX(($O$30:$O$60), MATCH(0, COUNTIF($T$29:T30, ($O$30:$O$60)), 0)), INDEX(($P$30:$P$60), MATCH(0, COUNTIF($T$29:T30, ($P$30:$P$60)), 0))), "") -> LOK-LOK | U31: =IFERROR(IFERROR(INDEX(($Q$30:$Q$60), MATCH(0, COUNTIF($U$29:U30, ($Q$30:$Q$60)), 0)), INDEX(($R$30:$R$60), MATCH(0, COUNTIF($U$29:U30, ($R$30:$R$60)), 0))), "") -> Student Member Card | V31: =IFERROR(IFERROR(INDEX(($S$30:$S$60), MATCH(0, COUNTIF($V$29:V30, ($S$30:$S$60)), 0)), INDEX(($T$30:$T$60), MATCH(0, COUNTIF($V$29:V30, ($T$30:$T$60)), 0))), "") -> K-Lunch | W31: =IFERROR(IFERROR(INDEX(($U$30:$U$60), MATCH(0, COUNTIF($W$29:W30, ($U$30:$U$60)), 0)), INDEX(($V$30:$V$60), MATCH(0, COUNTIF($W$29:W30, ($V$30:$V$60)), 0))), "") -> Student Member Card | X31: =IFERROR(INDEX((Data!$AT$33:$AX$82,Data!$AY$33:$BC$82,Data!$BD$33:$BH$82,Data!$BI$33:$BM$82,Data!$BN$33:$BR$82,Data!$BS$33:$BW$82,Data!$BX$33:$CB$82,Data!$CC$33:$CG$82,Data!$CH$33:$CL$82,Data!$CM$33:$CQ$82),$D31,2,CHOOSE(MATCH($Z$14,INDIRECT("Data!$AT$"&$D31+32&":$CM$"&$D31+32),0),1,0,0,0,0,2,0,0,0,0,3,0,0,0,0,4,0,0,0,0,5,0,0,0,0,6,0,0,0,0,7,0,0,0,0,8,0,0,0,0,9,0,0,0,0,10)),"") -> 0 | Y31: =IFERROR(INDEX((Data!$AT$33:$AX$82,Data!$AY$33:$BC$82,Data!$BD$33:$BH$82,Data!$BI$33:$BM$82,Data!$BN$33:$BR$82,Data!$BS$33:$BW$82,Data!$BX$33:$CB$82,Data!$CC$33:$CG$82,Data!$CH$33:$CL$82,Data!$CM$33:$CQ$82),$D31,3,CHOOSE(MATCH($Z$14,INDIRECT("Data!$AT$"&$D31+32&":$CM$"&$D31+32),0),1,0,0,0,0,2,0,0,0,0,3,0,0,0,0,4,0,0,0,0,5,0,0,0,0,6,0,0,0,0,7,0,0,0,0,8,0,0,0,0,9,0,0,0,0,10)),"") -> 0 | Z31: =IFERROR(INDEX((Data!$AT$33:$AX$82,Data!$AY$33:$BC$82,Data!$BD$33:$BH$82,Data!$BI$33:$BM$82,Data!$BN$33:$BR$82,Data!$BS$33:$BW$82,Data!$BX$33:$CB$82,Data!$CC$33:$CG$82,Data!$CH$33:$CL$82,Data!$CM$33:$CQ$82),$D31,4,CHOOSE(MATCH($Z$14,INDIRECT("Data!$AT$"&$D31+32&":$CM$"&$D31+32),0),1,0,0,0,0,2,0,0,0,0,3,0,0,0,0,4,0,0,0,0,5,0,0,0,0,6,0,0,0,0,7,0,0,0,0,8,0,0,0,0,9,0,0,0,0,10)),"") -> 1 | AA31: =IFERROR(INDEX((Data!$AT$33:$AX$82,Data!$AY$33:$BC$82,Data!$BD$33:$BH$82,Data!$BI$33:$BM$82,Data!$BN$33:$BR$82,Data!$BS$33:$BW$82,Data!$BX$33:$CB$82,Data!$CC$33:$CG$82,Data!$CH$33:$CL$82,Data!$CM$33:$CQ$82),$D31,5,CHOOSE(MATCH($Z$14,INDIRECT("Data!$AT$"&$D31+32&":$CM$"&$D31+32),0),1,0,0,0,0,2,0,0,0,0,3,0,0,0,0,4,0,0,0,0,5,0,0,0,0,6,0,0,0,0,7,0,0,0,0,8,0,0,0,0,9,0,0,0,0,10)),"") -> 0 | AB31: =IFERROR(SUM($X31:$AA31),"") -> 1
B32: ='Report A'!$B34 -> 2014-07-03 | C32: ='Report A'!$C34 -> Thursday | D32: ='Report A'!$D34 -> 3 | E32: K-Lunch | F32: LOK-LOK | G32: Member 30% | H32: Member Package | I32: Tiger (2+1) Round | J32: Student Member Card | K32: Student Member Price | L32: 0 | M32: 0 | N32: 0 | O32: =IFERROR(IFERROR(INDEX(($E$30:$E$60), MATCH(0, COUNTIF($O$29:O31, ($E$30:$E$60)), 0)), INDEX(($F$30:$F$60), MATCH(0, COUNTIF($O$29:O31, ($F$30:$F$60)), 0))), "") ->  | P32: =IFERROR(IFERROR(INDEX(($G$30:$G$60), MATCH(0, COUNTIF($P$29:P31, ($G$30:$G$60)), 0)), INDEX(($H$30:$H$60), MATCH(0, COUNTIF($P$29:P31, ($H$30:$H$60)), 0))), "") ->  | Q32: =IFERROR(IFERROR(INDEX(($I$30:$I$60), MATCH(0, COUNTIF($Q$29:Q31, ($I$30:$I$60)), 0)), INDEX(($J$30:$J$60), MATCH(0, COUNTIF($Q$29:Q31, ($J$30:$J$60)), 0))), "") ->  | R32: =IFERROR(IFERROR(INDEX(($K$30:$K$60), MATCH(0, COUNTIF($R$29:R31, ($K$30:$K$60)), 0)), INDEX(($L$30:$L$60), MATCH(0, COUNTIF($R$29:R31, ($L$30:$L$60)), 0))), "") ->  | S32: =IFERROR(IFERROR(INDEX(($M$30:$M$60), MATCH(0, COUNTIF($S$29:S31, ($M$30:$M$60)), 0)), INDEX(($N$30:$N$60), MATCH(0, COUNTIF($S$29:S31, ($N$30:$N$60)), 0))), "") ->  | T32: =IFERROR(IFERROR(INDEX(($O$30:$O$60), MATCH(0, COUNTIF($T$29:T31, ($O$30:$O$60)), 0)), INDEX(($P$30:$P$60), MATCH(0, COUNTIF($T$29:T31, ($P$30:$P$60)), 0))), "") -> Member 30% | U32: =IFERROR(IFERROR(INDEX(($Q$30:$Q$60), MATCH(0, COUNTIF($U$29:U31, ($Q$30:$Q$60)), 0)), INDEX(($R$30:$R$60), MATCH(0, COUNTIF($U$29:U31, ($R$30:$R$60)), 0))), "") -> Student Member Price | V32: =IFERROR(IFERROR(INDEX(($S$30:$S$60), MATCH(0, COUNTIF($V$29:V31, ($S$30:$S$60)), 0)), INDEX(($T$30:$T$60), MATCH(0, COUNTIF($V$29:V31, ($T$30:$T$60)), 0))), "") -> LOK-LOK | W32: =IFERROR(IFERROR(INDEX(($U$30:$U$60), MATCH(0, COUNTIF($W$29:W31, ($U$30:$U$60)), 0)), INDEX(($V$30:$V$60), MATCH(0, COUNTIF($W$29:W31, ($V$30:$V$60)), 0))), "") -> Student Member Price | X32: =IFERROR(INDEX((Data!$AT$33:$AX$82,Data!$AY$33:$BC$82,Data!$BD$33:$BH$82,Data!$BI$33:$BM$82,Data!$BN$33:$BR$82,Data!$BS$33:$BW$82,Data!$BX$33:$CB$82,Data!$CC$33:$CG$82,Data!$CH$33:$CL$82,Data!$CM$33:$CQ$82),$D32,2,CHOOSE(MATCH($Z$14,INDIRECT("Data!$AT$"&$D32+32&":$CM$"&$D32+32),0),1,0,0,0,0,2,0,0,0,0,3,0,0,0,0,4,0,0,0,0,5,0,0,0,0,6,0,0,0,0,7,0,0,0,0,8,0,0,0,0,9,0,0,0,0,10)),"") -> 0 | Y32: =IFERROR(INDEX((Data!$AT$33:$AX$82,Data!$AY$33:$BC$82,Data!$BD$33:$BH$82,Data!$BI$33:$BM$82,Data!$BN$33:$BR$82,Data!$BS$33:$BW$82,Data!$BX$33:$CB$82,Data!$CC$33:$CG$82,Data!$CH$33:$CL$82,Data!$CM$33:$CQ$82),$D32,3,CHOOSE(MATCH($Z$14,INDIRECT("Data!$AT$"&$D32+32&":$CM$"&$D32+32),0),1,0,0,0,0,2,0,0,0,0,3,0,0,0,0,4,0,0,0,0,5,0,0,0,0,6,0,0,0,0,7,0,0,0,0,8,0,0,0,0,9,0,0,0,0,10)),"") -> 0 | Z32: =IFERROR(INDEX((Data!$AT$33:$AX$82,Data!$AY$33:$BC$82,Data!$BD$33:$BH$82,Data!$BI$33:$BM$82,Data!$BN$33:$BR$82,Data!$BS$33:$BW$82,Data!$BX$33:$CB$82,Data!$CC$33:$CG$82,Data!$CH$33:$CL$82,Data!$CM$33:$CQ$82),$D32,4,CHOOSE(MATCH($Z$14,INDIRECT("Data!$AT$"&$D32+32&":$CM$"&$D32+32),0),1,0,0,0,0,2,0,0,0,0,3,0,0,0,0,4,0,0,0,0,5,0,0,0,0,6,0,0,0,0,7,0,0,0,0,8,0,0,0,0,9,0,0,0,0,10)),"") -> 0 | AA32: =IFERROR(INDEX((Data!$AT$33:$AX$82,Data!$AY$33:$BC$82,Data!$BD$33:$BH$82,Data!$BI$33:$BM$82,Data!$BN$33:$BR$82,Data!$BS$33:$BW$82,Data!$BX$33:$CB$82,Data!$CC$33:$CG$82,Data!$CH$33:$CL$82,Data!$CM$33:$CQ$82),$D32,5,CHOOSE(MATCH($Z$14,INDIRECT("Data!$AT$"&$D32+32&":$CM$"&$D32+32),0),1,0,0,0,0,2,0,0,0,0,3,0,0,0,0,4,0,0,0,0,5,0,0,0,0,6,0,0,0,0,7,0,0,0,0,8,0,0,0,0,9,0,0,0,0,10)),"") -> 0 | AB32: 0
B33: ='Report A'!$B35 -> 2014-07-04 | C33: ='Report A'!$C35 -> Friday | D33: ='Report A'!$D35 -> 4 | E33: K-Lunch | F33: LOK-LOK | G33: Member 30% | H33: Member Package | I33: Tiger (2+1) Round | J33: Student Member Card | K33: Student Member Price | L33: 0 | M33: 0 | N33: 0 | O33: =IFERROR(IFERROR(INDEX(($E$30:$E$60), MATCH(0, COUNTIF($O$29:O32, ($E$30:$E$60)), 0)), INDEX(($F$30:$F$60), MATCH(0, COUNTIF($O$29:O32, ($F$30:$F$60)), 0))), "") ->  | P33: =IFERROR(IFERROR(INDEX(($G$30:$G$60), MATCH(0, COUNTIF($P$29:P32, ($G$30:$G$60)), 0)), INDEX(($H$30:$H$60), MATCH(0, COUNTIF($P$29:P32, ($H$30:$H$60)), 0))), "") ->  | Q33: =IFERROR(IFERROR(INDEX(($I$30:$I$60), MATCH(0, COUNTIF($Q$29:Q32, ($I$30:$I$60)), 0)), INDEX(($J$30:$J$60), MATCH(0, COUNTIF($Q$29:Q32, ($J$30:$J$60)), 0))), "") ->  | R33: =IFERROR(IFERROR(INDEX(($K$30:$K$60), MATCH(0, COUNTIF($R$29:R32, ($K$30:$K$60)), 0)), INDEX(($L$30:$L$60), MATCH(0, COUNTIF($R$29:R32, ($L$30:$L$60)), 0))), "") ->  | S33: =IFERROR(IFERROR(INDEX(($M$30:$M$60), MATCH(0, COUNTIF($S$29:S32, ($M$30:$M$60)), 0)), INDEX(($N$30:$N$60), MATCH(0, COUNTIF($S$29:S32, ($N$30:$N$60)), 0))), "") ->  | T33: =IFERROR(IFERROR(INDEX(($O$30:$O$60), MATCH(0, COUNTIF($T$29:T32, ($O$30:$O$60)), 0)), INDEX(($P$30:$P$60), MATCH(0, COUNTIF($T$29:T32, ($P$30:$P$60)), 0))), "") -> Member Package | U33: =IFERROR(IFERROR(INDEX(($Q$30:$Q$60), MATCH(0, COUNTIF($U$29:U32, ($Q$30:$Q$60)), 0)), INDEX(($R$30:$R$60), MATCH(0, COUNTIF($U$29:U32, ($R$30:$R$60)), 0))), "") -> 0 | V33: =IFERROR(IFERROR(INDEX(($S$30:$S$60), MATCH(0, COUNTIF($V$29:V32, ($S$30:$S$60)), 0)), INDEX(($T$30:$T$60), MATCH(0, COUNTIF($V$29:V32, ($T$30:$T$60)), 0))), "") -> Member 30% | W33: =IFERROR(IFERROR(INDEX(($U$30:$U$60), MATCH(0, COUNTIF($W$29:W32, ($U$30:$U$60)), 0)), INDEX(($V$30:$V$60), MATCH(0, COUNTIF($W$29:W32, ($V$30:$V$60)), 0))), "") -> 0 | X33: =IFERROR(INDEX((Data!$AT$33:$AX$82,Data!$AY$33:$BC$82,Data!$BD$33:$BH$82,Data!$BI$33:$BM$82,Data!$BN$33:$BR$82,Data!$BS$33:$BW$82,Data!$BX$33:$CB$82,Data!$CC$33:$CG$82,Data!$CH$33:$CL$82,Data!$CM$33:$CQ$82),$D33,2,CHOOSE(MATCH($Z$14,INDIRECT("Data!$AT$"&$D33+32&":$CM$"&$D33+32),0),1,0,0,0,0,2,0,0,0,0,3,0,0,0,0,4,0,0,0,0,5,0,0,0,0,6,0,0,0,0,7,0,0,0,0,8,0,0,0,0,9,0,0,0,0,10)),"") -> 0 | Y33: =IFERROR(INDEX((Data!$AT$33:$AX$82,Data!$AY$33:$BC$82,Data!$BD$33:$BH$82,Data!$BI$33:$BM$82,Data!$BN$33:$BR$82,Data!$BS$33:$BW$82,Data!$BX$33:$CB$82,Data!$CC$33:$CG$82,Data!$CH$33:$CL$82,Data!$CM$33:$CQ$82),$D33,3,CHOOSE(MATCH($Z$14,INDIRECT("Data!$AT$"&$D33+32&":$CM$"&$D33+32),0),1,0,0,0,0,2,0,0,0,0,3,0,0,0,0,4,0,0,0,0,5,0,0,0,0,6,0,0,0,0,7,0,0,0,0,8,0,0,0,0,9,0,0,0,0,10)),"") -> 0 | Z33: =IFERROR(INDEX((Data!$AT$33:$AX$82,Data!$AY$33:$BC$82,Data!$BD$33:$BH$82,Data!$BI$33:$BM$82,Data!$BN$33:$BR$82,Data!$BS$33:$BW$82,Data!$BX$33:$CB$82,Data!$CC$33:$CG$82,Data!$CH$33:$CL$82,Data!$CM$33:$CQ$82),$D33,4,CHOOSE(MATCH($Z$14,INDIRECT("Data!$AT$"&$D33+32&":$CM$"&$D33+32),0),1,0,0,0,0,2,0,0,0,0,3,0,0,0,0,4,0,0,0,0,5,0,0,0,0,6,0,0,0,0,7,0,0,0,0,8,0,0,0,0,9,0,0,0,0,10)),"") -> 0 | AA33: =IFERROR(INDEX((Data!$AT$33:$AX$82,Data!$AY$33:$BC$82,Data!$BD$33:$BH$82,Data!$BI$33:$BM$82,Data!$BN$33:$BR$82,Data!$BS$33:$BW$82,Data!$BX$33:$CB$82,Data!$CC$33:$CG$82,Data!$CH$33:$CL$82,Data!$CM$33:$CQ$82),$D33,5,CHOOSE(MATCH($Z$14,INDIRECT("Data!$AT$"&$D33+32&":$CM$"&$D33+32),0),1,0,0,0,0,2,0,0,0,0,3,0,0,0,0,4,0,0,0,0,5,0,0,0,0,6,0,0,0,0,7,0,0,0,0,8,0,0,0,0,9,0,0,0,0,10)),"") -> 0 | AB33: 0
B34: ='Report A'!$B36 -> 2014-07-05 | C34: ='Report A'!$C36 -> Saturday | D34: ='Report A'!$D36 -> 5 | E34: K-Lunch | F34: LOK-LOK | G34: Member 30% | H34: Member Package | I34: Tiger (2+1) Round | J34: Student Member Card | K34: Student Member Price | L34: 0 | M34: 0 | N34: 0 | O34: =IFERROR(IFERROR(INDEX(($E$30:$E$60), MATCH(0, COUNTIF($O$29:O33, ($E$30:$E$60)), 0)), INDEX(($F$30:$F$60), MATCH(0, COUNTIF($O$29:O33, ($F$30:$F$60)), 0))), "") ->  | P34: =IFERROR(IFERROR(INDEX(($G$30:$G$60), MATCH(0, COUNTIF($P$29:P33, ($G$30:$G$60)), 0)), INDEX(($H$30:$H$60), MATCH(0, COUNTIF($P$29:P33, ($H$30:$H$60)), 0))), "") ->  | Q34: =IFERROR(IFERROR(INDEX(($I$30:$I$60), MATCH(0, COUNTIF($Q$29:Q33, ($I$30:$I$60)), 0)), INDEX(($J$30:$J$60), MATCH(0, COUNTIF($Q$29:Q33, ($J$30:$J$60)), 0))), "") ->  | R34: =IFERROR(IFERROR(INDEX(($K$30:$K$60), MATCH(0, COUNTIF($R$29:R33, ($K$30:$K$60)), 0)), INDEX(($L$30:$L$60), MATCH(0, COUNTIF($R$29:R33, ($L$30:$L$60)), 0))), "") ->  | S34: =IFERROR(IFERROR(INDEX(($M$30:$M$60), MATCH(0, COUNTIF($S$29:S33, ($M$30:$M$60)), 0)), INDEX(($N$30:$N$60), MATCH(0, COUNTIF($S$29:S33, ($N$30:$N$60)), 0))), "") ->  | T34: =IFERROR(IFERROR(INDEX(($O$30:$O$60), MATCH(0, COUNTIF($T$29:T33, ($O$30:$O$60)), 0)), INDEX(($P$30:$P$60), MATCH(0, COUNTIF($T$29:T33, ($P$30:$P$60)), 0))), "") ->  | U34: =IFERROR(IFERROR(INDEX(($Q$30:$Q$60), MATCH(0, COUNTIF($U$29:U33, ($Q$30:$Q$60)), 0)), INDEX(($R$30:$R$60), MATCH(0, COUNTIF($U$29:U33, ($R$30:$R$60)), 0))), "") ->  | V34: =IFERROR(IFERROR(INDEX(($S$30:$S$60), MATCH(0, COUNTIF($V$29:V33, ($S$30:$S$60)), 0)), INDEX(($T$30:$T$60), MATCH(0, COUNTIF($V$29:V33, ($T$30:$T$60)), 0))), "") -> Member Package | W34: =IFERROR(IFERROR(INDEX(($U$30:$U$60), MATCH(0, COUNTIF($W$29:W33, ($U$30:$U$60)), 0)), INDEX(($V$30:$V$60), MATCH(0, COUNTIF($W$29:W33, ($V$30:$V$60)), 0))), "") -> K-Lunch | X34: =IFERROR(INDEX((Data!$AT$33:$AX$82,Data!$AY$33:$BC$82,Data!$BD$33:$BH$82,Data!$BI$33:$BM$82,Data!$BN$33:$BR$82,Data!$BS$33:$BW$82,Data!$BX$33:$CB$82,Data!$CC$33:$CG$82,Data!$CH$33:$CL$82,Data!$CM$33:$CQ$82),$D34,2,CHOOSE(MATCH($Z$14,INDIRECT("Data!$AT$"&$D34+32&":$CM$"&$D34+32),0),1,0,0,0,0,2,0,0,0,0,3,0,0,0,0,4,0,0,0,0,5,0,0,0,0,6,0,0,0,0,7,0,0,0,0,8,0,0,0,0,9,0,0,0,0,10)),"") -> 0 | Y34: =IFERROR(INDEX((Data!$AT$33:$AX$82,Data!$AY$33:$BC$82,Data!$BD$33:$BH$82,Data!$BI$33:$BM$82,Data!$BN$33:$BR$82,Data!$BS$33:$BW$82,Data!$BX$33:$CB$82,Data!$CC$33:$CG$82,Data!$CH$33:$CL$82,Data!$CM$33:$CQ$82),$D34,3,CHOOSE(MATCH($Z$14,INDIRECT("Data!$AT$"&$D34+32&":$CM$"&$D34+32),0),1,0,0,0,0,2,0,0,0,0,3,0,0,0,0,4,0,0,0,0,5,0,0,0,0,6,0,0,0,0,7,0,0,0,0,8,0,0,0,0,9,0,0,0,0,10)),"") -> 0 | Z34: =IFERROR(INDEX((Data!$AT$33:$AX$82,Data!$AY$33:$BC$82,Data!$BD$33:$BH$82,Data!$BI$33:$BM$82,Data!$BN$33:$BR$82,Data!$BS$33:$BW$82,Data!$BX$33:$CB$82,Data!$CC$33:$CG$82,Data!$CH$33:$CL$82,Data!$CM$33:$CQ$82),$D34,4,CHOOSE(MATCH($Z$14,INDIRECT("Data!$AT$"&$D34+32&":$CM$"&$D34+32),0),1,0,0,0,0,2,0,0,0,0,3,0,0,0,0,4,0,0,0,0,5,0,0,0,0,6,0,0,0,0,7,0,0,0,0,8,0,0,0,0,9,0,0,0,0,10)),"") -> 0 | AA34: =IFERROR(INDEX((Data!$AT$33:$AX$82,Data!$AY$33:$BC$82,Data!$BD$33:$BH$82,Data!$BI$33:$BM$82,Data!$BN$33:$BR$82,Data!$BS$33:$BW$82,Data!$BX$33:$CB$82,Data!$CC$33:$CG$82,Data!$CH$33:$CL$82,Data!$CM$33:$CQ$82),$D34,5,CHOOSE(MATCH($Z$14,INDIRECT("Data!$AT$"&$D34+32&":$CM$"&$D34+32),0),1,0,0,0,0,2,0,0,0,0,3,0,0,0,0,4,0,0,0,0,5,0,0,0,0,6,0,0,0,0,7,0,0,0,0,8,0,0,0,0,9,0,0,0,0,10)),"") -> 0 | AB34: 0
B35: ='Report A'!$B37 -> 2014-07-06 | C35: ='Report A'!$C37 -> Sunday | D35: ='Report A'!$D37 -> 6 | E35: K-Lunch | F35: LOK-LOK | G35: Member 30% | H35: Member Package | I35: Tiger (2+1) Round | J35: Student Member Card | K35: Student Member Price | L35: 0 | M35: 0 | N35: 0 | O35: =IFERROR(IFERROR(INDEX(($E$30:$E$60), MATCH(0, COUNTIF($O$29:O34, ($E$30:$E$60)), 0)), INDEX(($F$30:$F$60), MATCH(0, COUNTIF($O$29:O34, ($F$30:$F$60)), 0))), "") ->  | P35: =IFERROR(IFERROR(INDEX(($G$30:$G$60), MATCH(0, COUNTIF($P$29:P34, ($G$30:$G$60)), 0)), INDEX(($H$30:$H$60), MATCH(0, COUNTIF($P$29:P34, ($H$30:$H$60)), 0))), "") ->  | Q35: =IFERROR(IFERROR(INDEX(($I$30:$I$60), MATCH(0, COUNTIF($Q$29:Q34, ($I$30:$I$60)), 0)), INDEX(($J$30:$J$60), MATCH(0, COUNTIF($Q$29:Q34, ($J$30:$J$60)), 0))), "") ->  | R35: =IFERROR(IFERROR(INDEX(($K$30:$K$60), MATCH(0, COUNTIF($R$29:R34, ($K$30:$K$60)), 0)), INDEX(($L$30:$L$60), MATCH(0, COUNTIF($R$29:R34, ($L$30:$L$60)), 0))), "") ->  | S35: =IFERROR(IFERROR(INDEX(($M$30:$M$60), MATCH(0, COUNTIF($S$29:S34, ($M$30:$M$60)), 0)), INDEX(($N$30:$N$60), MATCH(0, COUNTIF($S$29:S34, ($N$30:$N$60)), 0))), "") ->  | T35: =IFERROR(IFERROR(INDEX(($O$30:$O$60), MATCH(0, COUNTIF($T$29:T34, ($O$30:$O$60)), 0)), INDEX(($P$30:$P$60), MATCH(0, COUNTIF($T$29:T34, ($P$30:$P$60)), 0))), "") ->  | U35: =IFERROR(IFERROR(INDEX(($Q$30:$Q$60), MATCH(0, COUNTIF($U$29:U34, ($Q$30:$Q$60)), 0)), INDEX(($R$30:$R$60), MATCH(0, COUNTIF($U$29:U34, ($R$30:$R$60)), 0))), "") ->  | V35: =IFERROR(IFERROR(INDEX(($S$30:$S$60), MATCH(0, COUNTIF($V$29:V34, ($S$30:$S$60)), 0)), INDEX(($T$30:$T$60), MATCH(0, COUNTIF($V$29:V34, ($T$30:$T$60)), 0))), "") ->  | W35: =IFERROR(IFERROR(INDEX(($U$30:$U$60), MATCH(0, COUNTIF($W$29:W34, ($U$30:$U$60)), 0)), INDEX(($V$30:$V$60), MATCH(0, COUNTIF($W$29:W34, ($V$30:$V$60)), 0))), "") -> LOK-LOK | X35: =IFERROR(INDEX((Data!$AT$33:$AX$82,Data!$AY$33:$BC$82,Data!$BD$33:$BH$82,Data!$BI$33:$BM$82,Data!$BN$33:$BR$82,Data!$BS$33:$BW$82,Data!$BX$33:$CB$82,Data!$CC$33:$CG$82,Data!$CH$33:$CL$82,Data!$CM$33:$CQ$82),$D35,2,CHOOSE(MATCH($Z$14,INDIRECT("Data!$AT$"&$D35+32&":$CM$"&$D35+32),0),1,0,0,0,0,2,0,0,0,0,3,0,0,0,0,4,0,0,0,0,5,0,0,0,0,6,0,0,0,0,7,0,0,0,0,8,0,0,0,0,9,0,0,0,0,10)),"") -> 0 | Y35: =IFERROR(INDEX((Data!$AT$33:$AX$82,Data!$AY$33:$BC$82,Data!$BD$33:$BH$82,Data!$BI$33:$BM$82,Data!$BN$33:$BR$82,Data!$BS$33:$BW$82,Data!$BX$33:$CB$82,Data!$CC$33:$CG$82,Data!$CH$33:$CL$82,Data!$CM$33:$CQ$82),$D35,3,CHOOSE(MATCH($Z$14,INDIRECT("Data!$AT$"&$D35+32&":$CM$"&$D35+32),0),1,0,0,0,0,2,0,0,0,0,3,0,0,0,0,4,0,0,0,0,5,0,0,0,0,6,0,0,0,0,7,0,0,0,0,8,0,0,0,0,9,0,0,0,0,10)),"") -> 0 | Z35: =IFERROR(INDEX((Data!$AT$33:$AX$82,Data!$AY$33:$BC$82,Data!$BD$33:$BH$82,Data!$BI$33:$BM$82,Data!$BN$33:$BR$82,Data!$BS$33:$BW$82,Data!$BX$33:$CB$82,Data!$CC$33:$CG$82,Data!$CH$33:$CL$82,Data!$CM$33:$CQ$82),$D35,4,CHOOSE(MATCH($Z$14,INDIRECT("Data!$AT$"&$D35+32&":$CM$"&$D35+32),0),1,0,0,0,0,2,0,0,0,0,3,0,0,0,0,4,0,0,0,0,5,0,0,0,0,6,0,0,0,0,7,0,0,0,0,8,0,0,0,0,9,0,0,0,0,10)),"") -> 0 | AA35: =IFERROR(INDEX((Data!$AT$33:$AX$82,Data!$AY$33:$BC$82,Data!$BD$33:$BH$82,Data!$BI$33:$BM$82,Data!$BN$33:$BR$82,Data!$BS$33:$BW$82,Data!$BX$33:$CB$82,Data!$CC$33:$CG$82,Data!$CH$33:$CL$82,Data!$CM$33:$CQ$82),$D35,5,CHOOSE(MATCH($Z$14,INDIRECT("Data!$AT$"&$D35+32&":$CM$"&$D35+32),0),1,0,0,0,0,2,0,0,0,0,3,0,0,0,0,4,0,0,0,0,5,0,0,0,0,6,0,0,0,0,7,0,0,0,0,8,0,0,0,0,9,0,0,0,0,10)),"") -> 0 | AB35: 0
B36: ='Report A'!$B38 -> 2014-07-07 | C36: ='Report A'!$C38 -> Monday | D36: ='Report A'!$D38 -> 7 | E36: K-Lunch | F36: LOK-LOK | G36: Member 30% | H36: Member Package | I36: Tiger (2+1) Round | J36: Student Member Card | K36: Student Member Price | L36: 0 | M36: 0 | N36: 0 | O36: =IFERROR(IFERROR(INDEX(($E$30:$E$60), MATCH(0, COUNTIF($O$29:O35, ($E$30:$E$60)), 0)), INDEX(($F$30:$F$60), MATCH(0, COUNTIF($O$29:O35, ($F$30:$F$60)), 0))), "") ->  | P36: =IFERROR(IFERROR(INDEX(($G$30:$G$60), MATCH(0, COUNTIF($P$29:P35, ($G$30:$G$60)), 0)), INDEX(($H$30:$H$60), MATCH(0, COUNTIF($P$29:P35, ($H$30:$H$60)), 0))), "") ->  | Q36: =IFERROR(IFERROR(INDEX(($I$30:$I$60), MATCH(0, COUNTIF($Q$29:Q35, ($I$30:$I$60)), 0)), INDEX(($J$30:$J$60), MATCH(0, COUNTIF($Q$29:Q35, ($J$30:$J$60)), 0))), "") ->  | R36: =IFERROR(IFERROR(INDEX(($K$30:$K$60), MATCH(0, COUNTIF($R$29:R35, ($K$30:$K$60)), 0)), INDEX(($L$30:$L$60), MATCH(0, COUNTIF($R$29:R35, ($L$30:$L$60)), 0))), "") ->  | S36: =IFERROR(IFERROR(INDEX(($M$30:$M$60), MATCH(0, COUNTIF($S$29:S35, ($M$30:$M$60)), 0)), INDEX(($N$30:$N$60), MATCH(0, COUNTIF($S$29:S35, ($N$30:$N$60)), 0))), "") ->  | T36: =IFERROR(IFERROR(INDEX(($O$30:$O$60), MATCH(0, COUNTIF($T$29:T35, ($O$30:$O$60)), 0)), INDEX(($P$30:$P$60), MATCH(0, COUNTIF($T$29:T35, ($P$30:$P$60)), 0))), "") ->  | U36: =IFERROR(IFERROR(INDEX(($Q$30:$Q$60), MATCH(0, COUNTIF($U$29:U35, ($Q$30:$Q$60)), 0)), INDEX(($R$30:$R$60), MATCH(0, COUNTIF($U$29:U35, ($R$30:$R$60)), 0))), "") ->  | V36: =IFERROR(IFERROR(INDEX(($S$30:$S$60), MATCH(0, COUNTIF($V$29:V35, ($S$30:$S$60)), 0)), INDEX(($T$30:$T$60), MATCH(0, COUNTIF($V$29:V35, ($T$30:$T$60)), 0))), "") ->  | W36: =IFERROR(IFERROR(INDEX(($U$30:$U$60), MATCH(0, COUNTIF($W$29:W35, ($U$30:$U$60)), 0)), INDEX(($V$30:$V$60), MATCH(0, COUNTIF($W$29:W35, ($V$30:$V$60)), 0))), "") -> Member 30% | X36: =IFERROR(INDEX((Data!$AT$33:$AX$82,Data!$AY$33:$BC$82,Data!$BD$33:$BH$82,Data!$BI$33:$BM$82,Data!$BN$33:$BR$82,Data!$BS$33:$BW$82,Data!$BX$33:$CB$82,Data!$CC$33:$CG$82,Data!$CH$33:$CL$82,Data!$CM$33:$CQ$82),$D36,2,CHOOSE(MATCH($Z$14,INDIRECT("Data!$AT$"&$D36+32&":$CM$"&$D36+32),0),1,0,0,0,0,2,0,0,0,0,3,0,0,0,0,4,0,0,0,0,5,0,0,0,0,6,0,0,0,0,7,0,0,0,0,8,0,0,0,0,9,0,0,0,0,10)),"") -> 0 | Y36: =IFERROR(INDEX((Data!$AT$33:$AX$82,Data!$AY$33:$BC$82,Data!$BD$33:$BH$82,Data!$BI$33:$BM$82,Data!$BN$33:$BR$82,Data!$BS$33:$BW$82,Data!$BX$33:$CB$82,Data!$CC$33:$CG$82,Data!$CH$33:$CL$82,Data!$CM$33:$CQ$82),$D36,3,CHOOSE(MATCH($Z$14,INDIRECT("Data!$AT$"&$D36+32&":$CM$"&$D36+32),0),1,0,0,0,0,2,0,0,0,0,3,0,0,0,0,4,0,0,0,0,5,0,0,0,0,6,0,0,0,0,7,0,0,0,0,8,0,0,0,0,9,0,0,0,0,10)),"") -> 0 | Z36: =IFERROR(INDEX((Data!$AT$33:$AX$82,Data!$AY$33:$BC$82,Data!$BD$33:$BH$82,Data!$BI$33:$BM$82,Data!$BN$33:$BR$82,Data!$BS$33:$BW$82,Data!$BX$33:$CB$82,Data!$CC$33:$CG$82,Data!$CH$33:$CL$82,Data!$CM$33:$CQ$82),$D36,4,CHOOSE(MATCH($Z$14,INDIRECT("Data!$AT$"&$D36+32&":$CM$"&$D36+32),0),1,0,0,0,0,2,0,0,0,0,3,0,0,0,0,4,0,0,0,0,5,0,0,0,0,6,0,0,0,0,7,0,0,0,0,8,0,0,0,0,9,0,0,0,0,10)),"") -> 3 | AA36: =IFERROR(INDEX((Data!$AT$33:$AX$82,Data!$AY$33:$BC$82,Data!$BD$33:$BH$82,Data!$BI$33:$BM$82,Data!$BN$33:$BR$82,Data!$BS$33:$BW$82,Data!$BX$33:$CB$82,Data!$CC$33:$CG$82,Data!$CH$33:$CL$82,Data!$CM$33:$CQ$82),$D36,5,CHOOSE(MATCH($Z$14,INDIRECT("Data!$AT$"&$D36+32&":$CM$"&$D36+32),0),1,0,0,0,0,2,0,0,0,0,3,0,0,0,0,4,0,0,0,0,5,0,0,0,0,6,0,0,0,0,7,0,0,0,0,8,0,0,0,0,9,0,0,0,0,10)),"") -> 0 | AB36: 3
B37: ='Report A'!$B39 -> 2014-07-08 | C37: ='Report A'!$C39 -> Tuesday | D37: ='Report A'!$D39 -> 8 | E37: K-Lunch | F37: LOK-LOK | G37: Member 30% | H37: Member Package | I37: Tiger (2+1) Round | J37: Student Member Card | K37: Student Member Price | L37: 0 | M37: 0 | N37: 0 | O37: =IFERROR(IFERROR(INDEX(($E$30:$E$60), MATCH(0, COUNTIF($O$29:O36, ($E$30:$E$60)), 0)), INDEX(($F$30:$F$60), MATCH(0, COUNTIF($O$29:O36, ($F$30:$F$60)), 0))), "") ->  | P37: =IFERROR(IFERROR(INDEX(($G$30:$G$60), MATCH(0, COUNTIF($P$29:P36, ($G$30:$G$60)), 0)), INDEX(($H$30:$H$60), MATCH(0, COUNTIF($P$29:P36, ($H$30:$H$60)), 0))), "") ->  | Q37: =IFERROR(IFERROR(INDEX(($I$30:$I$60), MATCH(0, COUNTIF($Q$29:Q36, ($I$30:$I$60)), 0)), INDEX(($J$30:$J$60), MATCH(0, COUNTIF($Q$29:Q36, ($J$30:$J$60)), 0))), "") ->  | R37: =IFERROR(IFERROR(INDEX(($K$30:$K$60), MATCH(0, COUNTIF($R$29:R36, ($K$30:$K$60)), 0)), INDEX(($L$30:$L$60), MATCH(0, COUNTIF($R$29:R36, ($L$30:$L$60)), 0))), "") ->  | S37: =IFERROR(IFERROR(INDEX(($M$30:$M$60), MATCH(0, COUNTIF($S$29:S36, ($M$30:$M$60)), 0)), INDEX(($N$30:$N$60), MATCH(0, COUNTIF($S$29:S36, ($N$30:$N$60)), 0))), "") ->  | T37: =IFERROR(IFERROR(INDEX(($O$30:$O$60), MATCH(0, COUNTIF($T$29:T36, ($O$30:$O$60)), 0)), INDEX(($P$30:$P$60), MATCH(0, COUNTIF($T$29:T36, ($P$30:$P$60)), 0))), "") ->  | U37: =IFERROR(IFERROR(INDEX(($Q$30:$Q$60), MATCH(0, COUNTIF($U$29:U36, ($Q$30:$Q$60)), 0)), INDEX(($R$30:$R$60), MATCH(0, COUNTIF($U$29:U36, ($R$30:$R$60)), 0))), "") ->  | V37: =IFERROR(IFERROR(INDEX(($S$30:$S$60), MATCH(0, COUNTIF($V$29:V36, ($S$30:$S$60)), 0)), INDEX(($T$30:$T$60), MATCH(0, COUNTIF($V$29:V36, ($T$30:$T$60)), 0))), "") ->  | W37: =IFERROR(IFERROR(INDEX(($U$30:$U$60), MATCH(0, COUNTIF($W$29:W36, ($U$30:$U$60)), 0)), INDEX(($V$30:$V$60), MATCH(0, COUNTIF($W$29:W36, ($V$30:$V$60)), 0))), "") -> Member Package | X37: =IFERROR(INDEX((Data!$AT$33:$AX$82,Data!$AY$33:$BC$82,Data!$BD$33:$BH$82,Data!$BI$33:$BM$82,Data!$BN$33:$BR$82,Data!$BS$33:$BW$82,Data!$BX$33:$CB$82,Data!$CC$33:$CG$82,Data!$CH$33:$CL$82,Data!$CM$33:$CQ$82),$D37,2,CHOOSE(MATCH($Z$14,INDIRECT("Data!$AT$"&$D37+32&":$CM$"&$D37+32),0),1,0,0,0,0,2,0,0,0,0,3,0,0,0,0,4,0,0,0,0,5,0,0,0,0,6,0,0,0,0,7,0,0,0,0,8,0,0,0,0,9,0,0,0,0,10)),"") -> 0 | Y37: =IFERROR(INDEX((Data!$AT$33:$AX$82,Data!$AY$33:$BC$82,Data!$BD$33:$BH$82,Data!$BI$33:$BM$82,Data!$BN$33:$BR$82,Data!$BS$33:$BW$82,Data!$BX$33:$CB$82,Data!$CC$33:$CG$82,Data!$CH$33:$CL$82,Data!$CM$33:$CQ$82),$D37,3,CHOOSE(MATCH($Z$14,INDIRECT("Data!$AT$"&$D37+32&":$CM$"&$D37+32),0),1,0,0,0,0,2,0,0,0,0,3,0,0,0,0,4,0,0,0,0,5,0,0,0,0,6,0,0,0,0,7,0,0,0,0,8,0,0,0,0,9,0,0,0,0,10)),"") -> 0 | Z37: =IFERROR(INDEX((Data!$AT$33:$AX$82,Data!$AY$33:$BC$82,Data!$BD$33:$BH$82,Data!$BI$33:$BM$82,Data!$BN$33:$BR$82,Data!$BS$33:$BW$82,Data!$BX$33:$CB$82,Data!$CC$33:$CG$82,Data!$CH$33:$CL$82,Data!$CM$33:$CQ$82),$D37,4,CHOOSE(MATCH($Z$14,INDIRECT("Data!$AT$"&$D37+32&":$CM$"&$D37+32),0),1,0,0,0,0,2,0,0,0,0,3,0,0,0,0,4,0,0,0,0,5,0,0,0,0,6,0,0,0,0,7,0,0,0,0,8,0,0,0,0,9,0,0,0,0,10)),"") -> 0 | AA37: =IFERROR(INDEX((Data!$AT$33:$AX$82,Data!$AY$33:$BC$82,Data!$BD$33:$BH$82,Data!$BI$33:$BM$82,Data!$BN$33:$BR$82,Data!$BS$33:$BW$82,Data!$BX$33:$CB$82,Data!$CC$33:$CG$82,Data!$CH$33:$CL$82,Data!$CM$33:$CQ$82),$D37,5,CHOOSE(MATCH($Z$14,INDIRECT("Data!$AT$"&$D37+32&":$CM$"&$D37+32),0),1,0,0,0,0,2,0,0,0,0,3,0,0,0,0,4,0,0,0,0,5,0,0,0,0,6,0,0,0,0,7,0,0,0,0,8,0,0,0,0,9,0,0,0,0,10)),"") -> 0 | AB37: 0
B38: ='Report A'!$B40 -> 2014-07-09 | C38: ='Report A'!$C40 -> Wednesday | D38: ='Report A'!$D40 -> 9 | E38: K-Lunch | F38: LOK-LOK | G38: Member 30% | H38: Member Package | I38: Tiger (2+1) Round | J38: Student Member Card | K38: Student Member Price | L38: 0 | M38: 0 | N38: 0 | O38: =IFERROR(IFERROR(INDEX(($E$30:$E$60), MATCH(0, COUNTIF($O$29:O37, ($E$30:$E$60)), 0)), INDEX(($F$30:$F$60), MATCH(0, COUNTIF($O$29:O37, ($F$30:$F$60)), 0))), "") ->  | P38: =IFERROR(IFERROR(INDEX(($G$30:$G$60), MATCH(0, COUNTIF($P$29:P37, ($G$30:$G$60)), 0)), INDEX(($H$30:$H$60), MATCH(0, COUNTIF($P$29:P37, ($H$30:$H$60)), 0))), "") ->  | Q38: =IFERROR(IFERROR(INDEX(($I$30:$I$60), MATCH(0, COUNTIF($Q$29:Q37, ($I$30:$I$60)), 0)), INDEX(($J$30:$J$60), MATCH(0, COUNTIF($Q$29:Q37, ($J$30:$J$60)), 0))), "") ->  | R38: =IFERROR(IFERROR(INDEX(($K$30:$K$60), MATCH(0, COUNTIF($R$29:R37, ($K$30:$K$60)), 0)), INDEX(($L$30:$L$60), MATCH(0, COUNTIF($R$29:R37, ($L$30:$L$60)), 0))), "") ->  | S38: =IFERROR(IFERROR(INDEX(($M$30:$M$60), MATCH(0, COUNTIF($S$29:S37, ($M$30:$M$60)), 0)), INDEX(($N$30:$N$60), MATCH(0, COUNTIF($S$29:S37, ($N$30:$N$60)), 0))), "") ->  | T38: =IFERROR(IFERROR(INDEX(($O$30:$O$60), MATCH(0, COUNTIF($T$29:T37, ($O$30:$O$60)), 0)), INDEX(($P$30:$P$60), MATCH(0, COUNTIF($T$29:T37, ($P$30:$P$60)), 0))), "") ->  | U38: =IFERROR(IFERROR(INDEX(($Q$30:$Q$60), MATCH(0, COUNTIF($U$29:U37, ($Q$30:$Q$60)), 0)), INDEX(($R$30:$R$60), MATCH(0, COUNTIF($U$29:U37, ($R$30:$R$60)), 0))), "") ->  | V38: =IFERROR(IFERROR(INDEX(($S$30:$S$60), MATCH(0, COUNTIF($V$29:V37, ($S$30:$S$60)), 0)), INDEX(($T$30:$T$60), MATCH(0, COUNTIF($V$29:V37, ($T$30:$T$60)), 0))), "") ->  | W38: =IFERROR(IFERROR(INDEX(($U$30:$U$60), MATCH(0, COUNTIF($W$29:W37, ($U$30:$U$60)), 0)), INDEX(($V$30:$V$60), MATCH(0, COUNTIF($W$29:W37, ($V$30:$V$60)), 0))), "") ->  | X38: =IFERROR(INDEX((Data!$AT$33:$AX$82,Data!$AY$33:$BC$82,Data!$BD$33:$BH$82,Data!$BI$33:$BM$82,Data!$BN$33:$BR$82,Data!$BS$33:$BW$82,Data!$BX$33:$CB$82,Data!$CC$33:$CG$82,Data!$CH$33:$CL$82,Data!$CM$33:$CQ$82),$D38,2,CHOOSE(MATCH($Z$14,INDIRECT("Data!$AT$"&$D38+32&":$CM$"&$D38+32),0),1,0,0,0,0,2,0,0,0,0,3,0,0,0,0,4,0,0,0,0,5,0,0,0,0,6,0,0,0,0,7,0,0,0,0,8,0,0,0,0,9,0,0,0,0,10)),"") -> 0 | Y38: =IFERROR(INDEX((Data!$AT$33:$AX$82,Data!$AY$33:$BC$82,Data!$BD$33:$BH$82,Data!$BI$33:$BM$82,Data!$BN$33:$BR$82,Data!$BS$33:$BW$82,Data!$BX$33:$CB$82,Data!$CC$33:$CG$82,Data!$CH$33:$CL$82,Data!$CM$33:$CQ$82),$D38,3,CHOOSE(MATCH($Z$14,INDIRECT("Data!$AT$"&$D38+32&":$CM$"&$D38+32),0),1,0,0,0,0,2,0,0,0,0,3,0,0,0,0,4,0,0,0,0,5,0,0,0,0,6,0,0,0,0,7,0,0,0,0,8,0,0,0,0,9,0,0,0,0,10)),"") -> 0 | Z38: =IFERROR(INDEX((Data!$AT$33:$AX$82,Data!$AY$33:$BC$82,Data!$BD$33:$BH$82,Data!$BI$33:$BM$82,Data!$BN$33:$BR$82,Data!$BS$33:$BW$82,Data!$BX$33:$CB$82,Data!$CC$33:$CG$82,Data!$CH$33:$CL$82,Data!$CM$33:$CQ$82),$D38,4,CHOOSE(MATCH($Z$14,INDIRECT("Data!$AT$"&$D38+32&":$CM$"&$D38+32),0),1,0,0,0,0,2,0,0,0,0,3,0,0,0,0,4,0,0,0,0,5,0,0,0,0,6,0,0,0,0,7,0,0,0,0,8,0,0,0,0,9,0,0,0,0,10)),"") -> 0 | AA38: =IFERROR(INDEX((Data!$AT$33:$AX$82,Data!$AY$33:$BC$82,Data!$BD$33:$BH$82,Data!$BI$33:$BM$82,Data!$BN$33:$BR$82,Data!$BS$33:$BW$82,Data!$BX$33:$CB$82,Data!$CC$33:$CG$82,Data!$CH$33:$CL$82,Data!$CM$33:$CQ$82),$D38,5,CHOOSE(MATCH($Z$14,INDIRECT("Data!$AT$"&$D38+32&":$CM$"&$D38+32),0),1,0,0,0,0,2,0,0,0,0,3,0,0,0,0,4,0,0,0,0,5,0,0,0,0,6,0,0,0,0,7,0,0,0,0,8,0,0,0,0,9,0,0,0,0,10)),"") -> 0 | AB38: 0
B39: ='Report A'!$B41 -> 2014-07-10 | C39: ='Report A'!$C41 -> Thursday | D39: ='Report A'!$D41 -> 10 | E39: K-Lunch | F39: LOK-LOK | G39: Member 30% | H39: Member Package | I39: Tiger (2+1) Round | J39: Student Member Card | K39: Student Member Price | L39: 0 | M39: 0 | N39: 0 | O39: =IFERROR(IFERROR(INDEX(($E$30:$E$60), MATCH(0, COUNTIF($O$29:O38, ($E$30:$E$60)), 0)), INDEX(($F$30:$F$60), MATCH(0, COUNTIF($O$29:O38, ($F$30:$F$60)), 0))), "") ->  | P39: =IFERROR(IFERROR(INDEX(($G$30:$G$60), MATCH(0, COUNTIF($P$29:P38, ($G$30:$G$60)), 0)), INDEX(($H$30:$H$60), MATCH(0, COUNTIF($P$29:P38, ($H$30:$H$60)), 0))), "") ->  | Q39: =IFERROR(IFERROR(INDEX(($I$30:$I$60), MATCH(0, COUNTIF($Q$29:Q38, ($I$30:$I$60)), 0)), INDEX(($J$30:$J$60), MATCH(0, COUNTIF($Q$29:Q38, ($J$30:$J$60)), 0))), "") ->  | R39: =IFERROR(IFERROR(INDEX(($K$30:$K$60), MATCH(0, COUNTIF($R$29:R38, ($K$30:$K$60)), 0)), INDEX(($L$30:$L$60), MATCH(0, COUNTIF($R$29:R38, ($L$30:$L$60)), 0))), "") ->  | S39: =IFERROR(IFERROR(INDEX(($M$30:$M$60), MATCH(0, COUNTIF($S$29:S38, ($M$30:$M$60)), 0)), INDEX(($N$30:$N$60), MATCH(0, COUNTIF($S$29:S38, ($N$30:$N$60)), 0))), "") ->  | T39: =IFERROR(IFERROR(INDEX(($O$30:$O$60), MATCH(0, COUNTIF($T$29:T38, ($O$30:$O$60)), 0)), INDEX(($P$30:$P$60), MATCH(0, COUNTIF($T$29:T38, ($P$30:$P$60)), 0))), "") ->  | U39: =IFERROR(IFERROR(INDEX(($Q$30:$Q$60), MATCH(0, COUNTIF($U$29:U38, ($Q$30:$Q$60)), 0)), INDEX(($R$30:$R$60), MATCH(0, COUNTIF($U$29:U38, ($R$30:$R$60)), 0))), "") ->  | V39: =IFERROR(IFERROR(INDEX(($S$30:$S$60), MATCH(0, COUNTIF($V$29:V38, ($S$30:$S$60)), 0)), INDEX(($T$30:$T$60), MATCH(0, COUNTIF($V$29:V38, ($T$30:$T$60)), 0))), "") ->  | W39: =IFERROR(IFERROR(INDEX(($U$30:$U$60), MATCH(0, COUNTIF($W$29:W38, ($U$30:$U$60)), 0)), INDEX(($V$30:$V$60), MATCH(0, COUNTIF($W$29:W38, ($V$30:$V$60)), 0))), "") ->  | X39: =IFERROR(INDEX((Data!$AT$33:$AX$82,Data!$AY$33:$BC$82,Data!$BD$33:$BH$82,Data!$BI$33:$BM$82,Data!$BN$33:$BR$82,Data!$BS$33:$BW$82,Data!$BX$33:$CB$82,Data!$CC$33:$CG$82,Data!$CH$33:$CL$82,Data!$CM$33:$CQ$82),$D39,2,CHOOSE(MATCH($Z$14,INDIRECT("Data!$AT$"&$D39+32&":$CM$"&$D39+32),0),1,0,0,0,0,2,0,0,0,0,3,0,0,0,0,4,0,0,0,0,5,0,0,0,0,6,0,0,0,0,7,0,0,0,0,8,0,0,0,0,9,0,0,0,0,10)),"") -> 0 | Y39: =IFERROR(INDEX((Data!$AT$33:$AX$82,Data!$AY$33:$BC$82,Data!$BD$33:$BH$82,Data!$BI$33:$BM$82,Data!$BN$33:$BR$82,Data!$BS$33:$BW$82,Data!$BX$33:$CB$82,Data!$CC$33:$CG$82,Data!$CH$33:$CL$82,Data!$CM$33:$CQ$82),$D39,3,CHOOSE(MATCH($Z$14,INDIRECT("Data!$AT$"&$D39+32&":$CM$"&$D39+32),0),1,0,0,0,0,2,0,0,0,0,3,0,0,0,0,4,0,0,0,0,5,0,0,0,0,6,0,0,0,0,7,0,0,0,0,8,0,0,0,0,9,0,0,0,0,10)),"") -> 0 | Z39: =IFERROR(INDEX((Data!$AT$33:$AX$82,Data!$AY$33:$BC$82,Data!$BD$33:$BH$82,Data!$BI$33:$BM$82,Data!$BN$33:$BR$82,Data!$BS$33:$BW$82,Data!$BX$33:$CB$82,Data!$CC$33:$CG$82,Data!$CH$33:$CL$82,Data!$CM$33:$CQ$82),$D39,4,CHOOSE(MATCH($Z$14,INDIRECT("Data!$AT$"&$D39+32&":$CM$"&$D39+32),0),1,0,0,0,0,2,0,0,0,0,3,0,0,0,0,4,0,0,0,0,5,0,0,0,0,6,0,0,0,0,7,0,0,0,0,8,0,0,0,0,9,0,0,0,0,10)),"") -> 0 | AA39: =IFERROR(INDEX((Data!$AT$33:$AX$82,Data!$AY$33:$BC$82,Data!$BD$33:$BH$82,Data!$BI$33:$BM$82,Data!$BN$33:$BR$82,Data!$BS$33:$BW$82,Data!$BX$33:$CB$82,Data!$CC$33:$CG$82,Data!$CH$33:$CL$82,Data!$CM$33:$CQ$82),$D39,5,CHOOSE(MATCH($Z$14,INDIRECT("Data!$AT$"&$D39+32&":$CM$"&$D39+32),0),1,0,0,0,0,2,0,0,0,0,3,0,0,0,0,4,0,0,0,0,5,0,0,0,0,6,0,0,0,0,7,0,0,0,0,8,0,0,0,0,9,0,0,0,0,10)),"") -> 0 | AB39: 0
B40: ='Report A'!$B42 -> 2014-07-11 | C40: ='Report A'!$C42 -> Friday | D40: ='Report A'!$D42 -> 11 | E40: =IFERROR(INDIRECT("Data!"&E$17&$D40+32),"") -> K-Lunch | F40: LOK-LOK | G40: Member 30% | H40: Member Package | I40: Tiger (2+1) Round | J40: Student Member Card | K40: Student Member Price | L40: 0 | M40: 0 | N40: 0 | O40: =IFERROR(IFERROR(INDEX(($E$30:$E$60), MATCH(0, COUNTIF($O$29:O39, ($E$30:$E$60)), 0)), INDEX(($F$30:$F$60), MATCH(0, COUNTIF($O$29:O39, ($F$30:$F$60)), 0))), "") ->  | P40: =IFERROR(IFERROR(INDEX(($G$30:$G$60), MATCH(0, COUNTIF($P$29:P39, ($G$30:$G$60)), 0)), INDEX(($H$30:$H$60), MATCH(0, COUNTIF($P$29:P39, ($H$30:$H$60)), 0))), "") ->  | Q40: =IFERROR(IFERROR(INDEX(($I$30:$I$60), MATCH(0, COUNTIF($Q$29:Q39, ($I$30:$I$60)), 0)), INDEX(($J$30:$J$60), MATCH(0, COUNTIF($Q$29:Q39, ($J$30:$J$60)), 0))), "") ->  | R40: =IFERROR(IFERROR(INDEX(($K$30:$K$60), MATCH(0, COUNTIF($R$29:R39, ($K$30:$K$60)), 0)), INDEX(($L$30:$L$60), MATCH(0, COUNTIF($R$29:R39, ($L$30:$L$60)), 0))), "") ->  | S40: =IFERROR(IFERROR(INDEX(($M$30:$M$60), MATCH(0, COUNTIF($S$29:S39, ($M$30:$M$60)), 0)), INDEX(($N$30:$N$60), MATCH(0, COUNTIF($S$29:S39, ($N$30:$N$60)), 0))), "") ->  | T40: =IFERROR(IFERROR(INDEX(($O$30:$O$60), MATCH(0, COUNTIF($T$29:T39, ($O$30:$O$60)), 0)), INDEX(($P$30:$P$60), MATCH(0, COUNTIF($T$29:T39, ($P$30:$P$60)), 0))), "") ->  | U40: =IFERROR(IFERROR(INDEX(($Q$30:$Q$60), MATCH(0, COUNTIF($U$29:U39, ($Q$30:$Q$60)), 0)), INDEX(($R$30:$R$60), MATCH(0, COUNTIF($U$29:U39, ($R$30:$R$60)), 0))), "") ->  | V40: =IFERROR(IFERROR(INDEX(($S$30:$S$60), MATCH(0, COUNTIF($V$29:V39, ($S$30:$S$60)), 0)), INDEX(($T$30:$T$60), MATCH(0, COUNTIF($V$29:V39, ($T$30:$T$60)), 0))), "") ->  | W40: =IFERROR(IFERROR(INDEX(($U$30:$U$60), MATCH(0, COUNTIF($W$29:W39, ($U$30:$U$60)), 0)), INDEX(($V$30:$V$60), MATCH(0, COUNTIF($W$29:W39, ($V$30:$V$60)), 0))), "") ->  | X40: =IFERROR(INDEX((Data!$AT$33:$AX$82,Data!$AY$33:$BC$82,Data!$BD$33:$BH$82,Data!$BI$33:$BM$82,Data!$BN$33:$BR$82,Data!$BS$33:$BW$82,Data!$BX$33:$CB$82,Data!$CC$33:$CG$82,Data!$CH$33:$CL$82,Data!$CM$33:$CQ$82),$D40,2,CHOOSE(MATCH($Z$14,INDIRECT("Data!$AT$"&$D40+32&":$CM$"&$D40+32),0),1,0,0,0,0,2,0,0,0,0,3,0,0,0,0,4,0,0,0,0,5,0,0,0,0,6,0,0,0,0,7,0,0,0,0,8,0,0,0,0,9,0,0,0,0,10)),"") -> 0 | Y40: =IFERROR(INDEX((Data!$AT$33:$AX$82,Data!$AY$33:$BC$82,Data!$BD$33:$BH$82,Data!$BI$33:$BM$82,Data!$BN$33:$BR$82,Data!$BS$33:$BW$82,Data!$BX$33:$CB$82,Data!$CC$33:$CG$82,Data!$CH$33:$CL$82,Data!$CM$33:$CQ$82),$D40,3,CHOOSE(MATCH($Z$14,INDIRECT("Data!$AT$"&$D40+32&":$CM$"&$D40+32),0),1,0,0,0,0,2,0,0,0,0,3,0,0,0,0,4,0,0,0,0,5,0,0,0,0,6,0,0,0,0,7,0,0,0,0,8,0,0,0,0,9,0,0,0,0,10)),"") -> 0 | Z40: =IFERROR(INDEX((Data!$AT$33:$AX$82,Data!$AY$33:$BC$82,Data!$BD$33:$BH$82,Data!$BI$33:$BM$82,Data!$BN$33:$BR$82,Data!$BS$33:$BW$82,Data!$BX$33:$CB$82,Data!$CC$33:$CG$82,Data!$CH$33:$CL$82,Data!$CM$33:$CQ$82),$D40,4,CHOOSE(MATCH($Z$14,INDIRECT("Data!$AT$"&$D40+32&":$CM$"&$D40+32),0),1,0,0,0,0,2,0,0,0,0,3,0,0,0,0,4,0,0,0,0,5,0,0,0,0,6,0,0,0,0,7,0,0,0,0,8,0,0,0,0,9,0,0,0,0,10)),"") -> 0 | AA40: =IFERROR(INDEX((Data!$AT$33:$AX$82,Data!$AY$33:$BC$82,Data!$BD$33:$BH$82,Data!$BI$33:$BM$82,Data!$BN$33:$BR$82,Data!$BS$33:$BW$82,Data!$BX$33:$CB$82,Data!$CC$33:$CG$82,Data!$CH$33:$CL$82,Data!$CM$33:$CQ$82),$D40,5,CHOOSE(MATCH($Z$14,INDIRECT("Data!$AT$"&$D40+32&":$CM$"&$D40+32),0),1,0,0,0,0,2,0,0,0,0,3,0,0,0,0,4,0,0,0,0,5,0,0,0,0,6,0,0,0,0,7,0,0,0,0,8,0,0,0,0,9,0,0,0,0,10)),"") -> 0 | AB40: 0
B41: ='Report A'!$B43 -> 2014-07-12 | C41: ='Report A'!$C43 -> Saturday | D41: ='Report A'!$D43 -> 12 | E41: K-Lunch | F41: LOK-LOK | G41: Member 30% | H41: Member Package | I41: Tiger (2+1) Round | J41: Student Member Card | K41: Student Member Price | L41: 0 | M41: 0 | N41: 0 | O41: =IFERROR(IFERROR(INDEX(($E$30:$E$60), MATCH(0, COUNTIF($O$29:O40, ($E$30:$E$60)), 0)), INDEX(($F$30:$F$60), MATCH(0, COUNTIF($O$29:O40, ($F$30:$F$60)), 0))), "") ->  | P41: =IFERROR(IFERROR(INDEX(($G$30:$G$60), MATCH(0, COUNTIF($P$29:P40, ($G$30:$G$60)), 0)), INDEX(($H$30:$H$60), MATCH(0, COUNTIF($P$29:P40, ($H$30:$H$60)), 0))), "") ->  | Q41: =IFERROR(IFERROR(INDEX(($I$30:$I$60), MATCH(0, COUNTIF($Q$29:Q40, ($I$30:$I$60)), 0)), INDEX(($J$30:$J$60), MATCH(0, COUNTIF($Q$29:Q40, ($J$30:$J$60)), 0))), "") ->  | R41: =IFERROR(IFERROR(INDEX(($K$30:$K$60), MATCH(0, COUNTIF($R$29:R40, ($K$30:$K$60)), 0)), INDEX(($L$30:$L$60), MATCH(0, COUNTIF($R$29:R40, ($L$30:$L$60)), 0))), "") ->  | S41: =IFERROR(IFERROR(INDEX(($M$30:$M$60), MATCH(0, COUNTIF($S$29:S40, ($M$30:$M$60)), 0)), INDEX(($N$30:$N$60), MATCH(0, COUNTIF($S$29:S40, ($N$30:$N$60)), 0))), "") ->  | T41: =IFERROR(IFERROR(INDEX(($O$30:$O$60), MATCH(0, COUNTIF($T$29:T40, ($O$30:$O$60)), 0)), INDEX(($P$30:$P$60), MATCH(0, COUNTIF($T$29:T40, ($P$30:$P$60)), 0))), "") ->  | U41: =IFERROR(IFERROR(INDEX(($Q$30:$Q$60), MATCH(0, COUNTIF($U$29:U40, ($Q$30:$Q$60)), 0)), INDEX(($R$30:$R$60), MATCH(0, COUNTIF($U$29:U40, ($R$30:$R$60)), 0))), "") ->  | V41: =IFERROR(IFERROR(INDEX(($S$30:$S$60), MATCH(0, COUNTIF($V$29:V40, ($S$30:$S$60)), 0)), INDEX(($T$30:$T$60), MATCH(0, COUNTIF($V$29:V40, ($T$30:$T$60)), 0))), "") ->  | W41: =IFERROR(IFERROR(INDEX(($U$30:$U$60), MATCH(0, COUNTIF($W$29:W40, ($U$30:$U$60)), 0)), INDEX(($V$30:$V$60), MATCH(0, COUNTIF($W$29:W40, ($V$30:$V$60)), 0))), "") ->  | X41: =IFERROR(INDEX((Data!$AT$33:$AX$82,Data!$AY$33:$BC$82,Data!$BD$33:$BH$82,Data!$BI$33:$BM$82,Data!$BN$33:$BR$82,Data!$BS$33:$BW$82,Data!$BX$33:$CB$82,Data!$CC$33:$CG$82,Data!$CH$33:$CL$82,Data!$CM$33:$CQ$82),$D41,2,CHOOSE(MATCH($Z$14,INDIRECT("Data!$AT$"&$D41+32&":$CM$"&$D41+32),0),1,0,0,0,0,2,0,0,0,0,3,0,0,0,0,4,0,0,0,0,5,0,0,0,0,6,0,0,0,0,7,0,0,0,0,8,0,0,0,0,9,0,0,0,0,10)),"") -> 0 | Y41: =IFERROR(INDEX((Data!$AT$33:$AX$82,Data!$AY$33:$BC$82,Data!$BD$33:$BH$82,Data!$BI$33:$BM$82,Data!$BN$33:$BR$82,Data!$BS$33:$BW$82,Data!$BX$33:$CB$82,Data!$CC$33:$CG$82,Data!$CH$33:$CL$82,Data!$CM$33:$CQ$82),$D41,3,CHOOSE(MATCH($Z$14,INDIRECT("Data!$AT$"&$D41+32&":$CM$"&$D41+32),0),1,0,0,0,0,2,0,0,0,0,3,0,0,0,0,4,0,0,0,0,5,0,0,0,0,6,0,0,0,0,7,0,0,0,0,8,0,0,0,0,9,0,0,0,0,10)),"") -> 0 | Z41: =IFERROR(INDEX((Data!$AT$33:$AX$82,Data!$AY$33:$BC$82,Data!$BD$33:$BH$82,Data!$BI$33:$BM$82,Data!$BN$33:$BR$82,Data!$BS$33:$BW$82,Data!$BX$33:$CB$82,Data!$CC$33:$CG$82,Data!$CH$33:$CL$82,Data!$CM$33:$CQ$82),$D41,4,CHOOSE(MATCH($Z$14,INDIRECT("Data!$AT$"&$D41+32&":$CM$"&$D41+32),0),1,0,0,0,0,2,0,0,0,0,3,0,0,0,0,4,0,0,0,0,5,0,0,0,0,6,0,0,0,0,7,0,0,0,0,8,0,0,0,0,9,0,0,0,0,10)),"") -> 0 | AA41: =IFERROR(INDEX((Data!$AT$33:$AX$82,Data!$AY$33:$BC$82,Data!$BD$33:$BH$82,Data!$BI$33:$BM$82,Data!$BN$33:$BR$82,Data!$BS$33:$BW$82,Data!$BX$33:$CB$82,Data!$CC$33:$CG$82,Data!$CH$33:$CL$82,Data!$CM$33:$CQ$82),$D41,5,CHOOSE(MATCH($Z$14,INDIRECT("Data!$AT$"&$D41+32&":$CM$"&$D41+32),0),1,0,0,0,0,2,0,0,0,0,3,0,0,0,0,4,0,0,0,0,5,0,0,0,0,6,0,0,0,0,7,0,0,0,0,8,0,0,0,0,9,0,0,0,0,10)),"") -> 0 | AB41: 0
B42: ='Report A'!$B44 -> 2014-07-13 | C42: ='Report A'!$C44 -> Sunday | D42: ='Report A'!$D44 -> 13 | E42: K-Lunch | F42: LOK-LOK | G42: Member 30% | H42: Member Package | I42: Tiger (2+1) Round | J42: Student Member Card | K42: Student Member Price | L42: 0 | M42: 0 | N42: 0 | O42: =IFERROR(IFERROR(INDEX(($E$30:$E$60), MATCH(0, COUNTIF($O$29:O41, ($E$30:$E$60)), 0)), INDEX(($F$30:$F$60), MATCH(0, COUNTIF($O$29:O41, ($F$30:$F$60)), 0))), "") ->  | P42: =IFERROR(IFERROR(INDEX(($G$30:$G$60), MATCH(0, COUNTIF($P$29:P41, ($G$30:$G$60)), 0)), INDEX(($H$30:$H$60), MATCH(0, COUNTIF($P$29:P41, ($H$30:$H$60)), 0))), "") ->  | Q42: =IFERROR(IFERROR(INDEX(($I$30:$I$60), MATCH(0, COUNTIF($Q$29:Q41, ($I$30:$I$60)), 0)), INDEX(($J$30:$J$60), MATCH(0, COUNTIF($Q$29:Q41, ($J$30:$J$60)), 0))), "") ->  | R42: =IFERROR(IFERROR(INDEX(($K$30:$K$60), MATCH(0, COUNTIF($R$29:R41, ($K$30:$K$60)), 0)), INDEX(($L$30:$L$60), MATCH(0, COUNTIF($R$29:R41, ($L$30:$L$60)), 0))), "") ->  | S42: =IFERROR(IFERROR(INDEX(($M$30:$M$60), MATCH(0, COUNTIF($S$29:S41, ($M$30:$M$60)), 0)), INDEX(($N$30:$N$60), MATCH(0, COUNTIF($S$29:S41, ($N$30:$N$60)), 0))), "") ->  | T42: =IFERROR(IFERROR(INDEX(($O$30:$O$60), MATCH(0, COUNTIF($T$29:T41, ($O$30:$O$60)), 0)), INDEX(($P$30:$P$60), MATCH(0, COUNTIF($T$29:T41, ($P$30:$P$60)), 0))), "") ->  | U42: =IFERROR(IFERROR(INDEX(($Q$30:$Q$60), MATCH(0, COUNTIF($U$29:U41, ($Q$30:$Q$60)), 0)), INDEX(($R$30:$R$60), MATCH(0, COUNTIF($U$29:U41, ($R$30:$R$60)), 0))), "") ->  | V42: =IFERROR(IFERROR(INDEX(($S$30:$S$60), MATCH(0, COUNTIF($V$29:V41, ($S$30:$S$60)), 0)), INDEX(($T$30:$T$60), MATCH(0, COUNTIF($V$29:V41, ($T$30:$T$60)), 0))), "") ->  | W42: =IFERROR(IFERROR(INDEX(($U$30:$U$60), MATCH(0, COUNTIF($W$29:W41, ($U$30:$U$60)), 0)), INDEX(($V$30:$V$60), MATCH(0, COUNTIF($W$29:W41, ($V$30:$V$60)), 0))), "") ->  | X42: =IFERROR(INDEX((Data!$AT$33:$AX$82,Data!$AY$33:$BC$82,Data!$BD$33:$BH$82,Data!$BI$33:$BM$82,Data!$BN$33:$BR$82,Data!$BS$33:$BW$82,Data!$BX$33:$CB$82,Data!$CC$33:$CG$82,Data!$CH$33:$CL$82,Data!$CM$33:$CQ$82),$D42,2,CHOOSE(MATCH($Z$14,INDIRECT("Data!$AT$"&$D42+32&":$CM$"&$D42+32),0),1,0,0,0,0,2,0,0,0,0,3,0,0,0,0,4,0,0,0,0,5,0,0,0,0,6,0,0,0,0,7,0,0,0,0,8,0,0,0,0,9,0,0,0,0,10)),"") -> 0 | Y42: =IFERROR(INDEX((Data!$AT$33:$AX$82,Data!$AY$33:$BC$82,Data!$BD$33:$BH$82,Data!$BI$33:$BM$82,Data!$BN$33:$BR$82,Data!$BS$33:$BW$82,Data!$BX$33:$CB$82,Data!$CC$33:$CG$82,Data!$CH$33:$CL$82,Data!$CM$33:$CQ$82),$D42,3,CHOOSE(MATCH($Z$14,INDIRECT("Data!$AT$"&$D42+32&":$CM$"&$D42+32),0),1,0,0,0,0,2,0,0,0,0,3,0,0,0,0,4,0,0,0,0,5,0,0,0,0,6,0,0,0,0,7,0,0,0,0,8,0,0,0,0,9,0,0,0,0,10)),"") -> 0 | Z42: =IFERROR(INDEX((Data!$AT$33:$AX$82,Data!$AY$33:$BC$82,Data!$BD$33:$BH$82,Data!$BI$33:$BM$82,Data!$BN$33:$BR$82,Data!$BS$33:$BW$82,Data!$BX$33:$CB$82,Data!$CC$33:$CG$82,Data!$CH$33:$CL$82,Data!$CM$33:$CQ$82),$D42,4,CHOOSE(MATCH($Z$14,INDIRECT("Data!$AT$"&$D42+32&":$CM$"&$D42+32),0),1,0,0,0,0,2,0,0,0,0,3,0,0,0,0,4,0,0,0,0,5,0,0,0,0,6,0,0,0,0,7,0,0,0,0,8,0,0,0,0,9,0,0,0,0,10)),"") -> 0 | AA42: =IFERROR(INDEX((Data!$AT$33:$AX$82,Data!$AY$33:$BC$82,Data!$BD$33:$BH$82,Data!$BI$33:$BM$82,Data!$BN$33:$BR$82,Data!$BS$33:$BW$82,Data!$BX$33:$CB$82,Data!$CC$33:$CG$82,Data!$CH$33:$CL$82,Data!$CM$33:$CQ$82),$D42,5,CHOOSE(MATCH($Z$14,INDIRECT("Data!$AT$"&$D42+32&":$CM$"&$D42+32),0),1,0,0,0,0,2,0,0,0,0,3,0,0,0,0,4,0,0,0,0,5,0,0,0,0,6,0,0,0,0,7,0,0,0,0,8,0,0,0,0,9,0,0,0,0,10)),"") -> 0 | AB42: 0
B43: ='Report A'!$B45 -> 2014-07-14 | C43: ='Report A'!$C45 -> Monday | D43: ='Report A'!$D45 -> 14 | E43: K-Lunch | F43: LOK-LOK | G43: Member 30% | H43: Member Package | I43: Tiger (2+1) Round | J43: Student Member Card | K43: Student Member Price | L43: 0 | M43: 0 | N43: 0 | O43: =IFERROR(IFERROR(INDEX(($E$30:$E$60), MATCH(0, COUNTIF($O$29:O42, ($E$30:$E$60)), 0)), INDEX(($F$30:$F$60), MATCH(0, COUNTIF($O$29:O42, ($F$30:$F$60)), 0))), "") ->  | P43: =IFERROR(IFERROR(INDEX(($G$30:$G$60), MATCH(0, COUNTIF($P$29:P42, ($G$30:$G$60)), 0)), INDEX(($H$30:$H$60), MATCH(0, COUNTIF($P$29:P42, ($H$30:$H$60)), 0))), "") ->  | Q43: =IFERROR(IFERROR(INDEX(($I$30:$I$60), MATCH(0, COUNTIF($Q$29:Q42, ($I$30:$I$60)), 0)), INDEX(($J$30:$J$60), MATCH(0, COUNTIF($Q$29:Q42, ($J$30:$J$60)), 0))), "") ->  | R43: =IFERROR(IFERROR(INDEX(($K$30:$K$60), MATCH(0, COUNTIF($R$29:R42, ($K$30:$K$60)), 0)), INDEX(($L$30:$L$60), MATCH(0, COUNTIF($R$29:R42, ($L$30:$L$60)), 0))), "") ->  | S43: =IFERROR(IFERROR(INDEX(($M$30:$M$60), MATCH(0, COUNTIF($S$29:S42, ($M$30:$M$60)), 0)), INDEX(($N$30:$N$60), MATCH(0, COUNTIF($S$29:S42, ($N$30:$N$60)), 0))), "") ->  | T43: =IFERROR(IFERROR(INDEX(($O$30:$O$60), MATCH(0, COUNTIF($T$29:T42, ($O$30:$O$60)), 0)), INDEX(($P$30:$P$60), MATCH(0, COUNTIF($T$29:T42, ($P$30:$P$60)), 0))), "") ->  | U43: =IFERROR(IFERROR(INDEX(($Q$30:$Q$60), MATCH(0, COUNTIF($U$29:U42, ($Q$30:$Q$60)), 0)), INDEX(($R$30:$R$60), MATCH(0, COUNTIF($U$29:U42, ($R$30:$R$60)), 0))), "") ->  | V43: =IFERROR(IFERROR(INDEX(($S$30:$S$60), MATCH(0, COUNTIF($V$29:V42, ($S$30:$S$60)), 0)), INDEX(($T$30:$T$60), MATCH(0, COUNTIF($V$29:V42, ($T$30:$T$60)), 0))), "") ->  | W43: =IFERROR(IFERROR(INDEX(($U$30:$U$60), MATCH(0, COUNTIF($W$29:W42, ($U$30:$U$60)), 0)), INDEX(($V$30:$V$60), MATCH(0, COUNTIF($W$29:W42, ($V$30:$V$60)), 0))), "") ->  | X43: =IFERROR(INDEX((Data!$AT$33:$AX$82,Data!$AY$33:$BC$82,Data!$BD$33:$BH$82,Data!$BI$33:$BM$82,Data!$BN$33:$BR$82,Data!$BS$33:$BW$82,Data!$BX$33:$CB$82,Data!$CC$33:$CG$82,Data!$CH$33:$CL$82,Data!$CM$33:$CQ$82),$D43,2,CHOOSE(MATCH($Z$14,INDIRECT("Data!$AT$"&$D43+32&":$CM$"&$D43+32),0),1,0,0,0,0,2,0,0,0,0,3,0,0,0,0,4,0,0,0,0,5,0,0,0,0,6,0,0,0,0,7,0,0,0,0,8,0,0,0,0,9,0,0,0,0,10)),"") -> 0 | Y43: =IFERROR(INDEX((Data!$AT$33:$AX$82,Data!$AY$33:$BC$82,Data!$BD$33:$BH$82,Data!$BI$33:$BM$82,Data!$BN$33:$BR$82,Data!$BS$33:$BW$82,Data!$BX$33:$CB$82,Data!$CC$33:$CG$82,Data!$CH$33:$CL$82,Data!$CM$33:$CQ$82),$D43,3,CHOOSE(MATCH($Z$14,INDIRECT("Data!$AT$"&$D43+32&":$CM$"&$D43+32),0),1,0,0,0,0,2,0,0,0,0,3,0,0,0,0,4,0,0,0,0,5,0,0,0,0,6,0,0,0,0,7,0,0,0,0,8,0,0,0,0,9,0,0,0,0,10)),"") -> 0 | Z43: =IFERROR(INDEX((Data!$AT$33:$AX$82,Data!$AY$33:$BC$82,Data!$BD$33:$BH$82,Data!$BI$33:$BM$82,Data!$BN$33:$BR$82,Data!$BS$33:$BW$82,Data!$BX$33:$CB$82,Data!$CC$33:$CG$82,Data!$CH$33:$CL$82,Data!$CM$33:$CQ$82),$D43,4,CHOOSE(MATCH($Z$14,INDIRECT("Data!$AT$"&$D43+32&":$CM$"&$D43+32),0),1,0,0,0,0,2,0,0,0,0,3,0,0,0,0,4,0,0,0,0,5,0,0,0,0,6,0,0,0,0,7,0,0,0,0,8,0,0,0,0,9,0,0,0,0,10)),"") -> 0 | AA43: =IFERROR(INDEX((Data!$AT$33:$AX$82,Data!$AY$33:$BC$82,Data!$BD$33:$BH$82,Data!$BI$33:$BM$82,Data!$BN$33:$BR$82,Data!$BS$33:$BW$82,Data!$BX$33:$CB$82,Data!$CC$33:$CG$82,Data!$CH$33:$CL$82,Data!$CM$33:$CQ$82),$D43,5,CHOOSE(MATCH($Z$14,INDIRECT("Data!$AT$"&$D43+32&":$CM$"&$D43+32),0),1,0,0,0,0,2,0,0,0,0,3,0,0,0,0,4,0,0,0,0,5,0,0,0,0,6,0,0,0,0,7,0,0,0,0,8,0,0,0,0,9,0,0,0,0,10)),"") -> 0 | AB43: 0
B44: ='Report A'!$B46 -> 2014-07-15 | C44: ='Report A'!$C46 -> Tuesday | D44: ='Report A'!$D46 -> 15 | E44: K-Lunch | F44: LOK-LOK | G44: Member 30% | H44: Member Package | I44: Tiger (2+1) Round | J44: Student Member Card | K44: Student Member Price | L44: 0 | M44: 0 | N44: 0 | O44: =IFERROR(IFERROR(INDEX(($E$30:$E$60), MATCH(0, COUNTIF($O$29:O43, ($E$30:$E$60)), 0)), INDEX(($F$30:$F$60), MATCH(0, COUNTIF($O$29:O43, ($F$30:$F$60)), 0))), "") ->  | P44: =IFERROR(IFERROR(INDEX(($G$30:$G$60), MATCH(0, COUNTIF($P$29:P43, ($G$30:$G$60)), 0)), INDEX(($H$30:$H$60), MATCH(0, COUNTIF($P$29:P43, ($H$30:$H$60)), 0))), "") ->  | Q44: =IFERROR(IFERROR(INDEX(($I$30:$I$60), MATCH(0, COUNTIF($Q$29:Q43, ($I$30:$I$60)), 0)), INDEX(($J$30:$J$60), MATCH(0, COUNTIF($Q$29:Q43, ($J$30:$J$60)), 0))), "") ->  | R44: =IFERROR(IFERROR(INDEX(($K$30:$K$60), MATCH(0, COUNTIF($R$29:R43, ($K$30:$K$60)), 0)), INDEX(($L$30:$L$60), MATCH(0, COUNTIF($R$29:R43, ($L$30:$L$60)), 0))), "") ->  | S44: =IFERROR(IFERROR(INDEX(($M$30:$M$60), MATCH(0, COUNTIF($S$29:S43, ($M$30:$M$60)), 0)), INDEX(($N$30:$N$60), MATCH(0, COUNTIF($S$29:S43, ($N$30:$N$60)), 0))), "") ->  | T44: =IFERROR(IFERROR(INDEX(($O$30:$O$60), MATCH(0, COUNTIF($T$29:T43, ($O$30:$O$60)), 0)), INDEX(($P$30:$P$60), MATCH(0, COUNTIF($T$29:T43, ($P$30:$P$60)), 0))), "") ->  | U44: =IFERROR(IFERROR(INDEX(($Q$30:$Q$60), MATCH(0, COUNTIF($U$29:U43, ($Q$30:$Q$60)), 0)), INDEX(($R$30:$R$60), MATCH(0, COUNTIF($U$29:U43, ($R$30:$R$60)), 0))), "") ->  | V44: =IFERROR(IFERROR(INDEX(($S$30:$S$60), MATCH(0, COUNTIF($V$29:V43, ($S$30:$S$60)), 0)), INDEX(($T$30:$T$60), MATCH(0, COUNTIF($V$29:V43, ($T$30:$T$60)), 0))), "") ->  | W44: =IFERROR(IFERROR(INDEX(($U$30:$U$60), MATCH(0, COUNTIF($W$29:W43, ($U$30:$U$60)), 0)), INDEX(($V$30:$V$60), MATCH(0, COUNTIF($W$29:W43, ($V$30:$V$60)), 0))), "") ->  | X44: =IFERROR(INDEX((Data!$AT$33:$AX$82,Data!$AY$33:$BC$82,Data!$BD$33:$BH$82,Data!$BI$33:$BM$82,Data!$BN$33:$BR$82,Data!$BS$33:$BW$82,Data!$BX$33:$CB$82,Data!$CC$33:$CG$82,Data!$CH$33:$CL$82,Data!$CM$33:$CQ$82),$D44,2,CHOOSE(MATCH($Z$14,INDIRECT("Data!$AT$"&$D44+32&":$CM$"&$D44+32),0),1,0,0,0,0,2,0,0,0,0,3,0,0,0,0,4,0,0,0,0,5,0,0,0,0,6,0,0,0,0,7,0,0,0,0,8,0,0,0,0,9,0,0,0,0,10)),"") -> 0 | Y44: =IFERROR(INDEX((Data!$AT$33:$AX$82,Data!$AY$33:$BC$82,Data!$BD$33:$BH$82,Data!$BI$33:$BM$82,Data!$BN$33:$BR$82,Data!$BS$33:$BW$82,Data!$BX$33:$CB$82,Data!$CC$33:$CG$82,Data!$CH$33:$CL$82,Data!$CM$33:$CQ$82),$D44,3,CHOOSE(MATCH($Z$14,INDIRECT("Data!$AT$"&$D44+32&":$CM$"&$D44+32),0),1,0,0,0,0,2,0,0,0,0,3,0,0,0,0,4,0,0,0,0,5,0,0,0,0,6,0,0,0,0,7,0,0,0,0,8,0,0,0,0,9,0,0,0,0,10)),"") -> 0 | Z44: =IFERROR(INDEX((Data!$AT$33:$AX$82,Data!$AY$33:$BC$82,Data!$BD$33:$BH$82,Data!$BI$33:$BM$82,Data!$BN$33:$BR$82,Data!$BS$33:$BW$82,Data!$BX$33:$CB$82,Data!$CC$33:$CG$82,Data!$CH$33:$CL$82,Data!$CM$33:$CQ$82),$D44,4,CHOOSE(MATCH($Z$14,INDIRECT("Data!$AT$"&$D44+32&":$CM$"&$D44+32),0),1,0,0,0,0,2,0,0,0,0,3,0,0,0,0,4,0,0,0,0,5,0,0,0,0,6,0,0,0,0,7,0,0,0,0,8,0,0,0,0,9,0,0,0,0,10)),"") -> 0 | AA44: =IFERROR(INDEX((Data!$AT$33:$AX$82,Data!$AY$33:$BC$82,Data!$BD$33:$BH$82,Data!$BI$33:$BM$82,Data!$BN$33:$BR$82,Data!$BS$33:$BW$82,Data!$BX$33:$CB$82,Data!$CC$33:$CG$82,Data!$CH$33:$CL$82,Data!$CM$33:$CQ$82),$D44,5,CHOOSE(MATCH($Z$14,INDIRECT("Data!$AT$"&$D44+32&":$CM$"&$D44+32),0),1,0,0,0,0,2,0,0,0,0,3,0,0,0,0,4,0,0,0,0,5,0,0,0,0,6,0,0,0,0,7,0,0,0,0,8,0,0,0,0,9,0,0,0,0,10)),"") -> 0 | AB44: 0
B45: ='Report A'!$B47 -> 2014-07-16 | C45: ='Report A'!$C47 -> Wednesday | D45: ='Report A'!$D47 -> 16 | E45: K-Lunch | F45: LOK-LOK | G45: Member 30% | H45: Member Package | I45: Tiger (2+1) Round | J45: Student Member Card | K45: Student Member Price | L45: 0 | M45: 0 | N45: 0 | O45: =IFERROR(IFERROR(INDEX(($E$30:$E$60), MATCH(0, COUNTIF($O$29:O44, ($E$30:$E$60)), 0)), INDEX(($F$30:$F$60), MATCH(0, COUNTIF($O$29:O44, ($F$30:$F$60)), 0))), "") ->  | P45: =IFERROR(IFERROR(INDEX(($G$30:$G$60), MATCH(0, COUNTIF($P$29:P44, ($G$30:$G$60)), 0)), INDEX(($H$30:$H$60), MATCH(0, COUNTIF($P$29:P44, ($H$30:$H$60)), 0))), "") ->  | Q45: =IFERROR(IFERROR(INDEX(($I$30:$I$60), MATCH(0, COUNTIF($Q$29:Q44, ($I$30:$I$60)), 0)), INDEX(($J$30:$J$60), MATCH(0, COUNTIF($Q$29:Q44, ($J$30:$J$60)), 0))), "") ->  | R45: =IFERROR(IFERROR(INDEX(($K$30:$K$60), MATCH(0, COUNTIF($R$29:R44, ($K$30:$K$60)), 0)), INDEX(($L$30:$L$60), MATCH(0, COUNTIF($R$29:R44, ($L$30:$L$60)), 0))), "") ->  | S45: =IFERROR(IFERROR(INDEX(($M$30:$M$60), MATCH(0, COUNTIF($S$29:S44, ($M$30:$M$60)), 0)), INDEX(($N$30:$N$60), MATCH(0, COUNTIF($S$29:S44, ($N$30:$N$60)), 0))), "") ->  | T45: =IFERROR(IFERROR(INDEX(($O$30:$O$60), MATCH(0, COUNTIF($T$29:T44, ($O$30:$O$60)), 0)), INDEX(($P$30:$P$60), MATCH(0, COUNTIF($T$29:T44, ($P$30:$P$60)), 0))), "") ->  | U45: =IFERROR(IFERROR(INDEX(($Q$30:$Q$60), MATCH(0, COUNTIF($U$29:U44, ($Q$30:$Q$60)), 0)), INDEX(($R$30:$R$60), MATCH(0, COUNTIF($U$29:U44, ($R$30:$R$60)), 0))), "") ->  | V45: =IFERROR(IFERROR(INDEX(($S$30:$S$60), MATCH(0, COUNTIF($V$29:V44, ($S$30:$S$60)), 0)), INDEX(($T$30:$T$60), MATCH(0, COUNTIF($V$29:V44, ($T$30:$T$60)), 0))), "") ->  | W45: =IFERROR(IFERROR(INDEX(($U$30:$U$60), MATCH(0, COUNTIF($W$29:W44, ($U$30:$U$60)), 0)), INDEX(($V$30:$V$60), MATCH(0, COUNTIF($W$29:W44, ($V$30:$V$60)), 0))), "") ->  | X45: =IFERROR(INDEX((Data!$AT$33:$AX$82,Data!$AY$33:$BC$82,Data!$BD$33:$BH$82,Data!$BI$33:$BM$82,Data!$BN$33:$BR$82,Data!$BS$33:$BW$82,Data!$BX$33:$CB$82,Data!$CC$33:$CG$82,Data!$CH$33:$CL$82,Data!$CM$33:$CQ$82),$D45,2,CHOOSE(MATCH($Z$14,INDIRECT("Data!$AT$"&$D45+32&":$CM$"&$D45+32),0),1,0,0,0,0,2,0,0,0,0,3,0,0,0,0,4,0,0,0,0,5,0,0,0,0,6,0,0,0,0,7,0,0,0,0,8,0,0,0,0,9,0,0,0,0,10)),"") -> 0 | Y45: =IFERROR(INDEX((Data!$AT$33:$AX$82,Data!$AY$33:$BC$82,Data!$BD$33:$BH$82,Data!$BI$33:$BM$82,Data!$BN$33:$BR$82,Data!$BS$33:$BW$82,Data!$BX$33:$CB$82,Data!$CC$33:$CG$82,Data!$CH$33:$CL$82,Data!$CM$33:$CQ$82),$D45,3,CHOOSE(MATCH($Z$14,INDIRECT("Data!$AT$"&$D45+32&":$CM$"&$D45+32),0),1,0,0,0,0,2,0,0,0,0,3,0,0,0,0,4,0,0,0,0,5,0,0,0,0,6,0,0,0,0,7,0,0,0,0,8,0,0,0,0,9,0,0,0,0,10)),"") -> 0 | Z45: =IFERROR(INDEX((Data!$AT$33:$AX$82,Data!$AY$33:$BC$82,Data!$BD$33:$BH$82,Data!$BI$33:$BM$82,Data!$BN$33:$BR$82,Data!$BS$33:$BW$82,Data!$BX$33:$CB$82,Data!$CC$33:$CG$82,Data!$CH$33:$CL$82,Data!$CM$33:$CQ$82),$D45,4,CHOOSE(MATCH($Z$14,INDIRECT("Data!$AT$"&$D45+32&":$CM$"&$D45+32),0),1,0,0,0,0,2,0,0,0,0,3,0,0,0,0,4,0,0,0,0,5,0,0,0,0,6,0,0,0,0,7,0,0,0,0,8,0,0,0,0,9,0,0,0,0,10)),"") -> 5 | AA45: =IFERROR(INDEX((Data!$AT$33:$AX$82,Data!$AY$33:$BC$82,Data!$BD$33:$BH$82,Data!$BI$33:$BM$82,Data!$BN$33:$BR$82,Data!$BS$33:$BW$82,Data!$BX$33:$CB$82,Data!$CC$33:$CG$82,Data!$CH$33:$CL$82,Data!$CM$33:$CQ$82),$D45,5,CHOOSE(MATCH($Z$14,INDIRECT("Data!$AT$"&$D45+32&":$CM$"&$D45+32),0),1,0,0,0,0,2,0,0,0,0,3,0,0,0,0,4,0,0,0,0,5,0,0,0,0,6,0,0,0,0,7,0,0,0,0,8,0,0,0,0,9,0,0,0,0,10)),"") -> 0 | AB45: 5
B46: ='Report A'!$B48 -> 2014-07-17 | C46: ='Report A'!$C48 -> Thursday | D46: ='Report A'!$D48 -> 17 | E46: K-Lunch | F46: LOK-LOK | G46: Member 30% | H46: Member Package | I46: Tiger (2+1) Round | J46: Student Member Card | K46: Student Member Price | L46: 0 | M46: 0 | N46: 0 | O46: =IFERROR(IFERROR(INDEX(($E$30:$E$60), MATCH(0, COUNTIF($O$29:O45, ($E$30:$E$60)), 0)), INDEX(($F$30:$F$60), MATCH(0, COUNTIF($O$29:O45, ($F$30:$F$60)), 0))), "") ->  | P46: =IFERROR(IFERROR(INDEX(($G$30:$G$60), MATCH(0, COUNTIF($P$29:P45, ($G$30:$G$60)), 0)), INDEX(($H$30:$H$60), MATCH(0, COUNTIF($P$29:P45, ($H$30:$H$60)), 0))), "") ->  | Q46: =IFERROR(IFERROR(INDEX(($I$30:$I$60), MATCH(0, COUNTIF($Q$29:Q45, ($I$30:$I$60)), 0)), INDEX(($J$30:$J$60), MATCH(0, COUNTIF($Q$29:Q45, ($J$30:$J$60)), 0))), "") ->  | R46: =IFERROR(IFERROR(INDEX(($K$30:$K$60), MATCH(0, COUNTIF($R$29:R45, ($K$30:$K$60)), 0)), INDEX(($L$30:$L$60), MATCH(0, COUNTIF($R$29:R45, ($L$30:$L$60)), 0))), "") ->  | S46: =IFERROR(IFERROR(INDEX(($M$30:$M$60), MATCH(0, COUNTIF($S$29:S45, ($M$30:$M$60)), 0)), INDEX(($N$30:$N$60), MATCH(0, COUNTIF($S$29:S45, ($N$30:$N$60)), 0))), "") ->  | T46: =IFERROR(IFERROR(INDEX(($O$30:$O$60), MATCH(0, COUNTIF($T$29:T45, ($O$30:$O$60)), 0)), INDEX(($P$30:$P$60), MATCH(0, COUNTIF($T$29:T45, ($P$30:$P$60)), 0))), "") ->  | U46: =IFERROR(IFERROR(INDEX(($Q$30:$Q$60), MATCH(0, COUNTIF($U$29:U45, ($Q$30:$Q$60)), 0)), INDEX(($R$30:$R$60), MATCH(0, COUNTIF($U$29:U45, ($R$30:$R$60)), 0))), "") ->  | V46: =IFERROR(IFERROR(INDEX(($S$30:$S$60), MATCH(0, COUNTIF($V$29:V45, ($S$30:$S$60)), 0)), INDEX(($T$30:$T$60), MATCH(0, COUNTIF($V$29:V45, ($T$30:$T$60)), 0))), "") ->  | W46: =IFERROR(IFERROR(INDEX(($U$30:$U$60), MATCH(0, COUNTIF($W$29:W45, ($U$30:$U$60)), 0)), INDEX(($V$30:$V$60), MATCH(0, COUNTIF($W$29:W45, ($V$30:$V$60)), 0))), "") ->  | X46: =IFERROR(INDEX((Data!$AT$33:$AX$82,Data!$AY$33:$BC$82,Data!$BD$33:$BH$82,Data!$BI$33:$BM$82,Data!$BN$33:$BR$82,Data!$BS$33:$BW$82,Data!$BX$33:$CB$82,Data!$CC$33:$CG$82,Data!$CH$33:$CL$82,Data!$CM$33:$CQ$82),$D46,2,CHOOSE(MATCH($Z$14,INDIRECT("Data!$AT$"&$D46+32&":$CM$"&$D46+32),0),1,0,0,0,0,2,0,0,0,0,3,0,0,0,0,4,0,0,0,0,5,0,0,0,0,6,0,0,0,0,7,0,0,0,0,8,0,0,0,0,9,0,0,0,0,10)),"") -> 0 | Y46: =IFERROR(INDEX((Data!$AT$33:$AX$82,Data!$AY$33:$BC$82,Data!$BD$33:$BH$82,Data!$BI$33:$BM$82,Data!$BN$33:$BR$82,Data!$BS$33:$BW$82,Data!$BX$33:$CB$82,Data!$CC$33:$CG$82,Data!$CH$33:$CL$82,Data!$CM$33:$CQ$82),$D46,3,CHOOSE(MATCH($Z$14,INDIRECT("Data!$AT$"&$D46+32&":$CM$"&$D46+32),0),1,0,0,0,0,2,0,0,0,0,3,0,0,0,0,4,0,0,0,0,5,0,0,0,0,6,0,0,0,0,7,0,0,0,0,8,0,0,0,0,9,0,0,0,0,10)),"") -> 0 | Z46: =IFERROR(INDEX((Data!$AT$33:$AX$82,Data!$AY$33:$BC$82,Data!$BD$33:$BH$82,Data!$BI$33:$BM$82,Data!$BN$33:$BR$82,Data!$BS$33:$BW$82,Data!$BX$33:$CB$82,Data!$CC$33:$CG$82,Data!$CH$33:$CL$82,Data!$CM$33:$CQ$82),$D46,4,CHOOSE(MATCH($Z$14,INDIRECT("Data!$AT$"&$D46+32&":$CM$"&$D46+32),0),1,0,0,0,0,2,0,0,0,0,3,0,0,0,0,4,0,0,0,0,5,0,0,0,0,6,0,0,0,0,7,0,0,0,0,8,0,0,0,0,9,0,0,0,0,10)),"") -> 0 | AA46: =IFERROR(INDEX((Data!$AT$33:$AX$82,Data!$AY$33:$BC$82,Data!$BD$33:$BH$82,Data!$BI$33:$BM$82,Data!$BN$33:$BR$82,Data!$BS$33:$BW$82,Data!$BX$33:$CB$82,Data!$CC$33:$CG$82,Data!$CH$33:$CL$82,Data!$CM$33:$CQ$82),$D46,5,CHOOSE(MATCH($Z$14,INDIRECT("Data!$AT$"&$D46+32&":$CM$"&$D46+32),0),1,0,0,0,0,2,0,0,0,0,3,0,0,0,0,4,0,0,0,0,5,0,0,0,0,6,0,0,0,0,7,0,0,0,0,8,0,0,0,0,9,0,0,0,0,10)),"") -> 0 | AB46: 0
B47: ='Report A'!$B49 -> 2014-07-18 | C47: ='Report A'!$C49 -> Friday | D47: ='Report A'!$D49 -> 18 | E47: K-Lunch | F47: LOK-LOK | G47: Member 30% | H47: Member Package | I47: Tiger (2+1) Round | J47: Student Member Card | K47: Student Member Price | L47: 0 | M47: 0 | N47: 0 | O47: =IFERROR(IFERROR(INDEX(($E$30:$E$60), MATCH(0, COUNTIF($O$29:O46, ($E$30:$E$60)), 0)), INDEX(($F$30:$F$60), MATCH(0, COUNTIF($O$29:O46, ($F$30:$F$60)), 0))), "") ->  | P47: =IFERROR(IFERROR(INDEX(($G$30:$G$60), MATCH(0, COUNTIF($P$29:P46, ($G$30:$G$60)), 0)), INDEX(($H$30:$H$60), MATCH(0, COUNTIF($P$29:P46, ($H$30:$H$60)), 0))), "") ->  | Q47: =IFERROR(IFERROR(INDEX(($I$30:$I$60), MATCH(0, COUNTIF($Q$29:Q46, ($I$30:$I$60)), 0)), INDEX(($J$30:$J$60), MATCH(0, COUNTIF($Q$29:Q46, ($J$30:$J$60)), 0))), "") ->  | R47: =IFERROR(IFERROR(INDEX(($K$30:$K$60), MATCH(0, COUNTIF($R$29:R46, ($K$30:$K$60)), 0)), INDEX(($L$30:$L$60), MATCH(0, COUNTIF($R$29:R46, ($L$30:$L$60)), 0))), "") ->  | S47: =IFERROR(IFERROR(INDEX(($M$30:$M$60), MATCH(0, COUNTIF($S$29:S46, ($M$30:$M$60)), 0)), INDEX(($N$30:$N$60), MATCH(0, COUNTIF($S$29:S46, ($N$30:$N$60)), 0))), "") ->  | T47: =IFERROR(IFERROR(INDEX(($O$30:$O$60), MATCH(0, COUNTIF($T$29:T46, ($O$30:$O$60)), 0)), INDEX(($P$30:$P$60), MATCH(0, COUNTIF($T$29:T46, ($P$30:$P$60)), 0))), "") ->  | U47: =IFERROR(IFERROR(INDEX(($Q$30:$Q$60), MATCH(0, COUNTIF($U$29:U46, ($Q$30:$Q$60)), 0)), INDEX(($R$30:$R$60), MATCH(0, COUNTIF($U$29:U46, ($R$30:$R$60)), 0))), "") ->  | V47: =IFERROR(IFERROR(INDEX(($S$30:$S$60), MATCH(0, COUNTIF($V$29:V46, ($S$30:$S$60)), 0)), INDEX(($T$30:$T$60), MATCH(0, COUNTIF($V$29:V46, ($T$30:$T$60)), 0))), "") ->  | W47: =IFERROR(IFERROR(INDEX(($U$30:$U$60), MATCH(0, COUNTIF($W$29:W46, ($U$30:$U$60)), 0)), INDEX(($V$30:$V$60), MATCH(0, COUNTIF($W$29:W46, ($V$30:$V$60)), 0))), "") ->  | X47: =IFERROR(INDEX((Data!$AT$33:$AX$82,Data!$AY$33:$BC$82,Data!$BD$33:$BH$82,Data!$BI$33:$BM$82,Data!$BN$33:$BR$82,Data!$BS$33:$BW$82,Data!$BX$33:$CB$82,Data!$CC$33:$CG$82,Data!$CH$33:$CL$82,Data!$CM$33:$CQ$82),$D47,2,CHOOSE(MATCH($Z$14,INDIRECT("Data!$AT$"&$D47+32&":$CM$"&$D47+32),0),1,0,0,0,0,2,0,0,0,0,3,0,0,0,0,4,0,0,0,0,5,0,0,0,0,6,0,0,0,0,7,0,0,0,0,8,0,0,0,0,9,0,0,0,0,10)),"") -> 0 | Y47: =IFERROR(INDEX((Data!$AT$33:$AX$82,Data!$AY$33:$BC$82,Data!$BD$33:$BH$82,Data!$BI$33:$BM$82,Data!$BN$33:$BR$82,Data!$BS$33:$BW$82,Data!$BX$33:$CB$82,Data!$CC$33:$CG$82,Data!$CH$33:$CL$82,Data!$CM$33:$CQ$82),$D47,3,CHOOSE(MATCH($Z$14,INDIRECT("Data!$AT$"&$D47+32&":$CM$"&$D47+32),0),1,0,0,0,0,2,0,0,0,0,3,0,0,0,0,4,0,0,0,0,5,0,0,0,0,6,0,0,0,0,7,0,0,0,0,8,0,0,0,0,9,0,0,0,0,10)),"") -> 0 | Z47: =IFERROR(INDEX((Data!$AT$33:$AX$82,Data!$AY$33:$BC$82,Data!$BD$33:$BH$82,Data!$BI$33:$BM$82,Data!$BN$33:$BR$82,Data!$BS$33:$BW$82,Data!$BX$33:$CB$82,Data!$CC$33:$CG$82,Data!$CH$33:$CL$82,Data!$CM$33:$CQ$82),$D47,4,CHOOSE(MATCH($Z$14,INDIRECT("Data!$AT$"&$D47+32&":$CM$"&$D47+32),0),1,0,0,0,0,2,0,0,0,0,3,0,0,0,0,4,0,0,0,0,5,0,0,0,0,6,0,0,0,0,7,0,0,0,0,8,0,0,0,0,9,0,0,0,0,10)),"") -> 0 | AA47: =IFERROR(INDEX((Data!$AT$33:$AX$82,Data!$AY$33:$BC$82,Data!$BD$33:$BH$82,Data!$BI$33:$BM$82,Data!$BN$33:$BR$82,Data!$BS$33:$BW$82,Data!$BX$33:$CB$82,Data!$CC$33:$CG$82,Data!$CH$33:$CL$82,Data!$CM$33:$CQ$82),$D47,5,CHOOSE(MATCH($Z$14,INDIRECT("Data!$AT$"&$D47+32&":$CM$"&$D47+32),0),1,0,0,0,0,2,0,0,0,0,3,0,0,0,0,4,0,0,0,0,5,0,0,0,0,6,0,0,0,0,7,0,0,0,0,8,0,0,0,0,9,0,0,0,0,10)),"") -> 0 | AB47: 0
B48: ='Report A'!$B50 -> 2014-07-19 | C48: ='Report A'!$C50 -> Saturday | D48: ='Report A'!$D50 -> 19 | E48: K-Lunch | F48: LOK-LOK | G48: Member 30% | H48: Member Package | I48: Tiger (2+1) Round | J48: Student Member Card | K48: Student Member Price | L48: 0 | M48: 0 | N48: 0 | O48: =IFERROR(IFERROR(INDEX(($E$30:$E$60), MATCH(0, COUNTIF($O$29:O47, ($E$30:$E$60)), 0)), INDEX(($F$30:$F$60), MATCH(0, COUNTIF($O$29:O47, ($F$30:$F$60)), 0))), "") ->  | P48: =IFERROR(IFERROR(INDEX(($G$30:$G$60), MATCH(0, COUNTIF($P$29:P47, ($G$30:$G$60)), 0)), INDEX(($H$30:$H$60), MATCH(0, COUNTIF($P$29:P47, ($H$30:$H$60)), 0))), "") ->  | Q48: =IFERROR(IFERROR(INDEX(($I$30:$I$60), MATCH(0, COUNTIF($Q$29:Q47, ($I$30:$I$60)), 0)), INDEX(($J$30:$J$60), MATCH(0, COUNTIF($Q$29:Q47, ($J$30:$J$60)), 0))), "") ->  | R48: =IFERROR(IFERROR(INDEX(($K$30:$K$60), MATCH(0, COUNTIF($R$29:R47, ($K$30:$K$60)), 0)), INDEX(($L$30:$L$60), MATCH(0, COUNTIF($R$29:R47, ($L$30:$L$60)), 0))), "") ->  | S48: =IFERROR(IFERROR(INDEX(($M$30:$M$60), MATCH(0, COUNTIF($S$29:S47, ($M$30:$M$60)), 0)), INDEX(($N$30:$N$60), MATCH(0, COUNTIF($S$29:S47, ($N$30:$N$60)), 0))), "") ->  | T48: =IFERROR(IFERROR(INDEX(($O$30:$O$60), MATCH(0, COUNTIF($T$29:T47, ($O$30:$O$60)), 0)), INDEX(($P$30:$P$60), MATCH(0, COUNTIF($T$29:T47, ($P$30:$P$60)), 0))), "") ->  | U48: =IFERROR(IFERROR(INDEX(($Q$30:$Q$60), MATCH(0, COUNTIF($U$29:U47, ($Q$30:$Q$60)), 0)), INDEX(($R$30:$R$60), MATCH(0, COUNTIF($U$29:U47, ($R$30:$R$60)), 0))), "") ->  | V48: =IFERROR(IFERROR(INDEX(($S$30:$S$60), MATCH(0, COUNTIF($V$29:V47, ($S$30:$S$60)), 0)), INDEX(($T$30:$T$60), MATCH(0, COUNTIF($V$29:V47, ($T$30:$T$60)), 0))), "") ->  | W48: =IFERROR(IFERROR(INDEX(($U$30:$U$60), MATCH(0, COUNTIF($W$29:W47, ($U$30:$U$60)), 0)), INDEX(($V$30:$V$60), MATCH(0, COUNTIF($W$29:W47, ($V$30:$V$60)), 0))), "") ->  | X48: =IFERROR(INDEX((Data!$AT$33:$AX$82,Data!$AY$33:$BC$82,Data!$BD$33:$BH$82,Data!$BI$33:$BM$82,Data!$BN$33:$BR$82,Data!$BS$33:$BW$82,Data!$BX$33:$CB$82,Data!$CC$33:$CG$82,Data!$CH$33:$CL$82,Data!$CM$33:$CQ$82),$D48,2,CHOOSE(MATCH($Z$14,INDIRECT("Data!$AT$"&$D48+32&":$CM$"&$D48+32),0),1,0,0,0,0,2,0,0,0,0,3,0,0,0,0,4,0,0,0,0,5,0,0,0,0,6,0,0,0,0,7,0,0,0,0,8,0,0,0,0,9,0,0,0,0,10)),"") -> 0 | Y48: =IFERROR(INDEX((Data!$AT$33:$AX$82,Data!$AY$33:$BC$82,Data!$BD$33:$BH$82,Data!$BI$33:$BM$82,Data!$BN$33:$BR$82,Data!$BS$33:$BW$82,Data!$BX$33:$CB$82,Data!$CC$33:$CG$82,Data!$CH$33:$CL$82,Data!$CM$33:$CQ$82),$D48,3,CHOOSE(MATCH($Z$14,INDIRECT("Data!$AT$"&$D48+32&":$CM$"&$D48+32),0),1,0,0,0,0,2,0,0,0,0,3,0,0,0,0,4,0,0,0,0,5,0,0,0,0,6,0,0,0,0,7,0,0,0,0,8,0,0,0,0,9,0,0,0,0,10)),"") -> 0 | Z48: =IFERROR(INDEX((Data!$AT$33:$AX$82,Data!$AY$33:$BC$82,Data!$BD$33:$BH$82,Data!$BI$33:$BM$82,Data!$BN$33:$BR$82,Data!$BS$33:$BW$82,Data!$BX$33:$CB$82,Data!$CC$33:$CG$82,Data!$CH$33:$CL$82,Data!$CM$33:$CQ$82),$D48,4,CHOOSE(MATCH($Z$14,INDIRECT("Data!$AT$"&$D48+32&":$CM$"&$D48+32),0),1,0,0,0,0,2,0,0,0,0,3,0,0,0,0,4,0,0,0,0,5,0,0,0,0,6,0,0,0,0,7,0,0,0,0,8,0,0,0,0,9,0,0,0,0,10)),"") -> 0 | AA48: =IFERROR(INDEX((Data!$AT$33:$AX$82,Data!$AY$33:$BC$82,Data!$BD$33:$BH$82,Data!$BI$33:$BM$82,Data!$BN$33:$BR$82,Data!$BS$33:$BW$82,Data!$BX$33:$CB$82,Data!$CC$33:$CG$82,Data!$CH$33:$CL$82,Data!$CM$33:$CQ$82),$D48,5,CHOOSE(MATCH($Z$14,INDIRECT("Data!$AT$"&$D48+32&":$CM$"&$D48+32),0),1,0,0,0,0,2,0,0,0,0,3,0,0,0,0,4,0,0,0,0,5,0,0,0,0,6,0,0,0,0,7,0,0,0,0,8,0,0,0,0,9,0,0,0,0,10)),"") -> 0 | AB48: 0
B49: ='Report A'!$B51 -> 2014-07-20 | C49: ='Report A'!$C51 -> Sunday | D49: ='Report A'!$D51 -> 20 | E49: K-Lunch | F49: LOK-LOK | G49: Member 30% | H49: Member Package | I49: Tiger (2+1) Round | J49: Student Member Card | K49: Student Member Price | L49: 0 | M49: 0 | N49: 0 | O49: =IFERROR(IFERROR(INDEX(($E$30:$E$60), MATCH(0, COUNTIF($O$29:O48, ($E$30:$E$60)), 0)), INDEX(($F$30:$F$60), MATCH(0, COUNTIF($O$29:O48, ($F$30:$F$60)), 0))), "") ->  | P49: =IFERROR(IFERROR(INDEX(($G$30:$G$60), MATCH(0, COUNTIF($P$29:P48, ($G$30:$G$60)), 0)), INDEX(($H$30:$H$60), MATCH(0, COUNTIF($P$29:P48, ($H$30:$H$60)), 0))), "") ->  | Q49: =IFERROR(IFERROR(INDEX(($I$30:$I$60), MATCH(0, COUNTIF($Q$29:Q48, ($I$30:$I$60)), 0)), INDEX(($J$30:$J$60), MATCH(0, COUNTIF($Q$29:Q48, ($J$30:$J$60)), 0))), "") ->  | R49: =IFERROR(IFERROR(INDEX(($K$30:$K$60), MATCH(0, COUNTIF($R$29:R48, ($K$30:$K$60)), 0)), INDEX(($L$30:$L$60), MATCH(0, COUNTIF($R$29:R48, ($L$30:$L$60)), 0))), "") ->  | S49: =IFERROR(IFERROR(INDEX(($M$30:$M$60), MATCH(0, COUNTIF($S$29:S48, ($M$30:$M$60)), 0)), INDEX(($N$30:$N$60), MATCH(0, COUNTIF($S$29:S48, ($N$30:$N$60)), 0))), "") ->  | T49: =IFERROR(IFERROR(INDEX(($O$30:$O$60), MATCH(0, COUNTIF($T$29:T48, ($O$30:$O$60)), 0)), INDEX(($P$30:$P$60), MATCH(0, COUNTIF($T$29:T48, ($P$30:$P$60)), 0))), "") ->  | U49: =IFERROR(IFERROR(INDEX(($Q$30:$Q$60), MATCH(0, COUNTIF($U$29:U48, ($Q$30:$Q$60)), 0)), INDEX(($R$30:$R$60), MATCH(0, COUNTIF($U$29:U48, ($R$30:$R$60)), 0))), "") ->  | V49: =IFERROR(IFERROR(INDEX(($S$30:$S$60), MATCH(0, COUNTIF($V$29:V48, ($S$30:$S$60)), 0)), INDEX(($T$30:$T$60), MATCH(0, COUNTIF($V$29:V48, ($T$30:$T$60)), 0))), "") ->  | W49: =IFERROR(IFERROR(INDEX(($U$30:$U$60), MATCH(0, COUNTIF($W$29:W48, ($U$30:$U$60)), 0)), INDEX(($V$30:$V$60), MATCH(0, COUNTIF($W$29:W48, ($V$30:$V$60)), 0))), "") ->  | X49: =IFERROR(INDEX((Data!$AT$33:$AX$82,Data!$AY$33:$BC$82,Data!$BD$33:$BH$82,Data!$BI$33:$BM$82,Data!$BN$33:$BR$82,Data!$BS$33:$BW$82,Data!$BX$33:$CB$82,Data!$CC$33:$CG$82,Data!$CH$33:$CL$82,Data!$CM$33:$CQ$82),$D49,2,CHOOSE(MATCH($Z$14,INDIRECT("Data!$AT$"&$D49+32&":$CM$"&$D49+32),0),1,0,0,0,0,2,0,0,0,0,3,0,0,0,0,4,0,0,0,0,5,0,0,0,0,6,0,0,0,0,7,0,0,0,0,8,0,0,0,0,9,0,0,0,0,10)),"") -> 0 | Y49: =IFERROR(INDEX((Data!$AT$33:$AX$82,Data!$AY$33:$BC$82,Data!$BD$33:$BH$82,Data!$BI$33:$BM$82,Data!$BN$33:$BR$82,Data!$BS$33:$BW$82,Data!$BX$33:$CB$82,Data!$CC$33:$CG$82,Data!$CH$33:$CL$82,Data!$CM$33:$CQ$82),$D49,3,CHOOSE(MATCH($Z$14,INDIRECT("Data!$AT$"&$D49+32&":$CM$"&$D49+32),0),1,0,0,0,0,2,0,0,0,0,3,0,0,0,0,4,0,0,0,0,5,0,0,0,0,6,0,0,0,0,7,0,0,0,0,8,0,0,0,0,9,0,0,0,0,10)),"") -> 0 | Z49: =IFERROR(INDEX((Data!$AT$33:$AX$82,Data!$AY$33:$BC$82,Data!$BD$33:$BH$82,Data!$BI$33:$BM$82,Data!$BN$33:$BR$82,Data!$BS$33:$BW$82,Data!$BX$33:$CB$82,Data!$CC$33:$CG$82,Data!$CH$33:$CL$82,Data!$CM$33:$CQ$82),$D49,4,CHOOSE(MATCH($Z$14,INDIRECT("Data!$AT$"&$D49+32&":$CM$"&$D49+32),0),1,0,0,0,0,2,0,0,0,0,3,0,0,0,0,4,0,0,0,0,5,0,0,0,0,6,0,0,0,0,7,0,0,0,0,8,0,0,0,0,9,0,0,0,0,10)),"") -> 0 | AA49: =IFERROR(INDEX((Data!$AT$33:$AX$82,Data!$AY$33:$BC$82,Data!$BD$33:$BH$82,Data!$BI$33:$BM$82,Data!$BN$33:$BR$82,Data!$BS$33:$BW$82,Data!$BX$33:$CB$82,Data!$CC$33:$CG$82,Data!$CH$33:$CL$82,Data!$CM$33:$CQ$82),$D49,5,CHOOSE(MATCH($Z$14,INDIRECT("Data!$AT$"&$D49+32&":$CM$"&$D49+32),0),1,0,0,0,0,2,0,0,0,0,3,0,0,0,0,4,0,0,0,0,5,0,0,0,0,6,0,0,0,0,7,0,0,0,0,8,0,0,0,0,9,0,0,0,0,10)),"") -> 0 | AB49: 0
B50: ='Report A'!$B52 -> 2014-07-21 | C50: ='Report A'!$C52 -> Monday | D50: ='Report A'!$D52 -> 21 | E50: =IFERROR(INDIRECT("Data!"&E$17&$D50+32),"") -> K-Lunch | F50: LOK-LOK | G50: Member 30% | H50: Member Package | I50: Tiger (2+1) Round | J50: Student Member Card | K50: Student Member Price | L50: 0 | M50: 0 | N50: 0 | O50: =IFERROR(IFERROR(INDEX(($E$30:$E$60), MATCH(0, COUNTIF($O$29:O49, ($E$30:$E$60)), 0)), INDEX(($F$30:$F$60), MATCH(0, COUNTIF($O$29:O49, ($F$30:$F$60)), 0))), "") ->  | P50: =IFERROR(IFERROR(INDEX(($G$30:$G$60), MATCH(0, COUNTIF($P$29:P49, ($G$30:$G$60)), 0)), INDEX(($H$30:$H$60), MATCH(0, COUNTIF($P$29:P49, ($H$30:$H$60)), 0))), "") ->  | Q50: =IFERROR(IFERROR(INDEX(($I$30:$I$60), MATCH(0, COUNTIF($Q$29:Q49, ($I$30:$I$60)), 0)), INDEX(($J$30:$J$60), MATCH(0, COUNTIF($Q$29:Q49, ($J$30:$J$60)), 0))), "") ->  | R50: =IFERROR(IFERROR(INDEX(($K$30:$K$60), MATCH(0, COUNTIF($R$29:R49, ($K$30:$K$60)), 0)), INDEX(($L$30:$L$60), MATCH(0, COUNTIF($R$29:R49, ($L$30:$L$60)), 0))), "") ->  | S50: =IFERROR(IFERROR(INDEX(($M$30:$M$60), MATCH(0, COUNTIF($S$29:S49, ($M$30:$M$60)), 0)), INDEX(($N$30:$N$60), MATCH(0, COUNTIF($S$29:S49, ($N$30:$N$60)), 0))), "") ->  | T50: =IFERROR(IFERROR(INDEX(($O$30:$O$60), MATCH(0, COUNTIF($T$29:T49, ($O$30:$O$60)), 0)), INDEX(($P$30:$P$60), MATCH(0, COUNTIF($T$29:T49, ($P$30:$P$60)), 0))), "") ->  | U50: =IFERROR(IFERROR(INDEX(($Q$30:$Q$60), MATCH(0, COUNTIF($U$29:U49, ($Q$30:$Q$60)), 0)), INDEX(($R$30:$R$60), MATCH(0, COUNTIF($U$29:U49, ($R$30:$R$60)), 0))), "") ->  | V50: =IFERROR(IFERROR(INDEX(($S$30:$S$60), MATCH(0, COUNTIF($V$29:V49, ($S$30:$S$60)), 0)), INDEX(($T$30:$T$60), MATCH(0, COUNTIF($V$29:V49, ($T$30:$T$60)), 0))), "") ->  | W50: =IFERROR(IFERROR(INDEX(($U$30:$U$60), MATCH(0, COUNTIF($W$29:W49, ($U$30:$U$60)), 0)), INDEX(($V$30:$V$60), MATCH(0, COUNTIF($W$29:W49, ($V$30:$V$60)), 0))), "") ->  | X50: =IFERROR(INDEX((Data!$AT$33:$AX$82,Data!$AY$33:$BC$82,Data!$BD$33:$BH$82,Data!$BI$33:$BM$82,Data!$BN$33:$BR$82,Data!$BS$33:$BW$82,Data!$BX$33:$CB$82,Data!$CC$33:$CG$82,Data!$CH$33:$CL$82,Data!$CM$33:$CQ$82),$D50,2,CHOOSE(MATCH($Z$14,INDIRECT("Data!$AT$"&$D50+32&":$CM$"&$D50+32),0),1,0,0,0,0,2,0,0,0,0,3,0,0,0,0,4,0,0,0,0,5,0,0,0,0,6,0,0,0,0,7,0,0,0,0,8,0,0,0,0,9,0,0,0,0,10)),"") -> 0 | Y50: =IFERROR(INDEX((Data!$AT$33:$AX$82,Data!$AY$33:$BC$82,Data!$BD$33:$BH$82,Data!$BI$33:$BM$82,Data!$BN$33:$BR$82,Data!$BS$33:$BW$82,Data!$BX$33:$CB$82,Data!$CC$33:$CG$82,Data!$CH$33:$CL$82,Data!$CM$33:$CQ$82),$D50,3,CHOOSE(MATCH($Z$14,INDIRECT("Data!$AT$"&$D50+32&":$CM$"&$D50+32),0),1,0,0,0,0,2,0,0,0,0,3,0,0,0,0,4,0,0,0,0,5,0,0,0,0,6,0,0,0,0,7,0,0,0,0,8,0,0,0,0,9,0,0,0,0,10)),"") -> 0 | Z50: =IFERROR(INDEX((Data!$AT$33:$AX$82,Data!$AY$33:$BC$82,Data!$BD$33:$BH$82,Data!$BI$33:$BM$82,Data!$BN$33:$BR$82,Data!$BS$33:$BW$82,Data!$BX$33:$CB$82,Data!$CC$33:$CG$82,Data!$CH$33:$CL$82,Data!$CM$33:$CQ$82),$D50,4,CHOOSE(MATCH($Z$14,INDIRECT("Data!$AT$"&$D50+32&":$CM$"&$D50+32),0),1,0,0,0,0,2,0,0,0,0,3,0,0,0,0,4,0,0,0,0,5,0,0,0,0,6,0,0,0,0,7,0,0,0,0,8,0,0,0,0,9,0,0,0,0,10)),"") -> 0 | AA50: =IFERROR(INDEX((Data!$AT$33:$AX$82,Data!$AY$33:$BC$82,Data!$BD$33:$BH$82,Data!$BI$33:$BM$82,Data!$BN$33:$BR$82,Data!$BS$33:$BW$82,Data!$BX$33:$CB$82,Data!$CC$33:$CG$82,Data!$CH$33:$CL$82,Data!$CM$33:$CQ$82),$D50,5,CHOOSE(MATCH($Z$14,INDIRECT("Data!$AT$"&$D50+32&":$CM$"&$D50+32),0),1,0,0,0,0,2,0,0,0,0,3,0,0,0,0,4,0,0,0,0,5,0,0,0,0,6,0,0,0,0,7,0,0,0,0,8,0,0,0,0,9,0,0,0,0,10)),"") -> 0 | AB50: 0
